Workbook

Sheet методология
E5: МЕТОДОЛОГИЯ
F8: вкладки | H8: ячейки | K8: описание/инструкция/комментарий
G12: * | K12: (Красная) "звездочка" слева от ячейки обычно означает, что в данную ячейку можно
K13: вносить данные вручную или менять данные, которые уже туда внесены
G15: * | I15: ^ | K15: (Красная) "звездочка" слева от ячейки вместе с одновременным присутствием справа
K16: от ячейки (коричневой) "галочки" обычно означает, что в данную ячейку можно вносить данные из выпадающего списка.
K17: Все выпадающие списки модели сосредоточены во вкладках: spiski, spravochniki, prod-atributy и produkciya
F19: produkciya | K19: В данной вкладке в столбце R формируется список SKU с указанием их основных атрибутов
H21: стр. 5 | K21: Строка 5 используется для добавления нового SKU в список, для этого необходимо:
K22: - в ячейку O5 внести следующий порядковый номер SKU, причем он не должен совпадать ни с одним из уже имеющихся номеров SKU, находящихся в столбце O, иначе ячейка P5 "загорится красным", т.е. сработает контроль совпадения порядковых номеров.
K23: Почему важно, чтобы порядковые номера SKU не совпадали:
K24: дело в том, что формирование структуры продаж во вкладке str-ra-prodaj происходит путем взаимно однозначного соответствия порядковых номеров наименованиям SKU.
K25: - в ячейку R5 внести наименование нового SKU, соответствующего порядковому номеру из ячейки O5, причем это наименование не должно совпадать ни с одним из уже имеющихся наименований SKU, находящихся в столбце R, иначе ячейка S5 "загорится красным", т.е. сработает контроль совпадения наименований SKU.
K26: - далее в ячейках Z5, AF5, AL5 и т.д. до CB5 из выпадающих списков, находящихся соответственно в столбцах R, AC, AN и т.д. до DM вкладки prod-atributy, необходимо выбрать соответствующий атрибут характеризующий новое SKU.
K27: В нашем случае активными являются первые три атрибута: бренды, форматы и копекинг, остальные семь предусмотрены в модели, как резервные.
K28: - по аналогии в ячейках CH5, CN5, CT5 и т.д. до EJ5 только не из выпадающих списков, а просто вручную необходимо внести ту или иную физическую характеристику SKU.
K29: В нашем случае активными являются нижеследующие 6-сть физических параметров (остальные 4-ре являются резервными):
K30: базовое количество - ед.изм. "штуки", т.е. предполагается, что здесь обычно ставится единица "1"
K31: объемы - ед.изм., например, "литры", т.е. предполагается, что здесь обычно вносится объем основного сырья, из которого состоит "одна штука SKU"
... 34 more rows

Sheet glavnaya
F1: 1 | G1: =F1+1 -> 2 | H1: =G1+1 -> 3 | I1: =H1+1 -> 4 | J1: =I1+1 -> 5 | K1: =J1+1 -> 6
C3: Панель управления
C4: Ключевые параметры управления Бюджетом | O4: Ключевые результаты планирования
C6: ='Reports-Y'!$K$14 -> Параметры глобальных продаж | F6: 2020 | G6: 2021 | H6: 2022 | I6: 2023 | J6: 2024 | K6: 2025 | P6: показатель | Q6: ед.изм | R6: 2020 | S6: 2021 | T6: 2022 | U6: 2023 | V6: 2024 | W6: 2025
C7: Управление количеством штук по годам | E7: * | F7: 1 | G7: 1 | H7: 1 | I7: 1 | J7: 1 | K7: 1 | O7: ='Reports-Y'!$K$17 -> базовое количество | P7: Продажи в штуках | Q7: 1000шт | R7: =SUMIFS('Reports-Y'!X:X,'Reports-Y'!$K:$K,$O7,'Reports-Y'!$P:$P,"итого")/1000 -> 4975 | S7: =SUMIFS('Reports-Y'!Y:Y,'Reports-Y'!$K:$K,$O7,'Reports-Y'!$P:$P,"итого")/1000 -> 15690 | T7: =SUMIFS('Reports-Y'!Z:Z,'Reports-Y'!$K:$K,$O7,'Reports-Y'!$P:$P,"итого")/1000 -> 20178.33333 | U7: =SUMIFS('Reports-Y'!AA:AA,'Reports-Y'!$K:$K,$O7,'Reports-Y'!$P:$P,"итого")/1000 -> 29054.16667 | V7: =SUMIFS('Reports-Y'!AB:AB,'Reports-Y'!$K:$K,$O7,'Reports-Y'!$P:$P,"итого")/1000 -> 34899.16667 | W7: =SUMIFS('Reports-Y'!AC:AC,'Reports-Y'!$K:$K,$O7,'Reports-Y'!$P:$P,"итого")/1000 -> 41750
C8: Управление уровнем цен по годам | E8: * | F8: 1 | G8: 1 | H8: 1 | I8: 1 | J8: 1 | K8: 1 | P8: приросты г/г | Q8: % | S8: =IF(R7=0,0,(S7-R7)/R7) -> 2.153768844 | T8: =IF(S7=0,0,(T7-S7)/S7) -> 0.28606331 | U8: 0.439869497 | V8: 0.2011759644 | W8: 0.1963036367
O9: ='Reports-Y'!$K$37 -> объемы | P9: Продажи в объеме | Q9: 1000л | R9: =SUMIFS('Reports-Y'!X:X,'Reports-Y'!$K:$K,$O9,'Reports-Y'!$P:$P,"итого")/1000 -> 1483.75 | S9: =SUMIFS('Reports-Y'!Y:Y,'Reports-Y'!$K:$K,$O9,'Reports-Y'!$P:$P,"итого")/1000 -> 2650 | T9: =SUMIFS('Reports-Y'!Z:Z,'Reports-Y'!$K:$K,$O9,'Reports-Y'!$P:$P,"итого")/1000 -> 3290 | U9: =SUMIFS('Reports-Y'!AA:AA,'Reports-Y'!$K:$K,$O9,'Reports-Y'!$P:$P,"итого")/1000 -> 4095 | V9: =SUMIFS('Reports-Y'!AB:AB,'Reports-Y'!$K:$K,$O9,'Reports-Y'!$P:$P,"итого")/1000 -> 4815 | W9: =SUMIFS('Reports-Y'!AC:AC,'Reports-Y'!$K:$K,$O9,'Reports-Y'!$P:$P,"итого")/1000 -> 5740
C10: =usloviya!$E$22 -> Затраты на осн. сырье | D10: =kategorii!$L$12 -> Товарная категория - 1 | E10: * | F10: 3000 | G10: руб/куб.м | P10: приросты г/г | Q10: % | S10: =IF(R9=0,0,(S9-R9)/R9) -> 0.7860151643 | T10: =IF(S9=0,0,(T9-S9)/S9) -> 0.241509434 | U10: =IF(T9=0,0,(U9-T9)/T9) -> 0.2446808511 | V10: =IF(U9=0,0,(V9-U9)/U9) -> 0.1758241758 | W10: =IF(V9=0,0,(W9-V9)/V9) -> 0.1921079958
C11: =usloviya!$E$22 -> Затраты на осн. сырье | D11: =kategorii!$L$13 -> Товарная категория - 2 | E11: * | F11: 3000 | G11: руб/куб.м | O11: ='Reports-Y'!$K$492 -> вес брутто | P11: Продажи в весе | Q11: тонн | R11: =SUMIFS('Reports-Y'!X:X,'Reports-Y'!$K:$K,$O11,'Reports-Y'!$P:$P,"итого")/1000 -> 4252.136752 | S11: =SUMIFS('Reports-Y'!Y:Y,'Reports-Y'!$K:$K,$O11,'Reports-Y'!$P:$P,"итого")/1000 -> 13410.25641 | T11: =SUMIFS('Reports-Y'!Z:Z,'Reports-Y'!$K:$K,$O11,'Reports-Y'!$P:$P,"итого")/1000 -> 17246.43875 | U11: =SUMIFS('Reports-Y'!AA:AA,'Reports-Y'!$K:$K,$O11,'Reports-Y'!$P:$P,"итого")/1000 -> 24832.62108 | V11: =SUMIFS('Reports-Y'!AB:AB,'Reports-Y'!$K:$K,$O11,'Reports-Y'!$P:$P,"итого")/1000 -> 29828.34758 | W11: =SUMIFS('Reports-Y'!AC:AC,'Reports-Y'!$K:$K,$O11,'Reports-Y'!$P:$P,"итого")/1000 -> 35683.76068
C12: =usloviya!$E$22 -> Затраты на осн. сырье | D12: =kategorii!$L$14 -> Товарная категория - 3 | E12: * | F12: 3000 | G12: руб/куб.м | P12: приросты г/г | Q12: % | S12: =IF(R11=0,0,(S11-R11)/R11) -> 2.153768844 | T12: =IF(S11=0,0,(T11-S11)/S11) -> 0.28606331 | U12: =IF(T11=0,0,(U11-T11)/T11) -> 0.439869497 | V12: =IF(U11=0,0,(V11-U11)/U11) -> 0.2011759644 | W12: =IF(V11=0,0,(W11-V11)/V11) -> 0.1963036367
O13: ='Reports-Y'!$K$52 -> Продажи в ТТ без НДС | P13: Продажи в ТТ б/ндс | Q13: тыс.руб. | R13: =SUMIFS('Reports-Y'!X:X,'Reports-Y'!$K:$K,$O13,'Reports-Y'!$P:$P,"итого")/1000 -> 339833.5029 | S13: =SUMIFS('Reports-Y'!Y:Y,'Reports-Y'!$K:$K,$O13,'Reports-Y'!$P:$P,"итого")/1000 -> 1274994.53 | T13: =SUMIFS('Reports-Y'!Z:Z,'Reports-Y'!$K:$K,$O13,'Reports-Y'!$P:$P,"итого")/1000 -> 1730496.902 | U13: =SUMIFS('Reports-Y'!AA:AA,'Reports-Y'!$K:$K,$O13,'Reports-Y'!$P:$P,"итого")/1000 -> 2653882.667 | V13: =SUMIFS('Reports-Y'!AB:AB,'Reports-Y'!$K:$K,$O13,'Reports-Y'!$P:$P,"итого")/1000 -> 3367960.862 | W13: =SUMIFS('Reports-Y'!AC:AC,'Reports-Y'!$K:$K,$O13,'Reports-Y'!$P:$P,"итого")/1000 -> 4235768.579
C14: оборачиваемость ГП в продажах | E14: * | F14: -20 | J14: +7(985)201-6607 | O14: ='Reports-Y'!$K$85 -> Выручка б/ндс | P14: Выручка | Q14: тыс.руб. | R14: =SUMIFS('Reports-Y'!X:X,'Reports-Y'!$K:$K,$O14,'Reports-Y'!$P:$P,"итого")/1000 -> 226144.1653 | S14: =SUMIFS('Reports-Y'!Y:Y,'Reports-Y'!$K:$K,$O14,'Reports-Y'!$P:$P,"итого")/1000 -> 861475.8775 | T14: =SUMIFS('Reports-Y'!Z:Z,'Reports-Y'!$K:$K,$O14,'Reports-Y'!$P:$P,"итого")/1000 -> 1168835.125 | U14: =SUMIFS('Reports-Y'!AA:AA,'Reports-Y'!$K:$K,$O14,'Reports-Y'!$P:$P,"итого")/1000 -> 1801830.889 | V14: =SUMIFS('Reports-Y'!AB:AB,'Reports-Y'!$K:$K,$O14,'Reports-Y'!$P:$P,"итого")/1000 -> 2289069.566 | W14: =SUMIFS('Reports-Y'!AC:AC,'Reports-Y'!$K:$K,$O14,'Reports-Y'!$P:$P,"итого")/1000 -> 2880970.265
P15: приросты г/г | Q15: % | S15: =IF(R14=0,0,(S14-R14)/R14) -> 2.809410144 | T15: =IF(S14=0,0,(T14-S14)/S14) -> 0.3567821866 | U15: =IF(T14=0,0,(U14-T14)/T14) -> 0.5415612102 | V15: =IF(U14=0,0,(V14-U14)/U14) -> 0.2704130998 | W15: =IF(V14=0,0,(W14-V14)/V14) -> 0.258576982
C16: затраты D&A на продвижение в каналах | F16: 2020 | G16: 2021 | H16: 2022 | I16: 2023 | J16: 2024 | K16: 2025 | O16: ='Reports-Y'!$K$100 -> Выручка без НДС на 1л | P16: Выручка на 1л | Q16: руб. | R16: =SUMIFS('Reports-Y'!X:X,'Reports-Y'!$K:$K,$O16,'Reports-Y'!$P:$P,"итого") -> 152.4139278 | S16: =SUMIFS('Reports-Y'!Y:Y,'Reports-Y'!$K:$K,$O16,'Reports-Y'!$P:$P,"итого") -> 325.0852368 | T16: =SUMIFS('Reports-Y'!Z:Z,'Reports-Y'!$K:$K,$O16,'Reports-Y'!$P:$P,"итого") -> 355.2690349 | U16: =SUMIFS('Reports-Y'!AA:AA,'Reports-Y'!$K:$K,$O16,'Reports-Y'!$P:$P,"итого") -> 440.0075432 | V16: =SUMIFS('Reports-Y'!AB:AB,'Reports-Y'!$K:$K,$O16,'Reports-Y'!$P:$P,"итого") -> 475.4038558 | W16: =SUMIFS('Reports-Y'!AC:AC,'Reports-Y'!$K:$K,$O16,'Reports-Y'!$P:$P,"итого") -> 501.9111961
C17: =spiski!$AL$12 -> E-commerce | P17: приросты г/г | Q17: % | S17: =IF(R16=0,0,(S16-R16)/R16) -> 1.132910303 | T17: =IF(S16=0,0,(T16-S16)/S16) -> 0.09284887371 | U17: =IF(T16=0,0,(U16-T16)/T16) -> 0.2385192629 | V17: =IF(U16=0,0,(V16-U16)/U16) -> 0.08044478581 | W17: =IF(V16=0,0,(W16-V16)/V16) -> 0.05575752062
A18: 1 | C18: =C17 -> E-commerce | D18: ='prod-atributy'!$R$13 -> Товарная категория - 1 | E18: * | F18: 0.5 | G18: 0.5 | H18: 0.5 | I18: 0.5 | J18: 0.5 | K18: 0.5 | O18: ='Reports-Y'!$K$115 -> D&A | P18: D&A | Q18: тыс.руб. | R18: =SUMIFS('Reports-Y'!X:X,'Reports-Y'!$K:$K,$O18,'Reports-Y'!$P:$P,"итого")/1000 -> 113689.3376 | S18: =SUMIFS('Reports-Y'!Y:Y,'Reports-Y'!$K:$K,$O18,'Reports-Y'!$P:$P,"итого")/1000 -> 413518.6527 | T18: =SUMIFS('Reports-Y'!Z:Z,'Reports-Y'!$K:$K,$O18,'Reports-Y'!$P:$P,"итого")/1000 -> 561661.777 | U18: =SUMIFS('Reports-Y'!AA:AA,'Reports-Y'!$K:$K,$O18,'Reports-Y'!$P:$P,"итого")/1000 -> 852051.7773 | V18: =SUMIFS('Reports-Y'!AB:AB,'Reports-Y'!$K:$K,$O18,'Reports-Y'!$P:$P,"итого")/1000 -> 1078891.297 | W18: =SUMIFS('Reports-Y'!AC:AC,'Reports-Y'!$K:$K,$O18,'Reports-Y'!$P:$P,"итого")/1000 -> 1354798.314
A19: =A18+1 -> 2 | C19: =C18 -> E-commerce | D19: ='prod-atributy'!$R$14 -> Товарная категория - 2 | E19: * | F19: 0.5 | G19: 0.5 | H19: 0.5 | I19: 0.5 | J19: 0.5 | K19: 0.5 | O19: ='Reports-Y'!$K$130 -> D&A на 1л | P19: D&A на 1л | Q19: руб. | R19: =SUMIFS('Reports-Y'!X:X,'Reports-Y'!$K:$K,$O19,'Reports-Y'!$P:$P,"итого") -> 76.62297394 | S19: =SUMIFS('Reports-Y'!Y:Y,'Reports-Y'!$K:$K,$O19,'Reports-Y'!$P:$P,"итого") -> 156.0447746 | T19: =SUMIFS('Reports-Y'!Z:Z,'Reports-Y'!$K:$K,$O19,'Reports-Y'!$P:$P,"итого") -> 170.7178653 | U19: =SUMIFS('Reports-Y'!AA:AA,'Reports-Y'!$K:$K,$O19,'Reports-Y'!$P:$P,"итого") -> 208.0712521 | V19: =SUMIFS('Reports-Y'!AB:AB,'Reports-Y'!$K:$K,$O19,'Reports-Y'!$P:$P,"итого") -> 224.0688051 | W19: =SUMIFS('Reports-Y'!AC:AC,'Reports-Y'!$K:$K,$O19,'Reports-Y'!$P:$P,"итого") -> 236.0275808
A20: =A19+1 -> 3 | C20: E-commerce | D20: ='prod-atributy'!$R$15 -> Товарная категория - 3 | E20: * | F20: 0.5 | G20: 0.5 | H20: 0.5 | I20: 0.5 | J20: 0.5 | K20: 0.5 | O20: ='Reports-Y'!$K$160 -> С/стоимость СиМ в продажах б/ндс | P20: Себестоимость | Q20: тыс.руб. | R20: =SUMIFS('Reports-Y'!X:X,'Reports-Y'!$K:$K,$O20,'Reports-Y'!$P:$P,"итого")/1000 -> 80316.04016 | S20: =SUMIFS('Reports-Y'!Y:Y,'Reports-Y'!$K:$K,$O20,'Reports-Y'!$P:$P,"итого")/1000 -> 92860.07474 | T20: =SUMIFS('Reports-Y'!Z:Z,'Reports-Y'!$K:$K,$O20,'Reports-Y'!$P:$P,"итого")/1000 -> 102894.8271 | U20: =SUMIFS('Reports-Y'!AA:AA,'Reports-Y'!$K:$K,$O20,'Reports-Y'!$P:$P,"итого")/1000 -> 110417.9211 | V20: =SUMIFS('Reports-Y'!AB:AB,'Reports-Y'!$K:$K,$O20,'Reports-Y'!$P:$P,"итого")/1000 -> 117941.015 | W20: =SUMIFS('Reports-Y'!AC:AC,'Reports-Y'!$K:$K,$O20,'Reports-Y'!$P:$P,"итого")/1000 -> 125464.1089
A21: 4 | C21: E-commerce | D21: ='prod-atributy'!$R$16 -> Товарная категория - 4 | E21: * | F21: 0.45 | G21: 0.45 | H21: 0.45 | I21: 0.45 | J21: 0.45 | K21: 0.45 | P21: приросты г/г | Q21: % | S21: =IF(R20=0,0,(S20-R20)/R20) -> 0.1561834293 | T21: =IF(S20=0,0,(T20-S20)/S20) -> 0.1080631523 | U21: =IF(T20=0,0,(U20-T20)/T20) -> 0.07311440357 | V21: =IF(U20=0,0,(V20-U20)/U20) -> 0.06813290673 | W21: =IF(V20=0,0,(W20-V20)/V20) -> 0.06378691856
A22: 5 | C22: E-commerce | D22: ='prod-atributy'!$R$17 -> Товарная категория - 5 | E22: * | F22: 0.45 | G22: 0.45 | H22: 0.45 | I22: 0.45 | J22: 0.45 | K22: 0.45 | O22: ='Reports-Y'!$K$175 -> С/стоимость СиМ в продажах б/ндс на 1л | P22: С/стоимость на 1л | Q22: руб. | R22: =SUMIFS('Reports-Y'!X:X,'Reports-Y'!$K:$K,$O22,'Reports-Y'!$P:$P,"итого") -> 54.13043987 | S22: =SUMIFS('Reports-Y'!Y:Y,'Reports-Y'!$K:$K,$O22,'Reports-Y'!$P:$P,"итого") -> 35.04153764 | T22: =SUMIFS('Reports-Y'!Z:Z,'Reports-Y'!$K:$K,$O22,'Reports-Y'!$P:$P,"итого") -> 31.27502345 | U22: =SUMIFS('Reports-Y'!AA:AA,'Reports-Y'!$K:$K,$O22,'Reports-Y'!$P:$P,"итого") -> 26.96408329 | V22: =SUMIFS('Reports-Y'!AB:AB,'Reports-Y'!$K:$K,$O22,'Reports-Y'!$P:$P,"итого") -> 24.49449948 | W22: =SUMIFS('Reports-Y'!AC:AC,'Reports-Y'!$K:$K,$O22,'Reports-Y'!$P:$P,"итого") -> 21.85785869
A23: 6 | C23: E-commerce | D23: ='prod-atributy'!$R$18 -> Товарная категория - 6 | E23: * | F23: 0.45 | G23: 0.45 | H23: 0.45 | I23: 0.45 | J23: 0.45 | K23: 0.45 | P23: приросты г/г | Q23: % | S23: =IF(R22=0,0,(S22-R22)/R22) -> -0.3526463535 | T23: =IF(S22=0,0,(T22-S22)/S22) -> -0.1074871265 | U23: =IF(T22=0,0,(U22-T22)/T22) -> -0.13783971 | V23: =IF(U22=0,0,(V22-U22)/U22) -> -0.09158790175 | W23: =IF(V22=0,0,(W22-V22)/V22) -> -0.107642158
A24: 7 | C24: E-commerce | D24: ='prod-atributy'!$R$19 -> Товарная категория - 7 | E24: * | F24: 0.45 | G24: 0.45 | H24: 0.45 | I24: 0.45 | J24: 0.45 | K24: 0.45 | O24: прочее | P24: Прямые расходы | Q24: тыс.руб. | R24: =R14-R20-R25 -> 287188.6617 | S24: 588200.6313 | T24: 733547.6471 | U24: 999353.9075 | V24: 1177739.96 | W24: 1312535.18
A25: 8 | C25: E-commerce | D25: ='prod-atributy'!$R$20 -> Товарная категория - 8 | E25: * | F25: 0.45 | G25: 0.45 | H25: 0.45 | I25: 0.45 | J25: 0.45 | K25: 0.45 | O25: ='Reports-Y'!$K$447 -> Gross Profit | P25: =O25 -> Gross Profit | Q25: тыс.руб. | R25: =SUMIFS('Reports-Y'!X:X,'Reports-Y'!$K:$K,$O25,'Reports-Y'!$P:$P,"итого")/1000 -> -141360.5365 | S25: =SUMIFS('Reports-Y'!Y:Y,'Reports-Y'!$K:$K,$O25,'Reports-Y'!$P:$P,"итого")/1000 -> 180415.1714 | T25: =SUMIFS('Reports-Y'!Z:Z,'Reports-Y'!$K:$K,$O25,'Reports-Y'!$P:$P,"итого")/1000 -> 332392.6505 | U25: =SUMIFS('Reports-Y'!AA:AA,'Reports-Y'!$K:$K,$O25,'Reports-Y'!$P:$P,"итого")/1000 -> 692059.0609 | V25: =SUMIFS('Reports-Y'!AB:AB,'Reports-Y'!$K:$K,$O25,'Reports-Y'!$P:$P,"итого")/1000 -> 993388.5909 | W25: =SUMIFS('Reports-Y'!AC:AC,'Reports-Y'!$K:$K,$O25,'Reports-Y'!$P:$P,"итого")/1000 -> 1442970.977
A26: 9 | C26: E-commerce | D26: ='prod-atributy'!$R$21 -> Товарная категория - 9 | E26: * | F26: 0.77 | G26: 0.77 | H26: 0.77 | I26: 0.77 | J26: 0.77 | K26: 0.77 | P26: приросты г/г | Q26: % | S26: =IF(R25=0,0,(S25-R25)/R25) -> -2.276276788 | T26: =IF(S25=0,0,(T25-S25)/S25) -> 0.8423763803 | U26: =IF(T25=0,0,(U25-T25)/T25) -> 1.082052837 | V26: =IF(U25=0,0,(V25-U25)/U25) -> 0.4354101363 | W26: =IF(V25=0,0,(W25-V25)/V25) -> 0.4525745414
A27: 10 | C27: E-commerce | D27: ='prod-atributy'!$R$22 -> Товарная категория - 10 | E27: * | F27: 0.77 | G27: 0.77 | H27: 0.77 | I27: 0.77 | J27: 0.77 | K27: 0.77 | O27: ='Reports-Y'!K462 -> Gross Profit на 1л | P27: =O27 -> Gross Profit на 1л | Q27: руб. | R27: =SUMIFS('Reports-Y'!X:X,'Reports-Y'!$K:$K,$O27,'Reports-Y'!$P:$P,"итого") -> -95.27247617 | S27: =SUMIFS('Reports-Y'!Y:Y,'Reports-Y'!$K:$K,$O27,'Reports-Y'!$P:$P,"итого") -> 68.08119677 | T27: =SUMIFS('Reports-Y'!Z:Z,'Reports-Y'!$K:$K,$O27,'Reports-Y'!$P:$P,"итого") -> 101.0312008 | U27: =SUMIFS('Reports-Y'!AA:AA,'Reports-Y'!$K:$K,$O27,'Reports-Y'!$P:$P,"итого") -> 169.0009917 | V27: =SUMIFS('Reports-Y'!AB:AB,'Reports-Y'!$K:$K,$O27,'Reports-Y'!$P:$P,"итого") -> 206.3112338 | W27: =SUMIFS('Reports-Y'!AC:AC,'Reports-Y'!$K:$K,$O27,'Reports-Y'!$P:$P,"итого") -> 251.3886719
A28: 11 | C28: E-commerce | D28: ='prod-atributy'!$R$23 -> Товарная категория - 11 | E28: * | F28: 0.45 | G28: 0.45 | H28: 0.45 | I28: 0.45 | J28: 0.45 | K28: 0.45 | O28: ='Reports-Y'!K477 -> Gross Profit, % | P28: Gross Profit, % | Q28: % | R28: =SUMIFS('Reports-Y'!X:X,'Reports-Y'!$K:$K,$O28,'Reports-Y'!$P:$P,"итого") -> -0.6250903547 | S28: =SUMIFS('Reports-Y'!Y:Y,'Reports-Y'!$K:$K,$O28,'Reports-Y'!$P:$P,"итого") -> 0.20942568 | T28: =SUMIFS('Reports-Y'!Z:Z,'Reports-Y'!$K:$K,$O28,'Reports-Y'!$P:$P,"итого") -> 0.2843794163 | U28: =SUMIFS('Reports-Y'!AA:AA,'Reports-Y'!$K:$K,$O28,'Reports-Y'!$P:$P,"итого") -> 0.3840865782 | V28: =SUMIFS('Reports-Y'!AB:AB,'Reports-Y'!$K:$K,$O28,'Reports-Y'!$P:$P,"итого") -> 0.4339704681 | W28: =SUMIFS('Reports-Y'!AC:AC,'Reports-Y'!$K:$K,$O28,'Reports-Y'!$P:$P,"итого") -> 0.5008628496
A29: 12 | C29: E-commerce | D29: ='prod-atributy'!$R$24 -> Сторонний ассортимент | E29: * | F29: 0.45 | G29: 0.45 | H29: 0.45 | I29: 0.45 | J29: 0.45 | K29: 0.45 | O29: ='Reports-Y'!K552 -> Затраты на маркетинг | P29: Маркетинг | Q29: тыс.руб. | R29: =SUMIFS('Reports-Y'!X:X,'Reports-Y'!$K:$K,$O29,'Reports-Y'!$P:$P,"итого")/1000 -> 6784.32496 | S29: =SUMIFS('Reports-Y'!Y:Y,'Reports-Y'!$K:$K,$O29,'Reports-Y'!$P:$P,"итого")/1000 -> 25844.27632 | T29: =SUMIFS('Reports-Y'!Z:Z,'Reports-Y'!$K:$K,$O29,'Reports-Y'!$P:$P,"итого")/1000 -> 35065.05374 | U29: =SUMIFS('Reports-Y'!AA:AA,'Reports-Y'!$K:$K,$O29,'Reports-Y'!$P:$P,"итого")/1000 -> 54054.92668 | V29: =SUMIFS('Reports-Y'!AB:AB,'Reports-Y'!$K:$K,$O29,'Reports-Y'!$P:$P,"итого")/1000 -> 68672.08697 | W29: =SUMIFS('Reports-Y'!AC:AC,'Reports-Y'!$K:$K,$O29,'Reports-Y'!$P:$P,"итого")/1000 -> 86429.10796
A30: 13 | C30: =spiski!$AL$13 -> OwnOff-line | P30: приросты г/г | Q30: % | S30: =IF(R29=0,0,(S29-R29)/R29) -> 2.809410144 | T30: =IF(S29=0,0,(T29-S29)/S29) -> 0.3567821866 | U30: =IF(T29=0,0,(U29-T29)/T29) -> 0.5415612102 | V30: =IF(U29=0,0,(V29-U29)/U29) -> 0.2704130998 | W30: =IF(V29=0,0,(W29-V29)/V29) -> 0.258576982
A31: 14 | C31: =C30 -> OwnOff-line | D31: ='prod-atributy'!$R$13 -> Товарная категория - 1 | E31: * | F31: 0.5 | G31: 0.5 | H31: 0.5 | I31: 0.5 | J31: 0.5 | K31: 0.5 | O31: ='Reports-Y'!K567 -> Затраты на маркетинг на 1л | P31: Маркетинг на 1л | Q31: руб. | R31: =SUMIFS('Reports-Y'!X:X,'Reports-Y'!$K:$K,$O31,'Reports-Y'!$P:$P,"итого") -> 4.572417833 | S31: =SUMIFS('Reports-Y'!Y:Y,'Reports-Y'!$K:$K,$O31,'Reports-Y'!$P:$P,"итого") -> 9.752557103 | T31: =SUMIFS('Reports-Y'!Z:Z,'Reports-Y'!$K:$K,$O31,'Reports-Y'!$P:$P,"итого") -> 10.65807105 | U31: =SUMIFS('Reports-Y'!AA:AA,'Reports-Y'!$K:$K,$O31,'Reports-Y'!$P:$P,"итого") -> 13.2002263 | V31: =SUMIFS('Reports-Y'!AB:AB,'Reports-Y'!$K:$K,$O31,'Reports-Y'!$P:$P,"итого") -> 14.26211567 | W31: =SUMIFS('Reports-Y'!AC:AC,'Reports-Y'!$K:$K,$O31,'Reports-Y'!$P:$P,"итого") -> 15.05733588
... 38 more rows

Sheet usloviya
C3: Задание некоторых операционных условий модели | P3: Расчет контролей модели
P5: объем, тыс. литров | T5: 1 | U5: =T5+1 -> 2 | V5: =U5+1 -> 3 | W5: 4 | X5: 5 | Y5: 6
D6: * | E6: показатель | G6: ед.изм. | I6: * | J6: значение | P6: =spravochniki!$M$12 -> категории | Q6: * | R6: итого | T6: =spiski!$AB$12 -> 2020 | U6: =spiski!$AB$13 -> 2021 | V6: =spiski!$AB$14 -> 2022 | W6: =spiski!$AB$15 -> 2023 | X6: =spiski!$AB$16 -> 2024 | Y6: =spiski!$AB$17 -> 2025
P9: =$R$6 -> итого | R9: =SUM(S9:Z9) -> 23290 | T9: =SUM(T10:T22) -> 2180 | U9: =SUM(U10:U22) -> 2750 | V9: 3460 | W9: 4160 | X9: 4900 | Y9: 5840
D10: * | E10: =spiski!$T$8 -> месяц старта | I10: * | J10: 2020-01-01 | K10: ^ | O10: 1 | P10: =kategorii!L12 -> Товарная категория - 1 | R10: =SUM(S10:Z10) -> 4480 | T10: =kategorii!EW12*kategorii!$HB12/1000 -> 480 | U10: =kategorii!EX12*kategorii!$HB12/1000 -> 600 | V10: =kategorii!EY12*kategorii!$HB12/1000 -> 700 | W10: =kategorii!EZ12*kategorii!$HB12/1000 -> 800 | X10: =kategorii!FA12*kategorii!$HB12/1000 -> 900 | Y10: =kategorii!FB12*kategorii!$HB12/1000 -> 1000
O11: =O10+1 -> 2 | P11: =kategorii!L13 -> Товарная категория - 2 | R11: 5830 | T11: =kategorii!EW13*kategorii!$HB13/1000 -> 880 | U11: =kategorii!EX13*kategorii!$HB13/1000 -> 950 | V11: =kategorii!EY13*kategorii!$HB13/1000 -> 1000 | W11: =kategorii!EZ13*kategorii!$HB13/1000 -> 1000 | X11: =kategorii!FA13*kategorii!$HB13/1000 -> 1000 | Y11: =kategorii!FB13*kategorii!$HB13/1000 -> 1000
D12: * | E12: =spiski!$X$8 -> горизонт расчетов, лет | I12: * | J12: 6 | K12: ^ | O12: =O11+1 -> 3 | P12: =kategorii!L14 -> Товарная категория - 3 | R12: 3800 | T12: =kategorii!EW14*kategorii!$HB14/1000 -> 310 | U12: =kategorii!EX14*kategorii!$HB14/1000 -> 450 | V12: =kategorii!EY14*kategorii!$HB14/1000 -> 630 | W12: =kategorii!EZ14*kategorii!$HB14/1000 -> 710 | X12: =kategorii!FA14*kategorii!$HB14/1000 -> 800 | Y12: =kategorii!FB14*kategorii!$HB14/1000 -> 900
O13: 4 | P13: =kategorii!L15 -> Товарная категория - 4 | R13: 720 | T13: =kategorii!EW15*kategorii!$HB15/1000 -> 50 | U13: =kategorii!EX15*kategorii!$HB15/1000 -> 70 | V13: =kategorii!EY15*kategorii!$HB15/1000 -> 100 | W13: =kategorii!EZ15*kategorii!$HB15/1000 -> 130 | X13: =kategorii!FA15*kategorii!$HB15/1000 -> 170 | Y13: =kategorii!FB15*kategorii!$HB15/1000 -> 200
D14: * | E14: планируем уход с рынка Конкурента? | I14: * | J14: нет | K14: ^ | O14: 5 | P14: =kategorii!L16 -> Товарная категория - 5 | R14: 750 | T14: =kategorii!EW16*kategorii!$HB16/1000 -> 80 | U14: =kategorii!EX16*kategorii!$HB16/1000 -> 70 | V14: =kategorii!EY16*kategorii!$HB16/1000 -> 100 | W14: =kategorii!EZ16*kategorii!$HB16/1000 -> 130 | X14: =kategorii!FA16*kategorii!$HB16/1000 -> 170 | Y14: =kategorii!FB16*kategorii!$HB16/1000 -> 200
D15: * | E15: если "да", то в каком году? | I15: * | J15: 2020 | K15: ^ | O15: 6 | P15: =kategorii!L17 -> Товарная категория - 6 | R15: 1910 | T15: =kategorii!EW17*kategorii!$HB17/1000 -> 30 | U15: =kategorii!EX17*kategorii!$HB17/1000 -> 70 | V15: =kategorii!EY17*kategorii!$HB17/1000 -> 130 | W15: =kategorii!EZ17*kategorii!$HB17/1000 -> 300 | X15: =kategorii!FA17*kategorii!$HB17/1000 -> 500 | Y15: =kategorii!FB17*kategorii!$HB17/1000 -> 880
O16: 7 | P16: =kategorii!L18 -> Товарная категория - 7 | R16: 1350 | T16: =kategorii!EW18*kategorii!$HB18/1000 -> 100 | U16: =kategorii!EX18*kategorii!$HB18/1000 -> 150 | V16: =kategorii!EY18*kategorii!$HB18/1000 -> 200 | W16: =kategorii!EZ18*kategorii!$HB18/1000 -> 250 | X16: =kategorii!FA18*kategorii!$HB18/1000 -> 300 | Y16: =kategorii!FB18*kategorii!$HB18/1000 -> 350
D17: * | E17: средний уровень потерь ресурсов | I17: * | J17: 0.1 | O17: 8 | P17: =kategorii!L19 -> Товарная категория - 8 | R17: 3150 | T17: =kategorii!EW19*kategorii!$HB19/1000 -> 200 | U17: =kategorii!EX19*kategorii!$HB19/1000 -> 300 | V17: =kategorii!EY19*kategorii!$HB19/1000 -> 400 | W17: =kategorii!EZ19*kategorii!$HB19/1000 -> 600 | X17: =kategorii!FA19*kategorii!$HB19/1000 -> 750 | Y17: =kategorii!FB19*kategorii!$HB19/1000 -> 900
O18: 9 | P18: =kategorii!L20 -> Товарная категория - 9 | R18: 405 | T18: =kategorii!EW20*kategorii!$HB20/1000 -> 25 | U18: =kategorii!EX20*kategorii!$HB20/1000 -> 40 | V18: =kategorii!EY20*kategorii!$HB20/1000 -> 60 | W18: =kategorii!EZ20*kategorii!$HB20/1000 -> 70 | X18: =kategorii!FA20*kategorii!$HB20/1000 -> 90 | Y18: =kategorii!FB20*kategorii!$HB20/1000 -> 120
D19: * | E19: наценка торговых точек от РРЦ | I19: * | J19: 0.3 | O19: 10 | P19: =kategorii!L21 -> Товарная категория - 10 | R19: 545 | T19: =kategorii!EW21*kategorii!$HB21/1000 -> 15 | U19: =kategorii!EX21*kategorii!$HB21/1000 -> 30 | V19: =kategorii!EY21*kategorii!$HB21/1000 -> 100 | W19: =kategorii!EZ21*kategorii!$HB21/1000 -> 100 | X19: =kategorii!FA21*kategorii!$HB21/1000 -> 130 | Y19: =kategorii!FB21*kategorii!$HB21/1000 -> 170
D20: * | E20: оборачиваемость ДЗ в продажах | G20: дни | I20: * | J20: 30 | O20: 11 | P20: =kategorii!L22 -> Товарная категория - 11 | R20: 0 | T20: =kategorii!EW22*kategorii!$HB22/1000 -> 0 | U20: =kategorii!EX22*kategorii!$HB22/1000 -> 0 | V20: =kategorii!EY22*kategorii!$HB22/1000 -> 0 | W20: =kategorii!EZ22*kategorii!$HB22/1000 -> 0 | X20: =kategorii!FA22*kategorii!$HB22/1000 -> 0 | Y20: =kategorii!FB22*kategorii!$HB22/1000 -> 0
D21: * | O21: 12 | P21: =kategorii!L23 -> Сторонний ассортимент | R21: 350 | T21: =kategorii!EW23*kategorii!$HB23/1000 -> 10 | U21: =kategorii!EX23*kategorii!$HB23/1000 -> 20 | V21: =kategorii!EY23*kategorii!$HB23/1000 -> 40 | W21: =kategorii!EZ23*kategorii!$HB23/1000 -> 70 | X21: =kategorii!FA23*kategorii!$HB23/1000 -> 90 | Y21: =kategorii!FB23*kategorii!$HB23/1000 -> 120
D22: * | E22: Затраты на осн. сырье | O22: 13
E23: =kategorii!$L$12 -> Товарная категория - 1 | G23: куб.м./сут. | I23: * | J23: 1 | P23: контроль | R23: 22073.75 | T23: =SUM(obyemy!$X$11:$AI$2001)/1000 -> 1483.75 | U23: =SUM(obyemy!$AJ$11:$AU$2001)/1000 -> 2650 | V23: =SUM(obyemy!$AV$11:$BG$2001)/1000 -> 3290 | W23: =SUM(obyemy!$BH$11:$BS$2001)/1000 -> 4095 | X23: =SUM(obyemy!$BT$11:$CE$2001)/1000 -> 4815 | Y23: =SUM(obyemy!$CF$11:$CQ$2001)/1000 -> 5740
E24: =kategorii!$L$13 -> Товарная категория - 2 | G24: куб.м./сут. | I24: * | J24: 0.7 | P24: контроль | R24: 1216.25 | T24: =T9-T23 -> 696.25 | U24: =U9-U23 -> 100 | V24: 170 | W24: 65 | X24: 85 | Y24: 100
E25: =kategorii!$L$14 -> Товарная категория - 3 | G25: куб.м./сут. | I25: * | J25: 2 | P25: контроль-баланс | R25: ='Reports-Md'!U1485 -> -7.316470146e-06
P26: контроль-продукция | R26: ='prod-atributy'!$B$7 -> 0
D27: * | E27: отсрочка платежей за основное сырье | G27: дни | I27: * | J27: 40 | P27: контроль-бренды | R27: =kategorii!$B$7 -> 0
D28: * | E28: оборачиваемость ГП в продажах | G28: дни | J28: =glavnaya!$F$14 -> -20
P29: итого-контроль | R29: =SUM(R25:R28) -> -7.316470146e-06
D30: * | E30: ставка НДС | I30: * | J30: 0.2
... 38 more rows

Sheet PLcateg
X1: =IF(X7="","",1) -> 1 | Y1: =IF(Y7="","",X1+1) -> 2 | Z1: =IF(Z7="","",Y1+1) -> 3 | AA1: 4 | AB1: 5 | AC1: 6
B3: * | C3: Отчет PL
B4: * | C4: периодичность: ежегодная
B5: * | C5: детализирован по брендам | X5: =YEAR(X7)&" Год" -> 2020 Год | Y5: =YEAR(Y7)&" Год" -> 2021 Год | Z5: 2022 Год | AA5: 2023 Год | AB5: 2024 Год | AC5: 2025 Год
X6: =usloviya!$J$10 -> 2020-01-01 | Y6: =X7+1 -> 2021-01-01 | Z6: =Y7+1 -> 2022-01-01 | AA6: 2023-01-01 | AB6: 2024-01-01 | AC6: 2025-01-01
K7: =usloviya!$E$6 -> показатель | N7: =spravochniki!$T$8 -> ед.изм. | P7: =spravochniki!$M$12 -> категории | U7: =usloviya!$R$6 -> итого | X7: =EOMONTH(X6,11) -> 2020-12-31 | Y7: =EOMONTH(Y6,11) -> 2021-12-31 | Z7: 2022-12-31 | AA7: 2023-12-31 | AB7: 2024-12-31 | AC7: 2025-12-31
K13: РРЦ | N13: руб. | P13: =usloviya!$R$6 -> итого | U13: =IF(SUMIFS('Reports-Md'!$29:$29,'Reports-Md'!$7:$7,"итого")=0,0,SUMIFS('Reports-Md'!169:169,'Reports-Md'!$7:$7,"итого")/SUMIFS('Reports-Md'!$29:$29,'Reports-Md'!$7:$7,"итого")) -> 144.8042611 | X13: =IF(SUMIFS('Reports-Md'!$29:$29,'Reports-Md'!$7:$7,">="&X$6,'Reports-Md'!$7:$7,"<="&X$7)=0,0,SUMIFS('Reports-Md'!169:169,'Reports-Md'!$7:$7,">="&X$6,'Reports-Md'!$7:$7,"<="&X$7)/SUMIFS('Reports-Md'!$29:$29,'Reports-Md'!$7:$7,">="&X$6,'Reports-Md'!$7:$7,"<="&X$7)) -> 106.5608572 | Y13: =IF(SUMIFS('Reports-Md'!$29:$29,'Reports-Md'!$7:$7,">="&Y$6,'Reports-Md'!$7:$7,"<="&Y$7)=0,0,SUMIFS('Reports-Md'!169:169,'Reports-Md'!$7:$7,">="&Y$6,'Reports-Md'!$7:$7,"<="&Y$7)/SUMIFS('Reports-Md'!$29:$29,'Reports-Md'!$7:$7,">="&Y$6,'Reports-Md'!$7:$7,"<="&Y$7)) -> 126.7680986 | Z13: =IF(SUMIFS('Reports-Md'!$29:$29,'Reports-Md'!$7:$7,">="&Z$6,'Reports-Md'!$7:$7,"<="&Z$7)=0,0,SUMIFS('Reports-Md'!169:169,'Reports-Md'!$7:$7,">="&Z$6,'Reports-Md'!$7:$7,"<="&Z$7)/SUMIFS('Reports-Md'!$29:$29,'Reports-Md'!$7:$7,">="&Z$6,'Reports-Md'!$7:$7,"<="&Z$7)) -> 133.7858346 | AA13: =IF(SUMIFS('Reports-Md'!$29:$29,'Reports-Md'!$7:$7,">="&AA$6,'Reports-Md'!$7:$7,"<="&AA$7)=0,0,SUMIFS('Reports-Md'!169:169,'Reports-Md'!$7:$7,">="&AA$6,'Reports-Md'!$7:$7,"<="&AA$7)/SUMIFS('Reports-Md'!$29:$29,'Reports-Md'!$7:$7,">="&AA$6,'Reports-Md'!$7:$7,"<="&AA$7)) -> 142.4944314 | AB13: =IF(SUMIFS('Reports-Md'!$29:$29,'Reports-Md'!$7:$7,">="&AB$6,'Reports-Md'!$7:$7,"<="&AB$7)=0,0,SUMIFS('Reports-Md'!169:169,'Reports-Md'!$7:$7,">="&AB$6,'Reports-Md'!$7:$7,"<="&AB$7)/SUMIFS('Reports-Md'!$29:$29,'Reports-Md'!$7:$7,">="&AB$6,'Reports-Md'!$7:$7,"<="&AB$7)) -> 150.5485502 | AC13: =IF(SUMIFS('Reports-Md'!$29:$29,'Reports-Md'!$7:$7,">="&AC$6,'Reports-Md'!$7:$7,"<="&AC$7)=0,0,SUMIFS('Reports-Md'!169:169,'Reports-Md'!$7:$7,">="&AC$6,'Reports-Md'!$7:$7,"<="&AC$7)/SUMIFS('Reports-Md'!$29:$29,'Reports-Md'!$7:$7,">="&AC$6,'Reports-Md'!$7:$7,"<="&AC$7)) -> 158.2706343
K14: =K13 -> РРЦ | N14: руб. | P14: ='prod-atributy'!$R$13 -> Товарная категория - 1 | U14: =IF(SUMIFS('Reports-Md'!$30:$30,'Reports-Md'!$7:$7,"итого")=0,0,SUMIFS('Reports-Md'!170:170,'Reports-Md'!$7:$7,"итого")/SUMIFS('Reports-Md'!$30:$30,'Reports-Md'!$7:$7,"итого")) -> 122.3611447 | X14: =IF(SUMIFS('Reports-Md'!$30:$30,'Reports-Md'!$7:$7,">="&X$6,'Reports-Md'!$7:$7,"<="&X$7)=0,0,SUMIFS('Reports-Md'!170:170,'Reports-Md'!$7:$7,">="&X$6,'Reports-Md'!$7:$7,"<="&X$7)/SUMIFS('Reports-Md'!$30:$30,'Reports-Md'!$7:$7,">="&X$6,'Reports-Md'!$7:$7,"<="&X$7)) -> 105.6739555 | Y14: =IF(SUMIFS('Reports-Md'!$30:$30,'Reports-Md'!$7:$7,">="&Y$6,'Reports-Md'!$7:$7,"<="&Y$7)=0,0,SUMIFS('Reports-Md'!170:170,'Reports-Md'!$7:$7,">="&Y$6,'Reports-Md'!$7:$7,"<="&Y$7)/SUMIFS('Reports-Md'!$30:$30,'Reports-Md'!$7:$7,">="&Y$6,'Reports-Md'!$7:$7,"<="&Y$7)) -> 111.0236995 | Z14: =IF(SUMIFS('Reports-Md'!$30:$30,'Reports-Md'!$7:$7,">="&Z$6,'Reports-Md'!$7:$7,"<="&Z$7)=0,0,SUMIFS('Reports-Md'!170:170,'Reports-Md'!$7:$7,">="&Z$6,'Reports-Md'!$7:$7,"<="&Z$7)/SUMIFS('Reports-Md'!$30:$30,'Reports-Md'!$7:$7,">="&Z$6,'Reports-Md'!$7:$7,"<="&Z$7)) -> 116.6442743 | AA14: =IF(SUMIFS('Reports-Md'!$30:$30,'Reports-Md'!$7:$7,">="&AA$6,'Reports-Md'!$7:$7,"<="&AA$7)=0,0,SUMIFS('Reports-Md'!170:170,'Reports-Md'!$7:$7,">="&AA$6,'Reports-Md'!$7:$7,"<="&AA$7)/SUMIFS('Reports-Md'!$30:$30,'Reports-Md'!$7:$7,">="&AA$6,'Reports-Md'!$7:$7,"<="&AA$7)) -> 122.5493907 | AB14: =IF(SUMIFS('Reports-Md'!$30:$30,'Reports-Md'!$7:$7,">="&AB$6,'Reports-Md'!$7:$7,"<="&AB$7)=0,0,SUMIFS('Reports-Md'!170:170,'Reports-Md'!$7:$7,">="&AB$6,'Reports-Md'!$7:$7,"<="&AB$7)/SUMIFS('Reports-Md'!$30:$30,'Reports-Md'!$7:$7,">="&AB$6,'Reports-Md'!$7:$7,"<="&AB$7)) -> 128.7534536 | AC14: =IF(SUMIFS('Reports-Md'!$30:$30,'Reports-Md'!$7:$7,">="&AC$6,'Reports-Md'!$7:$7,"<="&AC$7)=0,0,SUMIFS('Reports-Md'!170:170,'Reports-Md'!$7:$7,">="&AC$6,'Reports-Md'!$7:$7,"<="&AC$7)/SUMIFS('Reports-Md'!$30:$30,'Reports-Md'!$7:$7,">="&AC$6,'Reports-Md'!$7:$7,"<="&AC$7)) -> 135.2715972
K15: =K13 -> РРЦ | N15: руб. | P15: ='prod-atributy'!$R$14 -> Товарная категория - 2 | U15: =IF(SUMIFS('Reports-Md'!$35:$35,'Reports-Md'!$7:$7,"итого")=0,0,SUMIFS('Reports-Md'!171:171,'Reports-Md'!$7:$7,"итого")/SUMIFS('Reports-Md'!$35:$35,'Reports-Md'!$7:$7,"итого")) -> 120.3575148 | X15: =IF(SUMIFS('Reports-Md'!$35:$35,'Reports-Md'!$7:$7,">="&X$6,'Reports-Md'!$7:$7,"<="&X$7)=0,0,SUMIFS('Reports-Md'!171:171,'Reports-Md'!$7:$7,">="&X$6,'Reports-Md'!$7:$7,"<="&X$7)/SUMIFS('Reports-Md'!$35:$35,'Reports-Md'!$7:$7,">="&X$6,'Reports-Md'!$7:$7,"<="&X$7)) -> 105.6739555 | Y15: =IF(SUMIFS('Reports-Md'!$35:$35,'Reports-Md'!$7:$7,">="&Y$6,'Reports-Md'!$7:$7,"<="&Y$7)=0,0,SUMIFS('Reports-Md'!171:171,'Reports-Md'!$7:$7,">="&Y$6,'Reports-Md'!$7:$7,"<="&Y$7)/SUMIFS('Reports-Md'!$35:$35,'Reports-Md'!$7:$7,">="&Y$6,'Reports-Md'!$7:$7,"<="&Y$7)) -> 111.0236995 | Z15: =IF(SUMIFS('Reports-Md'!$35:$35,'Reports-Md'!$7:$7,">="&Z$6,'Reports-Md'!$7:$7,"<="&Z$7)=0,0,SUMIFS('Reports-Md'!171:171,'Reports-Md'!$7:$7,">="&Z$6,'Reports-Md'!$7:$7,"<="&Z$7)/SUMIFS('Reports-Md'!$35:$35,'Reports-Md'!$7:$7,">="&Z$6,'Reports-Md'!$7:$7,"<="&Z$7)) -> 116.6442743 | AA15: =IF(SUMIFS('Reports-Md'!$35:$35,'Reports-Md'!$7:$7,">="&AA$6,'Reports-Md'!$7:$7,"<="&AA$7)=0,0,SUMIFS('Reports-Md'!171:171,'Reports-Md'!$7:$7,">="&AA$6,'Reports-Md'!$7:$7,"<="&AA$7)/SUMIFS('Reports-Md'!$35:$35,'Reports-Md'!$7:$7,">="&AA$6,'Reports-Md'!$7:$7,"<="&AA$7)) -> 122.5493907 | AB15: =IF(SUMIFS('Reports-Md'!$35:$35,'Reports-Md'!$7:$7,">="&AB$6,'Reports-Md'!$7:$7,"<="&AB$7)=0,0,SUMIFS('Reports-Md'!171:171,'Reports-Md'!$7:$7,">="&AB$6,'Reports-Md'!$7:$7,"<="&AB$7)/SUMIFS('Reports-Md'!$35:$35,'Reports-Md'!$7:$7,">="&AB$6,'Reports-Md'!$7:$7,"<="&AB$7)) -> 128.7534536 | AC15: =IF(SUMIFS('Reports-Md'!$35:$35,'Reports-Md'!$7:$7,">="&AC$6,'Reports-Md'!$7:$7,"<="&AC$7)=0,0,SUMIFS('Reports-Md'!171:171,'Reports-Md'!$7:$7,">="&AC$6,'Reports-Md'!$7:$7,"<="&AC$7)/SUMIFS('Reports-Md'!$35:$35,'Reports-Md'!$7:$7,">="&AC$6,'Reports-Md'!$7:$7,"<="&AC$7)) -> 135.2715972
K16: =K13 -> РРЦ | N16: руб. | P16: ='prod-atributy'!$R$15 -> Товарная категория - 3 | U16: =IF(SUMIFS('Reports-Md'!$40:$40,'Reports-Md'!$7:$7,"итого")=0,0,SUMIFS('Reports-Md'!172:172,'Reports-Md'!$7:$7,"итого")/SUMIFS('Reports-Md'!$40:$40,'Reports-Md'!$7:$7,"итого")) -> 124.7002365 | X16: =IF(SUMIFS('Reports-Md'!$40:$40,'Reports-Md'!$7:$7,">="&X$6,'Reports-Md'!$7:$7,"<="&X$7)=0,0,SUMIFS('Reports-Md'!172:172,'Reports-Md'!$7:$7,">="&X$6,'Reports-Md'!$7:$7,"<="&X$7)/SUMIFS('Reports-Md'!$40:$40,'Reports-Md'!$7:$7,">="&X$6,'Reports-Md'!$7:$7,"<="&X$7)) -> 0 | Y16: =IF(SUMIFS('Reports-Md'!$40:$40,'Reports-Md'!$7:$7,">="&Y$6,'Reports-Md'!$7:$7,"<="&Y$7)=0,0,SUMIFS('Reports-Md'!172:172,'Reports-Md'!$7:$7,">="&Y$6,'Reports-Md'!$7:$7,"<="&Y$7)/SUMIFS('Reports-Md'!$40:$40,'Reports-Md'!$7:$7,">="&Y$6,'Reports-Md'!$7:$7,"<="&Y$7)) -> 111.0236995 | Z16: =IF(SUMIFS('Reports-Md'!$40:$40,'Reports-Md'!$7:$7,">="&Z$6,'Reports-Md'!$7:$7,"<="&Z$7)=0,0,SUMIFS('Reports-Md'!172:172,'Reports-Md'!$7:$7,">="&Z$6,'Reports-Md'!$7:$7,"<="&Z$7)/SUMIFS('Reports-Md'!$40:$40,'Reports-Md'!$7:$7,">="&Z$6,'Reports-Md'!$7:$7,"<="&Z$7)) -> 116.6442743 | AA16: =IF(SUMIFS('Reports-Md'!$40:$40,'Reports-Md'!$7:$7,">="&AA$6,'Reports-Md'!$7:$7,"<="&AA$7)=0,0,SUMIFS('Reports-Md'!172:172,'Reports-Md'!$7:$7,">="&AA$6,'Reports-Md'!$7:$7,"<="&AA$7)/SUMIFS('Reports-Md'!$40:$40,'Reports-Md'!$7:$7,">="&AA$6,'Reports-Md'!$7:$7,"<="&AA$7)) -> 122.5493907 | AB16: =IF(SUMIFS('Reports-Md'!$40:$40,'Reports-Md'!$7:$7,">="&AB$6,'Reports-Md'!$7:$7,"<="&AB$7)=0,0,SUMIFS('Reports-Md'!172:172,'Reports-Md'!$7:$7,">="&AB$6,'Reports-Md'!$7:$7,"<="&AB$7)/SUMIFS('Reports-Md'!$40:$40,'Reports-Md'!$7:$7,">="&AB$6,'Reports-Md'!$7:$7,"<="&AB$7)) -> 128.7534536 | AC16: =IF(SUMIFS('Reports-Md'!$40:$40,'Reports-Md'!$7:$7,">="&AC$6,'Reports-Md'!$7:$7,"<="&AC$7)=0,0,SUMIFS('Reports-Md'!172:172,'Reports-Md'!$7:$7,">="&AC$6,'Reports-Md'!$7:$7,"<="&AC$7)/SUMIFS('Reports-Md'!$40:$40,'Reports-Md'!$7:$7,">="&AC$6,'Reports-Md'!$7:$7,"<="&AC$7)) -> 135.2715972
K17: =K13 -> РРЦ | N17: руб. | P17: ='prod-atributy'!$R$16 -> Товарная категория - 4 | U17: =IF(SUMIFS('Reports-Md'!$45:$45,'Reports-Md'!$7:$7,"итого")=0,0,SUMIFS('Reports-Md'!173:173,'Reports-Md'!$7:$7,"итого")/SUMIFS('Reports-Md'!$45:$45,'Reports-Md'!$7:$7,"итого")) -> 126.0421613 | X17: =IF(SUMIFS('Reports-Md'!$45:$45,'Reports-Md'!$7:$7,">="&X$6,'Reports-Md'!$7:$7,"<="&X$7)=0,0,SUMIFS('Reports-Md'!173:173,'Reports-Md'!$7:$7,">="&X$6,'Reports-Md'!$7:$7,"<="&X$7)/SUMIFS('Reports-Md'!$45:$45,'Reports-Md'!$7:$7,">="&X$6,'Reports-Md'!$7:$7,"<="&X$7)) -> 116.9209264 | Y17: =IF(SUMIFS('Reports-Md'!$45:$45,'Reports-Md'!$7:$7,">="&Y$6,'Reports-Md'!$7:$7,"<="&Y$7)=0,0,SUMIFS('Reports-Md'!173:173,'Reports-Md'!$7:$7,">="&Y$6,'Reports-Md'!$7:$7,"<="&Y$7)/SUMIFS('Reports-Md'!$45:$45,'Reports-Md'!$7:$7,">="&Y$6,'Reports-Md'!$7:$7,"<="&Y$7)) -> 122.8400483 | Z17: =IF(SUMIFS('Reports-Md'!$45:$45,'Reports-Md'!$7:$7,">="&Z$6,'Reports-Md'!$7:$7,"<="&Z$7)=0,0,SUMIFS('Reports-Md'!173:173,'Reports-Md'!$7:$7,">="&Z$6,'Reports-Md'!$7:$7,"<="&Z$7)/SUMIFS('Reports-Md'!$45:$45,'Reports-Md'!$7:$7,">="&Z$6,'Reports-Md'!$7:$7,"<="&Z$7)) -> 117.3262052 | AA17: =IF(SUMIFS('Reports-Md'!$45:$45,'Reports-Md'!$7:$7,">="&AA$6,'Reports-Md'!$7:$7,"<="&AA$7)=0,0,SUMIFS('Reports-Md'!173:173,'Reports-Md'!$7:$7,">="&AA$6,'Reports-Md'!$7:$7,"<="&AA$7)/SUMIFS('Reports-Md'!$45:$45,'Reports-Md'!$7:$7,">="&AA$6,'Reports-Md'!$7:$7,"<="&AA$7)) -> 123.2658443 | AB17: =IF(SUMIFS('Reports-Md'!$45:$45,'Reports-Md'!$7:$7,">="&AB$6,'Reports-Md'!$7:$7,"<="&AB$7)=0,0,SUMIFS('Reports-Md'!173:173,'Reports-Md'!$7:$7,">="&AB$6,'Reports-Md'!$7:$7,"<="&AB$7)/SUMIFS('Reports-Md'!$45:$45,'Reports-Md'!$7:$7,">="&AB$6,'Reports-Md'!$7:$7,"<="&AB$7)) -> 129.5061777 | AC17: =IF(SUMIFS('Reports-Md'!$45:$45,'Reports-Md'!$7:$7,">="&AC$6,'Reports-Md'!$7:$7,"<="&AC$7)=0,0,SUMIFS('Reports-Md'!173:173,'Reports-Md'!$7:$7,">="&AC$6,'Reports-Md'!$7:$7,"<="&AC$7)/SUMIFS('Reports-Md'!$45:$45,'Reports-Md'!$7:$7,">="&AC$6,'Reports-Md'!$7:$7,"<="&AC$7)) -> 136.0624279
K18: =K13 -> РРЦ | N18: руб. | P18: ='prod-atributy'!$R$17 -> Товарная категория - 5 | U18: =IF(SUMIFS('Reports-Md'!$50:$50,'Reports-Md'!$7:$7,"итого")=0,0,SUMIFS('Reports-Md'!174:174,'Reports-Md'!$7:$7,"итого")/SUMIFS('Reports-Md'!$50:$50,'Reports-Md'!$7:$7,"итого")) -> 126.6070669 | X18: =IF(SUMIFS('Reports-Md'!$50:$50,'Reports-Md'!$7:$7,">="&X$6,'Reports-Md'!$7:$7,"<="&X$7)=0,0,SUMIFS('Reports-Md'!174:174,'Reports-Md'!$7:$7,">="&X$6,'Reports-Md'!$7:$7,"<="&X$7)/SUMIFS('Reports-Md'!$50:$50,'Reports-Md'!$7:$7,">="&X$6,'Reports-Md'!$7:$7,"<="&X$7)) -> 0 | Y18: =IF(SUMIFS('Reports-Md'!$50:$50,'Reports-Md'!$7:$7,">="&Y$6,'Reports-Md'!$7:$7,"<="&Y$7)=0,0,SUMIFS('Reports-Md'!174:174,'Reports-Md'!$7:$7,">="&Y$6,'Reports-Md'!$7:$7,"<="&Y$7)/SUMIFS('Reports-Md'!$50:$50,'Reports-Md'!$7:$7,">="&Y$6,'Reports-Md'!$7:$7,"<="&Y$7)) -> 111.7042765 | Z18: =IF(SUMIFS('Reports-Md'!$50:$50,'Reports-Md'!$7:$7,">="&Z$6,'Reports-Md'!$7:$7,"<="&Z$7)=0,0,SUMIFS('Reports-Md'!174:174,'Reports-Md'!$7:$7,">="&Z$6,'Reports-Md'!$7:$7,"<="&Z$7)/SUMIFS('Reports-Md'!$50:$50,'Reports-Md'!$7:$7,">="&Z$6,'Reports-Md'!$7:$7,"<="&Z$7)) -> 117.3593055 | AA18: =IF(SUMIFS('Reports-Md'!$50:$50,'Reports-Md'!$7:$7,">="&AA$6,'Reports-Md'!$7:$7,"<="&AA$7)=0,0,SUMIFS('Reports-Md'!174:174,'Reports-Md'!$7:$7,">="&AA$6,'Reports-Md'!$7:$7,"<="&AA$7)/SUMIFS('Reports-Md'!$50:$50,'Reports-Md'!$7:$7,">="&AA$6,'Reports-Md'!$7:$7,"<="&AA$7)) -> 123.3006204 | AB18: =IF(SUMIFS('Reports-Md'!$50:$50,'Reports-Md'!$7:$7,">="&AB$6,'Reports-Md'!$7:$7,"<="&AB$7)=0,0,SUMIFS('Reports-Md'!174:174,'Reports-Md'!$7:$7,">="&AB$6,'Reports-Md'!$7:$7,"<="&AB$7)/SUMIFS('Reports-Md'!$50:$50,'Reports-Md'!$7:$7,">="&AB$6,'Reports-Md'!$7:$7,"<="&AB$7)) -> 129.5427143 | AC18: =IF(SUMIFS('Reports-Md'!$50:$50,'Reports-Md'!$7:$7,">="&AC$6,'Reports-Md'!$7:$7,"<="&AC$7)=0,0,SUMIFS('Reports-Md'!174:174,'Reports-Md'!$7:$7,">="&AC$6,'Reports-Md'!$7:$7,"<="&AC$7)/SUMIFS('Reports-Md'!$50:$50,'Reports-Md'!$7:$7,">="&AC$6,'Reports-Md'!$7:$7,"<="&AC$7)) -> 136.1008142
K19: =K13 -> РРЦ | N19: руб. | P19: ='prod-atributy'!$R$18 -> Товарная категория - 6 | U19: =IF(SUMIFS('Reports-Md'!$55:$55,'Reports-Md'!$7:$7,"итого")=0,0,SUMIFS('Reports-Md'!175:175,'Reports-Md'!$7:$7,"итого")/SUMIFS('Reports-Md'!$55:$55,'Reports-Md'!$7:$7,"итого")) -> 128.6678321 | X19: =IF(SUMIFS('Reports-Md'!$55:$55,'Reports-Md'!$7:$7,">="&X$6,'Reports-Md'!$7:$7,"<="&X$7)=0,0,SUMIFS('Reports-Md'!175:175,'Reports-Md'!$7:$7,">="&X$6,'Reports-Md'!$7:$7,"<="&X$7)/SUMIFS('Reports-Md'!$55:$55,'Reports-Md'!$7:$7,">="&X$6,'Reports-Md'!$7:$7,"<="&X$7)) -> 105.446281 | Y19: =IF(SUMIFS('Reports-Md'!$55:$55,'Reports-Md'!$7:$7,">="&Y$6,'Reports-Md'!$7:$7,"<="&Y$7)=0,0,SUMIFS('Reports-Md'!175:175,'Reports-Md'!$7:$7,">="&Y$6,'Reports-Md'!$7:$7,"<="&Y$7)/SUMIFS('Reports-Md'!$55:$55,'Reports-Md'!$7:$7,">="&Y$6,'Reports-Md'!$7:$7,"<="&Y$7)) -> 110.784499 | Z19: =IF(SUMIFS('Reports-Md'!$55:$55,'Reports-Md'!$7:$7,">="&Z$6,'Reports-Md'!$7:$7,"<="&Z$7)=0,0,SUMIFS('Reports-Md'!175:175,'Reports-Md'!$7:$7,">="&Z$6,'Reports-Md'!$7:$7,"<="&Z$7)/SUMIFS('Reports-Md'!$55:$55,'Reports-Md'!$7:$7,">="&Z$6,'Reports-Md'!$7:$7,"<="&Z$7)) -> 116.3929642 | AA19: =IF(SUMIFS('Reports-Md'!$55:$55,'Reports-Md'!$7:$7,">="&AA$6,'Reports-Md'!$7:$7,"<="&AA$7)=0,0,SUMIFS('Reports-Md'!175:175,'Reports-Md'!$7:$7,">="&AA$6,'Reports-Md'!$7:$7,"<="&AA$7)/SUMIFS('Reports-Md'!$55:$55,'Reports-Md'!$7:$7,">="&AA$6,'Reports-Md'!$7:$7,"<="&AA$7)) -> 122.2853581 | AB19: =IF(SUMIFS('Reports-Md'!$55:$55,'Reports-Md'!$7:$7,">="&AB$6,'Reports-Md'!$7:$7,"<="&AB$7)=0,0,SUMIFS('Reports-Md'!175:175,'Reports-Md'!$7:$7,">="&AB$6,'Reports-Md'!$7:$7,"<="&AB$7)/SUMIFS('Reports-Md'!$55:$55,'Reports-Md'!$7:$7,">="&AB$6,'Reports-Md'!$7:$7,"<="&AB$7)) -> 128.4760543 | AC19: =IF(SUMIFS('Reports-Md'!$55:$55,'Reports-Md'!$7:$7,">="&AC$6,'Reports-Md'!$7:$7,"<="&AC$7)=0,0,SUMIFS('Reports-Md'!175:175,'Reports-Md'!$7:$7,">="&AC$6,'Reports-Md'!$7:$7,"<="&AC$7)/SUMIFS('Reports-Md'!$55:$55,'Reports-Md'!$7:$7,">="&AC$6,'Reports-Md'!$7:$7,"<="&AC$7)) -> 134.9801546
K20: =K13 -> РРЦ | N20: руб. | P20: ='prod-atributy'!$R$19 -> Товарная категория - 7 | U20: =IF(SUMIFS('Reports-Md'!$60:$60,'Reports-Md'!$7:$7,"итого")=0,0,SUMIFS('Reports-Md'!176:176,'Reports-Md'!$7:$7,"итого")/SUMIFS('Reports-Md'!$60:$60,'Reports-Md'!$7:$7,"итого")) -> 136.7423042 | X20: =IF(SUMIFS('Reports-Md'!$60:$60,'Reports-Md'!$7:$7,">="&X$6,'Reports-Md'!$7:$7,"<="&X$7)=0,0,SUMIFS('Reports-Md'!176:176,'Reports-Md'!$7:$7,">="&X$6,'Reports-Md'!$7:$7,"<="&X$7)/SUMIFS('Reports-Md'!$60:$60,'Reports-Md'!$7:$7,">="&X$6,'Reports-Md'!$7:$7,"<="&X$7)) -> 0 | Y20: =IF(SUMIFS('Reports-Md'!$60:$60,'Reports-Md'!$7:$7,">="&Y$6,'Reports-Md'!$7:$7,"<="&Y$7)=0,0,SUMIFS('Reports-Md'!176:176,'Reports-Md'!$7:$7,">="&Y$6,'Reports-Md'!$7:$7,"<="&Y$7)/SUMIFS('Reports-Md'!$60:$60,'Reports-Md'!$7:$7,">="&Y$6,'Reports-Md'!$7:$7,"<="&Y$7)) -> 121.188724 | Z20: =IF(SUMIFS('Reports-Md'!$60:$60,'Reports-Md'!$7:$7,">="&Z$6,'Reports-Md'!$7:$7,"<="&Z$7)=0,0,SUMIFS('Reports-Md'!176:176,'Reports-Md'!$7:$7,">="&Z$6,'Reports-Md'!$7:$7,"<="&Z$7)/SUMIFS('Reports-Md'!$60:$60,'Reports-Md'!$7:$7,">="&Z$6,'Reports-Md'!$7:$7,"<="&Z$7)) -> 127.3239032 | AA20: =IF(SUMIFS('Reports-Md'!$60:$60,'Reports-Md'!$7:$7,">="&AA$6,'Reports-Md'!$7:$7,"<="&AA$7)=0,0,SUMIFS('Reports-Md'!176:176,'Reports-Md'!$7:$7,">="&AA$6,'Reports-Md'!$7:$7,"<="&AA$7)/SUMIFS('Reports-Md'!$60:$60,'Reports-Md'!$7:$7,">="&AA$6,'Reports-Md'!$7:$7,"<="&AA$7)) -> 133.7696758 | AB20: =IF(SUMIFS('Reports-Md'!$60:$60,'Reports-Md'!$7:$7,">="&AB$6,'Reports-Md'!$7:$7,"<="&AB$7)=0,0,SUMIFS('Reports-Md'!176:176,'Reports-Md'!$7:$7,">="&AB$6,'Reports-Md'!$7:$7,"<="&AB$7)/SUMIFS('Reports-Md'!$60:$60,'Reports-Md'!$7:$7,">="&AB$6,'Reports-Md'!$7:$7,"<="&AB$7)) -> 140.5417656 | AC20: =IF(SUMIFS('Reports-Md'!$60:$60,'Reports-Md'!$7:$7,">="&AC$6,'Reports-Md'!$7:$7,"<="&AC$7)=0,0,SUMIFS('Reports-Md'!176:176,'Reports-Md'!$7:$7,">="&AC$6,'Reports-Md'!$7:$7,"<="&AC$7)/SUMIFS('Reports-Md'!$60:$60,'Reports-Md'!$7:$7,">="&AC$6,'Reports-Md'!$7:$7,"<="&AC$7)) -> 147.6566925
K21: =K13 -> РРЦ | N21: руб. | P21: ='prod-atributy'!$R$20 -> Товарная категория - 8 | U21: =IF(SUMIFS('Reports-Md'!$65:$65,'Reports-Md'!$7:$7,"итого")=0,0,SUMIFS('Reports-Md'!177:177,'Reports-Md'!$7:$7,"итого")/SUMIFS('Reports-Md'!$65:$65,'Reports-Md'!$7:$7,"итого")) -> 177.1598032 | X21: =IF(SUMIFS('Reports-Md'!$65:$65,'Reports-Md'!$7:$7,">="&X$6,'Reports-Md'!$7:$7,"<="&X$7)=0,0,SUMIFS('Reports-Md'!177:177,'Reports-Md'!$7:$7,">="&X$6,'Reports-Md'!$7:$7,"<="&X$7)/SUMIFS('Reports-Md'!$65:$65,'Reports-Md'!$7:$7,">="&X$6,'Reports-Md'!$7:$7,"<="&X$7)) -> 0 | Y21: =IF(SUMIFS('Reports-Md'!$65:$65,'Reports-Md'!$7:$7,">="&Y$6,'Reports-Md'!$7:$7,"<="&Y$7)=0,0,SUMIFS('Reports-Md'!177:177,'Reports-Md'!$7:$7,">="&Y$6,'Reports-Md'!$7:$7,"<="&Y$7)/SUMIFS('Reports-Md'!$65:$65,'Reports-Md'!$7:$7,">="&Y$6,'Reports-Md'!$7:$7,"<="&Y$7)) -> 166.2834117 | Z21: =IF(SUMIFS('Reports-Md'!$65:$65,'Reports-Md'!$7:$7,">="&Z$6,'Reports-Md'!$7:$7,"<="&Z$7)=0,0,SUMIFS('Reports-Md'!177:177,'Reports-Md'!$7:$7,">="&Z$6,'Reports-Md'!$7:$7,"<="&Z$7)/SUMIFS('Reports-Md'!$65:$65,'Reports-Md'!$7:$7,">="&Z$6,'Reports-Md'!$7:$7,"<="&Z$7)) -> 174.7015095 | AA21: =IF(SUMIFS('Reports-Md'!$65:$65,'Reports-Md'!$7:$7,">="&AA$6,'Reports-Md'!$7:$7,"<="&AA$7)=0,0,SUMIFS('Reports-Md'!177:177,'Reports-Md'!$7:$7,">="&AA$6,'Reports-Md'!$7:$7,"<="&AA$7)/SUMIFS('Reports-Md'!$65:$65,'Reports-Md'!$7:$7,">="&AA$6,'Reports-Md'!$7:$7,"<="&AA$7)) -> 168.6326793 | AB21: =IF(SUMIFS('Reports-Md'!$65:$65,'Reports-Md'!$7:$7,">="&AB$6,'Reports-Md'!$7:$7,"<="&AB$7)=0,0,SUMIFS('Reports-Md'!177:177,'Reports-Md'!$7:$7,">="&AB$6,'Reports-Md'!$7:$7,"<="&AB$7)/SUMIFS('Reports-Md'!$65:$65,'Reports-Md'!$7:$7,">="&AB$6,'Reports-Md'!$7:$7,"<="&AB$7)) -> 177.1697087 | AC21: =IF(SUMIFS('Reports-Md'!$65:$65,'Reports-Md'!$7:$7,">="&AC$6,'Reports-Md'!$7:$7,"<="&AC$7)=0,0,SUMIFS('Reports-Md'!177:177,'Reports-Md'!$7:$7,">="&AC$6,'Reports-Md'!$7:$7,"<="&AC$7)/SUMIFS('Reports-Md'!$65:$65,'Reports-Md'!$7:$7,">="&AC$6,'Reports-Md'!$7:$7,"<="&AC$7)) -> 186.1389252
K22: =K13 -> РРЦ | N22: руб. | P22: ='prod-atributy'!$R$21 -> Товарная категория - 9 | U22: =IF(SUMIFS('Reports-Md'!$70:$70,'Reports-Md'!$7:$7,"итого")=0,0,SUMIFS('Reports-Md'!178:178,'Reports-Md'!$7:$7,"итого")/SUMIFS('Reports-Md'!$70:$70,'Reports-Md'!$7:$7,"итого")) -> 157.7469659 | X22: =IF(SUMIFS('Reports-Md'!$70:$70,'Reports-Md'!$7:$7,">="&X$6,'Reports-Md'!$7:$7,"<="&X$7)=0,0,SUMIFS('Reports-Md'!178:178,'Reports-Md'!$7:$7,">="&X$6,'Reports-Md'!$7:$7,"<="&X$7)/SUMIFS('Reports-Md'!$70:$70,'Reports-Md'!$7:$7,">="&X$6,'Reports-Md'!$7:$7,"<="&X$7)) -> 128.3586762 | Y22: =IF(SUMIFS('Reports-Md'!$70:$70,'Reports-Md'!$7:$7,">="&Y$6,'Reports-Md'!$7:$7,"<="&Y$7)=0,0,SUMIFS('Reports-Md'!178:178,'Reports-Md'!$7:$7,">="&Y$6,'Reports-Md'!$7:$7,"<="&Y$7)/SUMIFS('Reports-Md'!$70:$70,'Reports-Md'!$7:$7,">="&Y$6,'Reports-Md'!$7:$7,"<="&Y$7)) -> 134.8568341 | Z22: =IF(SUMIFS('Reports-Md'!$70:$70,'Reports-Md'!$7:$7,">="&Z$6,'Reports-Md'!$7:$7,"<="&Z$7)=0,0,SUMIFS('Reports-Md'!178:178,'Reports-Md'!$7:$7,">="&Z$6,'Reports-Md'!$7:$7,"<="&Z$7)/SUMIFS('Reports-Md'!$70:$70,'Reports-Md'!$7:$7,">="&Z$6,'Reports-Md'!$7:$7,"<="&Z$7)) -> 148.332713 | AA22: =IF(SUMIFS('Reports-Md'!$70:$70,'Reports-Md'!$7:$7,">="&AA$6,'Reports-Md'!$7:$7,"<="&AA$7)=0,0,SUMIFS('Reports-Md'!178:178,'Reports-Md'!$7:$7,">="&AA$6,'Reports-Md'!$7:$7,"<="&AA$7)/SUMIFS('Reports-Md'!$70:$70,'Reports-Md'!$7:$7,">="&AA$6,'Reports-Md'!$7:$7,"<="&AA$7)) -> 155.8420566 | AB22: =IF(SUMIFS('Reports-Md'!$70:$70,'Reports-Md'!$7:$7,">="&AB$6,'Reports-Md'!$7:$7,"<="&AB$7)=0,0,SUMIFS('Reports-Md'!178:178,'Reports-Md'!$7:$7,">="&AB$6,'Reports-Md'!$7:$7,"<="&AB$7)/SUMIFS('Reports-Md'!$70:$70,'Reports-Md'!$7:$7,">="&AB$6,'Reports-Md'!$7:$7,"<="&AB$7)) -> 163.7315607 | AC22: =IF(SUMIFS('Reports-Md'!$70:$70,'Reports-Md'!$7:$7,">="&AC$6,'Reports-Md'!$7:$7,"<="&AC$7)=0,0,SUMIFS('Reports-Md'!178:178,'Reports-Md'!$7:$7,">="&AC$6,'Reports-Md'!$7:$7,"<="&AC$7)/SUMIFS('Reports-Md'!$70:$70,'Reports-Md'!$7:$7,">="&AC$6,'Reports-Md'!$7:$7,"<="&AC$7)) -> 172.020471
K23: =K13 -> РРЦ | N23: руб. | P23: ='prod-atributy'!$R$22 -> Товарная категория - 10 | U23: =IF(SUMIFS('Reports-Md'!$75:$75,'Reports-Md'!$7:$7,"итого")=0,0,SUMIFS('Reports-Md'!179:179,'Reports-Md'!$7:$7,"итого")/SUMIFS('Reports-Md'!$75:$75,'Reports-Md'!$7:$7,"итого")) -> 137.4370966 | X23: =IF(SUMIFS('Reports-Md'!$75:$75,'Reports-Md'!$7:$7,">="&X$6,'Reports-Md'!$7:$7,"<="&X$7)=0,0,SUMIFS('Reports-Md'!179:179,'Reports-Md'!$7:$7,">="&X$6,'Reports-Md'!$7:$7,"<="&X$7)/SUMIFS('Reports-Md'!$75:$75,'Reports-Md'!$7:$7,">="&X$6,'Reports-Md'!$7:$7,"<="&X$7)) -> 115.4353106 | Y23: =IF(SUMIFS('Reports-Md'!$75:$75,'Reports-Md'!$7:$7,">="&Y$6,'Reports-Md'!$7:$7,"<="&Y$7)=0,0,SUMIFS('Reports-Md'!179:179,'Reports-Md'!$7:$7,">="&Y$6,'Reports-Md'!$7:$7,"<="&Y$7)/SUMIFS('Reports-Md'!$75:$75,'Reports-Md'!$7:$7,">="&Y$6,'Reports-Md'!$7:$7,"<="&Y$7)) -> 121.2792232 | Z23: =IF(SUMIFS('Reports-Md'!$75:$75,'Reports-Md'!$7:$7,">="&Z$6,'Reports-Md'!$7:$7,"<="&Z$7)=0,0,SUMIFS('Reports-Md'!179:179,'Reports-Md'!$7:$7,">="&Z$6,'Reports-Md'!$7:$7,"<="&Z$7)/SUMIFS('Reports-Md'!$75:$75,'Reports-Md'!$7:$7,">="&Z$6,'Reports-Md'!$7:$7,"<="&Z$7)) -> 127.4189839 | AA23: =IF(SUMIFS('Reports-Md'!$75:$75,'Reports-Md'!$7:$7,">="&AA$6,'Reports-Md'!$7:$7,"<="&AA$7)=0,0,SUMIFS('Reports-Md'!179:179,'Reports-Md'!$7:$7,">="&AA$6,'Reports-Md'!$7:$7,"<="&AA$7)/SUMIFS('Reports-Md'!$75:$75,'Reports-Md'!$7:$7,">="&AA$6,'Reports-Md'!$7:$7,"<="&AA$7)) -> 133.86957 | AB23: =IF(SUMIFS('Reports-Md'!$75:$75,'Reports-Md'!$7:$7,">="&AB$6,'Reports-Md'!$7:$7,"<="&AB$7)=0,0,SUMIFS('Reports-Md'!179:179,'Reports-Md'!$7:$7,">="&AB$6,'Reports-Md'!$7:$7,"<="&AB$7)/SUMIFS('Reports-Md'!$75:$75,'Reports-Md'!$7:$7,">="&AB$6,'Reports-Md'!$7:$7,"<="&AB$7)) -> 140.6467169 | AC23: =IF(SUMIFS('Reports-Md'!$75:$75,'Reports-Md'!$7:$7,">="&AC$6,'Reports-Md'!$7:$7,"<="&AC$7)=0,0,SUMIFS('Reports-Md'!179:179,'Reports-Md'!$7:$7,">="&AC$6,'Reports-Md'!$7:$7,"<="&AC$7)/SUMIFS('Reports-Md'!$75:$75,'Reports-Md'!$7:$7,">="&AC$6,'Reports-Md'!$7:$7,"<="&AC$7)) -> 147.766957
K24: =K13 -> РРЦ | N24: руб. | P24: ='prod-atributy'!$R$23 -> Товарная категория - 11 | U24: =IF(SUMIFS('Reports-Md'!$78:$78,'Reports-Md'!$7:$7,"итого")=0,0,SUMIFS('Reports-Md'!180:180,'Reports-Md'!$7:$7,"итого")/SUMIFS('Reports-Md'!$78:$78,'Reports-Md'!$7:$7,"итого")) -> 0 | X24: =IF(SUMIFS('Reports-Md'!$78:$78,'Reports-Md'!$7:$7,">="&X$6,'Reports-Md'!$7:$7,"<="&X$7)=0,0,SUMIFS('Reports-Md'!180:180,'Reports-Md'!$7:$7,">="&X$6,'Reports-Md'!$7:$7,"<="&X$7)/SUMIFS('Reports-Md'!$78:$78,'Reports-Md'!$7:$7,">="&X$6,'Reports-Md'!$7:$7,"<="&X$7)) -> 0 | Y24: =IF(SUMIFS('Reports-Md'!$78:$78,'Reports-Md'!$7:$7,">="&Y$6,'Reports-Md'!$7:$7,"<="&Y$7)=0,0,SUMIFS('Reports-Md'!180:180,'Reports-Md'!$7:$7,">="&Y$6,'Reports-Md'!$7:$7,"<="&Y$7)/SUMIFS('Reports-Md'!$78:$78,'Reports-Md'!$7:$7,">="&Y$6,'Reports-Md'!$7:$7,"<="&Y$7)) -> 0 | Z24: =IF(SUMIFS('Reports-Md'!$78:$78,'Reports-Md'!$7:$7,">="&Z$6,'Reports-Md'!$7:$7,"<="&Z$7)=0,0,SUMIFS('Reports-Md'!180:180,'Reports-Md'!$7:$7,">="&Z$6,'Reports-Md'!$7:$7,"<="&Z$7)/SUMIFS('Reports-Md'!$78:$78,'Reports-Md'!$7:$7,">="&Z$6,'Reports-Md'!$7:$7,"<="&Z$7)) -> 0 | AA24: =IF(SUMIFS('Reports-Md'!$78:$78,'Reports-Md'!$7:$7,">="&AA$6,'Reports-Md'!$7:$7,"<="&AA$7)=0,0,SUMIFS('Reports-Md'!180:180,'Reports-Md'!$7:$7,">="&AA$6,'Reports-Md'!$7:$7,"<="&AA$7)/SUMIFS('Reports-Md'!$78:$78,'Reports-Md'!$7:$7,">="&AA$6,'Reports-Md'!$7:$7,"<="&AA$7)) -> 0 | AB24: =IF(SUMIFS('Reports-Md'!$78:$78,'Reports-Md'!$7:$7,">="&AB$6,'Reports-Md'!$7:$7,"<="&AB$7)=0,0,SUMIFS('Reports-Md'!180:180,'Reports-Md'!$7:$7,">="&AB$6,'Reports-Md'!$7:$7,"<="&AB$7)/SUMIFS('Reports-Md'!$78:$78,'Reports-Md'!$7:$7,">="&AB$6,'Reports-Md'!$7:$7,"<="&AB$7)) -> 0 | AC24: =IF(SUMIFS('Reports-Md'!$78:$78,'Reports-Md'!$7:$7,">="&AC$6,'Reports-Md'!$7:$7,"<="&AC$7)=0,0,SUMIFS('Reports-Md'!180:180,'Reports-Md'!$7:$7,">="&AC$6,'Reports-Md'!$7:$7,"<="&AC$7)/SUMIFS('Reports-Md'!$78:$78,'Reports-Md'!$7:$7,">="&AC$6,'Reports-Md'!$7:$7,"<="&AC$7)) -> 0
K25: =K13 -> РРЦ | N25: руб. | P25: ='prod-atributy'!$R$24 -> Сторонний ассортимент | U25: =IF(SUMIFS('Reports-Md'!$81:$81,'Reports-Md'!$7:$7,"итого")=0,0,SUMIFS('Reports-Md'!181:181,'Reports-Md'!$7:$7,"итого")/SUMIFS('Reports-Md'!$81:$81,'Reports-Md'!$7:$7,"итого")) -> 145.5254101 | X25: =IF(SUMIFS('Reports-Md'!$81:$81,'Reports-Md'!$7:$7,">="&X$6,'Reports-Md'!$7:$7,"<="&X$7)=0,0,SUMIFS('Reports-Md'!181:181,'Reports-Md'!$7:$7,">="&X$6,'Reports-Md'!$7:$7,"<="&X$7)/SUMIFS('Reports-Md'!$81:$81,'Reports-Md'!$7:$7,">="&X$6,'Reports-Md'!$7:$7,"<="&X$7)) -> 121.3839 | Y25: =IF(SUMIFS('Reports-Md'!$81:$81,'Reports-Md'!$7:$7,">="&Y$6,'Reports-Md'!$7:$7,"<="&Y$7)=0,0,SUMIFS('Reports-Md'!181:181,'Reports-Md'!$7:$7,">="&Y$6,'Reports-Md'!$7:$7,"<="&Y$7)/SUMIFS('Reports-Md'!$81:$81,'Reports-Md'!$7:$7,">="&Y$6,'Reports-Md'!$7:$7,"<="&Y$7)) -> 127.5289599 | Z25: =IF(SUMIFS('Reports-Md'!$81:$81,'Reports-Md'!$7:$7,">="&Z$6,'Reports-Md'!$7:$7,"<="&Z$7)=0,0,SUMIFS('Reports-Md'!181:181,'Reports-Md'!$7:$7,">="&Z$6,'Reports-Md'!$7:$7,"<="&Z$7)/SUMIFS('Reports-Md'!$81:$81,'Reports-Md'!$7:$7,">="&Z$6,'Reports-Md'!$7:$7,"<="&Z$7)) -> 133.9851135 | AA25: =IF(SUMIFS('Reports-Md'!$81:$81,'Reports-Md'!$7:$7,">="&AA$6,'Reports-Md'!$7:$7,"<="&AA$7)=0,0,SUMIFS('Reports-Md'!181:181,'Reports-Md'!$7:$7,">="&AA$6,'Reports-Md'!$7:$7,"<="&AA$7)/SUMIFS('Reports-Md'!$81:$81,'Reports-Md'!$7:$7,">="&AA$6,'Reports-Md'!$7:$7,"<="&AA$7)) -> 140.7681099 | AB25: =IF(SUMIFS('Reports-Md'!$81:$81,'Reports-Md'!$7:$7,">="&AB$6,'Reports-Md'!$7:$7,"<="&AB$7)=0,0,SUMIFS('Reports-Md'!181:181,'Reports-Md'!$7:$7,">="&AB$6,'Reports-Md'!$7:$7,"<="&AB$7)/SUMIFS('Reports-Md'!$81:$81,'Reports-Md'!$7:$7,">="&AB$6,'Reports-Md'!$7:$7,"<="&AB$7)) -> 147.8944955 | AC25: =IF(SUMIFS('Reports-Md'!$81:$81,'Reports-Md'!$7:$7,">="&AC$6,'Reports-Md'!$7:$7,"<="&AC$7)=0,0,SUMIFS('Reports-Md'!181:181,'Reports-Md'!$7:$7,">="&AC$6,'Reports-Md'!$7:$7,"<="&AC$7)/SUMIFS('Reports-Md'!$81:$81,'Reports-Md'!$7:$7,">="&AC$6,'Reports-Md'!$7:$7,"<="&AC$7)) -> 155.3816543
K28: =spravochniki!$R$13 -> объемы | N28: =IF(OR($K28="",$K28=0),"",INDEX(spravochniki!$T$12:$T$22,SUMIFS(spravochniki!$P$12:$P$22,spravochniki!$R$12:$R$22,$K28))) -> литры | P28: =usloviya!$R$6 -> итого | U28: =SUM($W28:$AD28) -> 22073750 | X28: =SUMIFS('Reports-Md'!154:154,'Reports-Md'!$7:$7,">="&X$6,'Reports-Md'!$7:$7,"<="&X$7) -> 1483750 | Y28: =SUMIFS('Reports-Md'!154:154,'Reports-Md'!$7:$7,">="&Y$6,'Reports-Md'!$7:$7,"<="&Y$7) -> 2650000 | Z28: =SUMIFS('Reports-Md'!154:154,'Reports-Md'!$7:$7,">="&Z$6,'Reports-Md'!$7:$7,"<="&Z$7) -> 3290000 | AA28: =SUMIFS('Reports-Md'!154:154,'Reports-Md'!$7:$7,">="&AA$6,'Reports-Md'!$7:$7,"<="&AA$7) -> 4095000 | AB28: =SUMIFS('Reports-Md'!154:154,'Reports-Md'!$7:$7,">="&AB$6,'Reports-Md'!$7:$7,"<="&AB$7) -> 4815000 | AC28: =SUMIFS('Reports-Md'!154:154,'Reports-Md'!$7:$7,">="&AC$6,'Reports-Md'!$7:$7,"<="&AC$7) -> 5740000
K29: =K28 -> объемы | N29: =IF(OR($K29="",$K29=0),"",INDEX(spravochniki!$T$12:$T$22,SUMIFS(spravochniki!$P$12:$P$22,spravochniki!$R$12:$R$22,$K29))) -> литры | P29: ='prod-atributy'!$R$13 -> Товарная категория - 1 | U29: 4480000 | X29: =SUMIFS('Reports-Md'!155:155,'Reports-Md'!$7:$7,">="&X$6,'Reports-Md'!$7:$7,"<="&X$7) -> 480000 | Y29: =SUMIFS('Reports-Md'!155:155,'Reports-Md'!$7:$7,">="&Y$6,'Reports-Md'!$7:$7,"<="&Y$7) -> 600000 | Z29: =SUMIFS('Reports-Md'!155:155,'Reports-Md'!$7:$7,">="&Z$6,'Reports-Md'!$7:$7,"<="&Z$7) -> 700000 | AA29: =SUMIFS('Reports-Md'!155:155,'Reports-Md'!$7:$7,">="&AA$6,'Reports-Md'!$7:$7,"<="&AA$7) -> 800000 | AB29: =SUMIFS('Reports-Md'!155:155,'Reports-Md'!$7:$7,">="&AB$6,'Reports-Md'!$7:$7,"<="&AB$7) -> 900000 | AC29: =SUMIFS('Reports-Md'!155:155,'Reports-Md'!$7:$7,">="&AC$6,'Reports-Md'!$7:$7,"<="&AC$7) -> 1000000
K30: =K28 -> объемы | N30: =IF(OR($K30="",$K30=0),"",INDEX(spravochniki!$T$12:$T$22,SUMIFS(spravochniki!$P$12:$P$22,spravochniki!$R$12:$R$22,$K30))) -> литры | P30: ='prod-atributy'!$R$14 -> Товарная категория - 2 | U30: 5830000 | X30: =SUMIFS('Reports-Md'!156:156,'Reports-Md'!$7:$7,">="&X$6,'Reports-Md'!$7:$7,"<="&X$7) -> 880000 | Y30: =SUMIFS('Reports-Md'!156:156,'Reports-Md'!$7:$7,">="&Y$6,'Reports-Md'!$7:$7,"<="&Y$7) -> 950000 | Z30: =SUMIFS('Reports-Md'!156:156,'Reports-Md'!$7:$7,">="&Z$6,'Reports-Md'!$7:$7,"<="&Z$7) -> 1000000 | AA30: =SUMIFS('Reports-Md'!156:156,'Reports-Md'!$7:$7,">="&AA$6,'Reports-Md'!$7:$7,"<="&AA$7) -> 1000000 | AB30: =SUMIFS('Reports-Md'!156:156,'Reports-Md'!$7:$7,">="&AB$6,'Reports-Md'!$7:$7,"<="&AB$7) -> 1000000 | AC30: =SUMIFS('Reports-Md'!156:156,'Reports-Md'!$7:$7,">="&AC$6,'Reports-Md'!$7:$7,"<="&AC$7) -> 1000000
K31: =K28 -> объемы | N31: =IF(OR($K31="",$K31=0),"",INDEX(spravochniki!$T$12:$T$22,SUMIFS(spravochniki!$P$12:$P$22,spravochniki!$R$12:$R$22,$K31))) -> литры | P31: ='prod-atributy'!$R$15 -> Товарная категория - 3 | U31: 3490000 | X31: =SUMIFS('Reports-Md'!157:157,'Reports-Md'!$7:$7,">="&X$6,'Reports-Md'!$7:$7,"<="&X$7) -> 0 | Y31: =SUMIFS('Reports-Md'!157:157,'Reports-Md'!$7:$7,">="&Y$6,'Reports-Md'!$7:$7,"<="&Y$7) -> 450000 | Z31: =SUMIFS('Reports-Md'!157:157,'Reports-Md'!$7:$7,">="&Z$6,'Reports-Md'!$7:$7,"<="&Z$7) -> 630000 | AA31: =SUMIFS('Reports-Md'!157:157,'Reports-Md'!$7:$7,">="&AA$6,'Reports-Md'!$7:$7,"<="&AA$7) -> 710000 | AB31: =SUMIFS('Reports-Md'!157:157,'Reports-Md'!$7:$7,">="&AB$6,'Reports-Md'!$7:$7,"<="&AB$7) -> 800000 | AC31: =SUMIFS('Reports-Md'!157:157,'Reports-Md'!$7:$7,">="&AC$6,'Reports-Md'!$7:$7,"<="&AC$7) -> 900000
... 36 more rows

Sheet Reports-Y
X1: =IF(X7="","",1) -> 1 | Y1: =IF(Y7="","",X1+1) -> 2 | Z1: =IF(Z7="","",Y1+1) -> 3 | AA1: 4 | AB1: 5 | AC1: 6
B3: * | C3: Основные отчеты финмодели (PL-CF-BS-SF)
B4: * | C4: периодичность: ежегодная
B5: * | C5: детализирован по категориям | X5: =YEAR(X7)&" Год" -> 2020 Год | Y5: =YEAR(Y7)&" Год" -> 2021 Год | Z5: =YEAR(Z7)&" Год" -> 2022 Год | AA5: 2023 Год | AB5: 2024 Год | AC5: 2025 Год
X6: =usloviya!$J$10 -> 2020-01-01 | Y6: =X7+1 -> 2021-01-01 | Z6: =Y7+1 -> 2022-01-01 | AA6: 2023-01-01 | AB6: 2024-01-01 | AC6: 2025-01-01
K7: =usloviya!$E$6 -> показатель | N7: =spravochniki!$T$8 -> ед.изм. | P7: =spravochniki!$M$12 -> категории | U7: =usloviya!$R$6 -> итого | W7: старт | X7: =EOMONTH(X6,11) -> 2020-12-31 | Y7: =EOMONTH(Y6,11) -> 2021-12-31 | Z7: =EOMONTH(Z6,11) -> 2022-12-31 | AA7: =EOMONTH(AA6,11) -> 2023-12-31 | AB7: =EOMONTH(AB6,11) -> 2024-12-31 | AC7: =EOMONTH(AC6,11) -> 2025-12-31
K11: =SF!$C$11 -> Продажи
J14: * | K14: Параметры глобальных продаж | N14: % | P14: общее изменение | X14: =glavnaya!F7 -> 1 | Y14: =glavnaya!G7 -> 1 | Z14: =glavnaya!H7 -> 1 | AA14: =glavnaya!I7 -> 1 | AB14: =glavnaya!J7 -> 1 | AC14: =glavnaya!K7 -> 1
K17: =spravochniki!$R$12 -> базовое количество | N17: =IF(OR($K17="",$K17=0),"",INDEX(spravochniki!$T$12:$T$22,SUMIFS(spravochniki!$P$12:$P$22,spravochniki!$R$12:$R$22,$K17))) -> шт | P17: =usloviya!$R$6 -> итого | U17: =SUM($W17:$AD17) -> 146546666.7 | X17: =SUMIFS('Reports-Md'!29:29,'Reports-Md'!$7:$7,">="&X$6,'Reports-Md'!$7:$7,"<="&X$7) -> 4975000 | Y17: =SUMIFS('Reports-Md'!29:29,'Reports-Md'!$7:$7,">="&Y$6,'Reports-Md'!$7:$7,"<="&Y$7) -> 15690000 | Z17: =SUMIFS('Reports-Md'!29:29,'Reports-Md'!$7:$7,">="&Z$6,'Reports-Md'!$7:$7,"<="&Z$7) -> 20178333.33 | AA17: =SUMIFS('Reports-Md'!29:29,'Reports-Md'!$7:$7,">="&AA$6,'Reports-Md'!$7:$7,"<="&AA$7) -> 29054166.67 | AB17: =SUMIFS('Reports-Md'!29:29,'Reports-Md'!$7:$7,">="&AB$6,'Reports-Md'!$7:$7,"<="&AB$7) -> 34899166.67 | AC17: =SUMIFS('Reports-Md'!29:29,'Reports-Md'!$7:$7,">="&AC$6,'Reports-Md'!$7:$7,"<="&AC$7) -> 41750000
K18: =K17 -> базовое количество | M18: =produkciya!$AL$12 -> n | N18: =IF(OR($K18="",$K18=0),"",INDEX(spravochniki!$T$12:$T$22,SUMIFS(spravochniki!$P$12:$P$22,spravochniki!$R$12:$R$22,$K18))) -> шт | P18: ='prod-atributy'!$R$13 -> Товарная категория - 1 | U18: 14933333.33 | X18: =SUMIFS('Reports-Md'!30:30,'Reports-Md'!$7:$7,">="&X$6,'Reports-Md'!$7:$7,"<="&X$7) -> 1600000 | Y18: =SUMIFS('Reports-Md'!30:30,'Reports-Md'!$7:$7,">="&Y$6,'Reports-Md'!$7:$7,"<="&Y$7) -> 2000000 | Z18: =SUMIFS('Reports-Md'!30:30,'Reports-Md'!$7:$7,">="&Z$6,'Reports-Md'!$7:$7,"<="&Z$7) -> 2333333.333 | AA18: =SUMIFS('Reports-Md'!30:30,'Reports-Md'!$7:$7,">="&AA$6,'Reports-Md'!$7:$7,"<="&AA$7) -> 2666666.667 | AB18: =SUMIFS('Reports-Md'!30:30,'Reports-Md'!$7:$7,">="&AB$6,'Reports-Md'!$7:$7,"<="&AB$7) -> 3000000 | AC18: =SUMIFS('Reports-Md'!30:30,'Reports-Md'!$7:$7,">="&AC$6,'Reports-Md'!$7:$7,"<="&AC$7) -> 3333333.333
K19: =K18 -> базовое количество | M19: =produkciya!$AL$12 -> n | N19: шт | P19: ='prod-atributy'!$R$14 -> Товарная категория - 2 | U19: 19433333.33 | X19: =SUMIFS('Reports-Md'!35:35,'Reports-Md'!$7:$7,">="&X$6,'Reports-Md'!$7:$7,"<="&X$7) -> 2933333.333 | Y19: =SUMIFS('Reports-Md'!35:35,'Reports-Md'!$7:$7,">="&Y$6,'Reports-Md'!$7:$7,"<="&Y$7) -> 3166666.667 | Z19: =SUMIFS('Reports-Md'!35:35,'Reports-Md'!$7:$7,">="&Z$6,'Reports-Md'!$7:$7,"<="&Z$7) -> 3333333.333 | AA19: =SUMIFS('Reports-Md'!35:35,'Reports-Md'!$7:$7,">="&AA$6,'Reports-Md'!$7:$7,"<="&AA$7) -> 3333333.333 | AB19: =SUMIFS('Reports-Md'!35:35,'Reports-Md'!$7:$7,">="&AB$6,'Reports-Md'!$7:$7,"<="&AB$7) -> 3333333.333 | AC19: =SUMIFS('Reports-Md'!35:35,'Reports-Md'!$7:$7,">="&AC$6,'Reports-Md'!$7:$7,"<="&AC$7) -> 3333333.333
K20: базовое количество | M20: =produkciya!$AL$12 -> n | N20: шт | P20: ='prod-atributy'!$R$15 -> Товарная категория - 3 | U20: 34900000 | X20: =SUMIFS('Reports-Md'!40:40,'Reports-Md'!$7:$7,">="&X$6,'Reports-Md'!$7:$7,"<="&X$7) -> 0 | Y20: =SUMIFS('Reports-Md'!40:40,'Reports-Md'!$7:$7,">="&Y$6,'Reports-Md'!$7:$7,"<="&Y$7) -> 4500000 | Z20: =SUMIFS('Reports-Md'!40:40,'Reports-Md'!$7:$7,">="&Z$6,'Reports-Md'!$7:$7,"<="&Z$7) -> 6300000 | AA20: =SUMIFS('Reports-Md'!40:40,'Reports-Md'!$7:$7,">="&AA$6,'Reports-Md'!$7:$7,"<="&AA$7) -> 7100000 | AB20: =SUMIFS('Reports-Md'!40:40,'Reports-Md'!$7:$7,">="&AB$6,'Reports-Md'!$7:$7,"<="&AB$7) -> 8000000 | AC20: =SUMIFS('Reports-Md'!40:40,'Reports-Md'!$7:$7,">="&AC$6,'Reports-Md'!$7:$7,"<="&AC$7) -> 9000000
K21: базовое количество | M21: =produkciya!$AL$12 -> n | N21: шт | P21: ='prod-atributy'!$R$16 -> Товарная категория - 4 | U21: 1400000 | X21: =SUMIFS('Reports-Md'!45:45,'Reports-Md'!$7:$7,">="&X$6,'Reports-Md'!$7:$7,"<="&X$7) -> 166666.6667 | Y21: =SUMIFS('Reports-Md'!45:45,'Reports-Md'!$7:$7,">="&Y$6,'Reports-Md'!$7:$7,"<="&Y$7) -> 233333.3333 | Z21: =SUMIFS('Reports-Md'!45:45,'Reports-Md'!$7:$7,">="&Z$6,'Reports-Md'!$7:$7,"<="&Z$7) -> 166666.6667 | AA21: =SUMIFS('Reports-Md'!45:45,'Reports-Md'!$7:$7,">="&AA$6,'Reports-Md'!$7:$7,"<="&AA$7) -> 216666.6667 | AB21: =SUMIFS('Reports-Md'!45:45,'Reports-Md'!$7:$7,">="&AB$6,'Reports-Md'!$7:$7,"<="&AB$7) -> 283333.3333 | AC21: =SUMIFS('Reports-Md'!45:45,'Reports-Md'!$7:$7,">="&AC$6,'Reports-Md'!$7:$7,"<="&AC$7) -> 333333.3333
K22: базовое количество | M22: =produkciya!$AL$12 -> n | N22: шт | P22: ='prod-atributy'!$R$17 -> Товарная категория - 5 | U22: 2680000 | X22: =SUMIFS('Reports-Md'!50:50,'Reports-Md'!$7:$7,">="&X$6,'Reports-Md'!$7:$7,"<="&X$7) -> 0 | Y22: =SUMIFS('Reports-Md'!50:50,'Reports-Md'!$7:$7,">="&Y$6,'Reports-Md'!$7:$7,"<="&Y$7) -> 280000 | Z22: =SUMIFS('Reports-Md'!50:50,'Reports-Md'!$7:$7,">="&Z$6,'Reports-Md'!$7:$7,"<="&Z$7) -> 400000 | AA22: =SUMIFS('Reports-Md'!50:50,'Reports-Md'!$7:$7,">="&AA$6,'Reports-Md'!$7:$7,"<="&AA$7) -> 520000 | AB22: =SUMIFS('Reports-Md'!50:50,'Reports-Md'!$7:$7,">="&AB$6,'Reports-Md'!$7:$7,"<="&AB$7) -> 680000 | AC22: =SUMIFS('Reports-Md'!50:50,'Reports-Md'!$7:$7,">="&AC$6,'Reports-Md'!$7:$7,"<="&AC$7) -> 800000
K23: базовое количество | M23: =produkciya!$AL$12 -> n | N23: шт | P23: ='prod-atributy'!$R$18 -> Товарная категория - 6 | U23: 9550000 | X23: =SUMIFS('Reports-Md'!55:55,'Reports-Md'!$7:$7,">="&X$6,'Reports-Md'!$7:$7,"<="&X$7) -> 150000 | Y23: =SUMIFS('Reports-Md'!55:55,'Reports-Md'!$7:$7,">="&Y$6,'Reports-Md'!$7:$7,"<="&Y$7) -> 350000 | Z23: =SUMIFS('Reports-Md'!55:55,'Reports-Md'!$7:$7,">="&Z$6,'Reports-Md'!$7:$7,"<="&Z$7) -> 650000 | AA23: =SUMIFS('Reports-Md'!55:55,'Reports-Md'!$7:$7,">="&AA$6,'Reports-Md'!$7:$7,"<="&AA$7) -> 1500000 | AB23: =SUMIFS('Reports-Md'!55:55,'Reports-Md'!$7:$7,">="&AB$6,'Reports-Md'!$7:$7,"<="&AB$7) -> 2500000 | AC23: =SUMIFS('Reports-Md'!55:55,'Reports-Md'!$7:$7,">="&AC$6,'Reports-Md'!$7:$7,"<="&AC$7) -> 4400000
K24: базовое количество | M24: =produkciya!$AL$12 -> n | N24: шт | P24: ='prod-atributy'!$R$19 -> Товарная категория - 7 | U24: 6250000 | X24: =SUMIFS('Reports-Md'!60:60,'Reports-Md'!$7:$7,">="&X$6,'Reports-Md'!$7:$7,"<="&X$7) -> 0 | Y24: =SUMIFS('Reports-Md'!60:60,'Reports-Md'!$7:$7,">="&Y$6,'Reports-Md'!$7:$7,"<="&Y$7) -> 750000 | Z24: =SUMIFS('Reports-Md'!60:60,'Reports-Md'!$7:$7,">="&Z$6,'Reports-Md'!$7:$7,"<="&Z$7) -> 1000000 | AA24: =SUMIFS('Reports-Md'!60:60,'Reports-Md'!$7:$7,">="&AA$6,'Reports-Md'!$7:$7,"<="&AA$7) -> 1250000 | AB24: =SUMIFS('Reports-Md'!60:60,'Reports-Md'!$7:$7,">="&AB$6,'Reports-Md'!$7:$7,"<="&AB$7) -> 1500000 | AC24: =SUMIFS('Reports-Md'!60:60,'Reports-Md'!$7:$7,">="&AC$6,'Reports-Md'!$7:$7,"<="&AC$7) -> 1750000
K25: базовое количество | N25: шт | P25: ='prod-atributy'!$R$20 -> Товарная категория - 8 | U25: 54800000 | X25: =SUMIFS('Reports-Md'!65:65,'Reports-Md'!$7:$7,">="&X$6,'Reports-Md'!$7:$7,"<="&X$7) -> 0 | Y25: =SUMIFS('Reports-Md'!65:65,'Reports-Md'!$7:$7,">="&Y$6,'Reports-Md'!$7:$7,"<="&Y$7) -> 4200000 | Z25: =SUMIFS('Reports-Md'!65:65,'Reports-Md'!$7:$7,">="&Z$6,'Reports-Md'!$7:$7,"<="&Z$7) -> 5600000 | AA25: =SUMIFS('Reports-Md'!65:65,'Reports-Md'!$7:$7,">="&AA$6,'Reports-Md'!$7:$7,"<="&AA$7) -> 12000000 | AB25: =SUMIFS('Reports-Md'!65:65,'Reports-Md'!$7:$7,">="&AB$6,'Reports-Md'!$7:$7,"<="&AB$7) -> 15000000 | AC25: =SUMIFS('Reports-Md'!65:65,'Reports-Md'!$7:$7,">="&AC$6,'Reports-Md'!$7:$7,"<="&AC$7) -> 18000000
K26: базовое количество | N26: шт | P26: ='prod-atributy'!$R$21 -> Товарная категория - 9 | U26: 1705000 | X26: =SUMIFS('Reports-Md'!70:70,'Reports-Md'!$7:$7,">="&X$6,'Reports-Md'!$7:$7,"<="&X$7) -> 100000 | Y26: =SUMIFS('Reports-Md'!70:70,'Reports-Md'!$7:$7,">="&Y$6,'Reports-Md'!$7:$7,"<="&Y$7) -> 160000 | Z26: =SUMIFS('Reports-Md'!70:70,'Reports-Md'!$7:$7,">="&Z$6,'Reports-Md'!$7:$7,"<="&Z$7) -> 255000 | AA26: =SUMIFS('Reports-Md'!70:70,'Reports-Md'!$7:$7,">="&AA$6,'Reports-Md'!$7:$7,"<="&AA$7) -> 297500 | AB26: =SUMIFS('Reports-Md'!70:70,'Reports-Md'!$7:$7,">="&AB$6,'Reports-Md'!$7:$7,"<="&AB$7) -> 382500 | AC26: =SUMIFS('Reports-Md'!70:70,'Reports-Md'!$7:$7,">="&AC$6,'Reports-Md'!$7:$7,"<="&AC$7) -> 510000
K27: базовое количество | N27: шт | P27: ='prod-atributy'!$R$22 -> Товарная категория - 10 | U27: 545000 | X27: =SUMIFS('Reports-Md'!75:75,'Reports-Md'!$7:$7,">="&X$6,'Reports-Md'!$7:$7,"<="&X$7) -> 15000 | Y27: =SUMIFS('Reports-Md'!75:75,'Reports-Md'!$7:$7,">="&Y$6,'Reports-Md'!$7:$7,"<="&Y$7) -> 30000 | Z27: =SUMIFS('Reports-Md'!75:75,'Reports-Md'!$7:$7,">="&Z$6,'Reports-Md'!$7:$7,"<="&Z$7) -> 100000 | AA27: =SUMIFS('Reports-Md'!75:75,'Reports-Md'!$7:$7,">="&AA$6,'Reports-Md'!$7:$7,"<="&AA$7) -> 100000 | AB27: =SUMIFS('Reports-Md'!75:75,'Reports-Md'!$7:$7,">="&AB$6,'Reports-Md'!$7:$7,"<="&AB$7) -> 130000 | AC27: =SUMIFS('Reports-Md'!75:75,'Reports-Md'!$7:$7,">="&AC$6,'Reports-Md'!$7:$7,"<="&AC$7) -> 170000
K28: базовое количество | N28: шт | P28: ='prod-atributy'!$R$23 -> Товарная категория - 11 | U28: 0 | X28: =SUMIFS('Reports-Md'!78:78,'Reports-Md'!$7:$7,">="&X$6,'Reports-Md'!$7:$7,"<="&X$7) -> 0 | Y28: =SUMIFS('Reports-Md'!78:78,'Reports-Md'!$7:$7,">="&Y$6,'Reports-Md'!$7:$7,"<="&Y$7) -> 0 | Z28: =SUMIFS('Reports-Md'!78:78,'Reports-Md'!$7:$7,">="&Z$6,'Reports-Md'!$7:$7,"<="&Z$7) -> 0 | AA28: =SUMIFS('Reports-Md'!78:78,'Reports-Md'!$7:$7,">="&AA$6,'Reports-Md'!$7:$7,"<="&AA$7) -> 0 | AB28: =SUMIFS('Reports-Md'!78:78,'Reports-Md'!$7:$7,">="&AB$6,'Reports-Md'!$7:$7,"<="&AB$7) -> 0 | AC28: =SUMIFS('Reports-Md'!78:78,'Reports-Md'!$7:$7,">="&AC$6,'Reports-Md'!$7:$7,"<="&AC$7) -> 0
K29: базовое количество | N29: шт | P29: ='prod-atributy'!$R$24 -> Сторонний ассортимент | U29: 350000 | X29: =SUMIFS('Reports-Md'!81:81,'Reports-Md'!$7:$7,">="&X$6,'Reports-Md'!$7:$7,"<="&X$7) -> 10000 | Y29: =SUMIFS('Reports-Md'!81:81,'Reports-Md'!$7:$7,">="&Y$6,'Reports-Md'!$7:$7,"<="&Y$7) -> 20000 | Z29: =SUMIFS('Reports-Md'!81:81,'Reports-Md'!$7:$7,">="&Z$6,'Reports-Md'!$7:$7,"<="&Z$7) -> 40000 | AA29: =SUMIFS('Reports-Md'!81:81,'Reports-Md'!$7:$7,">="&AA$6,'Reports-Md'!$7:$7,"<="&AA$7) -> 70000 | AB29: =SUMIFS('Reports-Md'!81:81,'Reports-Md'!$7:$7,">="&AB$6,'Reports-Md'!$7:$7,"<="&AB$7) -> 90000 | AC29: =SUMIFS('Reports-Md'!81:81,'Reports-Md'!$7:$7,">="&AC$6,'Reports-Md'!$7:$7,"<="&AC$7) -> 120000
... 35 more rows

Sheet Reports-Md
X1: =IF(X7="","",1) -> 1 | Y1: =IF(Y7="","",X1+1) -> 2 | Z1: =IF(Z7="","",Y1+1) -> 3 | AA1: 4 | AB1: 5 | AC1: 6 | AD1: 7 | AE1: 8 | AF1: 9 | AG1: 10 | AH1: 11 | AI1: 12 | AJ1: 13 | AK1: 14 | AL1: 15 | AM1: 16 | AN1: 17 | AO1: 18 | AP1: 19 | AQ1: 20 | AR1: 21 | AS1: 22 | AT1: 23 | AU1: 24 | AV1: 25 | AW1: 26 | AX1: 27 | AY1: 28 | AZ1: 29 | BA1: 30 | BB1: 31 | BC1: 32 | BD1: 33 | BE1: 34 | BF1: 35 | BG1: 36 | BH1: 37 | BI1: 38 | BJ1: 39 | BK1: 40 | BL1: 41 | BM1: 42 | BN1: 43 | BO1: 44 | BP1: 45 | BQ1: 46 | BR1: 47 | BS1: 48 | BT1: 49 | BU1: 50 | BV1: 51 | BW1: 52 | BX1: 53 | BY1: 54 | BZ1: 55 | CA1: 56 | CB1: 57 | CC1: 58 | CD1: 59 | CE1: 60 | CF1: 61 | CG1: 62 | CH1: 63 | CI1: 64 | CJ1: 65 | CK1: 66 | CL1: =IF(CL7="","",CK1+1) -> 67 | CM1: 68 | CN1: 69 | CO1: 70 | CP1: 71 | CQ1: 72
B3: * | C3: Основные отчеты финмодели (PL-CF-BS-SF)
B4: * | C4: периодичность: ежемесячная
B5: * | C5: детализирован по категориям
K7: =usloviya!$E$6 -> показатель | N7: =spravochniki!$T$8 -> ед.изм. | P7: =spravochniki!$M$12 -> категории | S7: номенклатура | U7: =usloviya!$R$6 -> итого | W7: старт | X7: =IF('str-ra-prodaj'!X7="","",'str-ra-prodaj'!X7) -> 2020-01-01 | Y7: =IF('str-ra-prodaj'!Y7="","",'str-ra-prodaj'!Y7) -> 2020-02-01 | Z7: =IF('str-ra-prodaj'!Z7="","",'str-ra-prodaj'!Z7) -> 2020-03-01 | AA7: =IF('str-ra-prodaj'!AA7="","",'str-ra-prodaj'!AA7) -> 2020-04-01 | AB7: =IF('str-ra-prodaj'!AB7="","",'str-ra-prodaj'!AB7) -> 2020-05-01 | AC7: =IF('str-ra-prodaj'!AC7="","",'str-ra-prodaj'!AC7) -> 2020-06-01 | AD7: =IF('str-ra-prodaj'!AD7="","",'str-ra-prodaj'!AD7) -> 2020-07-01 | AE7: =IF('str-ra-prodaj'!AE7="","",'str-ra-prodaj'!AE7) -> 2020-08-01 | AF7: =IF('str-ra-prodaj'!AF7="","",'str-ra-prodaj'!AF7) -> 2020-09-01 | AG7: =IF('str-ra-prodaj'!AG7="","",'str-ra-prodaj'!AG7) -> 2020-10-01 | AH7: =IF('str-ra-prodaj'!AH7="","",'str-ra-prodaj'!AH7) -> 2020-11-01 | AI7: =IF('str-ra-prodaj'!AI7="","",'str-ra-prodaj'!AI7) -> 2020-12-01 | AJ7: =IF('str-ra-prodaj'!AJ7="","",'str-ra-prodaj'!AJ7) -> 2021-01-01 | AK7: =IF('str-ra-prodaj'!AK7="","",'str-ra-prodaj'!AK7) -> 2021-02-01 | AL7: =IF('str-ra-prodaj'!AL7="","",'str-ra-prodaj'!AL7) -> 2021-03-01 | AM7: =IF('str-ra-prodaj'!AM7="","",'str-ra-prodaj'!AM7) -> 2021-04-01 | AN7: =IF('str-ra-prodaj'!AN7="","",'str-ra-prodaj'!AN7) -> 2021-05-01 | AO7: =IF('str-ra-prodaj'!AO7="","",'str-ra-prodaj'!AO7) -> 2021-06-01 | AP7: =IF('str-ra-prodaj'!AP7="","",'str-ra-prodaj'!AP7) -> 2021-07-01 | AQ7: =IF('str-ra-prodaj'!AQ7="","",'str-ra-prodaj'!AQ7) -> 2021-08-01 | AR7: =IF('str-ra-prodaj'!AR7="","",'str-ra-prodaj'!AR7) -> 2021-09-01 | AS7: =IF('str-ra-prodaj'!AS7="","",'str-ra-prodaj'!AS7) -> 2021-10-01 | AT7: =IF('str-ra-prodaj'!AT7="","",'str-ra-prodaj'!AT7) -> 2021-11-01 | AU7: =IF('str-ra-prodaj'!AU7="","",'str-ra-prodaj'!AU7) -> 2021-12-01 | AV7: =IF('str-ra-prodaj'!AV7="","",'str-ra-prodaj'!AV7) -> 2022-01-01 | AW7: =IF('str-ra-prodaj'!AW7="","",'str-ra-prodaj'!AW7) -> 2022-02-01 | AX7: =IF('str-ra-prodaj'!AX7="","",'str-ra-prodaj'!AX7) -> 2022-03-01 | AY7: =IF('str-ra-prodaj'!AY7="","",'str-ra-prodaj'!AY7) -> 2022-04-01 | AZ7: =IF('str-ra-prodaj'!AZ7="","",'str-ra-prodaj'!AZ7) -> 2022-05-01 | BA7: =IF('str-ra-prodaj'!BA7="","",'str-ra-prodaj'!BA7) -> 2022-06-01 | BB7: =IF('str-ra-prodaj'!BB7="","",'str-ra-prodaj'!BB7) -> 2022-07-01 | BC7: =IF('str-ra-prodaj'!BC7="","",'str-ra-prodaj'!BC7) -> 2022-08-01 | BD7: =IF('str-ra-prodaj'!BD7="","",'str-ra-prodaj'!BD7) -> 2022-09-01 | BE7: =IF('str-ra-prodaj'!BE7="","",'str-ra-prodaj'!BE7) -> 2022-10-01 | BF7: =IF('str-ra-prodaj'!BF7="","",'str-ra-prodaj'!BF7) -> 2022-11-01 | BG7: =IF('str-ra-prodaj'!BG7="","",'str-ra-prodaj'!BG7) -> 2022-12-01 | BH7: =IF('str-ra-prodaj'!BH7="","",'str-ra-prodaj'!BH7) -> 2023-01-01 | BI7: =IF('str-ra-prodaj'!BI7="","",'str-ra-prodaj'!BI7) -> 2023-02-01 | BJ7: =IF('str-ra-prodaj'!BJ7="","",'str-ra-prodaj'!BJ7) -> 2023-03-01 | BK7: =IF('str-ra-prodaj'!BK7="","",'str-ra-prodaj'!BK7) -> 2023-04-01 | BL7: =IF('str-ra-prodaj'!BL7="","",'str-ra-prodaj'!BL7) -> 2023-05-01 | BM7: =IF('str-ra-prodaj'!BM7="","",'str-ra-prodaj'!BM7) -> 2023-06-01 | BN7: =IF('str-ra-prodaj'!BN7="","",'str-ra-prodaj'!BN7) -> 2023-07-01 | BO7: =IF('str-ra-prodaj'!BO7="","",'str-ra-prodaj'!BO7) -> 2023-08-01 | BP7: =IF('str-ra-prodaj'!BP7="","",'str-ra-prodaj'!BP7) -> 2023-09-01 | BQ7: =IF('str-ra-prodaj'!BQ7="","",'str-ra-prodaj'!BQ7) -> 2023-10-01 | BR7: =IF('str-ra-prodaj'!BR7="","",'str-ra-prodaj'!BR7) -> 2023-11-01 | BS7: =IF('str-ra-prodaj'!BS7="","",'str-ra-prodaj'!BS7) -> 2023-12-01 | BT7: =IF('str-ra-prodaj'!BT7="","",'str-ra-prodaj'!BT7) -> 2024-01-01 | BU7: =IF('str-ra-prodaj'!BU7="","",'str-ra-prodaj'!BU7) -> 2024-02-01 | BV7: =IF('str-ra-prodaj'!BV7="","",'str-ra-prodaj'!BV7) -> 2024-03-01 | BW7: =IF('str-ra-prodaj'!BW7="","",'str-ra-prodaj'!BW7) -> 2024-04-01 | BX7: =IF('str-ra-prodaj'!BX7="","",'str-ra-prodaj'!BX7) -> 2024-05-01 | BY7: =IF('str-ra-prodaj'!BY7="","",'str-ra-prodaj'!BY7) -> 2024-06-01 | BZ7: =IF('str-ra-prodaj'!BZ7="","",'str-ra-prodaj'!BZ7) -> 2024-07-01 | CA7: =IF('str-ra-prodaj'!CA7="","",'str-ra-prodaj'!CA7) -> 2024-08-01 | CB7: =IF('str-ra-prodaj'!CB7="","",'str-ra-prodaj'!CB7) -> 2024-09-01 | CC7: =IF('str-ra-prodaj'!CC7="","",'str-ra-prodaj'!CC7) -> 2024-10-01 | CD7: =IF('str-ra-prodaj'!CD7="","",'str-ra-prodaj'!CD7) -> 2024-11-01 | CE7: =IF('str-ra-prodaj'!CE7="","",'str-ra-prodaj'!CE7) -> 2024-12-01 | CF7: =IF('str-ra-prodaj'!CF7="","",'str-ra-prodaj'!CF7) -> 2025-01-01 | CG7: =IF('str-ra-prodaj'!CG7="","",'str-ra-prodaj'!CG7) -> 2025-02-01 | CH7: =IF('str-ra-prodaj'!CH7="","",'str-ra-prodaj'!CH7) -> 2025-03-01 | CI7: =IF('str-ra-prodaj'!CI7="","",'str-ra-prodaj'!CI7) -> 2025-04-01 | CJ7: =IF('str-ra-prodaj'!CJ7="","",'str-ra-prodaj'!CJ7) -> 2025-05-01 | CK7: =IF('str-ra-prodaj'!CK7="","",'str-ra-prodaj'!CK7) -> 2025-06-01 | CL7: =IF('str-ra-prodaj'!CL7="","",'str-ra-prodaj'!CL7) -> 2025-07-01 | CM7: =IF('str-ra-prodaj'!CM7="","",'str-ra-prodaj'!CM7) -> 2025-08-01 | CN7: =IF('str-ra-prodaj'!CN7="","",'str-ra-prodaj'!CN7) -> 2025-09-01 | CO7: =IF('str-ra-prodaj'!CO7="","",'str-ra-prodaj'!CO7) -> 2025-10-01 | CP7: =IF('str-ra-prodaj'!CP7="","",'str-ra-prodaj'!CP7) -> 2025-11-01 | CQ7: =IF('str-ra-prodaj'!CQ7="","",'str-ra-prodaj'!CQ7) -> 2025-12-01
K11: =SF!$C$11 -> Продажи
J14: * | K14: параметр глобальных продаж | N14: % | P14: общее изменение | X14: =SUMIFS('Reports-Y'!$14:$14,'Reports-Y'!$6:$6,"<="&X$7,'Reports-Y'!$7:$7,">="&X$7) -> 1 | Y14: =SUMIFS('Reports-Y'!$14:$14,'Reports-Y'!$6:$6,"<="&Y$7,'Reports-Y'!$7:$7,">="&Y$7) -> 1 | Z14: =SUMIFS('Reports-Y'!$14:$14,'Reports-Y'!$6:$6,"<="&Z$7,'Reports-Y'!$7:$7,">="&Z$7) -> 1 | AA14: =SUMIFS('Reports-Y'!$14:$14,'Reports-Y'!$6:$6,"<="&AA$7,'Reports-Y'!$7:$7,">="&AA$7) -> 1 | AB14: =SUMIFS('Reports-Y'!$14:$14,'Reports-Y'!$6:$6,"<="&AB$7,'Reports-Y'!$7:$7,">="&AB$7) -> 1 | AC14: =SUMIFS('Reports-Y'!$14:$14,'Reports-Y'!$6:$6,"<="&AC$7,'Reports-Y'!$7:$7,">="&AC$7) -> 1 | AD14: =SUMIFS('Reports-Y'!$14:$14,'Reports-Y'!$6:$6,"<="&AD$7,'Reports-Y'!$7:$7,">="&AD$7) -> 1 | AE14: =SUMIFS('Reports-Y'!$14:$14,'Reports-Y'!$6:$6,"<="&AE$7,'Reports-Y'!$7:$7,">="&AE$7) -> 1 | AF14: =SUMIFS('Reports-Y'!$14:$14,'Reports-Y'!$6:$6,"<="&AF$7,'Reports-Y'!$7:$7,">="&AF$7) -> 1 | AG14: =SUMIFS('Reports-Y'!$14:$14,'Reports-Y'!$6:$6,"<="&AG$7,'Reports-Y'!$7:$7,">="&AG$7) -> 1 | AH14: =SUMIFS('Reports-Y'!$14:$14,'Reports-Y'!$6:$6,"<="&AH$7,'Reports-Y'!$7:$7,">="&AH$7) -> 1 | AI14: =SUMIFS('Reports-Y'!$14:$14,'Reports-Y'!$6:$6,"<="&AI$7,'Reports-Y'!$7:$7,">="&AI$7) -> 1 | AJ14: =SUMIFS('Reports-Y'!$14:$14,'Reports-Y'!$6:$6,"<="&AJ$7,'Reports-Y'!$7:$7,">="&AJ$7) -> 1 | AK14: =SUMIFS('Reports-Y'!$14:$14,'Reports-Y'!$6:$6,"<="&AK$7,'Reports-Y'!$7:$7,">="&AK$7) -> 1 | AL14: =SUMIFS('Reports-Y'!$14:$14,'Reports-Y'!$6:$6,"<="&AL$7,'Reports-Y'!$7:$7,">="&AL$7) -> 1 | AM14: =SUMIFS('Reports-Y'!$14:$14,'Reports-Y'!$6:$6,"<="&AM$7,'Reports-Y'!$7:$7,">="&AM$7) -> 1 | AN14: =SUMIFS('Reports-Y'!$14:$14,'Reports-Y'!$6:$6,"<="&AN$7,'Reports-Y'!$7:$7,">="&AN$7) -> 1 | AO14: =SUMIFS('Reports-Y'!$14:$14,'Reports-Y'!$6:$6,"<="&AO$7,'Reports-Y'!$7:$7,">="&AO$7) -> 1 | AP14: =SUMIFS('Reports-Y'!$14:$14,'Reports-Y'!$6:$6,"<="&AP$7,'Reports-Y'!$7:$7,">="&AP$7) -> 1 | AQ14: =SUMIFS('Reports-Y'!$14:$14,'Reports-Y'!$6:$6,"<="&AQ$7,'Reports-Y'!$7:$7,">="&AQ$7) -> 1 | AR14: =SUMIFS('Reports-Y'!$14:$14,'Reports-Y'!$6:$6,"<="&AR$7,'Reports-Y'!$7:$7,">="&AR$7) -> 1 | AS14: =SUMIFS('Reports-Y'!$14:$14,'Reports-Y'!$6:$6,"<="&AS$7,'Reports-Y'!$7:$7,">="&AS$7) -> 1 | AT14: =SUMIFS('Reports-Y'!$14:$14,'Reports-Y'!$6:$6,"<="&AT$7,'Reports-Y'!$7:$7,">="&AT$7) -> 1 | AU14: =SUMIFS('Reports-Y'!$14:$14,'Reports-Y'!$6:$6,"<="&AU$7,'Reports-Y'!$7:$7,">="&AU$7) -> 1 | AV14: =SUMIFS('Reports-Y'!$14:$14,'Reports-Y'!$6:$6,"<="&AV$7,'Reports-Y'!$7:$7,">="&AV$7) -> 1 | AW14: =SUMIFS('Reports-Y'!$14:$14,'Reports-Y'!$6:$6,"<="&AW$7,'Reports-Y'!$7:$7,">="&AW$7) -> 1 | AX14: =SUMIFS('Reports-Y'!$14:$14,'Reports-Y'!$6:$6,"<="&AX$7,'Reports-Y'!$7:$7,">="&AX$7) -> 1 | AY14: =SUMIFS('Reports-Y'!$14:$14,'Reports-Y'!$6:$6,"<="&AY$7,'Reports-Y'!$7:$7,">="&AY$7) -> 1 | AZ14: =SUMIFS('Reports-Y'!$14:$14,'Reports-Y'!$6:$6,"<="&AZ$7,'Reports-Y'!$7:$7,">="&AZ$7) -> 1 | BA14: =SUMIFS('Reports-Y'!$14:$14,'Reports-Y'!$6:$6,"<="&BA$7,'Reports-Y'!$7:$7,">="&BA$7) -> 1 | BB14: =SUMIFS('Reports-Y'!$14:$14,'Reports-Y'!$6:$6,"<="&BB$7,'Reports-Y'!$7:$7,">="&BB$7) -> 1 | BC14: =SUMIFS('Reports-Y'!$14:$14,'Reports-Y'!$6:$6,"<="&BC$7,'Reports-Y'!$7:$7,">="&BC$7) -> 1 | BD14: =SUMIFS('Reports-Y'!$14:$14,'Reports-Y'!$6:$6,"<="&BD$7,'Reports-Y'!$7:$7,">="&BD$7) -> 1 | BE14: =SUMIFS('Reports-Y'!$14:$14,'Reports-Y'!$6:$6,"<="&BE$7,'Reports-Y'!$7:$7,">="&BE$7) -> 1 | BF14: =SUMIFS('Reports-Y'!$14:$14,'Reports-Y'!$6:$6,"<="&BF$7,'Reports-Y'!$7:$7,">="&BF$7) -> 1 | BG14: =SUMIFS('Reports-Y'!$14:$14,'Reports-Y'!$6:$6,"<="&BG$7,'Reports-Y'!$7:$7,">="&BG$7) -> 1 | BH14: =SUMIFS('Reports-Y'!$14:$14,'Reports-Y'!$6:$6,"<="&BH$7,'Reports-Y'!$7:$7,">="&BH$7) -> 1 | BI14: =SUMIFS('Reports-Y'!$14:$14,'Reports-Y'!$6:$6,"<="&BI$7,'Reports-Y'!$7:$7,">="&BI$7) -> 1 | BJ14: =SUMIFS('Reports-Y'!$14:$14,'Reports-Y'!$6:$6,"<="&BJ$7,'Reports-Y'!$7:$7,">="&BJ$7) -> 1 | BK14: =SUMIFS('Reports-Y'!$14:$14,'Reports-Y'!$6:$6,"<="&BK$7,'Reports-Y'!$7:$7,">="&BK$7) -> 1 | BL14: =SUMIFS('Reports-Y'!$14:$14,'Reports-Y'!$6:$6,"<="&BL$7,'Reports-Y'!$7:$7,">="&BL$7) -> 1 | BM14: =SUMIFS('Reports-Y'!$14:$14,'Reports-Y'!$6:$6,"<="&BM$7,'Reports-Y'!$7:$7,">="&BM$7) -> 1 | BN14: =SUMIFS('Reports-Y'!$14:$14,'Reports-Y'!$6:$6,"<="&BN$7,'Reports-Y'!$7:$7,">="&BN$7) -> 1 | BO14: =SUMIFS('Reports-Y'!$14:$14,'Reports-Y'!$6:$6,"<="&BO$7,'Reports-Y'!$7:$7,">="&BO$7) -> 1 | BP14: =SUMIFS('Reports-Y'!$14:$14,'Reports-Y'!$6:$6,"<="&BP$7,'Reports-Y'!$7:$7,">="&BP$7) -> 1 | BQ14: =SUMIFS('Reports-Y'!$14:$14,'Reports-Y'!$6:$6,"<="&BQ$7,'Reports-Y'!$7:$7,">="&BQ$7) -> 1 | BR14: =SUMIFS('Reports-Y'!$14:$14,'Reports-Y'!$6:$6,"<="&BR$7,'Reports-Y'!$7:$7,">="&BR$7) -> 1 | BS14: =SUMIFS('Reports-Y'!$14:$14,'Reports-Y'!$6:$6,"<="&BS$7,'Reports-Y'!$7:$7,">="&BS$7) -> 1 | BT14: =SUMIFS('Reports-Y'!$14:$14,'Reports-Y'!$6:$6,"<="&BT$7,'Reports-Y'!$7:$7,">="&BT$7) -> 1 | BU14: =SUMIFS('Reports-Y'!$14:$14,'Reports-Y'!$6:$6,"<="&BU$7,'Reports-Y'!$7:$7,">="&BU$7) -> 1 | BV14: =SUMIFS('Reports-Y'!$14:$14,'Reports-Y'!$6:$6,"<="&BV$7,'Reports-Y'!$7:$7,">="&BV$7) -> 1 | BW14: =SUMIFS('Reports-Y'!$14:$14,'Reports-Y'!$6:$6,"<="&BW$7,'Reports-Y'!$7:$7,">="&BW$7) -> 1 | BX14: =SUMIFS('Reports-Y'!$14:$14,'Reports-Y'!$6:$6,"<="&BX$7,'Reports-Y'!$7:$7,">="&BX$7) -> 1 | BY14: =SUMIFS('Reports-Y'!$14:$14,'Reports-Y'!$6:$6,"<="&BY$7,'Reports-Y'!$7:$7,">="&BY$7) -> 1 | BZ14: =SUMIFS('Reports-Y'!$14:$14,'Reports-Y'!$6:$6,"<="&BZ$7,'Reports-Y'!$7:$7,">="&BZ$7) -> 1 | CA14: =SUMIFS('Reports-Y'!$14:$14,'Reports-Y'!$6:$6,"<="&CA$7,'Reports-Y'!$7:$7,">="&CA$7) -> 1 | CB14: =SUMIFS('Reports-Y'!$14:$14,'Reports-Y'!$6:$6,"<="&CB$7,'Reports-Y'!$7:$7,">="&CB$7) -> 1 | CC14: =SUMIFS('Reports-Y'!$14:$14,'Reports-Y'!$6:$6,"<="&CC$7,'Reports-Y'!$7:$7,">="&CC$7) -> 1 | CD14: =SUMIFS('Reports-Y'!$14:$14,'Reports-Y'!$6:$6,"<="&CD$7,'Reports-Y'!$7:$7,">="&CD$7) -> 1 | CE14: =SUMIFS('Reports-Y'!$14:$14,'Reports-Y'!$6:$6,"<="&CE$7,'Reports-Y'!$7:$7,">="&CE$7) -> 1 | CF14: =SUMIFS('Reports-Y'!$14:$14,'Reports-Y'!$6:$6,"<="&CF$7,'Reports-Y'!$7:$7,">="&CF$7) -> 1 | CG14: =SUMIFS('Reports-Y'!$14:$14,'Reports-Y'!$6:$6,"<="&CG$7,'Reports-Y'!$7:$7,">="&CG$7) -> 1 | CH14: =SUMIFS('Reports-Y'!$14:$14,'Reports-Y'!$6:$6,"<="&CH$7,'Reports-Y'!$7:$7,">="&CH$7) -> 1 | CI14: =SUMIFS('Reports-Y'!$14:$14,'Reports-Y'!$6:$6,"<="&CI$7,'Reports-Y'!$7:$7,">="&CI$7) -> 1 | CJ14: =SUMIFS('Reports-Y'!$14:$14,'Reports-Y'!$6:$6,"<="&CJ$7,'Reports-Y'!$7:$7,">="&CJ$7) -> 1 | CK14: =SUMIFS('Reports-Y'!$14:$14,'Reports-Y'!$6:$6,"<="&CK$7,'Reports-Y'!$7:$7,">="&CK$7) -> 1 | CL14: =SUMIFS('Reports-Y'!$14:$14,'Reports-Y'!$6:$6,"<="&CL$7,'Reports-Y'!$7:$7,">="&CL$7) -> 1 | CM14: =SUMIFS('Reports-Y'!$14:$14,'Reports-Y'!$6:$6,"<="&CM$7,'Reports-Y'!$7:$7,">="&CM$7) -> 1 | CN14: =SUMIFS('Reports-Y'!$14:$14,'Reports-Y'!$6:$6,"<="&CN$7,'Reports-Y'!$7:$7,">="&CN$7) -> 1 | CO14: =SUMIFS('Reports-Y'!$14:$14,'Reports-Y'!$6:$6,"<="&CO$7,'Reports-Y'!$7:$7,">="&CO$7) -> 1 | CP14: =SUMIFS('Reports-Y'!$14:$14,'Reports-Y'!$6:$6,"<="&CP$7,'Reports-Y'!$7:$7,">="&CP$7) -> 1 | CQ14: =SUMIFS('Reports-Y'!$14:$14,'Reports-Y'!$6:$6,"<="&CQ$7,'Reports-Y'!$7:$7,">="&CQ$7) -> 1
J15: * | K15: Управление брендами | N15: =N14 -> % | P15: ='prod-atributy'!$R$13 -> Товарная категория - 1 | W15: * | X15: 1 | Y15: =X15 -> 1 | Z15: =Y15 -> 1 | AA15: =Z15 -> 1 | AB15: =AA15 -> 1 | AC15: =AB15 -> 1 | AD15: =AC15 -> 1 | AE15: =AD15 -> 1 | AF15: =AE15 -> 1 | AG15: =AF15 -> 1 | AH15: =AG15 -> 1 | AI15: =AH15 -> 1 | AJ15: =AI15 -> 1 | AK15: =AJ15 -> 1 | AL15: =AK15 -> 1 | AM15: =AL15 -> 1 | AN15: =AM15 -> 1 | AO15: =AN15 -> 1 | AP15: =AO15 -> 1 | AQ15: =AP15 -> 1 | AR15: =AQ15 -> 1 | AS15: =AR15 -> 1 | AT15: =AS15 -> 1 | AU15: =AT15 -> 1 | AV15: =AU15 -> 1 | AW15: =AV15 -> 1 | AX15: =AW15 -> 1 | AY15: =AX15 -> 1 | AZ15: =AY15 -> 1 | BA15: =AZ15 -> 1 | BB15: =BA15 -> 1 | BC15: =BB15 -> 1 | BD15: =BC15 -> 1 | BE15: =BD15 -> 1 | BF15: =BE15 -> 1 | BG15: =BF15 -> 1 | BH15: =BG15 -> 1 | BI15: =BH15 -> 1 | BJ15: =BI15 -> 1 | BK15: =BJ15 -> 1 | BL15: =BK15 -> 1 | BM15: =BL15 -> 1 | BN15: =BM15 -> 1 | BO15: =BN15 -> 1 | BP15: =BO15 -> 1 | BQ15: =BP15 -> 1 | BR15: =BQ15 -> 1 | BS15: =BR15 -> 1 | BT15: =BS15 -> 1 | BU15: =BT15 -> 1 | BV15: =BU15 -> 1 | BW15: =BV15 -> 1 | BX15: =BW15 -> 1 | BY15: =BX15 -> 1 | BZ15: =BY15 -> 1 | CA15: =BZ15 -> 1 | CB15: =CA15 -> 1 | CC15: =CB15 -> 1 | CD15: =CC15 -> 1 | CE15: =CD15 -> 1 | CF15: =CE15 -> 1 | CG15: =CF15 -> 1 | CH15: =CG15 -> 1 | CI15: =CH15 -> 1 | CJ15: =CI15 -> 1 | CK15: =CJ15 -> 1 | CL15: =CK15 -> 1 | CM15: =CL15 -> 1 | CN15: =CM15 -> 1 | CO15: =CN15 -> 1 | CP15: =CO15 -> 1 | CQ15: =CP15 -> 1
K16: =K15 -> Управление брендами | N16: =N14 -> % | P16: ='prod-atributy'!$R$14 -> Товарная категория - 2 | W16: * | X16: 1 | Y16: =X16 -> 1 | Z16: 1 | AA16: 1 | AB16: 1 | AC16: 1 | AD16: 1 | AE16: 1 | AF16: 1 | AG16: 1 | AH16: 1 | AI16: 1 | AJ16: 1 | AK16: 1 | AL16: 1 | AM16: 1 | AN16: 1 | AO16: 1 | AP16: 1 | AQ16: 1 | AR16: 1 | AS16: 1 | AT16: 1 | AU16: 1 | AV16: 1 | AW16: 1 | AX16: 1 | AY16: 1 | AZ16: 1 | BA16: 1 | BB16: 1 | BC16: 1 | BD16: 1 | BE16: 1 | BF16: 1 | BG16: 1 | BH16: 1 | BI16: 1 | BJ16: 1 | BK16: 1 | BL16: 1 | BM16: 1 | BN16: 1 | BO16: 1 | BP16: 1 | BQ16: 1 | BR16: 1 | BS16: 1 | BT16: 1 | BU16: 1 | BV16: 1 | BW16: 1 | BX16: 1 | BY16: 1 | BZ16: 1 | CA16: 1 | CB16: 1 | CC16: 1 | CD16: 1 | CE16: 1 | CF16: 1 | CG16: 1 | CH16: 1 | CI16: 1 | CJ16: 1 | CK16: 1 | CL16: 1 | CM16: 1 | CN16: 1 | CO16: 1 | CP16: 1 | CQ16: 1
K17: =K16 -> Управление брендами | N17: =N14 -> % | P17: ='prod-atributy'!$R$15 -> Товарная категория - 3 | W17: * | X17: 1 | Y17: =X17 -> 1 | Z17: 1 | AA17: 1 | AB17: 1 | AC17: 1 | AD17: 1 | AE17: 1 | AF17: 1 | AG17: 1 | AH17: 1 | AI17: 1 | AJ17: 1 | AK17: 1 | AL17: 1 | AM17: 1 | AN17: 1 | AO17: 1 | AP17: 1 | AQ17: 1 | AR17: 1 | AS17: 1 | AT17: 1 | AU17: 1 | AV17: 1 | AW17: 1 | AX17: 1 | AY17: 1 | AZ17: 1 | BA17: 1 | BB17: 1 | BC17: 1 | BD17: 1 | BE17: 1 | BF17: 1 | BG17: 1 | BH17: 1 | BI17: 1 | BJ17: 1 | BK17: 1 | BL17: 1 | BM17: 1 | BN17: 1 | BO17: 1 | BP17: 1 | BQ17: 1 | BR17: 1 | BS17: 1 | BT17: 1 | BU17: 1 | BV17: 1 | BW17: 1 | BX17: 1 | BY17: 1 | BZ17: 1 | CA17: 1 | CB17: 1 | CC17: 1 | CD17: 1 | CE17: 1 | CF17: 1 | CG17: 1 | CH17: 1 | CI17: 1 | CJ17: 1 | CK17: 1 | CL17: 1 | CM17: 1 | CN17: 1 | CO17: 1 | CP17: 1 | CQ17: 1
K18: Управление брендами | N18: =N14 -> % | P18: ='prod-atributy'!$R$16 -> Товарная категория - 4 | W18: * | X18: 1 | Y18: =X18 -> 1 | Z18: 1 | AA18: 1 | AB18: 1 | AC18: 1 | AD18: 1 | AE18: 1 | AF18: 1 | AG18: 1 | AH18: 1 | AI18: 1 | AJ18: 1 | AK18: 1 | AL18: 1 | AM18: 1 | AN18: 1 | AO18: 1 | AP18: 1 | AQ18: 1 | AR18: 1 | AS18: 1 | AT18: 1 | AU18: 1 | AV18: 1 | AW18: 1 | AX18: 1 | AY18: 1 | AZ18: 1 | BA18: 1 | BB18: 1 | BC18: 1 | BD18: 1 | BE18: 1 | BF18: 1 | BG18: 1 | BH18: 1 | BI18: 1 | BJ18: 1 | BK18: 1 | BL18: 1 | BM18: 1 | BN18: 1 | BO18: 1 | BP18: 1 | BQ18: 1 | BR18: 1 | BS18: 1 | BT18: 1 | BU18: 1 | BV18: 1 | BW18: 1 | BX18: 1 | BY18: 1 | BZ18: 1 | CA18: 1 | CB18: 1 | CC18: 1 | CD18: 1 | CE18: 1 | CF18: 1 | CG18: 1 | CH18: 1 | CI18: 1 | CJ18: 1 | CK18: 1 | CL18: 1 | CM18: 1 | CN18: 1 | CO18: 1 | CP18: 1 | CQ18: 1
K19: Управление брендами | N19: =N14 -> % | P19: ='prod-atributy'!$R$17 -> Товарная категория - 5 | W19: * | X19: 1 | Y19: =X19 -> 1 | Z19: 1 | AA19: 1 | AB19: 1 | AC19: 1 | AD19: 1 | AE19: 1 | AF19: 1 | AG19: 1 | AH19: 1 | AI19: 1 | AJ19: 1 | AK19: 1 | AL19: 1 | AM19: 1 | AN19: 1 | AO19: 1 | AP19: 1 | AQ19: 1 | AR19: 1 | AS19: 1 | AT19: 1 | AU19: 1 | AV19: 1 | AW19: 1 | AX19: 1 | AY19: 1 | AZ19: 1 | BA19: 1 | BB19: 1 | BC19: 1 | BD19: 1 | BE19: 1 | BF19: 1 | BG19: 1 | BH19: 1 | BI19: 1 | BJ19: 1 | BK19: 1 | BL19: 1 | BM19: 1 | BN19: 1 | BO19: 1 | BP19: 1 | BQ19: 1 | BR19: 1 | BS19: 1 | BT19: 1 | BU19: 1 | BV19: 1 | BW19: 1 | BX19: 1 | BY19: 1 | BZ19: 1 | CA19: 1 | CB19: 1 | CC19: 1 | CD19: 1 | CE19: 1 | CF19: 1 | CG19: 1 | CH19: 1 | CI19: 1 | CJ19: 1 | CK19: 1 | CL19: 1 | CM19: 1 | CN19: 1 | CO19: 1 | CP19: 1 | CQ19: 1
K20: Управление брендами | N20: =N14 -> % | P20: ='prod-atributy'!$R$18 -> Товарная категория - 6 | W20: * | X20: 1 | Y20: =X20 -> 1 | Z20: 1 | AA20: 1 | AB20: 1 | AC20: 1 | AD20: 1 | AE20: 1 | AF20: 1 | AG20: 1 | AH20: 1 | AI20: 1 | AJ20: 1 | AK20: 1 | AL20: 1 | AM20: 1 | AN20: 1 | AO20: 1 | AP20: 1 | AQ20: 1 | AR20: 1 | AS20: 1 | AT20: 1 | AU20: 1 | AV20: 1 | AW20: 1 | AX20: 1 | AY20: 1 | AZ20: 1 | BA20: 1 | BB20: 1 | BC20: 1 | BD20: 1 | BE20: 1 | BF20: 1 | BG20: 1 | BH20: 1 | BI20: 1 | BJ20: 1 | BK20: 1 | BL20: 1 | BM20: 1 | BN20: 1 | BO20: 1 | BP20: 1 | BQ20: 1 | BR20: 1 | BS20: 1 | BT20: 1 | BU20: 1 | BV20: 1 | BW20: 1 | BX20: 1 | BY20: 1 | BZ20: 1 | CA20: 1 | CB20: 1 | CC20: 1 | CD20: 1 | CE20: 1 | CF20: 1 | CG20: 1 | CH20: 1 | CI20: 1 | CJ20: 1 | CK20: 1 | CL20: 1 | CM20: 1 | CN20: 1 | CO20: 1 | CP20: 1 | CQ20: 1
K21: Управление брендами | N21: =N14 -> % | P21: ='prod-atributy'!$R$19 -> Товарная категория - 7 | W21: * | X21: 1 | Y21: =X21 -> 1 | Z21: 1 | AA21: 1 | AB21: 1 | AC21: 1 | AD21: 1 | AE21: 1 | AF21: 1 | AG21: 1 | AH21: 1 | AI21: 1 | AJ21: 1 | AK21: 1 | AL21: 1 | AM21: 1 | AN21: 1 | AO21: 1 | AP21: 1 | AQ21: 1 | AR21: 1 | AS21: 1 | AT21: 1 | AU21: 1 | AV21: 1 | AW21: 1 | AX21: 1 | AY21: 1 | AZ21: 1 | BA21: 1 | BB21: 1 | BC21: 1 | BD21: 1 | BE21: 1 | BF21: 1 | BG21: 1 | BH21: 1 | BI21: 1 | BJ21: 1 | BK21: 1 | BL21: 1 | BM21: 1 | BN21: 1 | BO21: 1 | BP21: 1 | BQ21: 1 | BR21: 1 | BS21: 1 | BT21: 1 | BU21: 1 | BV21: 1 | BW21: 1 | BX21: 1 | BY21: 1 | BZ21: 1 | CA21: 1 | CB21: 1 | CC21: 1 | CD21: 1 | CE21: 1 | CF21: 1 | CG21: 1 | CH21: 1 | CI21: 1 | CJ21: 1 | CK21: 1 | CL21: 1 | CM21: 1 | CN21: 1 | CO21: 1 | CP21: 1 | CQ21: 1
K22: Управление брендами | N22: =N14 -> % | P22: ='prod-atributy'!$R$20 -> Товарная категория - 8 | W22: * | X22: 1 | Y22: =X22 -> 1 | Z22: 1 | AA22: 1 | AB22: 1 | AC22: 1 | AD22: 1 | AE22: 1 | AF22: 1 | AG22: 1 | AH22: 1 | AI22: 1 | AJ22: 1 | AK22: 1 | AL22: 1 | AM22: 1 | AN22: 1 | AO22: 1 | AP22: 1 | AQ22: 1 | AR22: 1 | AS22: 1 | AT22: 1 | AU22: 1 | AV22: 1 | AW22: 1 | AX22: 1 | AY22: 1 | AZ22: 1 | BA22: 1 | BB22: 1 | BC22: 1 | BD22: 1 | BE22: 1 | BF22: 1 | BG22: 1 | BH22: 1 | BI22: 1 | BJ22: 1 | BK22: 1 | BL22: 1 | BM22: 1 | BN22: 1 | BO22: 1 | BP22: 1 | BQ22: 1 | BR22: 1 | BS22: 1 | BT22: 1 | BU22: 1 | BV22: 1 | BW22: 1 | BX22: 1 | BY22: 1 | BZ22: 1 | CA22: 1 | CB22: 1 | CC22: 1 | CD22: 1 | CE22: 1 | CF22: 1 | CG22: 1 | CH22: 1 | CI22: 1 | CJ22: 1 | CK22: 1 | CL22: 1 | CM22: 1 | CN22: 1 | CO22: 1 | CP22: 1 | CQ22: 1
K23: Управление брендами | N23: =N14 -> % | P23: ='prod-atributy'!$R$21 -> Товарная категория - 9 | W23: * | X23: 1 | Y23: =X23 -> 1 | Z23: 1 | AA23: 1 | AB23: 1 | AC23: 1 | AD23: 1 | AE23: 1 | AF23: 1 | AG23: 1 | AH23: 1 | AI23: 1 | AJ23: 1 | AK23: 1 | AL23: 1 | AM23: 1 | AN23: 1 | AO23: 1 | AP23: 1 | AQ23: 1 | AR23: 1 | AS23: 1 | AT23: 1 | AU23: 1 | AV23: 1 | AW23: 1 | AX23: 1 | AY23: 1 | AZ23: 1 | BA23: 1 | BB23: 1 | BC23: 1 | BD23: 1 | BE23: 1 | BF23: 1 | BG23: 1 | BH23: 1 | BI23: 1 | BJ23: 1 | BK23: 1 | BL23: 1 | BM23: 1 | BN23: 1 | BO23: 1 | BP23: 1 | BQ23: 1 | BR23: 1 | BS23: 1 | BT23: 1 | BU23: 1 | BV23: 1 | BW23: 1 | BX23: 1 | BY23: 1 | BZ23: 1 | CA23: 1 | CB23: 1 | CC23: 1 | CD23: 1 | CE23: 1 | CF23: 1 | CG23: 1 | CH23: 1 | CI23: 1 | CJ23: 1 | CK23: 1 | CL23: 1 | CM23: 1 | CN23: 1 | CO23: 1 | CP23: 1 | CQ23: 1
K24: Управление брендами | N24: =N14 -> % | P24: ='prod-atributy'!$R$22 -> Товарная категория - 10 | W24: * | X24: 1 | Y24: =X24 -> 1 | Z24: 1 | AA24: 1 | AB24: 1 | AC24: 1 | AD24: 1 | AE24: 1 | AF24: 1 | AG24: 1 | AH24: 1 | AI24: 1 | AJ24: 1 | AK24: 1 | AL24: 1 | AM24: 1 | AN24: 1 | AO24: 1 | AP24: 1 | AQ24: 1 | AR24: 1 | AS24: 1 | AT24: 1 | AU24: 1 | AV24: 1 | AW24: 1 | AX24: 1 | AY24: 1 | AZ24: 1 | BA24: 1 | BB24: 1 | BC24: 1 | BD24: 1 | BE24: 1 | BF24: 1 | BG24: 1 | BH24: 1 | BI24: 1 | BJ24: 1 | BK24: 1 | BL24: 1 | BM24: 1 | BN24: 1 | BO24: 1 | BP24: 1 | BQ24: 1 | BR24: 1 | BS24: 1 | BT24: 1 | BU24: 1 | BV24: 1 | BW24: 1 | BX24: 1 | BY24: 1 | BZ24: 1 | CA24: 1 | CB24: 1 | CC24: 1 | CD24: 1 | CE24: 1 | CF24: 1 | CG24: 1 | CH24: 1 | CI24: 1 | CJ24: 1 | CK24: 1 | CL24: 1 | CM24: 1 | CN24: 1 | CO24: 1 | CP24: 1 | CQ24: 1
K25: Управление брендами | N25: =N14 -> % | P25: ='prod-atributy'!$R$23 -> Товарная категория - 11 | W25: * | X25: 1 | Y25: =X25 -> 1 | Z25: 1 | AA25: 1 | AB25: 1 | AC25: 1 | AD25: 1 | AE25: 1 | AF25: 1 | AG25: 1 | AH25: 1 | AI25: 1 | AJ25: 1 | AK25: 1 | AL25: 1 | AM25: 1 | AN25: 1 | AO25: 1 | AP25: 1 | AQ25: 1 | AR25: 1 | AS25: 1 | AT25: 1 | AU25: 1 | AV25: 1 | AW25: 1 | AX25: 1 | AY25: 1 | AZ25: 1 | BA25: 1 | BB25: 1 | BC25: 1 | BD25: 1 | BE25: 1 | BF25: 1 | BG25: 1 | BH25: 1 | BI25: 1 | BJ25: 1 | BK25: 1 | BL25: 1 | BM25: 1 | BN25: 1 | BO25: 1 | BP25: 1 | BQ25: 1 | BR25: 1 | BS25: 1 | BT25: 1 | BU25: 1 | BV25: 1 | BW25: 1 | BX25: 1 | BY25: 1 | BZ25: 1 | CA25: 1 | CB25: 1 | CC25: 1 | CD25: 1 | CE25: 1 | CF25: 1 | CG25: 1 | CH25: 1 | CI25: 1 | CJ25: 1 | CK25: 1 | CL25: 1 | CM25: 1 | CN25: 1 | CO25: 1 | CP25: 1 | CQ25: 1
K26: Управление брендами | N26: =N14 -> % | P26: ='prod-atributy'!$R$24 -> Сторонний ассортимент | W26: * | X26: 1 | Y26: =X26 -> 1 | Z26: 1 | AA26: 1 | AB26: 1 | AC26: 1 | AD26: 1 | AE26: 1 | AF26: 1 | AG26: 1 | AH26: 1 | AI26: 1 | AJ26: 1 | AK26: 1 | AL26: 1 | AM26: 1 | AN26: 1 | AO26: 1 | AP26: 1 | AQ26: 1 | AR26: 1 | AS26: 1 | AT26: 1 | AU26: 1 | AV26: 1 | AW26: 1 | AX26: 1 | AY26: 1 | AZ26: 1 | BA26: 1 | BB26: 1 | BC26: 1 | BD26: 1 | BE26: 1 | BF26: 1 | BG26: 1 | BH26: 1 | BI26: 1 | BJ26: 1 | BK26: 1 | BL26: 1 | BM26: 1 | BN26: 1 | BO26: 1 | BP26: 1 | BQ26: 1 | BR26: 1 | BS26: 1 | BT26: 1 | BU26: 1 | BV26: 1 | BW26: 1 | BX26: 1 | BY26: 1 | BZ26: 1 | CA26: 1 | CB26: 1 | CC26: 1 | CD26: 1 | CE26: 1 | CF26: 1 | CG26: 1 | CH26: 1 | CI26: 1 | CJ26: 1 | CK26: 1 | CL26: 1 | CM26: 1 | CN26: 1 | CO26: 1 | CP26: 1 | CQ26: 1
K29: =spravochniki!$R$12 -> базовое количество | N29: =IF(OR($K29="",$K29=0),"",INDEX(spravochniki!$T$12:$T$22,SUMIFS(spravochniki!$P$12:$P$22,spravochniki!$R$12:$R$22,$K29))) -> шт | P29: =usloviya!$R$6 -> итого | U29: =SUM($W29:$CR29) -> 146546666.7 | X29: =SUM('kol-vo'!X$8:X$999500) -> 341959.6149 | Y29: =SUM('kol-vo'!Y$8:Y$999500) -> 418167.3048 | Z29: =SUM('kol-vo'!Z$8:Z$999500) -> 426618.377 | AA29: =SUM('kol-vo'!AA$8:AA$999500) -> 484931.9517 | AB29: =SUM('kol-vo'!AB$8:AB$999500) -> 458395.1487 | AC29: =SUM('kol-vo'!AC$8:AC$999500) -> 403972.3016 | AD29: =SUM('kol-vo'!AD$8:AD$999500) -> 385375.6996 | AE29: =SUM('kol-vo'!AE$8:AE$999500) -> 407270.0166 | AF29: =SUM('kol-vo'!AF$8:AF$999500) -> 353209.7609 | AG29: =SUM('kol-vo'!AG$8:AG$999500) -> 348781.2205 | AH29: =SUM('kol-vo'!AH$8:AH$999500) -> 438282.4545 | AI29: =SUM('kol-vo'!AI$8:AI$999500) -> 508036.1491 | AJ29: =SUM('kol-vo'!AJ$8:AJ$999500) -> 1084529.472 | AK29: =SUM('kol-vo'!AK$8:AK$999500) -> 1200418.011 | AL29: =SUM('kol-vo'!AL$8:AL$999500) -> 1270353.248 | AM29: =SUM('kol-vo'!AM$8:AM$999500) -> 1438324.395 | AN29: =SUM('kol-vo'!AN$8:AN$999500) -> 1434529.852 | AO29: =SUM('kol-vo'!AO$8:AO$999500) -> 1319894.493 | AP29: =SUM('kol-vo'!AP$8:AP$999500) -> 1385987.821 | AQ29: =SUM('kol-vo'!AQ$8:AQ$999500) -> 1424605.638 | AR29: =SUM('kol-vo'!AR$8:AR$999500) -> 1205975.525 | AS29: =SUM('kol-vo'!AS$8:AS$999500) -> 1151506.897 | AT29: =SUM('kol-vo'!AT$8:AT$999500) -> 1287912.688 | AU29: =SUM('kol-vo'!AU$8:AU$999500) -> 1485961.959 | AV29: =SUM('kol-vo'!AV$8:AV$999500) -> 1396401.89 | AW29: =SUM('kol-vo'!AW$8:AW$999500) -> 1530540.536 | AX29: =SUM('kol-vo'!AX$8:AX$999500) -> 1624953.588 | AY29: =SUM('kol-vo'!AY$8:AY$999500) -> 1838121.256 | AZ29: =SUM('kol-vo'!AZ$8:AZ$999500) -> 1843436.53 | BA29: =SUM('kol-vo'!BA$8:BA$999500) -> 1702940.67 | BB29: =SUM('kol-vo'!BB$8:BB$999500) -> 1800800.506 | BC29: =SUM('kol-vo'!BC$8:BC$999500) -> 1847322.005 | BD29: =SUM('kol-vo'!BD$8:BD$999500) -> 1561925.671 | BE29: =SUM('kol-vo'!BE$8:BE$999500) -> 1487865.468 | BF29: =SUM('kol-vo'!BF$8:BF$999500) -> 1645709.433 | BG29: =SUM('kol-vo'!BG$8:BG$999500) -> 1898315.78 | BH29: =SUM('kol-vo'!BH$8:BH$999500) -> 2016666.131 | BI29: =SUM('kol-vo'!BI$8:BI$999500) -> 2096496.252 | BJ29: =SUM('kol-vo'!BJ$8:BJ$999500) -> 2269032.624 | BK29: =SUM('kol-vo'!BK$8:BK$999500) -> 2570204.419 | BL29: =SUM('kol-vo'!BL$8:BL$999500) -> 2644758.477 | BM29: =SUM('kol-vo'!BM$8:BM$999500) -> 2490560.41 | BN29: =SUM('kol-vo'!BN$8:BN$999500) -> 2735345.038 | BO29: =SUM('kol-vo'!BO$8:BO$999500) -> 2784878.936 | BP29: =SUM('kol-vo'!BP$8:BP$999500) -> 2334091.545 | BQ29: =SUM('kol-vo'!BQ$8:BQ$999500) -> 2185594.014 | BR29: =SUM('kol-vo'!BR$8:BR$999500) -> 2290014.177 | BS29: =SUM('kol-vo'!BS$8:BS$999500) -> 2636524.645 | BT29: =SUM('kol-vo'!BT$8:BT$999500) -> 2424879.429 | BU29: =SUM('kol-vo'!BU$8:BU$999500) -> 2484029.762 | BV29: =SUM('kol-vo'!BV$8:BV$999500) -> 2703162.175 | BW29: =SUM('kol-vo'!BW$8:BW$999500) -> 3061648.363 | BX29: =SUM('kol-vo'!BX$8:BX$999500) -> 3173637.986 | BY29: =SUM('kol-vo'!BY$8:BY$999500) -> 3004386.791 | BZ29: =SUM('kol-vo'!BZ$8:BZ$999500) -> 3331656.401 | CA29: =SUM('kol-vo'!CA$8:CA$999500) -> 3384746.175 | CB29: =SUM('kol-vo'!CB$8:CB$999500) -> 2830803.819 | CC29: =SUM('kol-vo'!CC$8:CC$999500) -> 2639896.266 | CD29: =SUM('kol-vo'!CD$8:CD$999500) -> 2724555.068 | CE29: =SUM('kol-vo'!CE$8:CE$999500) -> 3135764.431 | CF29: =SUM('kol-vo'!CF$8:CF$999500) -> 2903927.767 | CG29: =SUM('kol-vo'!CG$8:CG$999500) -> 2934768.839 | CH29: =SUM('kol-vo'!CH$8:CH$999500) -> 3209627.808 | CI29: =SUM('kol-vo'!CI$8:CI$999500) -> 3635035.722 | CJ29: =SUM('kol-vo'!CJ$8:CJ$999500) -> 3793165.754 | CK29: =SUM('kol-vo'!CK$8:CK$999500) -> 3607896.488 | CL29: =SUM('kol-vo'!CL$8:CL$999500) -> 4034565.502 | CM29: =SUM('kol-vo'!CM$8:CM$999500) -> 4091599.347 | CN29: =SUM('kol-vo'!CN$8:CN$999500) -> 3415892.094 | CO29: =SUM('kol-vo'!CO$8:CO$999500) -> 3173922.595 | CP29: =SUM('kol-vo'!CP$8:CP$999500) -> 3231328.923 | CQ29: =SUM('kol-vo'!CQ$8:CQ$999500) -> 3718269.16
K30: =K29 -> базовое количество | M30: =produkciya!$AL$12 -> n | N30: =IF(OR($K30="",$K30=0),"",INDEX(spravochniki!$T$12:$T$22,SUMIFS(spravochniki!$P$12:$P$22,spravochniki!$R$12:$R$22,$K30))) -> шт | P30: ='prod-atributy'!$R$13 -> Товарная категория - 1 | U30: =SUM($W30:$CR30) -> 14933333.33 | X30: =SUMIFS('kol-vo'!X:X,'kol-vo'!$P:$P,$P30) -> 109472.7767 | Y30: =SUMIFS('kol-vo'!Y:Y,'kol-vo'!$P:$P,$P30) -> 136266.8839 | Z30: =SUMIFS('kol-vo'!Z:Z,'kol-vo'!$P:$P,$P30) -> 138292.7808 | AA30: =SUMIFS('kol-vo'!AA:AA,'kol-vo'!$P:$P,$P30) -> 157633.5722 | AB30: =SUMIFS('kol-vo'!AB:AB,'kol-vo'!$P:$P,$P30) -> 147646.5754 | AC30: =SUMIFS('kol-vo'!AC:AC,'kol-vo'!$P:$P,$P30) -> 129119.6488 | AD30: =SUMIFS('kol-vo'!AD:AD,'kol-vo'!$P:$P,$P30) -> 121716.5502 | AE30: =SUMIFS('kol-vo'!AE:AE,'kol-vo'!$P:$P,$P30) -> 129169.9347 | AF30: =SUMIFS('kol-vo'!AF:AF,'kol-vo'!$P:$P,$P30) -> 112179.2094 | AG30: =SUMIFS('kol-vo'!AG:AG,'kol-vo'!$P:$P,$P30) -> 111182.2595 | AH30: =SUMIFS('kol-vo'!AH:AH,'kol-vo'!$P:$P,$P30) -> 142552.8923 | AI30: =SUMIFS('kol-vo'!AI:AI,'kol-vo'!$P:$P,$P30) -> 164766.916 | AJ30: =SUMIFS('kol-vo'!AJ:AJ,'kol-vo'!$P:$P,$P30) -> 136840.9709 | AK30: =SUMIFS('kol-vo'!AK:AK,'kol-vo'!$P:$P,$P30) -> 170333.6049 | AL30: =SUMIFS('kol-vo'!AL:AL,'kol-vo'!$P:$P,$P30) -> 172865.976 | AM30: =SUMIFS('kol-vo'!AM:AM,'kol-vo'!$P:$P,$P30) -> 197041.9653 | AN30: =SUMIFS('kol-vo'!AN:AN,'kol-vo'!$P:$P,$P30) -> 184558.2193 | AO30: =SUMIFS('kol-vo'!AO:AO,'kol-vo'!$P:$P,$P30) -> 161399.561 | AP30: =SUMIFS('kol-vo'!AP:AP,'kol-vo'!$P:$P,$P30) -> 152145.6878 | AQ30: =SUMIFS('kol-vo'!AQ:AQ,'kol-vo'!$P:$P,$P30) -> 161462.4184 | AR30: =SUMIFS('kol-vo'!AR:AR,'kol-vo'!$P:$P,$P30) -> 140224.0117 | AS30: =SUMIFS('kol-vo'!AS:AS,'kol-vo'!$P:$P,$P30) -> 138977.8243 | AT30: =SUMIFS('kol-vo'!AT:AT,'kol-vo'!$P:$P,$P30) -> 178191.1154 | AU30: =SUMIFS('kol-vo'!AU:AU,'kol-vo'!$P:$P,$P30) -> 205958.645 | AV30: =SUMIFS('kol-vo'!AV:AV,'kol-vo'!$P:$P,$P30) -> 159647.7994 | AW30: =SUMIFS('kol-vo'!AW:AW,'kol-vo'!$P:$P,$P30) -> 198722.539 | AX30: =SUMIFS('kol-vo'!AX:AX,'kol-vo'!$P:$P,$P30) -> 201676.972 | AY30: =SUMIFS('kol-vo'!AY:AY,'kol-vo'!$P:$P,$P30) -> 229882.2928 | AZ30: =SUMIFS('kol-vo'!AZ:AZ,'kol-vo'!$P:$P,$P30) -> 215317.9225 | BA30: =SUMIFS('kol-vo'!BA:BA,'kol-vo'!$P:$P,$P30) -> 188299.4878 | BB30: =SUMIFS('kol-vo'!BB:BB,'kol-vo'!$P:$P,$P30) -> 177503.3024 | BC30: =SUMIFS('kol-vo'!BC:BC,'kol-vo'!$P:$P,$P30) -> 188372.8215 | BD30: =SUMIFS('kol-vo'!BD:BD,'kol-vo'!$P:$P,$P30) -> 163594.6803 | BE30: =SUMIFS('kol-vo'!BE:BE,'kol-vo'!$P:$P,$P30) -> 162140.7951 | BF30: =SUMIFS('kol-vo'!BF:BF,'kol-vo'!$P:$P,$P30) -> 207889.6346 | BG30: =SUMIFS('kol-vo'!BG:BG,'kol-vo'!$P:$P,$P30) -> 240285.0858 | BH30: =SUMIFS('kol-vo'!BH:BH,'kol-vo'!$P:$P,$P30) -> 182454.6278 | BI30: =SUMIFS('kol-vo'!BI:BI,'kol-vo'!$P:$P,$P30) -> 227111.4732 | BJ30: =SUMIFS('kol-vo'!BJ:BJ,'kol-vo'!$P:$P,$P30) -> 230487.9681 | BK30: =SUMIFS('kol-vo'!BK:BK,'kol-vo'!$P:$P,$P30) -> 262722.6204 | BL30: =SUMIFS('kol-vo'!BL:BL,'kol-vo'!$P:$P,$P30) -> 246077.6257 | BM30: =SUMIFS('kol-vo'!BM:BM,'kol-vo'!$P:$P,$P30) -> 215199.4146 | BN30: =SUMIFS('kol-vo'!BN:BN,'kol-vo'!$P:$P,$P30) -> 202860.917 | BO30: =SUMIFS('kol-vo'!BO:BO,'kol-vo'!$P:$P,$P30) -> 215283.2246 | BP30: =SUMIFS('kol-vo'!BP:BP,'kol-vo'!$P:$P,$P30) -> 186965.349 | BQ30: =SUMIFS('kol-vo'!BQ:BQ,'kol-vo'!$P:$P,$P30) -> 185303.7658 | BR30: =SUMIFS('kol-vo'!BR:BR,'kol-vo'!$P:$P,$P30) -> 237588.1539 | BS30: =SUMIFS('kol-vo'!BS:BS,'kol-vo'!$P:$P,$P30) -> 274611.5267 | BT30: =SUMIFS('kol-vo'!BT:BT,'kol-vo'!$P:$P,$P30) -> 205261.4563 | BU30: =SUMIFS('kol-vo'!BU:BU,'kol-vo'!$P:$P,$P30) -> 255500.4073 | BV30: =SUMIFS('kol-vo'!BV:BV,'kol-vo'!$P:$P,$P30) -> 259298.9641 | BW30: =SUMIFS('kol-vo'!BW:BW,'kol-vo'!$P:$P,$P30) -> 295562.9479 | BX30: =SUMIFS('kol-vo'!BX:BX,'kol-vo'!$P:$P,$P30) -> 276837.329 | BY30: =SUMIFS('kol-vo'!BY:BY,'kol-vo'!$P:$P,$P30) -> 242099.3415 | BZ30: =SUMIFS('kol-vo'!BZ:BZ,'kol-vo'!$P:$P,$P30) -> 228218.5316 | CA30: =SUMIFS('kol-vo'!CA:CA,'kol-vo'!$P:$P,$P30) -> 242193.6276 | CB30: =SUMIFS('kol-vo'!CB:CB,'kol-vo'!$P:$P,$P30) -> 210336.0176 | CC30: =SUMIFS('kol-vo'!CC:CC,'kol-vo'!$P:$P,$P30) -> 208466.7365 | CD30: =SUMIFS('kol-vo'!CD:CD,'kol-vo'!$P:$P,$P30) -> 267286.6731 | CE30: =SUMIFS('kol-vo'!CE:CE,'kol-vo'!$P:$P,$P30) -> 308937.9675 | CF30: =SUMIFS('kol-vo'!CF:CF,'kol-vo'!$P:$P,$P30) -> 228068.2848 | CG30: =SUMIFS('kol-vo'!CG:CG,'kol-vo'!$P:$P,$P30) -> 283889.3415 | CH30: =SUMIFS('kol-vo'!CH:CH,'kol-vo'!$P:$P,$P30) -> 288109.9601 | CI30: =SUMIFS('kol-vo'!CI:CI,'kol-vo'!$P:$P,$P30) -> 328403.2755 | CJ30: =SUMIFS('kol-vo'!CJ:CJ,'kol-vo'!$P:$P,$P30) -> 307597.0322 | CK30: =SUMIFS('kol-vo'!CK:CK,'kol-vo'!$P:$P,$P30) -> 268999.2683 | CL30: =SUMIFS('kol-vo'!CL:CL,'kol-vo'!$P:$P,$P30) -> 253576.1463 | CM30: =SUMIFS('kol-vo'!CM:CM,'kol-vo'!$P:$P,$P30) -> 269104.0307 | CN30: =SUMIFS('kol-vo'!CN:CN,'kol-vo'!$P:$P,$P30) -> 233706.6862 | CO30: =SUMIFS('kol-vo'!CO:CO,'kol-vo'!$P:$P,$P30) -> 231629.7072 | CP30: =SUMIFS('kol-vo'!CP:CP,'kol-vo'!$P:$P,$P30) -> 296985.1923 | CQ30: =SUMIFS('kol-vo'!CQ:CQ,'kol-vo'!$P:$P,$P30) -> 343264.4083
K31: =K30 -> базовое количество | M31: =produkciya!$AL$12 -> n | N31: =IF(OR($K31="",$K31=0),"",INDEX(spravochniki!$T$12:$T$22,SUMIFS(spravochniki!$P$12:$P$22,spravochniki!$R$12:$R$22,$K31))) -> шт | P31: =P30 -> Товарная категория - 1 | S31: =produkciya!R12 -> Продукт - 11 - 300ml. pet bottle 28/410 | U31: 14933333.33 | X31: =SUMIFS('kol-vo'!X:X,'kol-vo'!$P:$P,$P31,'kol-vo'!$O:$O,$S31) -> 109472.7767 | Y31: =SUMIFS('kol-vo'!Y:Y,'kol-vo'!$P:$P,$P31,'kol-vo'!$O:$O,$S31) -> 136266.8839 | Z31: =SUMIFS('kol-vo'!Z:Z,'kol-vo'!$P:$P,$P31,'kol-vo'!$O:$O,$S31) -> 138292.7808 | AA31: =SUMIFS('kol-vo'!AA:AA,'kol-vo'!$P:$P,$P31,'kol-vo'!$O:$O,$S31) -> 157633.5722 | AB31: =SUMIFS('kol-vo'!AB:AB,'kol-vo'!$P:$P,$P31,'kol-vo'!$O:$O,$S31) -> 147646.5754 | AC31: =SUMIFS('kol-vo'!AC:AC,'kol-vo'!$P:$P,$P31,'kol-vo'!$O:$O,$S31) -> 129119.6488 | AD31: =SUMIFS('kol-vo'!AD:AD,'kol-vo'!$P:$P,$P31,'kol-vo'!$O:$O,$S31) -> 121716.5502 | AE31: =SUMIFS('kol-vo'!AE:AE,'kol-vo'!$P:$P,$P31,'kol-vo'!$O:$O,$S31) -> 129169.9347 | AF31: =SUMIFS('kol-vo'!AF:AF,'kol-vo'!$P:$P,$P31,'kol-vo'!$O:$O,$S31) -> 112179.2094 | AG31: =SUMIFS('kol-vo'!AG:AG,'kol-vo'!$P:$P,$P31,'kol-vo'!$O:$O,$S31) -> 111182.2595 | AH31: =SUMIFS('kol-vo'!AH:AH,'kol-vo'!$P:$P,$P31,'kol-vo'!$O:$O,$S31) -> 142552.8923 | AI31: =SUMIFS('kol-vo'!AI:AI,'kol-vo'!$P:$P,$P31,'kol-vo'!$O:$O,$S31) -> 164766.916 | AJ31: =SUMIFS('kol-vo'!AJ:AJ,'kol-vo'!$P:$P,$P31,'kol-vo'!$O:$O,$S31) -> 136840.9709 | AK31: =SUMIFS('kol-vo'!AK:AK,'kol-vo'!$P:$P,$P31,'kol-vo'!$O:$O,$S31) -> 170333.6049 | AL31: =SUMIFS('kol-vo'!AL:AL,'kol-vo'!$P:$P,$P31,'kol-vo'!$O:$O,$S31) -> 172865.976 | AM31: =SUMIFS('kol-vo'!AM:AM,'kol-vo'!$P:$P,$P31,'kol-vo'!$O:$O,$S31) -> 197041.9653 | AN31: =SUMIFS('kol-vo'!AN:AN,'kol-vo'!$P:$P,$P31,'kol-vo'!$O:$O,$S31) -> 184558.2193 | AO31: =SUMIFS('kol-vo'!AO:AO,'kol-vo'!$P:$P,$P31,'kol-vo'!$O:$O,$S31) -> 161399.561 | AP31: =SUMIFS('kol-vo'!AP:AP,'kol-vo'!$P:$P,$P31,'kol-vo'!$O:$O,$S31) -> 152145.6878 | AQ31: =SUMIFS('kol-vo'!AQ:AQ,'kol-vo'!$P:$P,$P31,'kol-vo'!$O:$O,$S31) -> 161462.4184 | AR31: =SUMIFS('kol-vo'!AR:AR,'kol-vo'!$P:$P,$P31,'kol-vo'!$O:$O,$S31) -> 140224.0117 | AS31: =SUMIFS('kol-vo'!AS:AS,'kol-vo'!$P:$P,$P31,'kol-vo'!$O:$O,$S31) -> 138977.8243 | AT31: =SUMIFS('kol-vo'!AT:AT,'kol-vo'!$P:$P,$P31,'kol-vo'!$O:$O,$S31) -> 178191.1154 | AU31: =SUMIFS('kol-vo'!AU:AU,'kol-vo'!$P:$P,$P31,'kol-vo'!$O:$O,$S31) -> 205958.645 | AV31: =SUMIFS('kol-vo'!AV:AV,'kol-vo'!$P:$P,$P31,'kol-vo'!$O:$O,$S31) -> 159647.7994 | AW31: =SUMIFS('kol-vo'!AW:AW,'kol-vo'!$P:$P,$P31,'kol-vo'!$O:$O,$S31) -> 198722.539 | AX31: =SUMIFS('kol-vo'!AX:AX,'kol-vo'!$P:$P,$P31,'kol-vo'!$O:$O,$S31) -> 201676.972 | AY31: =SUMIFS('kol-vo'!AY:AY,'kol-vo'!$P:$P,$P31,'kol-vo'!$O:$O,$S31) -> 229882.2928 | AZ31: =SUMIFS('kol-vo'!AZ:AZ,'kol-vo'!$P:$P,$P31,'kol-vo'!$O:$O,$S31) -> 215317.9225 | BA31: =SUMIFS('kol-vo'!BA:BA,'kol-vo'!$P:$P,$P31,'kol-vo'!$O:$O,$S31) -> 188299.4878 | BB31: =SUMIFS('kol-vo'!BB:BB,'kol-vo'!$P:$P,$P31,'kol-vo'!$O:$O,$S31) -> 177503.3024 | BC31: =SUMIFS('kol-vo'!BC:BC,'kol-vo'!$P:$P,$P31,'kol-vo'!$O:$O,$S31) -> 188372.8215 | BD31: =SUMIFS('kol-vo'!BD:BD,'kol-vo'!$P:$P,$P31,'kol-vo'!$O:$O,$S31) -> 163594.6803 | BE31: =SUMIFS('kol-vo'!BE:BE,'kol-vo'!$P:$P,$P31,'kol-vo'!$O:$O,$S31) -> 162140.7951 | BF31: =SUMIFS('kol-vo'!BF:BF,'kol-vo'!$P:$P,$P31,'kol-vo'!$O:$O,$S31) -> 207889.6346 | BG31: =SUMIFS('kol-vo'!BG:BG,'kol-vo'!$P:$P,$P31,'kol-vo'!$O:$O,$S31) -> 240285.0858 | BH31: =SUMIFS('kol-vo'!BH:BH,'kol-vo'!$P:$P,$P31,'kol-vo'!$O:$O,$S31) -> 182454.6278 | BI31: =SUMIFS('kol-vo'!BI:BI,'kol-vo'!$P:$P,$P31,'kol-vo'!$O:$O,$S31) -> 227111.4732 | BJ31: =SUMIFS('kol-vo'!BJ:BJ,'kol-vo'!$P:$P,$P31,'kol-vo'!$O:$O,$S31) -> 230487.9681 | BK31: =SUMIFS('kol-vo'!BK:BK,'kol-vo'!$P:$P,$P31,'kol-vo'!$O:$O,$S31) -> 262722.6204 | BL31: =SUMIFS('kol-vo'!BL:BL,'kol-vo'!$P:$P,$P31,'kol-vo'!$O:$O,$S31) -> 246077.6257 | BM31: =SUMIFS('kol-vo'!BM:BM,'kol-vo'!$P:$P,$P31,'kol-vo'!$O:$O,$S31) -> 215199.4146 | BN31: =SUMIFS('kol-vo'!BN:BN,'kol-vo'!$P:$P,$P31,'kol-vo'!$O:$O,$S31) -> 202860.917 | BO31: =SUMIFS('kol-vo'!BO:BO,'kol-vo'!$P:$P,$P31,'kol-vo'!$O:$O,$S31) -> 215283.2246 | BP31: =SUMIFS('kol-vo'!BP:BP,'kol-vo'!$P:$P,$P31,'kol-vo'!$O:$O,$S31) -> 186965.349 | BQ31: =SUMIFS('kol-vo'!BQ:BQ,'kol-vo'!$P:$P,$P31,'kol-vo'!$O:$O,$S31) -> 185303.7658 | BR31: =SUMIFS('kol-vo'!BR:BR,'kol-vo'!$P:$P,$P31,'kol-vo'!$O:$O,$S31) -> 237588.1539 | BS31: =SUMIFS('kol-vo'!BS:BS,'kol-vo'!$P:$P,$P31,'kol-vo'!$O:$O,$S31) -> 274611.5267 | BT31: =SUMIFS('kol-vo'!BT:BT,'kol-vo'!$P:$P,$P31,'kol-vo'!$O:$O,$S31) -> 205261.4563 | BU31: =SUMIFS('kol-vo'!BU:BU,'kol-vo'!$P:$P,$P31,'kol-vo'!$O:$O,$S31) -> 255500.4073 | BV31: =SUMIFS('kol-vo'!BV:BV,'kol-vo'!$P:$P,$P31,'kol-vo'!$O:$O,$S31) -> 259298.9641 | BW31: =SUMIFS('kol-vo'!BW:BW,'kol-vo'!$P:$P,$P31,'kol-vo'!$O:$O,$S31) -> 295562.9479 | BX31: =SUMIFS('kol-vo'!BX:BX,'kol-vo'!$P:$P,$P31,'kol-vo'!$O:$O,$S31) -> 276837.329 | BY31: =SUMIFS('kol-vo'!BY:BY,'kol-vo'!$P:$P,$P31,'kol-vo'!$O:$O,$S31) -> 242099.3415 | BZ31: =SUMIFS('kol-vo'!BZ:BZ,'kol-vo'!$P:$P,$P31,'kol-vo'!$O:$O,$S31) -> 228218.5316 | CA31: =SUMIFS('kol-vo'!CA:CA,'kol-vo'!$P:$P,$P31,'kol-vo'!$O:$O,$S31) -> 242193.6276 | CB31: =SUMIFS('kol-vo'!CB:CB,'kol-vo'!$P:$P,$P31,'kol-vo'!$O:$O,$S31) -> 210336.0176 | CC31: =SUMIFS('kol-vo'!CC:CC,'kol-vo'!$P:$P,$P31,'kol-vo'!$O:$O,$S31) -> 208466.7365 | CD31: =SUMIFS('kol-vo'!CD:CD,'kol-vo'!$P:$P,$P31,'kol-vo'!$O:$O,$S31) -> 267286.6731 | CE31: =SUMIFS('kol-vo'!CE:CE,'kol-vo'!$P:$P,$P31,'kol-vo'!$O:$O,$S31) -> 308937.9675 | CF31: =SUMIFS('kol-vo'!CF:CF,'kol-vo'!$P:$P,$P31,'kol-vo'!$O:$O,$S31) -> 228068.2848 | CG31: =SUMIFS('kol-vo'!CG:CG,'kol-vo'!$P:$P,$P31,'kol-vo'!$O:$O,$S31) -> 283889.3415 | CH31: =SUMIFS('kol-vo'!CH:CH,'kol-vo'!$P:$P,$P31,'kol-vo'!$O:$O,$S31) -> 288109.9601 | CI31: =SUMIFS('kol-vo'!CI:CI,'kol-vo'!$P:$P,$P31,'kol-vo'!$O:$O,$S31) -> 328403.2755 | CJ31: =SUMIFS('kol-vo'!CJ:CJ,'kol-vo'!$P:$P,$P31,'kol-vo'!$O:$O,$S31) -> 307597.0322 | CK31: =SUMIFS('kol-vo'!CK:CK,'kol-vo'!$P:$P,$P31,'kol-vo'!$O:$O,$S31) -> 268999.2683 | CL31: =SUMIFS('kol-vo'!CL:CL,'kol-vo'!$P:$P,$P31,'kol-vo'!$O:$O,$S31) -> 253576.1463 | CM31: =SUMIFS('kol-vo'!CM:CM,'kol-vo'!$P:$P,$P31,'kol-vo'!$O:$O,$S31) -> 269104.0307 | CN31: =SUMIFS('kol-vo'!CN:CN,'kol-vo'!$P:$P,$P31,'kol-vo'!$O:$O,$S31) -> 233706.6862 | CO31: =SUMIFS('kol-vo'!CO:CO,'kol-vo'!$P:$P,$P31,'kol-vo'!$O:$O,$S31) -> 231629.7072 | CP31: =SUMIFS('kol-vo'!CP:CP,'kol-vo'!$P:$P,$P31,'kol-vo'!$O:$O,$S31) -> 296985.1923 | CQ31: =SUMIFS('kol-vo'!CQ:CQ,'kol-vo'!$P:$P,$P31,'kol-vo'!$O:$O,$S31) -> 343264.4083
... 33 more rows

Sheet Rep-chnnls
X1: =IF(X7="","",1) -> 1 | Y1: =IF(Y7="","",X1+1) -> 2 | Z1: =IF(Z7="","",Y1+1) -> 3 | AA1: 4 | AB1: 5 | AC1: 6 | AD1: 7 | AE1: 8 | AF1: 9 | AG1: 10 | AH1: 11 | AI1: 12 | AJ1: 13 | AK1: 14 | AL1: 15 | AM1: 16 | AN1: 17 | AO1: 18 | AP1: 19 | AQ1: 20 | AR1: 21 | AS1: 22 | AT1: 23 | AU1: 24 | AV1: 25 | AW1: 26 | AX1: 27 | AY1: 28 | AZ1: 29 | BA1: 30 | BB1: 31 | BC1: 32 | BD1: 33 | BE1: 34 | BF1: 35 | BG1: 36 | BH1: 37 | BI1: 38 | BJ1: 39 | BK1: 40 | BL1: 41 | BM1: 42 | BN1: 43 | BO1: 44 | BP1: 45 | BQ1: 46 | BR1: 47 | BS1: 48 | BT1: 49 | BU1: 50 | BV1: 51 | BW1: 52 | BX1: 53 | BY1: 54 | BZ1: 55 | CA1: 56 | CB1: 57 | CC1: 58 | CD1: 59 | CE1: 60 | CF1: 61 | CG1: 62 | CH1: 63 | CI1: 64 | CJ1: 65 | CK1: 66 | CL1: =IF(CL7="","",CK1+1) -> 67 | CM1: 68 | CN1: 69 | CO1: 70 | CP1: 71 | CQ1: 72
B3: * | C3: Отчет PL
B4: * | C4: периодичность: ежемесячная
B5: * | C5: детализирован по каналам
K7: =usloviya!$E$6 -> показатель | N7: =spravochniki!$T$8 -> ед.изм. | P7: =spiski!$AL$8 -> каналы | U7: =usloviya!$R$6 -> итого | X7: =IF('str-ra-prodaj'!X7="","",'str-ra-prodaj'!X7) -> 2020-01-01 | Y7: =IF('str-ra-prodaj'!Y7="","",'str-ra-prodaj'!Y7) -> 2020-02-01 | Z7: =IF('str-ra-prodaj'!Z7="","",'str-ra-prodaj'!Z7) -> 2020-03-01 | AA7: =IF('str-ra-prodaj'!AA7="","",'str-ra-prodaj'!AA7) -> 2020-04-01 | AB7: =IF('str-ra-prodaj'!AB7="","",'str-ra-prodaj'!AB7) -> 2020-05-01 | AC7: =IF('str-ra-prodaj'!AC7="","",'str-ra-prodaj'!AC7) -> 2020-06-01 | AD7: =IF('str-ra-prodaj'!AD7="","",'str-ra-prodaj'!AD7) -> 2020-07-01 | AE7: =IF('str-ra-prodaj'!AE7="","",'str-ra-prodaj'!AE7) -> 2020-08-01 | AF7: =IF('str-ra-prodaj'!AF7="","",'str-ra-prodaj'!AF7) -> 2020-09-01 | AG7: =IF('str-ra-prodaj'!AG7="","",'str-ra-prodaj'!AG7) -> 2020-10-01 | AH7: =IF('str-ra-prodaj'!AH7="","",'str-ra-prodaj'!AH7) -> 2020-11-01 | AI7: =IF('str-ra-prodaj'!AI7="","",'str-ra-prodaj'!AI7) -> 2020-12-01 | AJ7: =IF('str-ra-prodaj'!AJ7="","",'str-ra-prodaj'!AJ7) -> 2021-01-01 | AK7: =IF('str-ra-prodaj'!AK7="","",'str-ra-prodaj'!AK7) -> 2021-02-01 | AL7: =IF('str-ra-prodaj'!AL7="","",'str-ra-prodaj'!AL7) -> 2021-03-01 | AM7: =IF('str-ra-prodaj'!AM7="","",'str-ra-prodaj'!AM7) -> 2021-04-01 | AN7: =IF('str-ra-prodaj'!AN7="","",'str-ra-prodaj'!AN7) -> 2021-05-01 | AO7: =IF('str-ra-prodaj'!AO7="","",'str-ra-prodaj'!AO7) -> 2021-06-01 | AP7: =IF('str-ra-prodaj'!AP7="","",'str-ra-prodaj'!AP7) -> 2021-07-01 | AQ7: =IF('str-ra-prodaj'!AQ7="","",'str-ra-prodaj'!AQ7) -> 2021-08-01 | AR7: =IF('str-ra-prodaj'!AR7="","",'str-ra-prodaj'!AR7) -> 2021-09-01 | AS7: =IF('str-ra-prodaj'!AS7="","",'str-ra-prodaj'!AS7) -> 2021-10-01 | AT7: =IF('str-ra-prodaj'!AT7="","",'str-ra-prodaj'!AT7) -> 2021-11-01 | AU7: =IF('str-ra-prodaj'!AU7="","",'str-ra-prodaj'!AU7) -> 2021-12-01 | AV7: =IF('str-ra-prodaj'!AV7="","",'str-ra-prodaj'!AV7) -> 2022-01-01 | AW7: =IF('str-ra-prodaj'!AW7="","",'str-ra-prodaj'!AW7) -> 2022-02-01 | AX7: =IF('str-ra-prodaj'!AX7="","",'str-ra-prodaj'!AX7) -> 2022-03-01 | AY7: =IF('str-ra-prodaj'!AY7="","",'str-ra-prodaj'!AY7) -> 2022-04-01 | AZ7: =IF('str-ra-prodaj'!AZ7="","",'str-ra-prodaj'!AZ7) -> 2022-05-01 | BA7: =IF('str-ra-prodaj'!BA7="","",'str-ra-prodaj'!BA7) -> 2022-06-01 | BB7: =IF('str-ra-prodaj'!BB7="","",'str-ra-prodaj'!BB7) -> 2022-07-01 | BC7: =IF('str-ra-prodaj'!BC7="","",'str-ra-prodaj'!BC7) -> 2022-08-01 | BD7: =IF('str-ra-prodaj'!BD7="","",'str-ra-prodaj'!BD7) -> 2022-09-01 | BE7: =IF('str-ra-prodaj'!BE7="","",'str-ra-prodaj'!BE7) -> 2022-10-01 | BF7: =IF('str-ra-prodaj'!BF7="","",'str-ra-prodaj'!BF7) -> 2022-11-01 | BG7: =IF('str-ra-prodaj'!BG7="","",'str-ra-prodaj'!BG7) -> 2022-12-01 | BH7: =IF('str-ra-prodaj'!BH7="","",'str-ra-prodaj'!BH7) -> 2023-01-01 | BI7: =IF('str-ra-prodaj'!BI7="","",'str-ra-prodaj'!BI7) -> 2023-02-01 | BJ7: =IF('str-ra-prodaj'!BJ7="","",'str-ra-prodaj'!BJ7) -> 2023-03-01 | BK7: =IF('str-ra-prodaj'!BK7="","",'str-ra-prodaj'!BK7) -> 2023-04-01 | BL7: =IF('str-ra-prodaj'!BL7="","",'str-ra-prodaj'!BL7) -> 2023-05-01 | BM7: =IF('str-ra-prodaj'!BM7="","",'str-ra-prodaj'!BM7) -> 2023-06-01 | BN7: =IF('str-ra-prodaj'!BN7="","",'str-ra-prodaj'!BN7) -> 2023-07-01 | BO7: =IF('str-ra-prodaj'!BO7="","",'str-ra-prodaj'!BO7) -> 2023-08-01 | BP7: =IF('str-ra-prodaj'!BP7="","",'str-ra-prodaj'!BP7) -> 2023-09-01 | BQ7: =IF('str-ra-prodaj'!BQ7="","",'str-ra-prodaj'!BQ7) -> 2023-10-01 | BR7: =IF('str-ra-prodaj'!BR7="","",'str-ra-prodaj'!BR7) -> 2023-11-01 | BS7: =IF('str-ra-prodaj'!BS7="","",'str-ra-prodaj'!BS7) -> 2023-12-01 | BT7: =IF('str-ra-prodaj'!BT7="","",'str-ra-prodaj'!BT7) -> 2024-01-01 | BU7: =IF('str-ra-prodaj'!BU7="","",'str-ra-prodaj'!BU7) -> 2024-02-01 | BV7: =IF('str-ra-prodaj'!BV7="","",'str-ra-prodaj'!BV7) -> 2024-03-01 | BW7: =IF('str-ra-prodaj'!BW7="","",'str-ra-prodaj'!BW7) -> 2024-04-01 | BX7: =IF('str-ra-prodaj'!BX7="","",'str-ra-prodaj'!BX7) -> 2024-05-01 | BY7: =IF('str-ra-prodaj'!BY7="","",'str-ra-prodaj'!BY7) -> 2024-06-01 | BZ7: =IF('str-ra-prodaj'!BZ7="","",'str-ra-prodaj'!BZ7) -> 2024-07-01 | CA7: =IF('str-ra-prodaj'!CA7="","",'str-ra-prodaj'!CA7) -> 2024-08-01 | CB7: =IF('str-ra-prodaj'!CB7="","",'str-ra-prodaj'!CB7) -> 2024-09-01 | CC7: =IF('str-ra-prodaj'!CC7="","",'str-ra-prodaj'!CC7) -> 2024-10-01 | CD7: =IF('str-ra-prodaj'!CD7="","",'str-ra-prodaj'!CD7) -> 2024-11-01 | CE7: =IF('str-ra-prodaj'!CE7="","",'str-ra-prodaj'!CE7) -> 2024-12-01 | CF7: =IF('str-ra-prodaj'!CF7="","",'str-ra-prodaj'!CF7) -> 2025-01-01 | CG7: =IF('str-ra-prodaj'!CG7="","",'str-ra-prodaj'!CG7) -> 2025-02-01 | CH7: =IF('str-ra-prodaj'!CH7="","",'str-ra-prodaj'!CH7) -> 2025-03-01 | CI7: =IF('str-ra-prodaj'!CI7="","",'str-ra-prodaj'!CI7) -> 2025-04-01 | CJ7: =IF('str-ra-prodaj'!CJ7="","",'str-ra-prodaj'!CJ7) -> 2025-05-01 | CK7: =IF('str-ra-prodaj'!CK7="","",'str-ra-prodaj'!CK7) -> 2025-06-01 | CL7: =IF('str-ra-prodaj'!CL7="","",'str-ra-prodaj'!CL7) -> 2025-07-01 | CM7: =IF('str-ra-prodaj'!CM7="","",'str-ra-prodaj'!CM7) -> 2025-08-01 | CN7: =IF('str-ra-prodaj'!CN7="","",'str-ra-prodaj'!CN7) -> 2025-09-01 | CO7: =IF('str-ra-prodaj'!CO7="","",'str-ra-prodaj'!CO7) -> 2025-10-01 | CP7: =IF('str-ra-prodaj'!CP7="","",'str-ra-prodaj'!CP7) -> 2025-11-01 | CQ7: =IF('str-ra-prodaj'!CQ7="","",'str-ra-prodaj'!CQ7) -> 2025-12-01
K11: =SF!$C$11 -> Продажи
K15: =spravochniki!$R$13 -> объемы | N15: =IF(OR($K15="",$K15=0),"",INDEX(spravochniki!$T$12:$T$22,SUMIFS(spravochniki!$P$12:$P$22,spravochniki!$R$12:$R$22,$K15))) -> литры | P15: =usloviya!$R$6 -> итого | U15: =SUM($W15:$CR15) -> 22073750 | X15: =SUM(obyemy!X$8:X$999500) -> 101956.2178 | Y15: =SUM(obyemy!Y$8:Y$999500) -> 125081.0248 | Z15: =SUM(obyemy!Z$8:Z$999500) -> 127353.8464 | AA15: =SUM(obyemy!AA$8:AA$999500) -> 144697.9188 | AB15: =SUM(obyemy!AB$8:AB$999500) -> 136684.3779 | AC15: =SUM(obyemy!AC$8:AC$999500) -> 120357.5238 | AD15: =SUM(obyemy!AD$8:AD$999500) -> 114583.5432 | AE15: =SUM(obyemy!AE$8:AE$999500) -> 121151.8383 | AF15: =SUM(obyemy!AF$8:AF$999500) -> 105241.2616 | AG15: =SUM(obyemy!AG$8:AG$999500) -> 104062.6995 | AH15: =SUM(obyemy!AH$8:AH$999500) -> 131070.5697 | AI15: =SUM(obyemy!AI$8:AI$999500) -> 151509.1781 | AJ15: =SUM(obyemy!AJ$8:AJ$999500) -> 182797.0715 | AK15: =SUM(obyemy!AK$8:AK$999500) -> 213661.9477 | AL15: =SUM(obyemy!AL$8:AL$999500) -> 221582.9519 | AM15: =SUM(obyemy!AM$8:AM$999500) -> 250105.1007 | AN15: =SUM(obyemy!AN$8:AN$999500) -> 243084.4236 | AO15: =SUM(obyemy!AO$8:AO$999500) -> 219115.2123 | AP15: =SUM(obyemy!AP$8:AP$999500) -> 219837.4535 | AQ15: =SUM(obyemy!AQ$8:AQ$999500) -> 227980.2697 | AR15: =SUM(obyemy!AR$8:AR$999500) -> 195398.5188 | AS15: =SUM(obyemy!AS$8:AS$999500) -> 190608.7149 | AT15: =SUM(obyemy!AT$8:AT$999500) -> 225594.4711 | AU15: =SUM(obyemy!AU$8:AU$999500) -> 260233.8643 | AV15: =SUM(obyemy!AV$8:AV$999500) -> 227674.0887 | AW15: =SUM(obyemy!AW$8:AW$999500) -> 261830.3231 | AX15: =SUM(obyemy!AX$8:AX$999500) -> 272543.8448 | AY15: =SUM(obyemy!AY$8:AY$999500) -> 306413.272 | AZ15: =SUM(obyemy!AZ$8:AZ$999500) -> 301257.6143 | BA15: =SUM(obyemy!BA$8:BA$999500) -> 273698.8109 | BB15: =SUM(obyemy!BB$8:BB$999500) -> 277886.7017 | BC15: =SUM(obyemy!BC$8:BC$999500) -> 286973.6113 | BD15: =SUM(obyemy!BD$8:BD$999500) -> 245899.9073 | BE15: =SUM(obyemy!BE$8:BE$999500) -> 239316.9443 | BF15: =SUM(obyemy!BF$8:BF$999500) -> 277280.7607 | BG15: =SUM(obyemy!BG$8:BG$999500) -> 319224.121 | BH15: =SUM(obyemy!BH$8:BH$999500) -> 284216.0833 | BI15: =SUM(obyemy!BI$8:BI$999500) -> 316337.8496 | BJ15: =SUM(obyemy!BJ$8:BJ$999500) -> 333098.2775 | BK15: =SUM(obyemy!BK$8:BK$999500) -> 374524.8636 | BL15: =SUM(obyemy!BL$8:BL$999500) -> 373952.0407 | BM15: =SUM(obyemy!BM$8:BM$999500) -> 344135.2681 | BN15: =SUM(obyemy!BN$8:BN$999500) -> 358820.9063 | BO15: =SUM(obyemy!BO$8:BO$999500) -> 368316.197 | BP15: =SUM(obyemy!BP$8:BP$999500) -> 313671.7484 | BQ15: =SUM(obyemy!BQ$8:BQ$999500) -> 301767.2821 | BR15: =SUM(obyemy!BR$8:BR$999500) -> 337754.3944 | BS15: =SUM(obyemy!BS$8:BS$999500) -> 388405.089 | BT15: =SUM(obyemy!BT$8:BT$999500) -> 334751.0519 | BU15: =SUM(obyemy!BU$8:BU$999500) -> 366289.5448 | BV15: =SUM(obyemy!BV$8:BV$999500) -> 387915.8716 | BW15: =SUM(obyemy!BW$8:BW$999500) -> 435780.9366 | BX15: =SUM(obyemy!BX$8:BX$999500) -> 439097.3204 | BY15: =SUM(obyemy!BY$8:BY$999500) -> 406848.8886 | BZ15: =SUM(obyemy!BZ$8:BZ$999500) -> 429662.8702 | CA15: =SUM(obyemy!CA$8:CA$999500) -> 439636.4176 | CB15: =SUM(obyemy!CB$8:CB$999500) -> 373461.9363 | CC15: =SUM(obyemy!CC$8:CC$999500) -> 357526.6204 | CD15: =SUM(obyemy!CD$8:CD$999500) -> 392731.1282 | CE15: =SUM(obyemy!CE$8:CE$999500) -> 451297.4135 | CF15: =SUM(obyemy!CF$8:CF$999500) -> 399861.4563 | CG15: =SUM(obyemy!CG$8:CG$999500) -> 429100.4073 | CH15: =SUM(obyemy!CH$8:CH$999500) -> 457398.964 | CI15: =SUM(obyemy!CI$8:CI$999500) -> 513462.9479 | CJ15: =SUM(obyemy!CJ$8:CJ$999500) -> 522637.3289 | CK15: =SUM(obyemy!CK$8:CK$999500) -> 487899.3414 | CL15: =SUM(obyemy!CL$8:CL$999500) -> 522318.5316 | CM15: =SUM(obyemy!CM$8:CM$999500) -> 532793.6276 | CN15: =SUM(obyemy!CN$8:CN$999500) -> 451436.0175 | CO15: =SUM(obyemy!CO$8:CO$999500) -> 429766.7365 | CP15: =SUM(obyemy!CP$8:CP$999500) -> 462386.6731 | CQ15: =SUM(obyemy!CQ$8:CQ$999500) -> 530937.9679
K16: =K15 -> объемы | N16: =IF(OR($K16="",$K16=0),"",INDEX(spravochniki!$T$12:$T$22,SUMIFS(spravochniki!$P$12:$P$22,spravochniki!$R$12:$R$22,$K16))) -> литры | P16: =spiski!$AL$12 -> E-commerce | U16: =SUM($W16:$CR16) -> 375253.75 | X16: =SUMIFS(obyemy!X:X,obyemy!$R:$R,$P16) -> 1733.255703 | Y16: =SUMIFS(obyemy!Y:Y,obyemy!$R:$R,$P16) -> 2126.377421 | Z16: =SUMIFS(obyemy!Z:Z,obyemy!$R:$R,$P16) -> 2165.015389 | AA16: =SUMIFS(obyemy!AA:AA,obyemy!$R:$R,$P16) -> 2459.86462 | AB16: =SUMIFS(obyemy!AB:AB,obyemy!$R:$R,$P16) -> 2323.634425 | AC16: =SUMIFS(obyemy!AC:AC,obyemy!$R:$R,$P16) -> 2046.077905 | AD16: =SUMIFS(obyemy!AD:AD,obyemy!$R:$R,$P16) -> 1947.920234 | AE16: =SUMIFS(obyemy!AE:AE,obyemy!$R:$R,$P16) -> 2059.581252 | AF16: =SUMIFS(obyemy!AF:AF,obyemy!$R:$R,$P16) -> 1789.101447 | AG16: =SUMIFS(obyemy!AG:AG,obyemy!$R:$R,$P16) -> 1769.065891 | AH16: =SUMIFS(obyemy!AH:AH,obyemy!$R:$R,$P16) -> 2228.199685 | AI16: =SUMIFS(obyemy!AI:AI,obyemy!$R:$R,$P16) -> 2575.656028 | AJ16: =SUMIFS(obyemy!AJ:AJ,obyemy!$R:$R,$P16) -> 3107.550216 | AK16: =SUMIFS(obyemy!AK:AK,obyemy!$R:$R,$P16) -> 3632.253111 | AL16: =SUMIFS(obyemy!AL:AL,obyemy!$R:$R,$P16) -> 3766.910182 | AM16: =SUMIFS(obyemy!AM:AM,obyemy!$R:$R,$P16) -> 4251.786712 | AN16: =SUMIFS(obyemy!AN:AN,obyemy!$R:$R,$P16) -> 4132.435202 | AO16: =SUMIFS(obyemy!AO:AO,obyemy!$R:$R,$P16) -> 3724.958609 | AP16: =SUMIFS(obyemy!AP:AP,obyemy!$R:$R,$P16) -> 3737.236709 | AQ16: =SUMIFS(obyemy!AQ:AQ,obyemy!$R:$R,$P16) -> 3875.664586 | AR16: =SUMIFS(obyemy!AR:AR,obyemy!$R:$R,$P16) -> 3321.774819 | AS16: =SUMIFS(obyemy!AS:AS,obyemy!$R:$R,$P16) -> 3240.348152 | AT16: =SUMIFS(obyemy!AT:AT,obyemy!$R:$R,$P16) -> 3835.106009 | AU16: =SUMIFS(obyemy!AU:AU,obyemy!$R:$R,$P16) -> 4423.975693 | AV16: =SUMIFS(obyemy!AV:AV,obyemy!$R:$R,$P16) -> 3870.459507 | AW16: =SUMIFS(obyemy!AW:AW,obyemy!$R:$R,$P16) -> 4451.115493 | AX16: =SUMIFS(obyemy!AX:AX,obyemy!$R:$R,$P16) -> 4633.245362 | AY16: =SUMIFS(obyemy!AY:AY,obyemy!$R:$R,$P16) -> 5209.025624 | AZ16: =SUMIFS(obyemy!AZ:AZ,obyemy!$R:$R,$P16) -> 5121.379443 | BA16: =SUMIFS(obyemy!BA:BA,obyemy!$R:$R,$P16) -> 4652.879785 | BB16: =SUMIFS(obyemy!BB:BB,obyemy!$R:$R,$P16) -> 4724.07393 | BC16: =SUMIFS(obyemy!BC:BC,obyemy!$R:$R,$P16) -> 4878.551391 | BD16: =SUMIFS(obyemy!BD:BD,obyemy!$R:$R,$P16) -> 4180.298423 | BE16: =SUMIFS(obyemy!BE:BE,obyemy!$R:$R,$P16) -> 4068.388053 | BF16: =SUMIFS(obyemy!BF:BF,obyemy!$R:$R,$P16) -> 4713.772931 | BG16: =SUMIFS(obyemy!BG:BG,obyemy!$R:$R,$P16) -> 5426.810058 | BH16: =SUMIFS(obyemy!BH:BH,obyemy!$R:$R,$P16) -> 4831.673416 | BI16: =SUMIFS(obyemy!BI:BI,obyemy!$R:$R,$P16) -> 5377.743443 | BJ16: =SUMIFS(obyemy!BJ:BJ,obyemy!$R:$R,$P16) -> 5662.670717 | BK16: =SUMIFS(obyemy!BK:BK,obyemy!$R:$R,$P16) -> 6366.922681 | BL16: =SUMIFS(obyemy!BL:BL,obyemy!$R:$R,$P16) -> 6357.184691 | BM16: =SUMIFS(obyemy!BM:BM,obyemy!$R:$R,$P16) -> 5850.299557 | BN16: =SUMIFS(obyemy!BN:BN,obyemy!$R:$R,$P16) -> 6099.955407 | BO16: =SUMIFS(obyemy!BO:BO,obyemy!$R:$R,$P16) -> 6261.37535 | BP16: =SUMIFS(obyemy!BP:BP,obyemy!$R:$R,$P16) -> 5332.419723 | BQ16: =SUMIFS(obyemy!BQ:BQ,obyemy!$R:$R,$P16) -> 5130.043797 | BR16: =SUMIFS(obyemy!BR:BR,obyemy!$R:$R,$P16) -> 5741.824705 | BS16: =SUMIFS(obyemy!BS:BS,obyemy!$R:$R,$P16) -> 6602.886513 | BT16: =SUMIFS(obyemy!BT:BT,obyemy!$R:$R,$P16) -> 5690.767882 | BU16: =SUMIFS(obyemy!BU:BU,obyemy!$R:$R,$P16) -> 6226.922261 | BV16: =SUMIFS(obyemy!BV:BV,obyemy!$R:$R,$P16) -> 6594.569817 | BW16: =SUMIFS(obyemy!BW:BW,obyemy!$R:$R,$P16) -> 7408.275922 | BX16: =SUMIFS(obyemy!BX:BX,obyemy!$R:$R,$P16) -> 7464.654446 | BY16: =SUMIFS(obyemy!BY:BY,obyemy!$R:$R,$P16) -> 6916.431107 | BZ16: =SUMIFS(obyemy!BZ:BZ,obyemy!$R:$R,$P16) -> 7304.268793 | CA16: =SUMIFS(obyemy!CA:CA,obyemy!$R:$R,$P16) -> 7473.8191 | CB16: =SUMIFS(obyemy!CB:CB,obyemy!$R:$R,$P16) -> 6348.852917 | CC16: =SUMIFS(obyemy!CC:CC,obyemy!$R:$R,$P16) -> 6077.952546 | CD16: =SUMIFS(obyemy!CD:CD,obyemy!$R:$R,$P16) -> 6676.429179 | CE16: =SUMIFS(obyemy!CE:CE,obyemy!$R:$R,$P16) -> 7672.056029 | CF16: =SUMIFS(obyemy!CF:CF,obyemy!$R:$R,$P16) -> 6797.644757 | CG16: =SUMIFS(obyemy!CG:CG,obyemy!$R:$R,$P16) -> 7294.706924 | CH16: =SUMIFS(obyemy!CH:CH,obyemy!$R:$R,$P16) -> 7775.782388 | CI16: =SUMIFS(obyemy!CI:CI,obyemy!$R:$R,$P16) -> 8728.870114 | CJ16: =SUMIFS(obyemy!CJ:CJ,obyemy!$R:$R,$P16) -> 8884.834592 | CK16: =SUMIFS(obyemy!CK:CK,obyemy!$R:$R,$P16) -> 8294.288804 | CL16: =SUMIFS(obyemy!CL:CL,obyemy!$R:$R,$P16) -> 8879.415037 | CM16: =SUMIFS(obyemy!CM:CM,obyemy!$R:$R,$P16) -> 9057.491669 | CN16: =SUMIFS(obyemy!CN:CN,obyemy!$R:$R,$P16) -> 7674.412298 | CO16: =SUMIFS(obyemy!CO:CO,obyemy!$R:$R,$P16) -> 7306.03452 | CP16: =SUMIFS(obyemy!CP:CP,obyemy!$R:$R,$P16) -> 7860.573442 | CQ16: =SUMIFS(obyemy!CQ:CQ,obyemy!$R:$R,$P16) -> 9025.945455
K17: =K15 -> объемы | N17: =IF(OR($K17="",$K17=0),"",INDEX(spravochniki!$T$12:$T$22,SUMIFS(spravochniki!$P$12:$P$22,spravochniki!$R$12:$R$22,$K17))) -> литры | P17: =spiski!$AL$13 -> OwnOff-line | U17: 648287.5 | X17: =SUMIFS(obyemy!X:X,obyemy!$R:$R,$P17) -> 2027.099503 | Y17: =SUMIFS(obyemy!Y:Y,obyemy!$R:$R,$P17) -> 2431.765145 | Z17: =SUMIFS(obyemy!Z:Z,obyemy!$R:$R,$P17) -> 2488.57982 | AA17: =SUMIFS(obyemy!AA:AA,obyemy!$R:$R,$P17) -> 2813.274242 | AB17: =SUMIFS(obyemy!AB:AB,obyemy!$R:$R,$P17) -> 2692.732456 | AC17: =SUMIFS(obyemy!AC:AC,obyemy!$R:$R,$P17) -> 2396.070043 | AD17: =SUMIFS(obyemy!AD:AD,obyemy!$R:$R,$P17) -> 2315.027927 | AE17: =SUMIFS(obyemy!AE:AE,obyemy!$R:$R,$P17) -> 2434.375247 | AF17: =SUMIFS(obyemy!AF:AF,obyemy!$R:$R,$P17) -> 2115.436257 | AG17: =SUMIFS(obyemy!AG:AG,obyemy!$R:$R,$P17) -> 2084.472596 | AH17: =SUMIFS(obyemy!AH:AH,obyemy!$R:$R,$P17) -> 2554.919855 | AI17: =SUMIFS(obyemy!AI:AI,obyemy!$R:$R,$P17) -> 2953.746911 | AJ17: =SUMIFS(obyemy!AJ:AJ,obyemy!$R:$R,$P17) -> 4624.101537 | AK17: =SUMIFS(obyemy!AK:AK,obyemy!$R:$R,$P17) -> 5062.088424 | AL17: =SUMIFS(obyemy!AL:AL,obyemy!$R:$R,$P17) -> 5374.570384 | AM17: =SUMIFS(obyemy!AM:AM,obyemy!$R:$R,$P17) -> 6002.870182 | AN17: =SUMIFS(obyemy!AN:AN,obyemy!$R:$R,$P17) -> 6063.799945 | AO17: =SUMIFS(obyemy!AO:AO,obyemy!$R:$R,$P17) -> 5629.575101 | AP17: =SUMIFS(obyemy!AP:AP,obyemy!$R:$R,$P17) -> 5971.064978 | AQ17: =SUMIFS(obyemy!AQ:AQ,obyemy!$R:$R,$P17) -> 6070.753679 | AR17: =SUMIFS(obyemy!AR:AR,obyemy!$R:$R,$P17) -> 5142.533553 | AS17: =SUMIFS(obyemy!AS:AS,obyemy!$R:$R,$P17) -> 4944.167539 | AT17: =SUMIFS(obyemy!AT:AT,obyemy!$R:$R,$P17) -> 5399.416747 | AU17: =SUMIFS(obyemy!AU:AU,obyemy!$R:$R,$P17) -> 6215.057931 | AV17: =SUMIFS(obyemy!AV:AV,obyemy!$R:$R,$P17) -> 6122.853308 | AW17: =SUMIFS(obyemy!AW:AW,obyemy!$R:$R,$P17) -> 6543.040717 | AX17: =SUMIFS(obyemy!AX:AX,obyemy!$R:$R,$P17) -> 6981.359792 | AY17: =SUMIFS(obyemy!AY:AY,obyemy!$R:$R,$P17) -> 7745.385245 | AZ17: =SUMIFS(obyemy!AZ:AZ,obyemy!$R:$R,$P17) -> 7967.539974 | BA17: =SUMIFS(obyemy!BA:BA,obyemy!$R:$R,$P17) -> 7479.934422 | BB17: =SUMIFS(obyemy!BB:BB,obyemy!$R:$R,$P17) -> 8045.094122 | BC17: =SUMIFS(obyemy!BC:BC,obyemy!$R:$R,$P17) -> 8141.257886 | BD17: =SUMIFS(obyemy!BD:BD,obyemy!$R:$R,$P17) -> 6904.083233 | BE17: =SUMIFS(obyemy!BE:BE,obyemy!$R:$R,$P17) -> 6622.844757 | BF17: =SUMIFS(obyemy!BF:BF,obyemy!$R:$R,$P17) -> 7013.480601 | BG17: =SUMIFS(obyemy!BG:BG,obyemy!$R:$R,$P17) -> 8043.125945 | BH17: =SUMIFS(obyemy!BH:BH,obyemy!$R:$R,$P17) -> 8543.535357 | BI17: =SUMIFS(obyemy!BI:BI,obyemy!$R:$R,$P17) -> 8762.526234 | BJ17: =SUMIFS(obyemy!BJ:BJ,obyemy!$R:$R,$P17) -> 9495.669475 | BK17: =SUMIFS(obyemy!BK:BK,obyemy!$R:$R,$P17) -> 10565.75019 | BL17: =SUMIFS(obyemy!BL:BL,obyemy!$R:$R,$P17) -> 11054.12338 | BM17: =SUMIFS(obyemy!BM:BM,obyemy!$R:$R,$P17) -> 10522.40059 | BN17: =SUMIFS(obyemy!BN:BN,obyemy!$R:$R,$P17) -> 11639.93166 | BO17: =SUMIFS(obyemy!BO:BO,obyemy!$R:$R,$P17) -> 11728.84379 | BP17: =SUMIFS(obyemy!BP:BP,obyemy!$R:$R,$P17) -> 9876.209974 | BQ17: =SUMIFS(obyemy!BQ:BQ,obyemy!$R:$R,$P17) -> 9332.597512 | BR17: =SUMIFS(obyemy!BR:BR,obyemy!$R:$R,$P17) -> 9507.934675 | BS17: =SUMIFS(obyemy!BS:BS,obyemy!$R:$R,$P17) -> 10890.47717 | BT17: =SUMIFS(obyemy!BT:BT,obyemy!$R:$R,$P17) -> 10641.28734 | BU17: =SUMIFS(obyemy!BU:BU,obyemy!$R:$R,$P17) -> 10726.11514 | BV17: =SUMIFS(obyemy!BV:BV,obyemy!$R:$R,$P17) -> 11694.61435 | BW17: =SUMIFS(obyemy!BW:BW,obyemy!$R:$R,$P17) -> 13010.82728 | BX17: =SUMIFS(obyemy!BX:BX,obyemy!$R:$R,$P17) -> 13732.79735 | BY17: =SUMIFS(obyemy!BY:BY,obyemy!$R:$R,$P17) -> 13152.09399 | BZ17: =SUMIFS(obyemy!BZ:BZ,obyemy!$R:$R,$P17) -> 14705.05312 | CA17: =SUMIFS(obyemy!CA:CA,obyemy!$R:$R,$P17) -> 14788.67014 | CB17: =SUMIFS(obyemy!CB:CB,obyemy!$R:$R,$P17) -> 12426.11709 | CC17: =SUMIFS(obyemy!CC:CC,obyemy!$R:$R,$P17) -> 11684.86894 | CD17: =SUMIFS(obyemy!CD:CD,obyemy!$R:$R,$P17) -> 11698.14222 | CE17: =SUMIFS(obyemy!CE:CE,obyemy!$R:$R,$P17) -> 13389.41304 | CF17: =SUMIFS(obyemy!CF:CF,obyemy!$R:$R,$P17) -> 13445.23236 | CG17: =SUMIFS(obyemy!CG:CG,obyemy!$R:$R,$P17) -> 13304.55737 | CH17: =SUMIFS(obyemy!CH:CH,obyemy!$R:$R,$P17) -> 14598.31125 | CI17: =SUMIFS(obyemy!CI:CI,obyemy!$R:$R,$P17) -> 16244.68936 | CJ17: =SUMIFS(obyemy!CJ:CJ,obyemy!$R:$R,$P17) -> 17300.75565 | CK17: =SUMIFS(obyemy!CK:CK,obyemy!$R:$R,$P17) -> 16671.99808 | CL17: =SUMIFS(obyemy!CL:CL,obyemy!$R:$R,$P17) -> 18835.75542 | CM17: =SUMIFS(obyemy!CM:CM,obyemy!$R:$R,$P17) -> 18913.70466 | CN17: =SUMIFS(obyemy!CN:CN,obyemy!$R:$R,$P17) -> 15862.08192 | CO17: =SUMIFS(obyemy!CO:CO,obyemy!$R:$R,$P17) -> 14838.24793 | CP17: =SUMIFS(obyemy!CP:CP,obyemy!$R:$R,$P17) -> 14592.88878 | CQ17: =SUMIFS(obyemy!CQ:CQ,obyemy!$R:$R,$P17) -> 16691.77723
K18: =K15 -> объемы | N18: =IF(OR($K18="",$K18=0),"",INDEX(spravochniki!$T$12:$T$22,SUMIFS(spravochniki!$P$12:$P$22,spravochniki!$R$12:$R$22,$K18))) -> литры | P18: =spiski!$AL$14 -> Комиссия | U18: 5749977.5 | X18: =SUMIFS(obyemy!X:X,obyemy!$R:$R,$P18) -> 24799.84129 | Y18: =SUMIFS(obyemy!Y:Y,obyemy!$R:$R,$P18) -> 30324.5343 | Z18: =SUMIFS(obyemy!Z:Z,obyemy!$R:$R,$P18) -> 30898.51442 | AA18: =SUMIFS(obyemy!AA:AA,obyemy!$R:$R,$P18) -> 35080.66763 | AB18: =SUMIFS(obyemy!AB:AB,obyemy!$R:$R,$P18) -> 33201.96928 | AC18: =SUMIFS(obyemy!AC:AC,obyemy!$R:$R,$P18) -> 29281.44001 | AD18: =SUMIFS(obyemy!AD:AD,obyemy!$R:$R,$P18) -> 27938.35181 | AE18: =SUMIFS(obyemy!AE:AE,obyemy!$R:$R,$P18) -> 29515.58115 | AF18: =SUMIFS(obyemy!AF:AF,obyemy!$R:$R,$P18) -> 25640.75628 | AG18: =SUMIFS(obyemy!AG:AG,obyemy!$R:$R,$P18) -> 25340.38922 | AH18: =SUMIFS(obyemy!AH:AH,obyemy!$R:$R,$P18) -> 31788.83226 | AI18: =SUMIFS(obyemy!AI:AI,obyemy!$R:$R,$P18) -> 36746.62236 | AJ18: =SUMIFS(obyemy!AJ:AJ,obyemy!$R:$R,$P18) -> 46263.06906 | AK18: =SUMIFS(obyemy!AK:AK,obyemy!$R:$R,$P18) -> 53451.24412 | AL18: =SUMIFS(obyemy!AL:AL,obyemy!$R:$R,$P18) -> 55659.76109 | AM18: =SUMIFS(obyemy!AM:AM,obyemy!$R:$R,$P18) -> 62708.8021 | AN18: =SUMIFS(obyemy!AN:AN,obyemy!$R:$R,$P18) -> 61365.66509 | AO18: =SUMIFS(obyemy!AO:AO,obyemy!$R:$R,$P18) -> 55612.3596 | AP18: =SUMIFS(obyemy!AP:AP,obyemy!$R:$R,$P18) -> 56382.81987 | AQ18: =SUMIFS(obyemy!AQ:AQ,obyemy!$R:$R,$P18) -> 58250.37528 | AR18: =SUMIFS(obyemy!AR:AR,obyemy!$R:$R,$P18) -> 49815.31789 | AS18: =SUMIFS(obyemy!AS:AS,obyemy!$R:$R,$P18) -> 48462.72757 | AT18: =SUMIFS(obyemy!AT:AT,obyemy!$R:$R,$P18) -> 56535.68547 | AU18: =SUMIFS(obyemy!AU:AU,obyemy!$R:$R,$P18) -> 65192.17287 | AV18: =SUMIFS(obyemy!AV:AV,obyemy!$R:$R,$P18) -> 58281.69456 | AW18: =SUMIFS(obyemy!AW:AW,obyemy!$R:$R,$P18) -> 66119.11731 | AX18: =SUMIFS(obyemy!AX:AX,obyemy!$R:$R,$P18) -> 69134.73403 | AY18: =SUMIFS(obyemy!AY:AY,obyemy!$R:$R,$P18) -> 77537.92168 | AZ18: =SUMIFS(obyemy!AZ:AZ,obyemy!$R:$R,$P18) -> 76874.14953 | BA18: =SUMIFS(obyemy!BA:BA,obyemy!$R:$R,$P18) -> 70280.41633 | BB18: =SUMIFS(obyemy!BB:BB,obyemy!$R:$R,$P18) -> 72175.25355 | BC18: =SUMIFS(obyemy!BC:BC,obyemy!$R:$R,$P18) -> 74231.91311 | BD18: =SUMIFS(obyemy!BD:BD,obyemy!$R:$R,$P18) -> 63476.51394 | BE18: =SUMIFS(obyemy!BE:BE,obyemy!$R:$R,$P18) -> 61601.89948 | BF18: =SUMIFS(obyemy!BF:BF,obyemy!$R:$R,$P18) -> 70174.10771 | BG18: =SUMIFS(obyemy!BG:BG,obyemy!$R:$R,$P18) -> 80732.27878 | BH18: =SUMIFS(obyemy!BH:BH,obyemy!$R:$R,$P18) -> 74392.26772 | BI18: =SUMIFS(obyemy!BI:BI,obyemy!$R:$R,$P18) -> 81442.55873 | BJ18: =SUMIFS(obyemy!BJ:BJ,obyemy!$R:$R,$P18) -> 86246.47869 | BK18: =SUMIFS(obyemy!BK:BK,obyemy!$R:$R,$P18) -> 96771.14937 | BL18: =SUMIFS(obyemy!BL:BL,obyemy!$R:$R,$P18) -> 97540.47421 | BM18: =SUMIFS(obyemy!BM:BM,obyemy!$R:$R,$P18) -> 90398.92294 | BN18: =SUMIFS(obyemy!BN:BN,obyemy!$R:$R,$P18) -> 95472.05979 | BO18: =SUMIFS(obyemy!BO:BO,obyemy!$R:$R,$P18) -> 97600.10661 | BP18: =SUMIFS(obyemy!BP:BP,obyemy!$R:$R,$P18) -> 82915.31294 | BQ18: =SUMIFS(obyemy!BQ:BQ,obyemy!$R:$R,$P18) -> 79461.61991 | BR18: =SUMIFS(obyemy!BR:BR,obyemy!$R:$R,$P18) -> 87233.01854 | BS18: =SUMIFS(obyemy!BS:BS,obyemy!$R:$R,$P18) -> 100236.0306 | BT18: =SUMIFS(obyemy!BT:BT,obyemy!$R:$R,$P18) -> 88671.69483 | BU18: =SUMIFS(obyemy!BU:BU,obyemy!$R:$R,$P18) -> 95357.26234 | BV18: =SUMIFS(obyemy!BV:BV,obyemy!$R:$R,$P18) -> 101596.7857 | BW18: =SUMIFS(obyemy!BW:BW,obyemy!$R:$R,$P18) -> 113902.3199 | BX18: =SUMIFS(obyemy!BX:BX,obyemy!$R:$R,$P18) -> 115901.7857 | BY18: =SUMIFS(obyemy!BY:BY,obyemy!$R:$R,$P18) -> 108167.6044 | BZ18: =SUMIFS(obyemy!BZ:BZ,obyemy!$R:$R,$P18) -> 115715.7346 | CA18: =SUMIFS(obyemy!CA:CA,obyemy!$R:$R,$P18) -> 117933.1966 | CB18: =SUMIFS(obyemy!CB:CB,obyemy!$R:$R,$P18) -> 99933.51206 | CC18: =SUMIFS(obyemy!CC:CC,obyemy!$R:$R,$P18) -> 95285.7291 | CD18: =SUMIFS(obyemy!CD:CD,obyemy!$R:$R,$P18) -> 102600.3958 | CE18: =SUMIFS(obyemy!CE:CE,obyemy!$R:$R,$P18) -> 117803.979 | CF18: =SUMIFS(obyemy!CF:CF,obyemy!$R:$R,$P18) -> 107253.5495 | CG18: =SUMIFS(obyemy!CG:CG,obyemy!$R:$R,$P18) -> 113052.8977 | CH18: =SUMIFS(obyemy!CH:CH,obyemy!$R:$R,$P18) -> 121265.5514 | CI18: =SUMIFS(obyemy!CI:CI,obyemy!$R:$R,$P18) -> 135869.3075 | CJ18: =SUMIFS(obyemy!CJ:CJ,obyemy!$R:$R,$P18) -> 139689.3589 | CK18: =SUMIFS(obyemy!CK:CK,obyemy!$R:$R,$P18) -> 131352.2419 | CL18: =SUMIFS(obyemy!CL:CL,obyemy!$R:$R,$P18) -> 142414.2476 | CM18: =SUMIFS(obyemy!CM:CM,obyemy!$R:$R,$P18) -> 144725.2706 | CN18: =SUMIFS(obyemy!CN:CN,obyemy!$R:$R,$P18) -> 122328.4442 | CO18: =SUMIFS(obyemy!CO:CO,obyemy!$R:$R,$P18) -> 115979.4168 | CP18: =SUMIFS(obyemy!CP:CP,obyemy!$R:$R,$P18) -> 122288.6015 | CQ18: =SUMIFS(obyemy!CQ:CQ,obyemy!$R:$R,$P18) -> 140301.1123
K19: =K15 -> объемы | N19: =IF(OR($K19="",$K19=0),"",INDEX(spravochniki!$T$12:$T$22,SUMIFS(spravochniki!$P$12:$P$22,spravochniki!$R$12:$R$22,$K19))) -> литры | P19: =spiski!$AL$15 -> HORECA | U19: 5766618.75 | X19: =SUMIFS(obyemy!X:X,obyemy!$R:$R,$P19) -> 25521.55138 | Y19: =SUMIFS(obyemy!Y:Y,obyemy!$R:$R,$P19) -> 31246.67171 | Z19: =SUMIFS(obyemy!Z:Z,obyemy!$R:$R,$P19) -> 31828.98941 | AA19: =SUMIFS(obyemy!AA:AA,obyemy!$R:$R,$P19) -> 36147.34249 | AB19: =SUMIFS(obyemy!AB:AB,obyemy!$R:$R,$P19) -> 34186.06333 | AC19: =SUMIFS(obyemy!AC:AC,obyemy!$R:$R,$P19) -> 30131.32963 | AD19: =SUMIFS(obyemy!AD:AD,obyemy!$R:$R,$P19) -> 28724.86524 | AE19: =SUMIFS(obyemy!AE:AE,obyemy!$R:$R,$P19) -> 30356.08503 | AF19: =SUMIFS(obyemy!AF:AF,obyemy!$R:$R,$P19) -> 26370.37109 | AG19: =SUMIFS(obyemy!AG:AG,obyemy!$R:$R,$P19) -> 26066.68237 | AH19: =SUMIFS(obyemy!AH:AH,obyemy!$R:$R,$P19) -> 32750.65394 | AI19: =SUMIFS(obyemy!AI:AI,obyemy!$R:$R,$P19) -> 37858.14437 | AJ19: =SUMIFS(obyemy!AJ:AJ,obyemy!$R:$R,$P19) -> 46897.20849 | AK19: =SUMIFS(obyemy!AK:AK,obyemy!$R:$R,$P19) -> 54420.97811 | AL19: =SUMIFS(obyemy!AL:AL,obyemy!$R:$R,$P19) -> 56582.23419 | AM19: =SUMIFS(obyemy!AM:AM,obyemy!$R:$R,$P19) -> 63792.35902 | AN19: =SUMIFS(obyemy!AN:AN,obyemy!$R:$R,$P19) -> 62265.8484 | AO19: =SUMIFS(obyemy!AO:AO,obyemy!$R:$R,$P19) -> 56314.65218 | AP19: =SUMIFS(obyemy!AP:AP,obyemy!$R:$R,$P19) -> 56872.13811 | AQ19: =SUMIFS(obyemy!AQ:AQ,obyemy!$R:$R,$P19) -> 58838.80497 | AR19: =SUMIFS(obyemy!AR:AR,obyemy!$R:$R,$P19) -> 50360.06541 | AS19: =SUMIFS(obyemy!AS:AS,obyemy!$R:$R,$P19) -> 49042.32641 | AT19: =SUMIFS(obyemy!AT:AT,obyemy!$R:$R,$P19) -> 57523.16188 | AU19: =SUMIFS(obyemy!AU:AU,obyemy!$R:$R,$P19) -> 66340.22282 | AV19: =SUMIFS(obyemy!AV:AV,obyemy!$R:$R,$P19) -> 58829.16549 | AW19: =SUMIFS(obyemy!AW:AW,obyemy!$R:$R,$P19) -> 67080.9734 | AX19: =SUMIFS(obyemy!AX:AX,obyemy!$R:$R,$P19) -> 70022.21901 | AY19: =SUMIFS(obyemy!AY:AY,obyemy!$R:$R,$P19) -> 78604.73472 | AZ19: =SUMIFS(obyemy!AZ:AZ,obyemy!$R:$R,$P19) -> 77688.02771 | BA19: =SUMIFS(obyemy!BA:BA,obyemy!$R:$R,$P19) -> 70859.00254 | BB19: =SUMIFS(obyemy!BB:BB,obyemy!$R:$R,$P19) -> 72462.2204 | BC19: =SUMIFS(obyemy!BC:BC,obyemy!$R:$R,$P19) -> 74639.53794 | BD19: =SUMIFS(obyemy!BD:BD,obyemy!$R:$R,$P19) -> 63873.75657 | BE19: =SUMIFS(obyemy!BE:BE,obyemy!$R:$R,$P19) -> 62052.78084 | BF19: =SUMIFS(obyemy!BF:BF,obyemy!$R:$R,$P19) -> 71136.49611 | BG19: =SUMIFS(obyemy!BG:BG,obyemy!$R:$R,$P19) -> 81861.08528 | BH19: =SUMIFS(obyemy!BH:BH,obyemy!$R:$R,$P19) -> 74475.63784 | BI19: =SUMIFS(obyemy!BI:BI,obyemy!$R:$R,$P19) -> 82033.07752 | BJ19: =SUMIFS(obyemy!BJ:BJ,obyemy!$R:$R,$P19) -> 86689.03068 | BK19: =SUMIFS(obyemy!BK:BK,obyemy!$R:$R,$P19) -> 97342.6548 | BL19: =SUMIFS(obyemy!BL:BL,obyemy!$R:$R,$P19) -> 97774.75011 | BM19: =SUMIFS(obyemy!BM:BM,obyemy!$R:$R,$P19) -> 90381.40634 | BN19: =SUMIFS(obyemy!BN:BN,obyemy!$R:$R,$P19) -> 95008.13045 | BO19: =SUMIFS(obyemy!BO:BO,obyemy!$R:$R,$P19) -> 97269.97342 | BP19: =SUMIFS(obyemy!BP:BP,obyemy!$R:$R,$P19) -> 82709.16517 | BQ19: =SUMIFS(obyemy!BQ:BQ,obyemy!$R:$R,$P19) -> 79375.82297 | BR19: =SUMIFS(obyemy!BR:BR,obyemy!$R:$R,$P19) -> 87762.06811 | BS19: =SUMIFS(obyemy!BS:BS,obyemy!$R:$R,$P19) -> 100873.2826 | BT19: =SUMIFS(obyemy!BT:BT,obyemy!$R:$R,$P19) -> 88384.10799 | BU19: =SUMIFS(obyemy!BU:BU,obyemy!$R:$R,$P19) -> 95654.40633 | BV19: =SUMIFS(obyemy!BV:BV,obyemy!$R:$R,$P19) -> 101687.9988 | BW19: =SUMIFS(obyemy!BW:BW,obyemy!$R:$R,$P19) -> 114089.3141 | BX19: =SUMIFS(obyemy!BX:BX,obyemy!$R:$R,$P19) -> 115674.8997 | BY19: =SUMIFS(obyemy!BY:BY,obyemy!$R:$R,$P19) -> 107672.1358 | BZ19: =SUMIFS(obyemy!BZ:BZ,obyemy!$R:$R,$P19) -> 114648.8442 | CA19: =SUMIFS(obyemy!CA:CA,obyemy!$R:$R,$P19) -> 117013.357 | CB19: =SUMIFS(obyemy!CB:CB,obyemy!$R:$R,$P19) -> 99243.16004 | CC19: =SUMIFS(obyemy!CC:CC,obyemy!$R:$R,$P19) -> 94765.52442 | CD19: =SUMIFS(obyemy!CD:CD,obyemy!$R:$R,$P19) -> 102787.1673 | CE19: =SUMIFS(obyemy!CE:CE,obyemy!$R:$R,$P19) -> 118054.0844 | CF19: =SUMIFS(obyemy!CF:CF,obyemy!$R:$R,$P19) -> 106420.5775 | CG19: =SUMIFS(obyemy!CG:CG,obyemy!$R:$R,$P19) -> 112908.2344 | CH19: =SUMIFS(obyemy!CH:CH,obyemy!$R:$R,$P19) -> 120833.7895 | CI19: =SUMIFS(obyemy!CI:CI,obyemy!$R:$R,$P19) -> 135479.9279 | CJ19: =SUMIFS(obyemy!CJ:CJ,obyemy!$R:$R,$P19) -> 138782.4809 | CK19: =SUMIFS(obyemy!CK:CK,obyemy!$R:$R,$P19) -> 130158.1965 | CL19: =SUMIFS(obyemy!CL:CL,obyemy!$R:$R,$P19) -> 140477.5541 | CM19: =SUMIFS(obyemy!CM:CM,obyemy!$R:$R,$P19) -> 142949.6046 | CN19: =SUMIFS(obyemy!CN:CN,obyemy!$R:$R,$P19) -> 120932.922 | CO19: =SUMIFS(obyemy!CO:CO,obyemy!$R:$R,$P19) -> 114825.8418 | CP19: =SUMIFS(obyemy!CP:CP,obyemy!$R:$R,$P19) -> 121961.8714 | CQ19: =SUMIFS(obyemy!CQ:CQ,obyemy!$R:$R,$P19) -> 139968.9995
K20: =K15 -> объемы | N20: =IF(OR($K20="",$K20=0),"",INDEX(spravochniki!$T$12:$T$22,SUMIFS(spravochniki!$P$12:$P$22,spravochniki!$R$12:$R$22,$K20))) -> литры | P20: =spiski!$AL$16 -> SPORT | U20: 2207375 | X20: =SUMIFS(obyemy!X:X,obyemy!$R:$R,$P20) -> 10195.62178 | Y20: =SUMIFS(obyemy!Y:Y,obyemy!$R:$R,$P20) -> 12508.10248 | Z20: =SUMIFS(obyemy!Z:Z,obyemy!$R:$R,$P20) -> 12735.38464 | AA20: =SUMIFS(obyemy!AA:AA,obyemy!$R:$R,$P20) -> 14469.79188 | AB20: =SUMIFS(obyemy!AB:AB,obyemy!$R:$R,$P20) -> 13668.43779 | AC20: =SUMIFS(obyemy!AC:AC,obyemy!$R:$R,$P20) -> 12035.75238 | AD20: =SUMIFS(obyemy!AD:AD,obyemy!$R:$R,$P20) -> 11458.35432 | AE20: =SUMIFS(obyemy!AE:AE,obyemy!$R:$R,$P20) -> 12115.18383 | AF20: =SUMIFS(obyemy!AF:AF,obyemy!$R:$R,$P20) -> 10524.12616 | AG20: =SUMIFS(obyemy!AG:AG,obyemy!$R:$R,$P20) -> 10406.26995 | AH20: =SUMIFS(obyemy!AH:AH,obyemy!$R:$R,$P20) -> 13107.05697 | AI20: =SUMIFS(obyemy!AI:AI,obyemy!$R:$R,$P20) -> 15150.91781 | AJ20: =SUMIFS(obyemy!AJ:AJ,obyemy!$R:$R,$P20) -> 18279.70715 | AK20: =SUMIFS(obyemy!AK:AK,obyemy!$R:$R,$P20) -> 21366.19477 | AL20: =SUMIFS(obyemy!AL:AL,obyemy!$R:$R,$P20) -> 22158.29519 | AM20: =SUMIFS(obyemy!AM:AM,obyemy!$R:$R,$P20) -> 25010.51007 | AN20: =SUMIFS(obyemy!AN:AN,obyemy!$R:$R,$P20) -> 24308.44236 | AO20: =SUMIFS(obyemy!AO:AO,obyemy!$R:$R,$P20) -> 21911.52123 | AP20: =SUMIFS(obyemy!AP:AP,obyemy!$R:$R,$P20) -> 21983.74535 | AQ20: =SUMIFS(obyemy!AQ:AQ,obyemy!$R:$R,$P20) -> 22798.02697 | AR20: =SUMIFS(obyemy!AR:AR,obyemy!$R:$R,$P20) -> 19539.85188 | AS20: =SUMIFS(obyemy!AS:AS,obyemy!$R:$R,$P20) -> 19060.87149 | AT20: =SUMIFS(obyemy!AT:AT,obyemy!$R:$R,$P20) -> 22559.44711 | AU20: =SUMIFS(obyemy!AU:AU,obyemy!$R:$R,$P20) -> 26023.38643 | AV20: =SUMIFS(obyemy!AV:AV,obyemy!$R:$R,$P20) -> 22767.40887 | AW20: =SUMIFS(obyemy!AW:AW,obyemy!$R:$R,$P20) -> 26183.03231 | AX20: =SUMIFS(obyemy!AX:AX,obyemy!$R:$R,$P20) -> 27254.38448 | AY20: =SUMIFS(obyemy!AY:AY,obyemy!$R:$R,$P20) -> 30641.3272 | AZ20: =SUMIFS(obyemy!AZ:AZ,obyemy!$R:$R,$P20) -> 30125.76143 | BA20: =SUMIFS(obyemy!BA:BA,obyemy!$R:$R,$P20) -> 27369.88109 | BB20: =SUMIFS(obyemy!BB:BB,obyemy!$R:$R,$P20) -> 27788.67017 | BC20: =SUMIFS(obyemy!BC:BC,obyemy!$R:$R,$P20) -> 28697.36113 | BD20: =SUMIFS(obyemy!BD:BD,obyemy!$R:$R,$P20) -> 24589.99073 | BE20: =SUMIFS(obyemy!BE:BE,obyemy!$R:$R,$P20) -> 23931.69443 | BF20: =SUMIFS(obyemy!BF:BF,obyemy!$R:$R,$P20) -> 27728.07607 | BG20: =SUMIFS(obyemy!BG:BG,obyemy!$R:$R,$P20) -> 31922.4121 | BH20: =SUMIFS(obyemy!BH:BH,obyemy!$R:$R,$P20) -> 28421.60833 | BI20: =SUMIFS(obyemy!BI:BI,obyemy!$R:$R,$P20) -> 31633.78496 | BJ20: =SUMIFS(obyemy!BJ:BJ,obyemy!$R:$R,$P20) -> 33309.82775 | BK20: =SUMIFS(obyemy!BK:BK,obyemy!$R:$R,$P20) -> 37452.48636 | BL20: =SUMIFS(obyemy!BL:BL,obyemy!$R:$R,$P20) -> 37395.20407 | BM20: =SUMIFS(obyemy!BM:BM,obyemy!$R:$R,$P20) -> 34413.52681 | BN20: =SUMIFS(obyemy!BN:BN,obyemy!$R:$R,$P20) -> 35882.09063 | BO20: =SUMIFS(obyemy!BO:BO,obyemy!$R:$R,$P20) -> 36831.6197 | BP20: =SUMIFS(obyemy!BP:BP,obyemy!$R:$R,$P20) -> 31367.17484 | BQ20: =SUMIFS(obyemy!BQ:BQ,obyemy!$R:$R,$P20) -> 30176.72821 | BR20: =SUMIFS(obyemy!BR:BR,obyemy!$R:$R,$P20) -> 33775.43944 | BS20: =SUMIFS(obyemy!BS:BS,obyemy!$R:$R,$P20) -> 38840.5089 | BT20: =SUMIFS(obyemy!BT:BT,obyemy!$R:$R,$P20) -> 33475.10519 | BU20: =SUMIFS(obyemy!BU:BU,obyemy!$R:$R,$P20) -> 36628.95448 | BV20: =SUMIFS(obyemy!BV:BV,obyemy!$R:$R,$P20) -> 38791.58716 | BW20: =SUMIFS(obyemy!BW:BW,obyemy!$R:$R,$P20) -> 43578.09366 | BX20: =SUMIFS(obyemy!BX:BX,obyemy!$R:$R,$P20) -> 43909.73204 | BY20: =SUMIFS(obyemy!BY:BY,obyemy!$R:$R,$P20) -> 40684.88886 | BZ20: =SUMIFS(obyemy!BZ:BZ,obyemy!$R:$R,$P20) -> 42966.28702 | CA20: =SUMIFS(obyemy!CA:CA,obyemy!$R:$R,$P20) -> 43963.64176 | CB20: =SUMIFS(obyemy!CB:CB,obyemy!$R:$R,$P20) -> 37346.19363 | CC20: =SUMIFS(obyemy!CC:CC,obyemy!$R:$R,$P20) -> 35752.66204 | CD20: =SUMIFS(obyemy!CD:CD,obyemy!$R:$R,$P20) -> 39273.11282 | CE20: =SUMIFS(obyemy!CE:CE,obyemy!$R:$R,$P20) -> 45129.74135 | CF20: =SUMIFS(obyemy!CF:CF,obyemy!$R:$R,$P20) -> 39986.14563 | CG20: =SUMIFS(obyemy!CG:CG,obyemy!$R:$R,$P20) -> 42910.04073 | CH20: =SUMIFS(obyemy!CH:CH,obyemy!$R:$R,$P20) -> 45739.8964 | CI20: =SUMIFS(obyemy!CI:CI,obyemy!$R:$R,$P20) -> 51346.29479 | CJ20: =SUMIFS(obyemy!CJ:CJ,obyemy!$R:$R,$P20) -> 52263.73289 | CK20: =SUMIFS(obyemy!CK:CK,obyemy!$R:$R,$P20) -> 48789.93414 | CL20: =SUMIFS(obyemy!CL:CL,obyemy!$R:$R,$P20) -> 52231.85316 | CM20: =SUMIFS(obyemy!CM:CM,obyemy!$R:$R,$P20) -> 53279.36276 | CN20: =SUMIFS(obyemy!CN:CN,obyemy!$R:$R,$P20) -> 45143.60175 | CO20: =SUMIFS(obyemy!CO:CO,obyemy!$R:$R,$P20) -> 42976.67365 | CP20: =SUMIFS(obyemy!CP:CP,obyemy!$R:$R,$P20) -> 46238.66731 | CQ20: =SUMIFS(obyemy!CQ:CQ,obyemy!$R:$R,$P20) -> 53093.79679
K21: =K15 -> объемы | N21: =IF(OR($K21="",$K21=0),"",INDEX(spravochniki!$T$12:$T$22,SUMIFS(spravochniki!$P$12:$P$22,spravochniki!$R$12:$R$22,$K21))) -> литры | P21: =spiski!$AL$17 -> OTHER | U21: 7326237.5 | X21: =SUMIFS(obyemy!X:X,obyemy!$R:$R,$P21) -> 37678.84813 | Y21: =SUMIFS(obyemy!Y:Y,obyemy!$R:$R,$P21) -> 46443.57372 | Z21: =SUMIFS(obyemy!Z:Z,obyemy!$R:$R,$P21) -> 47237.36276 | AA21: =SUMIFS(obyemy!AA:AA,obyemy!$R:$R,$P21) -> 53726.97798 | AB21: =SUMIFS(obyemy!AB:AB,obyemy!$R:$R,$P21) -> 50611.54066 | AC21: =SUMIFS(obyemy!AC:AC,obyemy!$R:$R,$P21) -> 44466.85385 | AD21: =SUMIFS(obyemy!AD:AD,obyemy!$R:$R,$P21) -> 42199.02366 | AE21: =SUMIFS(obyemy!AE:AE,obyemy!$R:$R,$P21) -> 44671.03181 | AF21: =SUMIFS(obyemy!AF:AF,obyemy!$R:$R,$P21) -> 38801.47036 | AG21: =SUMIFS(obyemy!AG:AG,obyemy!$R:$R,$P21) -> 38395.81946 | AH21: =SUMIFS(obyemy!AH:AH,obyemy!$R:$R,$P21) -> 48640.90698 | AI21: =SUMIFS(obyemy!AI:AI,obyemy!$R:$R,$P21) -> 56224.09062 | AJ21: =SUMIFS(obyemy!AJ:AJ,obyemy!$R:$R,$P21) -> 63625.43506 | AK21: =SUMIFS(obyemy!AK:AK,obyemy!$R:$R,$P21) -> 75729.18917 | AL21: =SUMIFS(obyemy!AL:AL,obyemy!$R:$R,$P21) -> 78041.18083 | AM21: =SUMIFS(obyemy!AM:AM,obyemy!$R:$R,$P21) -> 88338.77263 | AN21: =SUMIFS(obyemy!AN:AN,obyemy!$R:$R,$P21) -> 84948.23264 | AO21: =SUMIFS(obyemy!AO:AO,obyemy!$R:$R,$P21) -> 75922.14555 | AP21: =SUMIFS(obyemy!AP:AP,obyemy!$R:$R,$P21) -> 74890.44847 | AQ21: =SUMIFS(obyemy!AQ:AQ,obyemy!$R:$R,$P21) -> 78146.64425 | AR21: =SUMIFS(obyemy!AR:AR,obyemy!$R:$R,$P21) -> 67218.97523 | AS21: =SUMIFS(obyemy!AS:AS,obyemy!$R:$R,$P21) -> 65858.2737 | AT21: =SUMIFS(obyemy!AT:AT,obyemy!$R:$R,$P21) -> 79741.65389 | AU21: =SUMIFS(obyemy!AU:AU,obyemy!$R:$R,$P21) -> 92039.04857 | AV21: =SUMIFS(obyemy!AV:AV,obyemy!$R:$R,$P21) -> 77802.50693 | AW21: =SUMIFS(obyemy!AW:AW,obyemy!$R:$R,$P21) -> 91453.04389 | AX21: =SUMIFS(obyemy!AX:AX,obyemy!$R:$R,$P21) -> 94517.90214 | AY21: =SUMIFS(obyemy!AY:AY,obyemy!$R:$R,$P21) -> 106674.8775 | AZ21: =SUMIFS(obyemy!AZ:AZ,obyemy!$R:$R,$P21) -> 103480.7562 | BA21: =SUMIFS(obyemy!BA:BA,obyemy!$R:$R,$P21) -> 93056.69672 | BB21: =SUMIFS(obyemy!BB:BB,obyemy!$R:$R,$P21) -> 92691.38957 | BC21: =SUMIFS(obyemy!BC:BC,obyemy!$R:$R,$P21) -> 96384.9898 | BD21: =SUMIFS(obyemy!BD:BD,obyemy!$R:$R,$P21) -> 82875.26436 | BE21: =SUMIFS(obyemy!BE:BE,obyemy!$R:$R,$P21) -> 81039.33673 | BF21: =SUMIFS(obyemy!BF:BF,obyemy!$R:$R,$P21) -> 96514.82724 | BG21: =SUMIFS(obyemy!BG:BG,obyemy!$R:$R,$P21) -> 111238.4089 | BH21: =SUMIFS(obyemy!BH:BH,obyemy!$R:$R,$P21) -> 93551.36064 | BI21: =SUMIFS(obyemy!BI:BI,obyemy!$R:$R,$P21) -> 107088.1587 | BJ21: =SUMIFS(obyemy!BJ:BJ,obyemy!$R:$R,$P21) -> 111694.6002 | BK21: =SUMIFS(obyemy!BK:BK,obyemy!$R:$R,$P21) -> 126025.9002 | BL21: =SUMIFS(obyemy!BL:BL,obyemy!$R:$R,$P21) -> 123830.3042 | BM21: =SUMIFS(obyemy!BM:BM,obyemy!$R:$R,$P21) -> 112568.7118 | BN21: =SUMIFS(obyemy!BN:BN,obyemy!$R:$R,$P21) -> 114718.7384 | BO21: =SUMIFS(obyemy!BO:BO,obyemy!$R:$R,$P21) -> 118624.2782 | BP21: =SUMIFS(obyemy!BP:BP,obyemy!$R:$R,$P21) -> 101471.4657 | BQ21: =SUMIFS(obyemy!BQ:BQ,obyemy!$R:$R,$P21) -> 98290.46975 | BR21: =SUMIFS(obyemy!BR:BR,obyemy!$R:$R,$P21) -> 113734.1089 | BS21: =SUMIFS(obyemy!BS:BS,obyemy!$R:$R,$P21) -> 130961.9033 | BT21: =SUMIFS(obyemy!BT:BT,obyemy!$R:$R,$P21) -> 107888.0887 | BU21: =SUMIFS(obyemy!BU:BU,obyemy!$R:$R,$P21) -> 121695.8842 | BV21: =SUMIFS(obyemy!BV:BV,obyemy!$R:$R,$P21) -> 127550.3158 | BW21: =SUMIFS(obyemy!BW:BW,obyemy!$R:$R,$P21) -> 143792.1057 | BX21: =SUMIFS(obyemy!BX:BX,obyemy!$R:$R,$P21) -> 142413.4512 | BY21: =SUMIFS(obyemy!BY:BY,obyemy!$R:$R,$P21) -> 130255.7345 | BZ21: =SUMIFS(obyemy!BZ:BZ,obyemy!$R:$R,$P21) -> 134322.6824 | CA21: =SUMIFS(obyemy!CA:CA,obyemy!$R:$R,$P21) -> 138463.7331 | CB21: =SUMIFS(obyemy!CB:CB,obyemy!$R:$R,$P21) -> 118164.1005 | CC21: =SUMIFS(obyemy!CC:CC,obyemy!$R:$R,$P21) -> 113959.8833 | CD21: =SUMIFS(obyemy!CD:CD,obyemy!$R:$R,$P21) -> 129695.8808 | CE21: =SUMIFS(obyemy!CE:CE,obyemy!$R:$R,$P21) -> 149248.1397 | CF21: =SUMIFS(obyemy!CF:CF,obyemy!$R:$R,$P21) -> 125958.3065 | CG21: =SUMIFS(obyemy!CG:CG,obyemy!$R:$R,$P21) -> 139629.9701 | CH21: =SUMIFS(obyemy!CH:CH,obyemy!$R:$R,$P21) -> 147185.6332 | CI21: =SUMIFS(obyemy!CI:CI,obyemy!$R:$R,$P21) -> 165793.8583 | CJ21: =SUMIFS(obyemy!CJ:CJ,obyemy!$R:$R,$P21) -> 165716.166 | CK21: =SUMIFS(obyemy!CK:CK,obyemy!$R:$R,$P21) -> 152632.682 | CL21: =SUMIFS(obyemy!CL:CL,obyemy!$R:$R,$P21) -> 159479.7063 | CM21: =SUMIFS(obyemy!CM:CM,obyemy!$R:$R,$P21) -> 163868.1933 | CN21: =SUMIFS(obyemy!CN:CN,obyemy!$R:$R,$P21) -> 139494.5554 | CO21: =SUMIFS(obyemy!CO:CO,obyemy!$R:$R,$P21) -> 133840.5219 | CP21: =SUMIFS(obyemy!CP:CP,obyemy!$R:$R,$P21) -> 149444.0706 | CQ21: =SUMIFS(obyemy!CQ:CQ,obyemy!$R:$R,$P21) -> 171856.3366
K24: Продажи в ТТ без НДС | N24: руб. | P24: =usloviya!$R$6 -> итого | U24: =SUM($W24:$CR24) -> 1.360293704e+10 | X24: =SUM(PTT!X$8:X$999500)/(1+usloviya!$J$30) -> 22702620.15 | Y24: =SUM(PTT!Y$8:Y$999500)/(1+usloviya!$J$30) -> 27721870.96 | Z24: =SUM(PTT!Z$8:Z$999500)/(1+usloviya!$J$30) -> 29000540.48 | AA24: =SUM(PTT!AA$8:AA$999500)/(1+usloviya!$J$30) -> 32947022.66 | AB24: =SUM(PTT!AB$8:AB$999500)/(1+usloviya!$J$30) -> 31166177.94 | AC24: =SUM(PTT!AC$8:AC$999500)/(1+usloviya!$J$30) -> 27482421.92 | AD24: =SUM(PTT!AD$8:AD$999500)/(1+usloviya!$J$30) -> 26223295.09 | AE24: =SUM(PTT!AE$8:AE$999500)/(1+usloviya!$J$30) -> 27705270.53 | AF24: =SUM(PTT!AF$8:AF$999500)/(1+usloviya!$J$30) -> 24633011.22 | AG24: =SUM(PTT!AG$8:AG$999500)/(1+usloviya!$J$30) -> 24326403.53 | AH24: =SUM(PTT!AH$8:AH$999500)/(1+usloviya!$J$30) -> 30521145.74 | AI24: =SUM(PTT!AI$8:AI$999500)/(1+usloviya!$J$30) -> 35403722.68 | AJ24: =SUM(PTT!AJ$8:AJ$999500)/(1+usloviya!$J$30) -> 85742019.03 | AK24: =SUM(PTT!AK$8:AK$999500)/(1+usloviya!$J$30) -> 92312907.96 | AL24: =SUM(PTT!AL$8:AL$999500)/(1+usloviya!$J$30) -> 101131084.3 | AM24: =SUM(PTT!AM$8:AM$999500)/(1+usloviya!$J$30) -> 114532927.7 | AN24: =SUM(PTT!AN$8:AN$999500)/(1+usloviya!$J$30) -> 115810441.3 | AO24: =SUM(PTT!AO$8:AO$999500)/(1+usloviya!$J$30) -> 107668499.9 | AP24: =SUM(PTT!AP$8:AP$999500)/(1+usloviya!$J$30) -> 115403019.4 | AQ24: =SUM(PTT!AQ$8:AQ$999500)/(1+usloviya!$J$30) -> 118098400.2 | AR24: =SUM(PTT!AR$8:AR$999500)/(1+usloviya!$J$30) -> 101993608 | AS24: =SUM(PTT!AS$8:AS$999500)/(1+usloviya!$J$30) -> 96519737.38 | AT24: =SUM(PTT!AT$8:AT$999500)/(1+usloviya!$J$30) -> 104866371.2 | AU24: =SUM(PTT!AU$8:AU$999500)/(1+usloviya!$J$30) -> 120915513.7 | AV24: =SUM(PTT!AV$8:AV$999500)/(1+usloviya!$J$30) -> 116520948 | AW24: =SUM(PTT!AW$8:AW$999500)/(1+usloviya!$J$30) -> 124189834.5 | AX24: =SUM(PTT!AX$8:AX$999500)/(1+usloviya!$J$30) -> 136515524.7 | AY24: =SUM(PTT!AY$8:AY$999500)/(1+usloviya!$J$30) -> 154456715.6 | AZ24: =SUM(PTT!AZ$8:AZ$999500)/(1+usloviya!$J$30) -> 157058910.5 | BA24: =SUM(PTT!BA$8:BA$999500)/(1+usloviya!$J$30) -> 146600457.2 | BB24: =SUM(PTT!BB$8:BB$999500)/(1+usloviya!$J$30) -> 158174605.3 | BC24: =SUM(PTT!BC$8:BC$999500)/(1+usloviya!$J$30) -> 161569386.5 | BD24: =SUM(PTT!BD$8:BD$999500)/(1+usloviya!$J$30) -> 139383150.9 | BE24: =SUM(PTT!BE$8:BE$999500)/(1+usloviya!$J$30) -> 131607409.5 | BF24: =SUM(PTT!BF$8:BF$999500)/(1+usloviya!$J$30) -> 141396299.8 | BG24: =SUM(PTT!BG$8:BG$999500)/(1+usloviya!$J$30) -> 163023659.2 | BH24: =SUM(PTT!BH$8:BH$999500)/(1+usloviya!$J$30) -> 179159447.8 | BI24: =SUM(PTT!BI$8:BI$999500)/(1+usloviya!$J$30) -> 181751275.9 | BJ24: =SUM(PTT!BJ$8:BJ$999500)/(1+usloviya!$J$30) -> 203465456.9 | BK24: =SUM(PTT!BK$8:BK$999500)/(1+usloviya!$J$30) -> 230543537.6 | BL24: =SUM(PTT!BL$8:BL$999500)/(1+usloviya!$J$30) -> 240065154.8 | BM24: =SUM(PTT!BM$8:BM$999500)/(1+usloviya!$J$30) -> 228005440.3 | BN24: =SUM(PTT!BN$8:BN$999500)/(1+usloviya!$J$30) -> 254383615.3 | BO24: =SUM(PTT!BO$8:BO$999500)/(1+usloviya!$J$30) -> 258167994.1 | BP24: =SUM(PTT!BP$8:BP$999500)/(1+usloviya!$J$30) -> 221005713.8 | BQ24: =SUM(PTT!BQ$8:BQ$999500)/(1+usloviya!$J$30) -> 205489733.5 | BR24: =SUM(PTT!BR$8:BR$999500)/(1+usloviya!$J$30) -> 210084800.4 | BS24: =SUM(PTT!BS$8:BS$999500)/(1+usloviya!$J$30) -> 241760496.3 | BT24: =SUM(PTT!BT$8:BT$999500)/(1+usloviya!$J$30) -> 227579657.2 | BU24: =SUM(PTT!BU$8:BU$999500)/(1+usloviya!$J$30) -> 227724961.6 | BV24: =SUM(PTT!BV$8:BV$999500)/(1+usloviya!$J$30) -> 256248643.9 | BW24: =SUM(PTT!BW$8:BW$999500)/(1+usloviya!$J$30) -> 290331613.3 | BX24: =SUM(PTT!BX$8:BX$999500)/(1+usloviya!$J$30) -> 304377822.4 | BY24: =SUM(PTT!BY$8:BY$999500)/(1+usloviya!$J$30) -> 290470437.5 | BZ24: =SUM(PTT!BZ$8:BZ$999500)/(1+usloviya!$J$30) -> 326850215.7 | CA24: =SUM(PTT!CA$8:CA$999500)/(1+usloviya!$J$30) -> 331099628.3 | CB24: =SUM(PTT!CB$8:CB$999500)/(1+usloviya!$J$30) -> 282909030 | CC24: =SUM(PTT!CC$8:CC$999500)/(1+usloviya!$J$30) -> 262088185.6 | CD24: =SUM(PTT!CD$8:CD$999500)/(1+usloviya!$J$30) -> 264263440.7 | CE24: =SUM(PTT!CE$8:CE$999500)/(1+usloviya!$J$30) -> 304017226.2 | CF24: =SUM(PTT!CF$8:CF$999500)/(1+usloviya!$J$30) -> 286487377.3 | CG24: =SUM(PTT!CG$8:CG$999500)/(1+usloviya!$J$30) -> 283281474.9 | CH24: =SUM(PTT!CH$8:CH$999500)/(1+usloviya!$J$30) -> 320179321.3 | CI24: =SUM(PTT!CI$8:CI$999500)/(1+usloviya!$J$30) -> 362734136.9 | CJ24: =SUM(PTT!CJ$8:CJ$999500)/(1+usloviya!$J$30) -> 382499560.7 | CK24: =SUM(PTT!CK$8:CK$999500)/(1+usloviya!$J$30) -> 366505139.6 | CL24: =SUM(PTT!CL$8:CL$999500)/(1+usloviya!$J$30) -> 415288277.3 | CM24: =SUM(PTT!CM$8:CM$999500)/(1+usloviya!$J$30) -> 420073579.5 | CN24: =SUM(PTT!CN$8:CN$999500)/(1+usloviya!$J$30) -> 358413066.5 | CO24: =SUM(PTT!CO$8:CO$999500)/(1+usloviya!$J$30) -> 331026652 | CP24: =SUM(PTT!CP$8:CP$999500)/(1+usloviya!$J$30) -> 329853464.8 | CQ24: =SUM(PTT!CQ$8:CQ$999500)/(1+usloviya!$J$30) -> 379426528.3
K25: =K24 -> Продажи в ТТ без НДС | N25: =N24 -> руб. | P25: =spiski!$AL$12 -> E-commerce | U25: =SUM($W25:$CR25) -> 231249929.7 | X25: =SUMIFS(PTT!X:X,PTT!$R:$R,$P25)/(1+usloviya!$J$30) -> 385944.5426 | Y25: =SUMIFS(PTT!Y:Y,PTT!$R:$R,$P25)/(1+usloviya!$J$30) -> 471271.8063 | Z25: =SUMIFS(PTT!Z:Z,PTT!$R:$R,$P25)/(1+usloviya!$J$30) -> 493009.1882 | AA25: =SUMIFS(PTT!AA:AA,PTT!$R:$R,$P25)/(1+usloviya!$J$30) -> 560099.3853 | AB25: =SUMIFS(PTT!AB:AB,PTT!$R:$R,$P25)/(1+usloviya!$J$30) -> 529825.025 | AC25: =SUMIFS(PTT!AC:AC,PTT!$R:$R,$P25)/(1+usloviya!$J$30) -> 467201.1726 | AD25: =SUMIFS(PTT!AD:AD,PTT!$R:$R,$P25)/(1+usloviya!$J$30) -> 445796.0166 | AE25: =SUMIFS(PTT!AE:AE,PTT!$R:$R,$P25)/(1+usloviya!$J$30) -> 470989.599 | AF25: =SUMIFS(PTT!AF:AF,PTT!$R:$R,$P25)/(1+usloviya!$J$30) -> 418761.1907 | AG25: =SUMIFS(PTT!AG:AG,PTT!$R:$R,$P25)/(1+usloviya!$J$30) -> 413548.86 | AH25: =SUMIFS(PTT!AH:AH,PTT!$R:$R,$P25)/(1+usloviya!$J$30) -> 518859.4776 | AI25: =SUMIFS(PTT!AI:AI,PTT!$R:$R,$P25)/(1+usloviya!$J$30) -> 601863.2855 | AJ25: =SUMIFS(PTT!AJ:AJ,PTT!$R:$R,$P25)/(1+usloviya!$J$30) -> 1457614.323 | AK25: =SUMIFS(PTT!AK:AK,PTT!$R:$R,$P25)/(1+usloviya!$J$30) -> 1569319.435 | AL25: =SUMIFS(PTT!AL:AL,PTT!$R:$R,$P25)/(1+usloviya!$J$30) -> 1719228.434 | AM25: =SUMIFS(PTT!AM:AM,PTT!$R:$R,$P25)/(1+usloviya!$J$30) -> 1947059.772 | AN25: =SUMIFS(PTT!AN:AN,PTT!$R:$R,$P25)/(1+usloviya!$J$30) -> 1968777.502 | AO25: =SUMIFS(PTT!AO:AO,PTT!$R:$R,$P25)/(1+usloviya!$J$30) -> 1830364.499 | AP25: =SUMIFS(PTT!AP:AP,PTT!$R:$R,$P25)/(1+usloviya!$J$30) -> 1961851.329 | AQ25: =SUMIFS(PTT!AQ:AQ,PTT!$R:$R,$P25)/(1+usloviya!$J$30) -> 2007672.803 | AR25: =SUMIFS(PTT!AR:AR,PTT!$R:$R,$P25)/(1+usloviya!$J$30) -> 1733891.336 | AS25: =SUMIFS(PTT!AS:AS,PTT!$R:$R,$P25)/(1+usloviya!$J$30) -> 1640835.536 | AT25: =SUMIFS(PTT!AT:AT,PTT!$R:$R,$P25)/(1+usloviya!$J$30) -> 1782728.311 | AU25: =SUMIFS(PTT!AU:AU,PTT!$R:$R,$P25)/(1+usloviya!$J$30) -> 2055563.733 | AV25: =SUMIFS(PTT!AV:AV,PTT!$R:$R,$P25)/(1+usloviya!$J$30) -> 1980856.116 | AW25: =SUMIFS(PTT!AW:AW,PTT!$R:$R,$P25)/(1+usloviya!$J$30) -> 2111227.186 | AX25: =SUMIFS(PTT!AX:AX,PTT!$R:$R,$P25)/(1+usloviya!$J$30) -> 2320763.92 | AY25: =SUMIFS(PTT!AY:AY,PTT!$R:$R,$P25)/(1+usloviya!$J$30) -> 2625764.165 | AZ25: =SUMIFS(PTT!AZ:AZ,PTT!$R:$R,$P25)/(1+usloviya!$J$30) -> 2670001.479 | BA25: =SUMIFS(PTT!BA:BA,PTT!$R:$R,$P25)/(1+usloviya!$J$30) -> 2492207.773 | BB25: =SUMIFS(PTT!BB:BB,PTT!$R:$R,$P25)/(1+usloviya!$J$30) -> 2688968.291 | BC25: =SUMIFS(PTT!BC:BC,PTT!$R:$R,$P25)/(1+usloviya!$J$30) -> 2746679.57 | BD25: =SUMIFS(PTT!BD:BD,PTT!$R:$R,$P25)/(1+usloviya!$J$30) -> 2369513.565 | BE25: =SUMIFS(PTT!BE:BE,PTT!$R:$R,$P25)/(1+usloviya!$J$30) -> 2237325.961 | BF25: =SUMIFS(PTT!BF:BF,PTT!$R:$R,$P25)/(1+usloviya!$J$30) -> 2403737.096 | BG25: =SUMIFS(PTT!BG:BG,PTT!$R:$R,$P25)/(1+usloviya!$J$30) -> 2771402.207 | BH25: =SUMIFS(PTT!BH:BH,PTT!$R:$R,$P25)/(1+usloviya!$J$30) -> 3045710.613 | BI25: =SUMIFS(PTT!BI:BI,PTT!$R:$R,$P25)/(1+usloviya!$J$30) -> 3089771.691 | BJ25: =SUMIFS(PTT!BJ:BJ,PTT!$R:$R,$P25)/(1+usloviya!$J$30) -> 3458912.768 | BK25: =SUMIFS(PTT!BK:BK,PTT!$R:$R,$P25)/(1+usloviya!$J$30) -> 3919240.14 | BL25: =SUMIFS(PTT!BL:BL,PTT!$R:$R,$P25)/(1+usloviya!$J$30) -> 4081107.631 | BM25: =SUMIFS(PTT!BM:BM,PTT!$R:$R,$P25)/(1+usloviya!$J$30) -> 3876092.485 | BN25: =SUMIFS(PTT!BN:BN,PTT!$R:$R,$P25)/(1+usloviya!$J$30) -> 4324521.459 | BO25: =SUMIFS(PTT!BO:BO,PTT!$R:$R,$P25)/(1+usloviya!$J$30) -> 4388855.901 | BP25: =SUMIFS(PTT!BP:BP,PTT!$R:$R,$P25)/(1+usloviya!$J$30) -> 3757097.134 | BQ25: =SUMIFS(PTT!BQ:BQ,PTT!$R:$R,$P25)/(1+usloviya!$J$30) -> 3493325.47 | BR25: =SUMIFS(PTT!BR:BR,PTT!$R:$R,$P25)/(1+usloviya!$J$30) -> 3571441.607 | BS25: =SUMIFS(PTT!BS:BS,PTT!$R:$R,$P25)/(1+usloviya!$J$30) -> 4109928.436 | BT25: =SUMIFS(PTT!BT:BT,PTT!$R:$R,$P25)/(1+usloviya!$J$30) -> 3868854.173 | BU25: =SUMIFS(PTT!BU:BU,PTT!$R:$R,$P25)/(1+usloviya!$J$30) -> 3871324.347 | BV25: =SUMIFS(PTT!BV:BV,PTT!$R:$R,$P25)/(1+usloviya!$J$30) -> 4356226.946 | BW25: =SUMIFS(PTT!BW:BW,PTT!$R:$R,$P25)/(1+usloviya!$J$30) -> 4935637.426 | BX25: =SUMIFS(PTT!BX:BX,PTT!$R:$R,$P25)/(1+usloviya!$J$30) -> 5174422.981 | BY25: =SUMIFS(PTT!BY:BY,PTT!$R:$R,$P25)/(1+usloviya!$J$30) -> 4937997.437 | BZ25: =SUMIFS(PTT!BZ:BZ,PTT!$R:$R,$P25)/(1+usloviya!$J$30) -> 5556453.666 | CA25: =SUMIFS(PTT!CA:CA,PTT!$R:$R,$P25)/(1+usloviya!$J$30) -> 5628693.681 | CB25: =SUMIFS(PTT!CB:CB,PTT!$R:$R,$P25)/(1+usloviya!$J$30) -> 4809453.509 | CC25: =SUMIFS(PTT!CC:CC,PTT!$R:$R,$P25)/(1+usloviya!$J$30) -> 4455499.156 | CD25: =SUMIFS(PTT!CD:CD,PTT!$R:$R,$P25)/(1+usloviya!$J$30) -> 4492478.492 | CE25: =SUMIFS(PTT!CE:CE,PTT!$R:$R,$P25)/(1+usloviya!$J$30) -> 5168292.845 | CF25: =SUMIFS(PTT!CF:CF,PTT!$R:$R,$P25)/(1+usloviya!$J$30) -> 4870285.415 | CG25: =SUMIFS(PTT!CG:CG,PTT!$R:$R,$P25)/(1+usloviya!$J$30) -> 4815785.074 | CH25: =SUMIFS(PTT!CH:CH,PTT!$R:$R,$P25)/(1+usloviya!$J$30) -> 5443048.462 | CI25: =SUMIFS(PTT!CI:CI,PTT!$R:$R,$P25)/(1+usloviya!$J$30) -> 6166480.326 | CJ25: =SUMIFS(PTT!CJ:CJ,PTT!$R:$R,$P25)/(1+usloviya!$J$30) -> 6502492.532 | CK25: =SUMIFS(PTT!CK:CK,PTT!$R:$R,$P25)/(1+usloviya!$J$30) -> 6230587.374 | CL25: =SUMIFS(PTT!CL:CL,PTT!$R:$R,$P25)/(1+usloviya!$J$30) -> 7059900.714 | CM25: =SUMIFS(PTT!CM:CM,PTT!$R:$R,$P25)/(1+usloviya!$J$30) -> 7141250.851 | CN25: =SUMIFS(PTT!CN:CN,PTT!$R:$R,$P25)/(1+usloviya!$J$30) -> 6093022.13 | CO25: =SUMIFS(PTT!CO:CO,PTT!$R:$R,$P25)/(1+usloviya!$J$30) -> 5627453.083 | CP25: =SUMIFS(PTT!CP:CP,PTT!$R:$R,$P25)/(1+usloviya!$J$30) -> 5607508.901 | CQ25: =SUMIFS(PTT!CQ:CQ,PTT!$R:$R,$P25)/(1+usloviya!$J$30) -> 6450250.982
K26: =K24 -> Продажи в ТТ без НДС | N26: =N24 -> руб. | P26: =spiski!$AL$13 -> OwnOff-line | U26: 499953192.7 | X26: =SUMIFS(PTT!X:X,PTT!$R:$R,$P26)/(1+usloviya!$J$30) -> 461739.7478 | Y26: =SUMIFS(PTT!Y:Y,PTT!$R:$R,$P26)/(1+usloviya!$J$30) -> 547885.8091 | Z26: =SUMIFS(PTT!Z:Z,PTT!$R:$R,$P26)/(1+usloviya!$J$30) -> 578090.8083 | AA26: =SUMIFS(PTT!AA:AA,PTT!$R:$R,$P26)/(1+usloviya!$J$30) -> 653471.195 | AB26: =SUMIFS(PTT!AB:AB,PTT!$R:$R,$P26)/(1+usloviya!$J$30) -> 627396.9903 | AC26: =SUMIFS(PTT!AC:AC,PTT!$R:$R,$P26)/(1+usloviya!$J$30) -> 560021.4932 | AD26: =SUMIFS(PTT!AD:AD,PTT!$R:$R,$P26)/(1+usloviya!$J$30) -> 543741.7009 | AE26: =SUMIFS(PTT!AE:AE,PTT!$R:$R,$P26)/(1+usloviya!$J$30) -> 570846.8705 | AF26: =SUMIFS(PTT!AF:AF,PTT!$R:$R,$P26)/(1+usloviya!$J$30) -> 506678.2045 | AG26: =SUMIFS(PTT!AG:AG,PTT!$R:$R,$P26)/(1+usloviya!$J$30) -> 497790.735 | AH26: =SUMIFS(PTT!AH:AH,PTT!$R:$R,$P26)/(1+usloviya!$J$30) -> 604791.1555 | AI26: =SUMIFS(PTT!AI:AI,PTT!$R:$R,$P26)/(1+usloviya!$J$30) -> 705359.0591 | AJ26: =SUMIFS(PTT!AJ:AJ,PTT!$R:$R,$P26)/(1+usloviya!$J$30) -> 2778500.284 | AK26: =SUMIFS(PTT!AK:AK,PTT!$R:$R,$P26)/(1+usloviya!$J$30) -> 2737805.827 | AL26: =SUMIFS(PTT!AL:AL,PTT!$R:$R,$P26)/(1+usloviya!$J$30) -> 3103152.628 | AM26: =SUMIFS(PTT!AM:AM,PTT!$R:$R,$P26)/(1+usloviya!$J$30) -> 3500053.873 | AN26: =SUMIFS(PTT!AN:AN,PTT!$R:$R,$P26)/(1+usloviya!$J$30) -> 3704997.041 | AO26: =SUMIFS(PTT!AO:AO,PTT!$R:$R,$P26)/(1+usloviya!$J$30) -> 3559594.962 | AP26: =SUMIFS(PTT!AP:AP,PTT!$R:$R,$P26)/(1+usloviya!$J$30) -> 4050890.562 | AQ26: =SUMIFS(PTT!AQ:AQ,PTT!$R:$R,$P26)/(1+usloviya!$J$30) -> 4080379.681 | AR26: =SUMIFS(PTT!AR:AR,PTT!$R:$R,$P26)/(1+usloviya!$J$30) -> 3475522.431 | AS26: =SUMIFS(PTT!AS:AS,PTT!$R:$R,$P26)/(1+usloviya!$J$30) -> 3216262.984 | AT26: =SUMIFS(PTT!AT:AT,PTT!$R:$R,$P26)/(1+usloviya!$J$30) -> 3179402.998 | AU26: =SUMIFS(PTT!AU:AU,PTT!$R:$R,$P26)/(1+usloviya!$J$30) -> 3660240.065 | AV26: =SUMIFS(PTT!AV:AV,PTT!$R:$R,$P26)/(1+usloviya!$J$30) -> 3863959.423 | AW26: =SUMIFS(PTT!AW:AW,PTT!$R:$R,$P26)/(1+usloviya!$J$30) -> 3767171.15 | AX26: =SUMIFS(PTT!AX:AX,PTT!$R:$R,$P26)/(1+usloviya!$J$30) -> 4285179.603 | AY26: =SUMIFS(PTT!AY:AY,PTT!$R:$R,$P26)/(1+usloviya!$J$30) -> 4826926.675 | AZ26: =SUMIFS(PTT!AZ:AZ,PTT!$R:$R,$P26)/(1+usloviya!$J$30) -> 5140508.982 | BA26: =SUMIFS(PTT!BA:BA,PTT!$R:$R,$P26)/(1+usloviya!$J$30) -> 4957947.161 | BB26: =SUMIFS(PTT!BB:BB,PTT!$R:$R,$P26)/(1+usloviya!$J$30) -> 5672657.958 | BC26: =SUMIFS(PTT!BC:BC,PTT!$R:$R,$P26)/(1+usloviya!$J$30) -> 5705469.813 | BD26: =SUMIFS(PTT!BD:BD,PTT!$R:$R,$P26)/(1+usloviya!$J$30) -> 4856775.589 | BE26: =SUMIFS(PTT!BE:BE,PTT!$R:$R,$P26)/(1+usloviya!$J$30) -> 4486761.508 | BF26: =SUMIFS(PTT!BF:BF,PTT!$R:$R,$P26)/(1+usloviya!$J$30) -> 4385483.738 | BG26: =SUMIFS(PTT!BG:BG,PTT!$R:$R,$P26)/(1+usloviya!$J$30) -> 5048552.251 | BH26: =SUMIFS(PTT!BH:BH,PTT!$R:$R,$P26)/(1+usloviya!$J$30) -> 6701321.855 | BI26: =SUMIFS(PTT!BI:BI,PTT!$R:$R,$P26)/(1+usloviya!$J$30) -> 6278584.743 | BJ26: =SUMIFS(PTT!BJ:BJ,PTT!$R:$R,$P26)/(1+usloviya!$J$30) -> 7251263.837 | BK26: =SUMIFS(PTT!BK:BK,PTT!$R:$R,$P26)/(1+usloviya!$J$30) -> 8196513.375 | BL26: =SUMIFS(PTT!BL:BL,PTT!$R:$R,$P26)/(1+usloviya!$J$30) -> 8883610.992 | BM26: =SUMIFS(PTT!BM:BM,PTT!$R:$R,$P26)/(1+usloviya!$J$30) -> 8672083.495 | BN26: =SUMIFS(PTT!BN:BN,PTT!$R:$R,$P26)/(1+usloviya!$J$30) -> 10147413.43 | BO26: =SUMIFS(PTT!BO:BO,PTT!$R:$R,$P26)/(1+usloviya!$J$30) -> 10179148.69 | BP26: =SUMIFS(PTT!BP:BP,PTT!$R:$R,$P26)/(1+usloviya!$J$30) -> 8620777.98 | BQ26: =SUMIFS(PTT!BQ:BQ,PTT!$R:$R,$P26)/(1+usloviya!$J$30) -> 7866570.29 | BR26: =SUMIFS(PTT!BR:BR,PTT!$R:$R,$P26)/(1+usloviya!$J$30) -> 7416917.934 | BS26: =SUMIFS(PTT!BS:BS,PTT!$R:$R,$P26)/(1+usloviya!$J$30) -> 8519605.185 | BT26: =SUMIFS(PTT!BT:BT,PTT!$R:$R,$P26)/(1+usloviya!$J$30) -> 8784875.502 | BU26: =SUMIFS(PTT!BU:BU,PTT!$R:$R,$P26)/(1+usloviya!$J$30) -> 8157217.659 | BV26: =SUMIFS(PTT!BV:BV,PTT!$R:$R,$P26)/(1+usloviya!$J$30) -> 9453469.45 | BW26: =SUMIFS(PTT!BW:BW,PTT!$R:$R,$P26)/(1+usloviya!$J$30) -> 10687853.72 | BX26: =SUMIFS(PTT!BX:BX,PTT!$R:$R,$P26)/(1+usloviya!$J$30) -> 11632736.13 | BY26: =SUMIFS(PTT!BY:BY,PTT!$R:$R,$P26)/(1+usloviya!$J$30) -> 11387363.3 | BZ26: =SUMIFS(PTT!BZ:BZ,PTT!$R:$R,$P26)/(1+usloviya!$J$30) -> 13386164.44 | CA26: =SUMIFS(PTT!CA:CA,PTT!$R:$R,$P26)/(1+usloviya!$J$30) -> 13417601.46 | CB26: =SUMIFS(PTT!CB:CB,PTT!$R:$R,$P26)/(1+usloviya!$J$30) -> 11352638.11 | CC26: =SUMIFS(PTT!CC:CC,PTT!$R:$R,$P26)/(1+usloviya!$J$30) -> 10336415.96 | CD26: =SUMIFS(PTT!CD:CD,PTT!$R:$R,$P26)/(1+usloviya!$J$30) -> 9664175.495 | CE26: =SUMIFS(PTT!CE:CE,PTT!$R:$R,$P26)/(1+usloviya!$J$30) -> 11098824.48 | CF26: =SUMIFS(PTT!CF:CF,PTT!$R:$R,$P26)/(1+usloviya!$J$30) -> 11345406.08 | CG26: =SUMIFS(PTT!CG:CG,PTT!$R:$R,$P26)/(1+usloviya!$J$30) -> 10455992.26 | CH26: =SUMIFS(PTT!CH:CH,PTT!$R:$R,$P26)/(1+usloviya!$J$30) -> 12151675.81 | CI26: =SUMIFS(PTT!CI:CI,PTT!$R:$R,$P26)/(1+usloviya!$J$30) -> 13739959.32 | CJ26: =SUMIFS(PTT!CJ:CJ,PTT!$R:$R,$P26)/(1+usloviya!$J$30) -> 15006789.85 | CK26: =SUMIFS(PTT!CK:CK,PTT!$R:$R,$P26)/(1+usloviya!$J$30) -> 14723825.58 | CL26: =SUMIFS(PTT!CL:CL,PTT!$R:$R,$P26)/(1+usloviya!$J$30) -> 17369471.19 | CM26: =SUMIFS(PTT!CM:CM,PTT!$R:$R,$P26)/(1+usloviya!$J$30) -> 17400844.99 | CN26: =SUMIFS(PTT!CN:CN,PTT!$R:$R,$P26)/(1+usloviya!$J$30) -> 14713504.96 | CO26: =SUMIFS(PTT!CO:CO,PTT!$R:$R,$P26)/(1+usloviya!$J$30) -> 13372686.54 | CP26: =SUMIFS(PTT!CP:CP,PTT!$R:$R,$P26)/(1+usloviya!$J$30) -> 12417156.24 | CQ26: =SUMIFS(PTT!CQ:CQ,PTT!$R:$R,$P26)/(1+usloviya!$J$30) -> 14260721.42
K27: =K24 -> Продажи в ТТ без НДС | N27: =N24 -> руб. | P27: =spiski!$AL$14 -> Комиссия | U27: 3726050403 | X27: =SUMIFS(PTT!X:X,PTT!$R:$R,$P27)/(1+usloviya!$J$30) -> 5541033.06 | Y27: =SUMIFS(PTT!Y:Y,PTT!$R:$R,$P27)/(1+usloviya!$J$30) -> 6737103.475 | Z27: =SUMIFS(PTT!Z:Z,PTT!$R:$R,$P27)/(1+usloviya!$J$30) -> 7056822.49 | AA27: =SUMIFS(PTT!AA:AA,PTT!$R:$R,$P27)/(1+usloviya!$J$30) -> 8011158.321 | AB27: =SUMIFS(PTT!AB:AB,PTT!$R:$R,$P27)/(1+usloviya!$J$30) -> 7594953.923 | AC27: =SUMIFS(PTT!AC:AC,PTT!$R:$R,$P27)/(1+usloviya!$J$30) -> 6709580.636 | AD27: =SUMIFS(PTT!AD:AD,PTT!$R:$R,$P27)/(1+usloviya!$J$30) -> 6419227.295 | AE27: =SUMIFS(PTT!AE:AE,PTT!$R:$R,$P27)/(1+usloviya!$J$30) -> 6775413.061 | AF27: =SUMIFS(PTT!AF:AF,PTT!$R:$R,$P27)/(1+usloviya!$J$30) -> 6022505.786 | AG27: =SUMIFS(PTT!AG:AG,PTT!$R:$R,$P27)/(1+usloviya!$J$30) -> 5942851.085 | AH27: =SUMIFS(PTT!AH:AH,PTT!$R:$R,$P27)/(1+usloviya!$J$30) -> 7420272.101 | AI27: =SUMIFS(PTT!AI:AI,PTT!$R:$R,$P27)/(1+usloviya!$J$30) -> 8614260.131 | AJ27: =SUMIFS(PTT!AJ:AJ,PTT!$R:$R,$P27)/(1+usloviya!$J$30) -> 22808211.37 | AK27: =SUMIFS(PTT!AK:AK,PTT!$R:$R,$P27)/(1+usloviya!$J$30) -> 24094992.81 | AL27: =SUMIFS(PTT!AL:AL,PTT!$R:$R,$P27)/(1+usloviya!$J$30) -> 26585423.88 | AM27: =SUMIFS(PTT!AM:AM,PTT!$R:$R,$P27)/(1+usloviya!$J$30) -> 30082462.44 | AN27: =SUMIFS(PTT!AN:AN,PTT!$R:$R,$P27)/(1+usloviya!$J$30) -> 30719647.83 | AO27: =SUMIFS(PTT!AO:AO,PTT!$R:$R,$P27)/(1+usloviya!$J$30) -> 28769158.37 | AP27: =SUMIFS(PTT!AP:AP,PTT!$R:$R,$P27)/(1+usloviya!$J$30) -> 31264171.76 | AQ27: =SUMIFS(PTT!AQ:AQ,PTT!$R:$R,$P27)/(1+usloviya!$J$30) -> 31875977.21 | AR27: =SUMIFS(PTT!AR:AR,PTT!$R:$R,$P27)/(1+usloviya!$J$30) -> 27441080.7 | AS27: =SUMIFS(PTT!AS:AS,PTT!$R:$R,$P27)/(1+usloviya!$J$30) -> 25836111.04 | AT27: =SUMIFS(PTT!AT:AT,PTT!$R:$R,$P27)/(1+usloviya!$J$30) -> 27497604.87 | AU27: =SUMIFS(PTT!AU:AU,PTT!$R:$R,$P27)/(1+usloviya!$J$30) -> 31695485.59 | AV27: =SUMIFS(PTT!AV:AV,PTT!$R:$R,$P27)/(1+usloviya!$J$30) -> 31155809.82 | AW27: =SUMIFS(PTT!AW:AW,PTT!$R:$R,$P27)/(1+usloviya!$J$30) -> 32567987.81 | AX27: =SUMIFS(PTT!AX:AX,PTT!$R:$R,$P27)/(1+usloviya!$J$30) -> 36062359.76 | AY27: =SUMIFS(PTT!AY:AY,PTT!$R:$R,$P27)/(1+usloviya!$J$30) -> 40762811.96 | AZ27: =SUMIFS(PTT!AZ:AZ,PTT!$R:$R,$P27)/(1+usloviya!$J$30) -> 41871852.53 | BA27: =SUMIFS(PTT!BA:BA,PTT!$R:$R,$P27)/(1+usloviya!$J$30) -> 39374071.35 | BB27: =SUMIFS(PTT!BB:BB,PTT!$R:$R,$P27)/(1+usloviya!$J$30) -> 43070446.37 | BC27: =SUMIFS(PTT!BC:BC,PTT!$R:$R,$P27)/(1+usloviya!$J$30) -> 43833132.6 | BD27: =SUMIFS(PTT!BD:BD,PTT!$R:$R,$P27)/(1+usloviya!$J$30) -> 37695484.49 | BE27: =SUMIFS(PTT!BE:BE,PTT!$R:$R,$P27)/(1+usloviya!$J$30) -> 35412446.27 | BF27: =SUMIFS(PTT!BF:BF,PTT!$R:$R,$P27)/(1+usloviya!$J$30) -> 37255495.05 | BG27: =SUMIFS(PTT!BG:BG,PTT!$R:$R,$P27)/(1+usloviya!$J$30) -> 42939903.71 | BH27: =SUMIFS(PTT!BH:BH,PTT!$R:$R,$P27)/(1+usloviya!$J$30) -> 49286514.47 | BI27: =SUMIFS(PTT!BI:BI,PTT!$R:$R,$P27)/(1+usloviya!$J$30) -> 49054645.58 | BJ27: =SUMIFS(PTT!BJ:BJ,PTT!$R:$R,$P27)/(1+usloviya!$J$30) -> 55319962.52 | BK27: =SUMIFS(PTT!BK:BK,PTT!$R:$R,$P27)/(1+usloviya!$J$30) -> 62646222.39 | BL27: =SUMIFS(PTT!BL:BL,PTT!$R:$R,$P27)/(1+usloviya!$J$30) -> 65867331.13 | BM27: =SUMIFS(PTT!BM:BM,PTT!$R:$R,$P27)/(1+usloviya!$J$30) -> 62985278.45 | BN27: =SUMIFS(PTT!BN:BN,PTT!$R:$R,$P27)/(1+usloviya!$J$30) -> 71130376.74 | BO27: =SUMIFS(PTT!BO:BO,PTT!$R:$R,$P27)/(1+usloviya!$J$30) -> 71971787.67 | BP27: =SUMIFS(PTT!BP:BP,PTT!$R:$R,$P27)/(1+usloviya!$J$30) -> 61442415.96 | BQ27: =SUMIFS(PTT!BQ:BQ,PTT!$R:$R,$P27)/(1+usloviya!$J$30) -> 56857910.8 | BR27: =SUMIFS(PTT!BR:BR,PTT!$R:$R,$P27)/(1+usloviya!$J$30) -> 56991957.64 | BS27: =SUMIFS(PTT!BS:BS,PTT!$R:$R,$P27)/(1+usloviya!$J$30) -> 65556592.2 | BT27: =SUMIFS(PTT!BT:BT,PTT!$R:$R,$P27)/(1+usloviya!$J$30) -> 63102179.02 | BU27: =SUMIFS(PTT!BU:BU,PTT!$R:$R,$P27)/(1+usloviya!$J$30) -> 61991074.16 | BV27: =SUMIFS(PTT!BV:BV,PTT!$R:$R,$P27)/(1+usloviya!$J$30) -> 70254890.88 | BW27: =SUMIFS(PTT!BW:BW,PTT!$R:$R,$P27)/(1+usloviya!$J$30) -> 79557499.04 | BX27: =SUMIFS(PTT!BX:BX,PTT!$R:$R,$P27)/(1+usloviya!$J$30) -> 84184309.28 | BY27: =SUMIFS(PTT!BY:BY,PTT!$R:$R,$P27)/(1+usloviya!$J$30) -> 80858083.88 | BZ27: =SUMIFS(PTT!BZ:BZ,PTT!$R:$R,$P27)/(1+usloviya!$J$30) -> 92026189.09 | CA27: =SUMIFS(PTT!CA:CA,PTT!$R:$R,$P27)/(1+usloviya!$J$30) -> 92963362.05 | CB27: =SUMIFS(PTT!CB:CB,PTT!$R:$R,$P27)/(1+usloviya!$J$30) -> 79229048.41 | CC27: =SUMIFS(PTT!CC:CC,PTT!$R:$R,$P27)/(1+usloviya!$J$30) -> 73069564.19 | CD27: =SUMIFS(PTT!CD:CD,PTT!$R:$R,$P27)/(1+usloviya!$J$30) -> 72297784.35 | CE27: =SUMIFS(PTT!CE:CE,PTT!$R:$R,$P27)/(1+usloviya!$J$30) -> 83138884.61 | CF27: =SUMIFS(PTT!CF:CF,PTT!$R:$R,$P27)/(1+usloviya!$J$30) -> 79956942.46 | CG27: =SUMIFS(PTT!CG:CG,PTT!$R:$R,$P27)/(1+usloviya!$J$30) -> 77675913.18 | CH27: =SUMIFS(PTT!CH:CH,PTT!$R:$R,$P27)/(1+usloviya!$J$30) -> 88400182.74 | CI27: =SUMIFS(PTT!CI:CI,PTT!$R:$R,$P27)/(1+usloviya!$J$30) -> 100100686.4 | CJ27: =SUMIFS(PTT!CJ:CJ,PTT!$R:$R,$P27)/(1+usloviya!$J$30) -> 106497254.2 | CK27: =SUMIFS(PTT!CK:CK,PTT!$R:$R,$P27)/(1+usloviya!$J$30) -> 102670474.5 | CL27: =SUMIFS(PTT!CL:CL,PTT!$R:$R,$P27)/(1+usloviya!$J$30) -> 117583283.6 | CM27: =SUMIFS(PTT!CM:CM,PTT!$R:$R,$P27)/(1+usloviya!$J$30) -> 118631319.4 | CN27: =SUMIFS(PTT!CN:CN,PTT!$R:$R,$P27)/(1+usloviya!$J$30) -> 100975915 | CO27: =SUMIFS(PTT!CO:CO,PTT!$R:$R,$P27)/(1+usloviya!$J$30) -> 92866585.83 | CP27: =SUMIFS(PTT!CP:CP,PTT!$R:$R,$P27)/(1+usloviya!$J$30) -> 90886301.59 | CQ27: =SUMIFS(PTT!CQ:CQ,PTT!$R:$R,$P27)/(1+usloviya!$J$30) -> 104504369.1
K28: =K24 -> Продажи в ТТ без НДС | N28: =N24 -> руб. | P28: =spiski!$AL$15 -> HORECA | U28: 3669341328 | X28: =SUMIFS(PTT!X:X,PTT!$R:$R,$P28)/(1+usloviya!$J$30) -> 5694826.504 | Y28: =SUMIFS(PTT!Y:Y,PTT!$R:$R,$P28)/(1+usloviya!$J$30) -> 6935524.312 | Z28: =SUMIFS(PTT!Z:Z,PTT!$R:$R,$P28)/(1+usloviya!$J$30) -> 7261106.274 | AA28: =SUMIFS(PTT!AA:AA,PTT!$R:$R,$P28)/(1+usloviya!$J$30) -> 8245433.651 | AB28: =SUMIFS(PTT!AB:AB,PTT!$R:$R,$P28)/(1+usloviya!$J$30) -> 7810401.547 | AC28: =SUMIFS(PTT!AC:AC,PTT!$R:$R,$P28)/(1+usloviya!$J$30) -> 6895042.22 | AD28: =SUMIFS(PTT!AD:AD,PTT!$R:$R,$P28)/(1+usloviya!$J$30) -> 6589939.828 | AE28: =SUMIFS(PTT!AE:AE,PTT!$R:$R,$P28)/(1+usloviya!$J$30) -> 6958188.981 | AF28: =SUMIFS(PTT!AF:AF,PTT!$R:$R,$P28)/(1+usloviya!$J$30) -> 6185591.544 | AG28: =SUMIFS(PTT!AG:AG,PTT!$R:$R,$P28)/(1+usloviya!$J$30) -> 6105627.467 | AH28: =SUMIFS(PTT!AH:AH,PTT!$R:$R,$P28)/(1+usloviya!$J$30) -> 7637674.627 | AI28: =SUMIFS(PTT!AI:AI,PTT!$R:$R,$P28)/(1+usloviya!$J$30) -> 8863896.452 | AJ28: =SUMIFS(PTT!AJ:AJ,PTT!$R:$R,$P28)/(1+usloviya!$J$30) -> 22699298.9 | AK28: =SUMIFS(PTT!AK:AK,PTT!$R:$R,$P28)/(1+usloviya!$J$30) -> 24146818.05 | AL28: =SUMIFS(PTT!AL:AL,PTT!$R:$R,$P28)/(1+usloviya!$J$30) -> 26572987.51 | AM28: =SUMIFS(PTT!AM:AM,PTT!$R:$R,$P28)/(1+usloviya!$J$30) -> 30077929.39 | AN28: =SUMIFS(PTT!AN:AN,PTT!$R:$R,$P28)/(1+usloviya!$J$30) -> 30604462.11 | AO28: =SUMIFS(PTT!AO:AO,PTT!$R:$R,$P28)/(1+usloviya!$J$30) -> 28585354.56 | AP28: =SUMIFS(PTT!AP:AP,PTT!$R:$R,$P28)/(1+usloviya!$J$30) -> 30910106.11 | AQ28: =SUMIFS(PTT!AQ:AQ,PTT!$R:$R,$P28)/(1+usloviya!$J$30) -> 31557058.23 | AR28: =SUMIFS(PTT!AR:AR,PTT!$R:$R,$P28)/(1+usloviya!$J$30) -> 27197935.77 | AS28: =SUMIFS(PTT!AS:AS,PTT!$R:$R,$P28)/(1+usloviya!$J$30) -> 25654503.71 | AT28: =SUMIFS(PTT!AT:AT,PTT!$R:$R,$P28)/(1+usloviya!$J$30) -> 27510285.76 | AU28: =SUMIFS(PTT!AU:AU,PTT!$R:$R,$P28)/(1+usloviya!$J$30) -> 31713940.99 | AV28: =SUMIFS(PTT!AV:AV,PTT!$R:$R,$P28)/(1+usloviya!$J$30) -> 30949096.15 | AW28: =SUMIFS(PTT!AW:AW,PTT!$R:$R,$P28)/(1+usloviya!$J$30) -> 32581733.68 | AX28: =SUMIFS(PTT!AX:AX,PTT!$R:$R,$P28)/(1+usloviya!$J$30) -> 35981389.03 | AY28: =SUMIFS(PTT!AY:AY,PTT!$R:$R,$P28)/(1+usloviya!$J$30) -> 40685480.73 | AZ28: =SUMIFS(PTT!AZ:AZ,PTT!$R:$R,$P28)/(1+usloviya!$J$30) -> 41638377.72 | BA28: =SUMIFS(PTT!BA:BA,PTT!$R:$R,$P28)/(1+usloviya!$J$30) -> 39049649.2 | BB28: =SUMIFS(PTT!BB:BB,PTT!$R:$R,$P28)/(1+usloviya!$J$30) -> 42504891.38 | BC28: =SUMIFS(PTT!BC:BC,PTT!$R:$R,$P28)/(1+usloviya!$J$30) -> 43314730.25 | BD28: =SUMIFS(PTT!BD:BD,PTT!$R:$R,$P28)/(1+usloviya!$J$30) -> 37291758.17 | BE28: =SUMIFS(PTT!BE:BE,PTT!$R:$R,$P28)/(1+usloviya!$J$30) -> 35097289.26 | BF28: =SUMIFS(PTT!BF:BF,PTT!$R:$R,$P28)/(1+usloviya!$J$30) -> 37206897.32 | BG28: =SUMIFS(PTT!BG:BG,PTT!$R:$R,$P28)/(1+usloviya!$J$30) -> 42889016.61 | BH28: =SUMIFS(PTT!BH:BH,PTT!$R:$R,$P28)/(1+usloviya!$J$30) -> 48461875.34 | BI28: =SUMIFS(PTT!BI:BI,PTT!$R:$R,$P28)/(1+usloviya!$J$30) -> 48564531.7 | BJ28: =SUMIFS(PTT!BJ:BJ,PTT!$R:$R,$P28)/(1+usloviya!$J$30) -> 54622917.58 | BK28: =SUMIFS(PTT!BK:BK,PTT!$R:$R,$P28)/(1+usloviya!$J$30) -> 61869598.74 | BL28: =SUMIFS(PTT!BL:BL,PTT!$R:$R,$P28)/(1+usloviya!$J$30) -> 64826248.61 | BM28: =SUMIFS(PTT!BM:BM,PTT!$R:$R,$P28)/(1+usloviya!$J$30) -> 61840000.07 | BN28: =SUMIFS(PTT!BN:BN,PTT!$R:$R,$P28)/(1+usloviya!$J$30) -> 69537901.3 | BO28: =SUMIFS(PTT!BO:BO,PTT!$R:$R,$P28)/(1+usloviya!$J$30) -> 70435104.43 | BP28: =SUMIFS(PTT!BP:BP,PTT!$R:$R,$P28)/(1+usloviya!$J$30) -> 60189013.49 | BQ28: =SUMIFS(PTT!BQ:BQ,PTT!$R:$R,$P28)/(1+usloviya!$J$30) -> 55791821.86 | BR28: =SUMIFS(PTT!BR:BR,PTT!$R:$R,$P28)/(1+usloviya!$J$30) -> 56319069.96 | BS28: =SUMIFS(PTT!BS:BS,PTT!$R:$R,$P28)/(1+usloviya!$J$30) -> 64792652.16 | BT28: =SUMIFS(PTT!BT:BT,PTT!$R:$R,$P28)/(1+usloviya!$J$30) -> 61873048.38 | BU28: =SUMIFS(PTT!BU:BU,PTT!$R:$R,$P28)/(1+usloviya!$J$30) -> 61183336.6 | BV28: =SUMIFS(PTT!BV:BV,PTT!$R:$R,$P28)/(1+usloviya!$J$30) -> 69162967.01 | BW28: =SUMIFS(PTT!BW:BW,PTT!$R:$R,$P28)/(1+usloviya!$J$30) -> 78335672.7 | BX28: =SUMIFS(PTT!BX:BX,PTT!$R:$R,$P28)/(1+usloviya!$J$30) -> 82618167.58 | BY28: =SUMIFS(PTT!BY:BY,PTT!$R:$R,$P28)/(1+usloviya!$J$30) -> 79172740.57 | BZ28: =SUMIFS(PTT!BZ:BZ,PTT!$R:$R,$P28)/(1+usloviya!$J$30) -> 89748033.85 | CA28: =SUMIFS(PTT!CA:CA,PTT!$R:$R,$P28)/(1+usloviya!$J$30) -> 90750653.51 | CB28: =SUMIFS(PTT!CB:CB,PTT!$R:$R,$P28)/(1+usloviya!$J$30) -> 77413106.61 | CC28: =SUMIFS(PTT!CC:CC,PTT!$R:$R,$P28)/(1+usloviya!$J$30) -> 71507746.66 | CD28: =SUMIFS(PTT!CD:CD,PTT!$R:$R,$P28)/(1+usloviya!$J$30) -> 71228357.31 | CE28: =SUMIFS(PTT!CE:CE,PTT!$R:$R,$P28)/(1+usloviya!$J$30) -> 81921351.89 | CF28: =SUMIFS(PTT!CF:CF,PTT!$R:$R,$P28)/(1+usloviya!$J$30) -> 78218581.75 | CG28: =SUMIFS(PTT!CG:CG,PTT!$R:$R,$P28)/(1+usloviya!$J$30) -> 76465308.34 | CH28: =SUMIFS(PTT!CH:CH,PTT!$R:$R,$P28)/(1+usloviya!$J$30) -> 86809378.4 | CI28: =SUMIFS(PTT!CI:CI,PTT!$R:$R,$P28)/(1+usloviya!$J$30) -> 98316307.61 | CJ28: =SUMIFS(PTT!CJ:CJ,PTT!$R:$R,$P28)/(1+usloviya!$J$30) -> 104270218.7 | CK28: =SUMIFS(PTT!CK:CK,PTT!$R:$R,$P28)/(1+usloviya!$J$30) -> 100306862 | CL28: =SUMIFS(PTT!CL:CL,PTT!$R:$R,$P28)/(1+usloviya!$J$30) -> 114447831.1 | CM28: =SUMIFS(PTT!CM:CM,PTT!$R:$R,$P28)/(1+usloviya!$J$30) -> 115572252.2 | CN28: =SUMIFS(PTT!CN:CN,PTT!$R:$R,$P28)/(1+usloviya!$J$30) -> 98454644.02 | CO28: =SUMIFS(PTT!CO:CO,PTT!$R:$R,$P28)/(1+usloviya!$J$30) -> 90682336.72 | CP28: =SUMIFS(PTT!CP:CP,PTT!$R:$R,$P28)/(1+usloviya!$J$30) -> 89315217.89 | CQ28: =SUMIFS(PTT!CQ:CQ,PTT!$R:$R,$P28)/(1+usloviya!$J$30) -> 102712227.5
K29: =K24 -> Продажи в ТТ без НДС | N29: =N24 -> руб. | P29: =spiski!$AL$16 -> SPORT | U29: 1360293704 | X29: =SUMIFS(PTT!X:X,PTT!$R:$R,$P29)/(1+usloviya!$J$30) -> 2270262.015 | Y29: =SUMIFS(PTT!Y:Y,PTT!$R:$R,$P29)/(1+usloviya!$J$30) -> 2772187.096 | Z29: =SUMIFS(PTT!Z:Z,PTT!$R:$R,$P29)/(1+usloviya!$J$30) -> 2900054.048 | AA29: =SUMIFS(PTT!AA:AA,PTT!$R:$R,$P29)/(1+usloviya!$J$30) -> 3294702.266 | AB29: =SUMIFS(PTT!AB:AB,PTT!$R:$R,$P29)/(1+usloviya!$J$30) -> 3116617.794 | AC29: =SUMIFS(PTT!AC:AC,PTT!$R:$R,$P29)/(1+usloviya!$J$30) -> 2748242.192 | AD29: =SUMIFS(PTT!AD:AD,PTT!$R:$R,$P29)/(1+usloviya!$J$30) -> 2622329.509 | AE29: =SUMIFS(PTT!AE:AE,PTT!$R:$R,$P29)/(1+usloviya!$J$30) -> 2770527.053 | AF29: =SUMIFS(PTT!AF:AF,PTT!$R:$R,$P29)/(1+usloviya!$J$30) -> 2463301.122 | AG29: =SUMIFS(PTT!AG:AG,PTT!$R:$R,$P29)/(1+usloviya!$J$30) -> 2432640.353 | AH29: =SUMIFS(PTT!AH:AH,PTT!$R:$R,$P29)/(1+usloviya!$J$30) -> 3052114.574 | AI29: =SUMIFS(PTT!AI:AI,PTT!$R:$R,$P29)/(1+usloviya!$J$30) -> 3540372.268 | AJ29: =SUMIFS(PTT!AJ:AJ,PTT!$R:$R,$P29)/(1+usloviya!$J$30) -> 8574201.903 | AK29: =SUMIFS(PTT!AK:AK,PTT!$R:$R,$P29)/(1+usloviya!$J$30) -> 9231290.796 | AL29: =SUMIFS(PTT!AL:AL,PTT!$R:$R,$P29)/(1+usloviya!$J$30) -> 10113108.43 | AM29: =SUMIFS(PTT!AM:AM,PTT!$R:$R,$P29)/(1+usloviya!$J$30) -> 11453292.77 | AN29: =SUMIFS(PTT!AN:AN,PTT!$R:$R,$P29)/(1+usloviya!$J$30) -> 11581044.13 | AO29: =SUMIFS(PTT!AO:AO,PTT!$R:$R,$P29)/(1+usloviya!$J$30) -> 10766849.99 | AP29: =SUMIFS(PTT!AP:AP,PTT!$R:$R,$P29)/(1+usloviya!$J$30) -> 11540301.94 | AQ29: =SUMIFS(PTT!AQ:AQ,PTT!$R:$R,$P29)/(1+usloviya!$J$30) -> 11809840.02 | AR29: =SUMIFS(PTT!AR:AR,PTT!$R:$R,$P29)/(1+usloviya!$J$30) -> 10199360.8 | AS29: =SUMIFS(PTT!AS:AS,PTT!$R:$R,$P29)/(1+usloviya!$J$30) -> 9651973.738 | AT29: =SUMIFS(PTT!AT:AT,PTT!$R:$R,$P29)/(1+usloviya!$J$30) -> 10486637.12 | AU29: =SUMIFS(PTT!AU:AU,PTT!$R:$R,$P29)/(1+usloviya!$J$30) -> 12091551.37 | AV29: =SUMIFS(PTT!AV:AV,PTT!$R:$R,$P29)/(1+usloviya!$J$30) -> 11652094.8 | AW29: =SUMIFS(PTT!AW:AW,PTT!$R:$R,$P29)/(1+usloviya!$J$30) -> 12418983.45 | AX29: =SUMIFS(PTT!AX:AX,PTT!$R:$R,$P29)/(1+usloviya!$J$30) -> 13651552.47 | AY29: =SUMIFS(PTT!AY:AY,PTT!$R:$R,$P29)/(1+usloviya!$J$30) -> 15445671.56 | AZ29: =SUMIFS(PTT!AZ:AZ,PTT!$R:$R,$P29)/(1+usloviya!$J$30) -> 15705891.05 | BA29: =SUMIFS(PTT!BA:BA,PTT!$R:$R,$P29)/(1+usloviya!$J$30) -> 14660045.72 | BB29: =SUMIFS(PTT!BB:BB,PTT!$R:$R,$P29)/(1+usloviya!$J$30) -> 15817460.53 | BC29: =SUMIFS(PTT!BC:BC,PTT!$R:$R,$P29)/(1+usloviya!$J$30) -> 16156938.65 | BD29: =SUMIFS(PTT!BD:BD,PTT!$R:$R,$P29)/(1+usloviya!$J$30) -> 13938315.09 | BE29: =SUMIFS(PTT!BE:BE,PTT!$R:$R,$P29)/(1+usloviya!$J$30) -> 13160740.95 | BF29: =SUMIFS(PTT!BF:BF,PTT!$R:$R,$P29)/(1+usloviya!$J$30) -> 14139629.98 | BG29: =SUMIFS(PTT!BG:BG,PTT!$R:$R,$P29)/(1+usloviya!$J$30) -> 16302365.92 | BH29: =SUMIFS(PTT!BH:BH,PTT!$R:$R,$P29)/(1+usloviya!$J$30) -> 17915944.78 | BI29: =SUMIFS(PTT!BI:BI,PTT!$R:$R,$P29)/(1+usloviya!$J$30) -> 18175127.59 | BJ29: =SUMIFS(PTT!BJ:BJ,PTT!$R:$R,$P29)/(1+usloviya!$J$30) -> 20346545.69 | BK29: =SUMIFS(PTT!BK:BK,PTT!$R:$R,$P29)/(1+usloviya!$J$30) -> 23054353.76 | BL29: =SUMIFS(PTT!BL:BL,PTT!$R:$R,$P29)/(1+usloviya!$J$30) -> 24006515.48 | BM29: =SUMIFS(PTT!BM:BM,PTT!$R:$R,$P29)/(1+usloviya!$J$30) -> 22800544.03 | BN29: =SUMIFS(PTT!BN:BN,PTT!$R:$R,$P29)/(1+usloviya!$J$30) -> 25438361.53 | BO29: =SUMIFS(PTT!BO:BO,PTT!$R:$R,$P29)/(1+usloviya!$J$30) -> 25816799.41 | BP29: =SUMIFS(PTT!BP:BP,PTT!$R:$R,$P29)/(1+usloviya!$J$30) -> 22100571.38 | BQ29: =SUMIFS(PTT!BQ:BQ,PTT!$R:$R,$P29)/(1+usloviya!$J$30) -> 20548973.35 | BR29: =SUMIFS(PTT!BR:BR,PTT!$R:$R,$P29)/(1+usloviya!$J$30) -> 21008480.04 | BS29: =SUMIFS(PTT!BS:BS,PTT!$R:$R,$P29)/(1+usloviya!$J$30) -> 24176049.63 | BT29: =SUMIFS(PTT!BT:BT,PTT!$R:$R,$P29)/(1+usloviya!$J$30) -> 22757965.72 | BU29: =SUMIFS(PTT!BU:BU,PTT!$R:$R,$P29)/(1+usloviya!$J$30) -> 22772496.16 | BV29: =SUMIFS(PTT!BV:BV,PTT!$R:$R,$P29)/(1+usloviya!$J$30) -> 25624864.39 | BW29: =SUMIFS(PTT!BW:BW,PTT!$R:$R,$P29)/(1+usloviya!$J$30) -> 29033161.33 | BX29: =SUMIFS(PTT!BX:BX,PTT!$R:$R,$P29)/(1+usloviya!$J$30) -> 30437782.24 | BY29: =SUMIFS(PTT!BY:BY,PTT!$R:$R,$P29)/(1+usloviya!$J$30) -> 29047043.75 | BZ29: =SUMIFS(PTT!BZ:BZ,PTT!$R:$R,$P29)/(1+usloviya!$J$30) -> 32685021.57 | CA29: =SUMIFS(PTT!CA:CA,PTT!$R:$R,$P29)/(1+usloviya!$J$30) -> 33109962.83 | CB29: =SUMIFS(PTT!CB:CB,PTT!$R:$R,$P29)/(1+usloviya!$J$30) -> 28290903 | CC29: =SUMIFS(PTT!CC:CC,PTT!$R:$R,$P29)/(1+usloviya!$J$30) -> 26208818.56 | CD29: =SUMIFS(PTT!CD:CD,PTT!$R:$R,$P29)/(1+usloviya!$J$30) -> 26426344.07 | CE29: =SUMIFS(PTT!CE:CE,PTT!$R:$R,$P29)/(1+usloviya!$J$30) -> 30401722.62 | CF29: =SUMIFS(PTT!CF:CF,PTT!$R:$R,$P29)/(1+usloviya!$J$30) -> 28648737.73 | CG29: =SUMIFS(PTT!CG:CG,PTT!$R:$R,$P29)/(1+usloviya!$J$30) -> 28328147.49 | CH29: =SUMIFS(PTT!CH:CH,PTT!$R:$R,$P29)/(1+usloviya!$J$30) -> 32017932.13 | CI29: =SUMIFS(PTT!CI:CI,PTT!$R:$R,$P29)/(1+usloviya!$J$30) -> 36273413.69 | CJ29: =SUMIFS(PTT!CJ:CJ,PTT!$R:$R,$P29)/(1+usloviya!$J$30) -> 38249956.07 | CK29: =SUMIFS(PTT!CK:CK,PTT!$R:$R,$P29)/(1+usloviya!$J$30) -> 36650513.96 | CL29: =SUMIFS(PTT!CL:CL,PTT!$R:$R,$P29)/(1+usloviya!$J$30) -> 41528827.73 | CM29: =SUMIFS(PTT!CM:CM,PTT!$R:$R,$P29)/(1+usloviya!$J$30) -> 42007357.95 | CN29: =SUMIFS(PTT!CN:CN,PTT!$R:$R,$P29)/(1+usloviya!$J$30) -> 35841306.65 | CO29: =SUMIFS(PTT!CO:CO,PTT!$R:$R,$P29)/(1+usloviya!$J$30) -> 33102665.2 | CP29: =SUMIFS(PTT!CP:CP,PTT!$R:$R,$P29)/(1+usloviya!$J$30) -> 32985346.48 | CQ29: =SUMIFS(PTT!CQ:CQ,PTT!$R:$R,$P29)/(1+usloviya!$J$30) -> 37942652.83
K30: =K24 -> Продажи в ТТ без НДС | N30: =N24 -> руб. | P30: =spiski!$AL$17 -> OTHER | U30: 4116048485 | X30: =SUMIFS(PTT!X:X,PTT!$R:$R,$P30)/(1+usloviya!$J$30) -> 8348814.281 | Y30: =SUMIFS(PTT!Y:Y,PTT!$R:$R,$P30)/(1+usloviya!$J$30) -> 10257898.46 | Z30: =SUMIFS(PTT!Z:Z,PTT!$R:$R,$P30)/(1+usloviya!$J$30) -> 10711457.67 | AA30: =SUMIFS(PTT!AA:AA,PTT!$R:$R,$P30)/(1+usloviya!$J$30) -> 12182157.84 | AB30: =SUMIFS(PTT!AB:AB,PTT!$R:$R,$P30)/(1+usloviya!$J$30) -> 11486982.66 | AC30: =SUMIFS(PTT!AC:AC,PTT!$R:$R,$P30)/(1+usloviya!$J$30) -> 10102334.21 | AD30: =SUMIFS(PTT!AD:AD,PTT!$R:$R,$P30)/(1+usloviya!$J$30) -> 9602260.745 | AE30: =SUMIFS(PTT!AE:AE,PTT!$R:$R,$P30)/(1+usloviya!$J$30) -> 10159304.96 | AF30: =SUMIFS(PTT!AF:AF,PTT!$R:$R,$P30)/(1+usloviya!$J$30) -> 9036173.371 | AG30: =SUMIFS(PTT!AG:AG,PTT!$R:$R,$P30)/(1+usloviya!$J$30) -> 8933945.028 | AH30: =SUMIFS(PTT!AH:AH,PTT!$R:$R,$P30)/(1+usloviya!$J$30) -> 11287433.81 | AI30: =SUMIFS(PTT!AI:AI,PTT!$R:$R,$P30)/(1+usloviya!$J$30) -> 13077971.48 | AJ30: =SUMIFS(PTT!AJ:AJ,PTT!$R:$R,$P30)/(1+usloviya!$J$30) -> 27424192.25 | AK30: =SUMIFS(PTT!AK:AK,PTT!$R:$R,$P30)/(1+usloviya!$J$30) -> 30532681.04 | AL30: =SUMIFS(PTT!AL:AL,PTT!$R:$R,$P30)/(1+usloviya!$J$30) -> 33037183.46 | AM30: =SUMIFS(PTT!AM:AM,PTT!$R:$R,$P30)/(1+usloviya!$J$30) -> 37472129.49 | AN30: =SUMIFS(PTT!AN:AN,PTT!$R:$R,$P30)/(1+usloviya!$J$30) -> 37231512.7 | AO30: =SUMIFS(PTT!AO:AO,PTT!$R:$R,$P30)/(1+usloviya!$J$30) -> 34157177.54 | AP30: =SUMIFS(PTT!AP:AP,PTT!$R:$R,$P30)/(1+usloviya!$J$30) -> 35675697.67 | AQ30: =SUMIFS(PTT!AQ:AQ,PTT!$R:$R,$P30)/(1+usloviya!$J$30) -> 36767472.27 | AR30: =SUMIFS(PTT!AR:AR,PTT!$R:$R,$P30)/(1+usloviya!$J$30) -> 31945816.97 | AS30: =SUMIFS(PTT!AS:AS,PTT!$R:$R,$P30)/(1+usloviya!$J$30) -> 30520050.37 | AT30: =SUMIFS(PTT!AT:AT,PTT!$R:$R,$P30)/(1+usloviya!$J$30) -> 34409712.16 | AU30: =SUMIFS(PTT!AU:AU,PTT!$R:$R,$P30)/(1+usloviya!$J$30) -> 39698731.94 | AV30: =SUMIFS(PTT!AV:AV,PTT!$R:$R,$P30)/(1+usloviya!$J$30) -> 36919131.71 | AW30: =SUMIFS(PTT!AW:AW,PTT!$R:$R,$P30)/(1+usloviya!$J$30) -> 40742731.2 | AX30: =SUMIFS(PTT!AX:AX,PTT!$R:$R,$P30)/(1+usloviya!$J$30) -> 44214279.94 | AY30: =SUMIFS(PTT!AY:AY,PTT!$R:$R,$P30)/(1+usloviya!$J$30) -> 50110060.48 | AZ30: =SUMIFS(PTT!AZ:AZ,PTT!$R:$R,$P30)/(1+usloviya!$J$30) -> 50032278.76 | BA30: =SUMIFS(PTT!BA:BA,PTT!$R:$R,$P30)/(1+usloviya!$J$30) -> 46066536.03 | BB30: =SUMIFS(PTT!BB:BB,PTT!$R:$R,$P30)/(1+usloviya!$J$30) -> 48420180.8 | BC30: =SUMIFS(PTT!BC:BC,PTT!$R:$R,$P30)/(1+usloviya!$J$30) -> 49812435.59 | BD30: =SUMIFS(PTT!BD:BD,PTT!$R:$R,$P30)/(1+usloviya!$J$30) -> 43231303.96 | BE30: =SUMIFS(PTT!BE:BE,PTT!$R:$R,$P30)/(1+usloviya!$J$30) -> 41212845.54 | BF30: =SUMIFS(PTT!BF:BF,PTT!$R:$R,$P30)/(1+usloviya!$J$30) -> 46005056.57 | BG30: =SUMIFS(PTT!BG:BG,PTT!$R:$R,$P30)/(1+usloviya!$J$30) -> 53072418.54 | BH30: =SUMIFS(PTT!BH:BH,PTT!$R:$R,$P30)/(1+usloviya!$J$30) -> 53748080.75 | BI30: =SUMIFS(PTT!BI:BI,PTT!$R:$R,$P30)/(1+usloviya!$J$30) -> 56588614.61 | BJ30: =SUMIFS(PTT!BJ:BJ,PTT!$R:$R,$P30)/(1+usloviya!$J$30) -> 62465854.55 | BK30: =SUMIFS(PTT!BK:BK,PTT!$R:$R,$P30)/(1+usloviya!$J$30) -> 70857609.24 | BL30: =SUMIFS(PTT!BL:BL,PTT!$R:$R,$P30)/(1+usloviya!$J$30) -> 72400340.93 | BM30: =SUMIFS(PTT!BM:BM,PTT!$R:$R,$P30)/(1+usloviya!$J$30) -> 67831441.78 | BN30: =SUMIFS(PTT!BN:BN,PTT!$R:$R,$P30)/(1+usloviya!$J$30) -> 73805040.81 | BO30: =SUMIFS(PTT!BO:BO,PTT!$R:$R,$P30)/(1+usloviya!$J$30) -> 75376298.04 | BP30: =SUMIFS(PTT!BP:BP,PTT!$R:$R,$P30)/(1+usloviya!$J$30) -> 64895837.83 | BQ30: =SUMIFS(PTT!BQ:BQ,PTT!$R:$R,$P30)/(1+usloviya!$J$30) -> 60931131.77 | BR30: =SUMIFS(PTT!BR:BR,PTT!$R:$R,$P30)/(1+usloviya!$J$30) -> 64776933.24 | BS30: =SUMIFS(PTT!BS:BS,PTT!$R:$R,$P30)/(1+usloviya!$J$30) -> 74605668.65 | BT30: =SUMIFS(PTT!BT:BT,PTT!$R:$R,$P30)/(1+usloviya!$J$30) -> 67192734.42 | BU30: =SUMIFS(PTT!BU:BU,PTT!$R:$R,$P30)/(1+usloviya!$J$30) -> 69749512.68 | BV30: =SUMIFS(PTT!BV:BV,PTT!$R:$R,$P30)/(1+usloviya!$J$30) -> 77396225.19 | BW30: =SUMIFS(PTT!BW:BW,PTT!$R:$R,$P30)/(1+usloviya!$J$30) -> 87781789.07 | BX30: =SUMIFS(PTT!BX:BX,PTT!$R:$R,$P30)/(1+usloviya!$J$30) -> 90330404.2 | BY30: =SUMIFS(PTT!BY:BY,PTT!$R:$R,$P30)/(1+usloviya!$J$30) -> 85067208.54 | BZ30: =SUMIFS(PTT!BZ:BZ,PTT!$R:$R,$P30)/(1+usloviya!$J$30) -> 93448353.05 | CA30: =SUMIFS(PTT!CA:CA,PTT!$R:$R,$P30)/(1+usloviya!$J$30) -> 95229354.77 | CB30: =SUMIFS(PTT!CB:CB,PTT!$R:$R,$P30)/(1+usloviya!$J$30) -> 81813880.32 | CC30: =SUMIFS(PTT!CC:CC,PTT!$R:$R,$P30)/(1+usloviya!$J$30) -> 76510141.12 | CD30: =SUMIFS(PTT!CD:CD,PTT!$R:$R,$P30)/(1+usloviya!$J$30) -> 80154300.98 | CE30: =SUMIFS(PTT!CE:CE,PTT!$R:$R,$P30)/(1+usloviya!$J$30) -> 92288149.72 | CF30: =SUMIFS(PTT!CF:CF,PTT!$R:$R,$P30)/(1+usloviya!$J$30) -> 83447423.9 | CG30: =SUMIFS(PTT!CG:CG,PTT!$R:$R,$P30)/(1+usloviya!$J$30) -> 85540328.58 | CH30: =SUMIFS(PTT!CH:CH,PTT!$R:$R,$P30)/(1+usloviya!$J$30) -> 95357103.75 | CI30: =SUMIFS(PTT!CI:CI,PTT!$R:$R,$P30)/(1+usloviya!$J$30) -> 108137289.5 | CJ30: =SUMIFS(PTT!CJ:CJ,PTT!$R:$R,$P30)/(1+usloviya!$J$30) -> 111972849.3 | CK30: =SUMIFS(PTT!CK:CK,PTT!$R:$R,$P30)/(1+usloviya!$J$30) -> 105922876.2 | CL30: =SUMIFS(PTT!CL:CL,PTT!$R:$R,$P30)/(1+usloviya!$J$30) -> 117298963 | CM30: =SUMIFS(PTT!CM:CM,PTT!$R:$R,$P30)/(1+usloviya!$J$30) -> 119320554 | CN30: =SUMIFS(PTT!CN:CN,PTT!$R:$R,$P30)/(1+usloviya!$J$30) -> 102334673.7 | CO30: =SUMIFS(PTT!CO:CO,PTT!$R:$R,$P30)/(1+usloviya!$J$30) -> 95374924.6 | CP30: =SUMIFS(PTT!CP:CP,PTT!$R:$R,$P30)/(1+usloviya!$J$30) -> 98641933.68 | CQ30: =SUMIFS(PTT!CQ:CQ,PTT!$R:$R,$P30)/(1+usloviya!$J$30) -> 113556306.5
... 34 more rows

Sheet RP
B3: * | C3: Розничные продажи
S6: 0
O7: =produkciya!$R$8 -> продукция | P7: =spravochniki!$M$12 -> категории | Q7: =spiski!$AG$8 -> регионы | R7: =spiski!$AL$8 -> каналы | X7: =IF('str-ra-prodaj'!X7="","",'str-ra-prodaj'!X7) -> 2020-01-01 | Y7: =IF('str-ra-prodaj'!Y7="","",'str-ra-prodaj'!Y7) -> 2020-02-01 | Z7: =IF('str-ra-prodaj'!Z7="","",'str-ra-prodaj'!Z7) -> 2020-03-01 | AA7: =IF('str-ra-prodaj'!AA7="","",'str-ra-prodaj'!AA7) -> 2020-04-01 | AB7: =IF('str-ra-prodaj'!AB7="","",'str-ra-prodaj'!AB7) -> 2020-05-01 | AC7: =IF('str-ra-prodaj'!AC7="","",'str-ra-prodaj'!AC7) -> 2020-06-01 | AD7: =IF('str-ra-prodaj'!AD7="","",'str-ra-prodaj'!AD7) -> 2020-07-01 | AE7: =IF('str-ra-prodaj'!AE7="","",'str-ra-prodaj'!AE7) -> 2020-08-01 | AF7: =IF('str-ra-prodaj'!AF7="","",'str-ra-prodaj'!AF7) -> 2020-09-01 | AG7: =IF('str-ra-prodaj'!AG7="","",'str-ra-prodaj'!AG7) -> 2020-10-01 | AH7: =IF('str-ra-prodaj'!AH7="","",'str-ra-prodaj'!AH7) -> 2020-11-01 | AI7: =IF('str-ra-prodaj'!AI7="","",'str-ra-prodaj'!AI7) -> 2020-12-01 | AJ7: =IF('str-ra-prodaj'!AJ7="","",'str-ra-prodaj'!AJ7) -> 2021-01-01 | AK7: =IF('str-ra-prodaj'!AK7="","",'str-ra-prodaj'!AK7) -> 2021-02-01 | AL7: =IF('str-ra-prodaj'!AL7="","",'str-ra-prodaj'!AL7) -> 2021-03-01 | AM7: =IF('str-ra-prodaj'!AM7="","",'str-ra-prodaj'!AM7) -> 2021-04-01 | AN7: =IF('str-ra-prodaj'!AN7="","",'str-ra-prodaj'!AN7) -> 2021-05-01 | AO7: =IF('str-ra-prodaj'!AO7="","",'str-ra-prodaj'!AO7) -> 2021-06-01 | AP7: =IF('str-ra-prodaj'!AP7="","",'str-ra-prodaj'!AP7) -> 2021-07-01 | AQ7: =IF('str-ra-prodaj'!AQ7="","",'str-ra-prodaj'!AQ7) -> 2021-08-01 | AR7: =IF('str-ra-prodaj'!AR7="","",'str-ra-prodaj'!AR7) -> 2021-09-01 | AS7: =IF('str-ra-prodaj'!AS7="","",'str-ra-prodaj'!AS7) -> 2021-10-01 | AT7: =IF('str-ra-prodaj'!AT7="","",'str-ra-prodaj'!AT7) -> 2021-11-01 | AU7: =IF('str-ra-prodaj'!AU7="","",'str-ra-prodaj'!AU7) -> 2021-12-01 | AV7: =IF('str-ra-prodaj'!AV7="","",'str-ra-prodaj'!AV7) -> 2022-01-01 | AW7: =IF('str-ra-prodaj'!AW7="","",'str-ra-prodaj'!AW7) -> 2022-02-01 | AX7: =IF('str-ra-prodaj'!AX7="","",'str-ra-prodaj'!AX7) -> 2022-03-01 | AY7: =IF('str-ra-prodaj'!AY7="","",'str-ra-prodaj'!AY7) -> 2022-04-01 | AZ7: =IF('str-ra-prodaj'!AZ7="","",'str-ra-prodaj'!AZ7) -> 2022-05-01 | BA7: =IF('str-ra-prodaj'!BA7="","",'str-ra-prodaj'!BA7) -> 2022-06-01 | BB7: =IF('str-ra-prodaj'!BB7="","",'str-ra-prodaj'!BB7) -> 2022-07-01 | BC7: =IF('str-ra-prodaj'!BC7="","",'str-ra-prodaj'!BC7) -> 2022-08-01 | BD7: =IF('str-ra-prodaj'!BD7="","",'str-ra-prodaj'!BD7) -> 2022-09-01 | BE7: =IF('str-ra-prodaj'!BE7="","",'str-ra-prodaj'!BE7) -> 2022-10-01 | BF7: =IF('str-ra-prodaj'!BF7="","",'str-ra-prodaj'!BF7) -> 2022-11-01 | BG7: =IF('str-ra-prodaj'!BG7="","",'str-ra-prodaj'!BG7) -> 2022-12-01 | BH7: =IF('str-ra-prodaj'!BH7="","",'str-ra-prodaj'!BH7) -> 2023-01-01 | BI7: =IF('str-ra-prodaj'!BI7="","",'str-ra-prodaj'!BI7) -> 2023-02-01 | BJ7: =IF('str-ra-prodaj'!BJ7="","",'str-ra-prodaj'!BJ7) -> 2023-03-01 | BK7: =IF('str-ra-prodaj'!BK7="","",'str-ra-prodaj'!BK7) -> 2023-04-01 | BL7: =IF('str-ra-prodaj'!BL7="","",'str-ra-prodaj'!BL7) -> 2023-05-01 | BM7: =IF('str-ra-prodaj'!BM7="","",'str-ra-prodaj'!BM7) -> 2023-06-01 | BN7: =IF('str-ra-prodaj'!BN7="","",'str-ra-prodaj'!BN7) -> 2023-07-01 | BO7: =IF('str-ra-prodaj'!BO7="","",'str-ra-prodaj'!BO7) -> 2023-08-01 | BP7: =IF('str-ra-prodaj'!BP7="","",'str-ra-prodaj'!BP7) -> 2023-09-01 | BQ7: =IF('str-ra-prodaj'!BQ7="","",'str-ra-prodaj'!BQ7) -> 2023-10-01 | BR7: =IF('str-ra-prodaj'!BR7="","",'str-ra-prodaj'!BR7) -> 2023-11-01 | BS7: =IF('str-ra-prodaj'!BS7="","",'str-ra-prodaj'!BS7) -> 2023-12-01 | BT7: =IF('str-ra-prodaj'!BT7="","",'str-ra-prodaj'!BT7) -> 2024-01-01 | BU7: =IF('str-ra-prodaj'!BU7="","",'str-ra-prodaj'!BU7) -> 2024-02-01 | BV7: =IF('str-ra-prodaj'!BV7="","",'str-ra-prodaj'!BV7) -> 2024-03-01 | BW7: =IF('str-ra-prodaj'!BW7="","",'str-ra-prodaj'!BW7) -> 2024-04-01 | BX7: =IF('str-ra-prodaj'!BX7="","",'str-ra-prodaj'!BX7) -> 2024-05-01 | BY7: =IF('str-ra-prodaj'!BY7="","",'str-ra-prodaj'!BY7) -> 2024-06-01 | BZ7: =IF('str-ra-prodaj'!BZ7="","",'str-ra-prodaj'!BZ7) -> 2024-07-01 | CA7: =IF('str-ra-prodaj'!CA7="","",'str-ra-prodaj'!CA7) -> 2024-08-01 | CB7: =IF('str-ra-prodaj'!CB7="","",'str-ra-prodaj'!CB7) -> 2024-09-01 | CC7: =IF('str-ra-prodaj'!CC7="","",'str-ra-prodaj'!CC7) -> 2024-10-01 | CD7: =IF('str-ra-prodaj'!CD7="","",'str-ra-prodaj'!CD7) -> 2024-11-01 | CE7: =IF('str-ra-prodaj'!CE7="","",'str-ra-prodaj'!CE7) -> 2024-12-01 | CF7: =IF('str-ra-prodaj'!CF7="","",'str-ra-prodaj'!CF7) -> 2025-01-01 | CG7: =IF('str-ra-prodaj'!CG7="","",'str-ra-prodaj'!CG7) -> 2025-02-01 | CH7: =IF('str-ra-prodaj'!CH7="","",'str-ra-prodaj'!CH7) -> 2025-03-01 | CI7: =IF('str-ra-prodaj'!CI7="","",'str-ra-prodaj'!CI7) -> 2025-04-01 | CJ7: =IF('str-ra-prodaj'!CJ7="","",'str-ra-prodaj'!CJ7) -> 2025-05-01 | CK7: =IF('str-ra-prodaj'!CK7="","",'str-ra-prodaj'!CK7) -> 2025-06-01 | CL7: =IF('str-ra-prodaj'!CL7="","",'str-ra-prodaj'!CL7) -> 2025-07-01 | CM7: =IF('str-ra-prodaj'!CM7="","",'str-ra-prodaj'!CM7) -> 2025-08-01 | CN7: =IF('str-ra-prodaj'!CN7="","",'str-ra-prodaj'!CN7) -> 2025-09-01 | CO7: =IF('str-ra-prodaj'!CO7="","",'str-ra-prodaj'!CO7) -> 2025-10-01 | CP7: =IF('str-ra-prodaj'!CP7="","",'str-ra-prodaj'!CP7) -> 2025-11-01 | CQ7: =IF('str-ra-prodaj'!CQ7="","",'str-ra-prodaj'!CQ7) -> 2025-12-01
K11: ='str-ra-prodaj'!K11 -> 1 | L11: ='str-ra-prodaj'!L11 -> 1 | M11: ='str-ra-prodaj'!M11 -> 1 | N11: ='str-ra-prodaj'!N11 -> 1 | O11: ='str-ra-prodaj'!O11 -> Продукт - 11 - 300ml. pet bottle 28/410 | P11: ='str-ra-prodaj'!P11 -> Товарная категория - 1 | Q11: ='str-ra-prodaj'!Q11 -> ЮФО+ПФО | R11: ='str-ra-prodaj'!R11 -> E-commerce | X11: =IF(OR($L11="",X$7=""),0,'kol-vo'!X11*RRC!X11) -> 20061.98106 | Y11: =IF(OR($L11="",Y$7=""),0,'kol-vo'!Y11*RRC!Y11) -> 24972.26914 | Z11: =IF(OR($L11="",Z$7=""),0,'kol-vo'!Z11*RRC!Z11) -> 25977.12339 | AA11: =IF(OR($L11="",AA$7=""),0,'kol-vo'!AA11*RRC!AA11) -> 29610.12666 | AB11: =IF(OR($L11="",AB$7=""),0,'kol-vo'!AB11*RRC!AB11) -> 27734.1542 | AC11: =IF(OR($L11="",AC$7=""),0,'kol-vo'!AC11*RRC!AC11) -> 24254.02851 | AD11: =IF(OR($L11="",AD$7=""),0,'kol-vo'!AD11*RRC!AD11) -> 22863.41937 | AE11: =IF(OR($L11="",AE$7=""),0,'kol-vo'!AE11*RRC!AE11) -> 24263.4743 | AF11: =IF(OR($L11="",AF$7=""),0,'kol-vo'!AF11*RRC!AF11) -> 21598.70873 | AG11: =IF(OR($L11="",AG$7=""),0,'kol-vo'!AG11*RRC!AG11) -> 21406.75845 | AH11: =IF(OR($L11="",AH$7=""),0,'kol-vo'!AH11*RRC!AH11) -> 27446.78285 | AI11: =IF(OR($L11="",AI$7=""),0,'kol-vo'!AI11*RRC!AI11) -> 31723.81627 | AJ11: =IF(OR($L11="",AJ$7=""),0,'kol-vo'!AJ11*RRC!AJ11) -> 26347.02356 | AK11: =IF(OR($L11="",AK$7=""),0,'kol-vo'!AK11*RRC!AK11) -> 32795.61284 | AL11: =IF(OR($L11="",AL$7=""),0,'kol-vo'!AL11*RRC!AL11) -> 34115.26908 | AM11: =IF(OR($L11="",AM$7=""),0,'kol-vo'!AM11*RRC!AM11) -> 38886.42415 | AN11: =IF(OR($L11="",AN$7=""),0,'kol-vo'!AN11*RRC!AN11) -> 36422.7447 | AO11: =IF(OR($L11="",AO$7=""),0,'kol-vo'!AO11*RRC!AO11) -> 31852.36087 | AP11: =IF(OR($L11="",AP$7=""),0,'kol-vo'!AP11*RRC!AP11) -> 30026.09996 | AQ11: =IF(OR($L11="",AQ$7=""),0,'kol-vo'!AQ11*RRC!AQ11) -> 31864.76585 | AR11: =IF(OR($L11="",AR$7=""),0,'kol-vo'!AR11*RRC!AR11) -> 28365.1792 | AS11: =IF(OR($L11="",AS$7=""),0,'kol-vo'!AS11*RRC!AS11) -> 28113.0945 | AT11: =IF(OR($L11="",AT$7=""),0,'kol-vo'!AT11*RRC!AT11) -> 36045.34529 | AU11: =IF(OR($L11="",AU$7=""),0,'kol-vo'!AU11*RRC!AU11) -> 41662.29308 | AV11: =IF(OR($L11="",AV$7=""),0,'kol-vo'!AV11*RRC!AV11) -> 32294.31523 | AW11: =IF(OR($L11="",AW$7=""),0,'kol-vo'!AW11*RRC!AW11) -> 40198.53919 | AX11: =IF(OR($L11="",AX$7=""),0,'kol-vo'!AX11*RRC!AX11) -> 41816.08034 | AY11: =IF(OR($L11="",AY$7=""),0,'kol-vo'!AY11*RRC!AY11) -> 47664.22426 | AZ11: =IF(OR($L11="",AZ$7=""),0,'kol-vo'!AZ11*RRC!AZ11) -> 44644.42051 | BA11: =IF(OR($L11="",BA$7=""),0,'kol-vo'!BA11*RRC!BA11) -> 39042.36775 | BB11: =IF(OR($L11="",BB$7=""),0,'kol-vo'!BB11*RRC!BB11) -> 36803.86649 | BC11: =IF(OR($L11="",BC$7=""),0,'kol-vo'!BC11*RRC!BC11) -> 39057.5729 | BD11: =IF(OR($L11="",BD$7=""),0,'kol-vo'!BD11*RRC!BD11) -> 34768.02746 | BE11: =IF(OR($L11="",BE$7=""),0,'kol-vo'!BE11*RRC!BE11) -> 34459.03989 | BF11: =IF(OR($L11="",BF$7=""),0,'kol-vo'!BF11*RRC!BF11) -> 44181.83105 | BG11: =IF(OR($L11="",BG$7=""),0,'kol-vo'!BG11*RRC!BG11) -> 51066.68778 | BH11: =IF(OR($L11="",BH$7=""),0,'kol-vo'!BH11*RRC!BH11) -> 38776.24565 | BI11: =IF(OR($L11="",BI$7=""),0,'kol-vo'!BI11*RRC!BI11) -> 48266.96027 | BJ11: =IF(OR($L11="",BJ$7=""),0,'kol-vo'!BJ11*RRC!BJ11) -> 50209.16503 | BK11: =IF(OR($L11="",BK$7=""),0,'kol-vo'!BK11*RRC!BK11) -> 57231.11499 | BL11: =IF(OR($L11="",BL$7=""),0,'kol-vo'!BL11*RRC!BL11) -> 53605.19348 | BM11: =IF(OR($L11="",BM$7=""),0,'kol-vo'!BM11*RRC!BM11) -> 46878.72871 | BN11: =IF(OR($L11="",BN$7=""),0,'kol-vo'!BN11*RRC!BN11) -> 44190.92826 | BO11: =IF(OR($L11="",BO$7=""),0,'kol-vo'!BO11*RRC!BO11) -> 46896.98574 | BP11: =IF(OR($L11="",BP$7=""),0,'kol-vo'!BP11*RRC!BP11) -> 41746.46726 | BQ11: =IF(OR($L11="",BQ$7=""),0,'kol-vo'!BQ11*RRC!BQ11) -> 41375.46147 | BR11: =IF(OR($L11="",BR$7=""),0,'kol-vo'!BR11*RRC!BR11) -> 53049.75571 | BS11: =IF(OR($L11="",BS$7=""),0,'kol-vo'!BS11*RRC!BS11) -> 61316.50154 | BT11: =IF(OR($L11="",BT$7=""),0,'kol-vo'!BT11*RRC!BT11) -> 45831.70472 | BU11: =IF(OR($L11="",BU$7=""),0,'kol-vo'!BU11*RRC!BU11) -> 57049.28453 | BV11: =IF(OR($L11="",BV$7=""),0,'kol-vo'!BV11*RRC!BV11) -> 59344.87952 | BW11: =IF(OR($L11="",BW$7=""),0,'kol-vo'!BW11*RRC!BW11) -> 67644.49521 | BX11: =IF(OR($L11="",BX$7=""),0,'kol-vo'!BX11*RRC!BX11) -> 63358.82595 | BY11: =IF(OR($L11="",BY$7=""),0,'kol-vo'!BY11*RRC!BY11) -> 55408.45989 | BZ11: =IF(OR($L11="",BZ$7=""),0,'kol-vo'!BZ11*RRC!BZ11) -> 52231.60575 | CA11: =IF(OR($L11="",CA$7=""),0,'kol-vo'!CA11*RRC!CA11) -> 55430.03885 | CB11: =IF(OR($L11="",CB$7=""),0,'kol-vo'!CB11*RRC!CB11) -> 49342.36744 | CC11: =IF(OR($L11="",CC$7=""),0,'kol-vo'!CC11*RRC!CC11) -> 48903.85598 | CD11: =IF(OR($L11="",CD$7=""),0,'kol-vo'!CD11*RRC!CD11) -> 62702.32454 | CE11: =IF(OR($L11="",CE$7=""),0,'kol-vo'!CE11*RRC!CE11) -> 72473.23062 | CF11: =IF(OR($L11="",CF$7=""),0,'kol-vo'!CF11*RRC!CF11) -> 53502.14975 | CG11: =IF(OR($L11="",CG$7=""),0,'kol-vo'!CG11*RRC!CG11) -> 66597.11618 | CH11: =IF(OR($L11="",CH$7=""),0,'kol-vo'!CH11*RRC!CH11) -> 69276.90449 | CI11: =IF(OR($L11="",CI$7=""),0,'kol-vo'!CI11*RRC!CI11) -> 78965.55309 | CJ11: =IF(OR($L11="",CJ$7=""),0,'kol-vo'!CJ11*RRC!CJ11) -> 73962.62946 | CK11: =IF(OR($L11="",CK$7=""),0,'kol-vo'!CK11*RRC!CK11) -> 64681.6813 | CL11: =IF(OR($L11="",CL$7=""),0,'kol-vo'!CL11*RRC!CL11) -> 60973.14533 | CM11: =IF(OR($L11="",CM$7=""),0,'kol-vo'!CM11*RRC!CM11) -> 64706.87174 | CN11: =IF(OR($L11="",CN$7=""),0,'kol-vo'!CN11*RRC!CN11) -> 57600.36088 | CO11: =IF(OR($L11="",CO$7=""),0,'kol-vo'!CO11*RRC!CO11) -> 57088.45966 | CP11: =IF(OR($L11="",CP$7=""),0,'kol-vo'!CP11*RRC!CP11) -> 73196.25524 | CQ11: =IF(OR($L11="",CQ$7=""),0,'kol-vo'!CQ11*RRC!CQ11) -> 84602.43102
K12: ='str-ra-prodaj'!K12 -> 2 | L12: ='str-ra-prodaj'!L12 -> 2 | M12: ='str-ra-prodaj'!M12 -> 1 | N12: ='str-ra-prodaj'!N12 -> 1 | O12: ='str-ra-prodaj'!O12 -> Продукт - 12 | P12: ='str-ra-prodaj'!P12 -> Товарная категория - 1 | Q12: ='str-ra-prodaj'!Q12 -> ЮФО+ПФО | R12: ='str-ra-prodaj'!R12 -> E-commerce | X12: =IF(OR($L12="",X$7=""),0,'kol-vo'!X12*RRC!X12) -> 0 | Y12: =IF(OR($L12="",Y$7=""),0,'kol-vo'!Y12*RRC!Y12) -> 0 | Z12: =IF(OR($L12="",Z$7=""),0,'kol-vo'!Z12*RRC!Z12) -> 0 | AA12: =IF(OR($L12="",AA$7=""),0,'kol-vo'!AA12*RRC!AA12) -> 0 | AB12: =IF(OR($L12="",AB$7=""),0,'kol-vo'!AB12*RRC!AB12) -> 0 | AC12: =IF(OR($L12="",AC$7=""),0,'kol-vo'!AC12*RRC!AC12) -> 0 | AD12: =IF(OR($L12="",AD$7=""),0,'kol-vo'!AD12*RRC!AD12) -> 0 | AE12: =IF(OR($L12="",AE$7=""),0,'kol-vo'!AE12*RRC!AE12) -> 0 | AF12: =IF(OR($L12="",AF$7=""),0,'kol-vo'!AF12*RRC!AF12) -> 0 | AG12: =IF(OR($L12="",AG$7=""),0,'kol-vo'!AG12*RRC!AG12) -> 0 | AH12: =IF(OR($L12="",AH$7=""),0,'kol-vo'!AH12*RRC!AH12) -> 0 | AI12: =IF(OR($L12="",AI$7=""),0,'kol-vo'!AI12*RRC!AI12) -> 0 | AJ12: =IF(OR($L12="",AJ$7=""),0,'kol-vo'!AJ12*RRC!AJ12) -> 0 | AK12: =IF(OR($L12="",AK$7=""),0,'kol-vo'!AK12*RRC!AK12) -> 0 | AL12: =IF(OR($L12="",AL$7=""),0,'kol-vo'!AL12*RRC!AL12) -> 0 | AM12: =IF(OR($L12="",AM$7=""),0,'kol-vo'!AM12*RRC!AM12) -> 0 | AN12: =IF(OR($L12="",AN$7=""),0,'kol-vo'!AN12*RRC!AN12) -> 0 | AO12: =IF(OR($L12="",AO$7=""),0,'kol-vo'!AO12*RRC!AO12) -> 0 | AP12: =IF(OR($L12="",AP$7=""),0,'kol-vo'!AP12*RRC!AP12) -> 0 | AQ12: =IF(OR($L12="",AQ$7=""),0,'kol-vo'!AQ12*RRC!AQ12) -> 0 | AR12: =IF(OR($L12="",AR$7=""),0,'kol-vo'!AR12*RRC!AR12) -> 0 | AS12: =IF(OR($L12="",AS$7=""),0,'kol-vo'!AS12*RRC!AS12) -> 0 | AT12: =IF(OR($L12="",AT$7=""),0,'kol-vo'!AT12*RRC!AT12) -> 0 | AU12: =IF(OR($L12="",AU$7=""),0,'kol-vo'!AU12*RRC!AU12) -> 0 | AV12: =IF(OR($L12="",AV$7=""),0,'kol-vo'!AV12*RRC!AV12) -> 0 | AW12: =IF(OR($L12="",AW$7=""),0,'kol-vo'!AW12*RRC!AW12) -> 0 | AX12: =IF(OR($L12="",AX$7=""),0,'kol-vo'!AX12*RRC!AX12) -> 0 | AY12: =IF(OR($L12="",AY$7=""),0,'kol-vo'!AY12*RRC!AY12) -> 0 | AZ12: =IF(OR($L12="",AZ$7=""),0,'kol-vo'!AZ12*RRC!AZ12) -> 0 | BA12: =IF(OR($L12="",BA$7=""),0,'kol-vo'!BA12*RRC!BA12) -> 0 | BB12: =IF(OR($L12="",BB$7=""),0,'kol-vo'!BB12*RRC!BB12) -> 0 | BC12: =IF(OR($L12="",BC$7=""),0,'kol-vo'!BC12*RRC!BC12) -> 0 | BD12: =IF(OR($L12="",BD$7=""),0,'kol-vo'!BD12*RRC!BD12) -> 0 | BE12: =IF(OR($L12="",BE$7=""),0,'kol-vo'!BE12*RRC!BE12) -> 0 | BF12: =IF(OR($L12="",BF$7=""),0,'kol-vo'!BF12*RRC!BF12) -> 0 | BG12: =IF(OR($L12="",BG$7=""),0,'kol-vo'!BG12*RRC!BG12) -> 0 | BH12: =IF(OR($L12="",BH$7=""),0,'kol-vo'!BH12*RRC!BH12) -> 0 | BI12: =IF(OR($L12="",BI$7=""),0,'kol-vo'!BI12*RRC!BI12) -> 0 | BJ12: =IF(OR($L12="",BJ$7=""),0,'kol-vo'!BJ12*RRC!BJ12) -> 0 | BK12: =IF(OR($L12="",BK$7=""),0,'kol-vo'!BK12*RRC!BK12) -> 0 | BL12: =IF(OR($L12="",BL$7=""),0,'kol-vo'!BL12*RRC!BL12) -> 0 | BM12: =IF(OR($L12="",BM$7=""),0,'kol-vo'!BM12*RRC!BM12) -> 0 | BN12: =IF(OR($L12="",BN$7=""),0,'kol-vo'!BN12*RRC!BN12) -> 0 | BO12: =IF(OR($L12="",BO$7=""),0,'kol-vo'!BO12*RRC!BO12) -> 0 | BP12: =IF(OR($L12="",BP$7=""),0,'kol-vo'!BP12*RRC!BP12) -> 0 | BQ12: =IF(OR($L12="",BQ$7=""),0,'kol-vo'!BQ12*RRC!BQ12) -> 0 | BR12: =IF(OR($L12="",BR$7=""),0,'kol-vo'!BR12*RRC!BR12) -> 0 | BS12: =IF(OR($L12="",BS$7=""),0,'kol-vo'!BS12*RRC!BS12) -> 0 | BT12: =IF(OR($L12="",BT$7=""),0,'kol-vo'!BT12*RRC!BT12) -> 0 | BU12: =IF(OR($L12="",BU$7=""),0,'kol-vo'!BU12*RRC!BU12) -> 0 | BV12: =IF(OR($L12="",BV$7=""),0,'kol-vo'!BV12*RRC!BV12) -> 0 | BW12: =IF(OR($L12="",BW$7=""),0,'kol-vo'!BW12*RRC!BW12) -> 0 | BX12: =IF(OR($L12="",BX$7=""),0,'kol-vo'!BX12*RRC!BX12) -> 0 | BY12: =IF(OR($L12="",BY$7=""),0,'kol-vo'!BY12*RRC!BY12) -> 0 | BZ12: =IF(OR($L12="",BZ$7=""),0,'kol-vo'!BZ12*RRC!BZ12) -> 0 | CA12: =IF(OR($L12="",CA$7=""),0,'kol-vo'!CA12*RRC!CA12) -> 0 | CB12: =IF(OR($L12="",CB$7=""),0,'kol-vo'!CB12*RRC!CB12) -> 0 | CC12: =IF(OR($L12="",CC$7=""),0,'kol-vo'!CC12*RRC!CC12) -> 0 | CD12: =IF(OR($L12="",CD$7=""),0,'kol-vo'!CD12*RRC!CD12) -> 0 | CE12: =IF(OR($L12="",CE$7=""),0,'kol-vo'!CE12*RRC!CE12) -> 0 | CF12: =IF(OR($L12="",CF$7=""),0,'kol-vo'!CF12*RRC!CF12) -> 0 | CG12: =IF(OR($L12="",CG$7=""),0,'kol-vo'!CG12*RRC!CG12) -> 0 | CH12: =IF(OR($L12="",CH$7=""),0,'kol-vo'!CH12*RRC!CH12) -> 0 | CI12: =IF(OR($L12="",CI$7=""),0,'kol-vo'!CI12*RRC!CI12) -> 0 | CJ12: =IF(OR($L12="",CJ$7=""),0,'kol-vo'!CJ12*RRC!CJ12) -> 0 | CK12: =IF(OR($L12="",CK$7=""),0,'kol-vo'!CK12*RRC!CK12) -> 0 | CL12: =IF(OR($L12="",CL$7=""),0,'kol-vo'!CL12*RRC!CL12) -> 0 | CM12: =IF(OR($L12="",CM$7=""),0,'kol-vo'!CM12*RRC!CM12) -> 0 | CN12: =IF(OR($L12="",CN$7=""),0,'kol-vo'!CN12*RRC!CN12) -> 0 | CO12: =IF(OR($L12="",CO$7=""),0,'kol-vo'!CO12*RRC!CO12) -> 0 | CP12: =IF(OR($L12="",CP$7=""),0,'kol-vo'!CP12*RRC!CP12) -> 0 | CQ12: =IF(OR($L12="",CQ$7=""),0,'kol-vo'!CQ12*RRC!CQ12) -> 0
K13: ='str-ra-prodaj'!K13 -> 3 | L13: ='str-ra-prodaj'!L13 -> 3 | M13: ='str-ra-prodaj'!M13 -> 1 | N13: ='str-ra-prodaj'!N13 -> 1 | O13: ='str-ra-prodaj'!O13 -> Продукт - 13 | P13: ='str-ra-prodaj'!P13 -> Товарная категория - 1 | Q13: ='str-ra-prodaj'!Q13 -> ЮФО+ПФО | R13: ='str-ra-prodaj'!R13 -> E-commerce | X13: =IF(OR($L13="",X$7=""),0,'kol-vo'!X13*RRC!X13) -> 0 | Y13: =IF(OR($L13="",Y$7=""),0,'kol-vo'!Y13*RRC!Y13) -> 0 | Z13: =IF(OR($L13="",Z$7=""),0,'kol-vo'!Z13*RRC!Z13) -> 0 | AA13: =IF(OR($L13="",AA$7=""),0,'kol-vo'!AA13*RRC!AA13) -> 0 | AB13: =IF(OR($L13="",AB$7=""),0,'kol-vo'!AB13*RRC!AB13) -> 0 | AC13: =IF(OR($L13="",AC$7=""),0,'kol-vo'!AC13*RRC!AC13) -> 0 | AD13: =IF(OR($L13="",AD$7=""),0,'kol-vo'!AD13*RRC!AD13) -> 0 | AE13: =IF(OR($L13="",AE$7=""),0,'kol-vo'!AE13*RRC!AE13) -> 0 | AF13: =IF(OR($L13="",AF$7=""),0,'kol-vo'!AF13*RRC!AF13) -> 0 | AG13: =IF(OR($L13="",AG$7=""),0,'kol-vo'!AG13*RRC!AG13) -> 0 | AH13: =IF(OR($L13="",AH$7=""),0,'kol-vo'!AH13*RRC!AH13) -> 0 | AI13: =IF(OR($L13="",AI$7=""),0,'kol-vo'!AI13*RRC!AI13) -> 0 | AJ13: =IF(OR($L13="",AJ$7=""),0,'kol-vo'!AJ13*RRC!AJ13) -> 0 | AK13: =IF(OR($L13="",AK$7=""),0,'kol-vo'!AK13*RRC!AK13) -> 0 | AL13: =IF(OR($L13="",AL$7=""),0,'kol-vo'!AL13*RRC!AL13) -> 0 | AM13: =IF(OR($L13="",AM$7=""),0,'kol-vo'!AM13*RRC!AM13) -> 0 | AN13: =IF(OR($L13="",AN$7=""),0,'kol-vo'!AN13*RRC!AN13) -> 0 | AO13: =IF(OR($L13="",AO$7=""),0,'kol-vo'!AO13*RRC!AO13) -> 0 | AP13: =IF(OR($L13="",AP$7=""),0,'kol-vo'!AP13*RRC!AP13) -> 0 | AQ13: =IF(OR($L13="",AQ$7=""),0,'kol-vo'!AQ13*RRC!AQ13) -> 0 | AR13: =IF(OR($L13="",AR$7=""),0,'kol-vo'!AR13*RRC!AR13) -> 0 | AS13: =IF(OR($L13="",AS$7=""),0,'kol-vo'!AS13*RRC!AS13) -> 0 | AT13: =IF(OR($L13="",AT$7=""),0,'kol-vo'!AT13*RRC!AT13) -> 0 | AU13: =IF(OR($L13="",AU$7=""),0,'kol-vo'!AU13*RRC!AU13) -> 0 | AV13: =IF(OR($L13="",AV$7=""),0,'kol-vo'!AV13*RRC!AV13) -> 0 | AW13: =IF(OR($L13="",AW$7=""),0,'kol-vo'!AW13*RRC!AW13) -> 0 | AX13: =IF(OR($L13="",AX$7=""),0,'kol-vo'!AX13*RRC!AX13) -> 0 | AY13: =IF(OR($L13="",AY$7=""),0,'kol-vo'!AY13*RRC!AY13) -> 0 | AZ13: =IF(OR($L13="",AZ$7=""),0,'kol-vo'!AZ13*RRC!AZ13) -> 0 | BA13: =IF(OR($L13="",BA$7=""),0,'kol-vo'!BA13*RRC!BA13) -> 0 | BB13: =IF(OR($L13="",BB$7=""),0,'kol-vo'!BB13*RRC!BB13) -> 0 | BC13: =IF(OR($L13="",BC$7=""),0,'kol-vo'!BC13*RRC!BC13) -> 0 | BD13: =IF(OR($L13="",BD$7=""),0,'kol-vo'!BD13*RRC!BD13) -> 0 | BE13: =IF(OR($L13="",BE$7=""),0,'kol-vo'!BE13*RRC!BE13) -> 0 | BF13: =IF(OR($L13="",BF$7=""),0,'kol-vo'!BF13*RRC!BF13) -> 0 | BG13: =IF(OR($L13="",BG$7=""),0,'kol-vo'!BG13*RRC!BG13) -> 0 | BH13: =IF(OR($L13="",BH$7=""),0,'kol-vo'!BH13*RRC!BH13) -> 0 | BI13: =IF(OR($L13="",BI$7=""),0,'kol-vo'!BI13*RRC!BI13) -> 0 | BJ13: =IF(OR($L13="",BJ$7=""),0,'kol-vo'!BJ13*RRC!BJ13) -> 0 | BK13: =IF(OR($L13="",BK$7=""),0,'kol-vo'!BK13*RRC!BK13) -> 0 | BL13: =IF(OR($L13="",BL$7=""),0,'kol-vo'!BL13*RRC!BL13) -> 0 | BM13: =IF(OR($L13="",BM$7=""),0,'kol-vo'!BM13*RRC!BM13) -> 0 | BN13: =IF(OR($L13="",BN$7=""),0,'kol-vo'!BN13*RRC!BN13) -> 0 | BO13: =IF(OR($L13="",BO$7=""),0,'kol-vo'!BO13*RRC!BO13) -> 0 | BP13: =IF(OR($L13="",BP$7=""),0,'kol-vo'!BP13*RRC!BP13) -> 0 | BQ13: =IF(OR($L13="",BQ$7=""),0,'kol-vo'!BQ13*RRC!BQ13) -> 0 | BR13: =IF(OR($L13="",BR$7=""),0,'kol-vo'!BR13*RRC!BR13) -> 0 | BS13: =IF(OR($L13="",BS$7=""),0,'kol-vo'!BS13*RRC!BS13) -> 0 | BT13: =IF(OR($L13="",BT$7=""),0,'kol-vo'!BT13*RRC!BT13) -> 0 | BU13: =IF(OR($L13="",BU$7=""),0,'kol-vo'!BU13*RRC!BU13) -> 0 | BV13: =IF(OR($L13="",BV$7=""),0,'kol-vo'!BV13*RRC!BV13) -> 0 | BW13: =IF(OR($L13="",BW$7=""),0,'kol-vo'!BW13*RRC!BW13) -> 0 | BX13: =IF(OR($L13="",BX$7=""),0,'kol-vo'!BX13*RRC!BX13) -> 0 | BY13: =IF(OR($L13="",BY$7=""),0,'kol-vo'!BY13*RRC!BY13) -> 0 | BZ13: =IF(OR($L13="",BZ$7=""),0,'kol-vo'!BZ13*RRC!BZ13) -> 0 | CA13: =IF(OR($L13="",CA$7=""),0,'kol-vo'!CA13*RRC!CA13) -> 0 | CB13: =IF(OR($L13="",CB$7=""),0,'kol-vo'!CB13*RRC!CB13) -> 0 | CC13: =IF(OR($L13="",CC$7=""),0,'kol-vo'!CC13*RRC!CC13) -> 0 | CD13: =IF(OR($L13="",CD$7=""),0,'kol-vo'!CD13*RRC!CD13) -> 0 | CE13: =IF(OR($L13="",CE$7=""),0,'kol-vo'!CE13*RRC!CE13) -> 0 | CF13: =IF(OR($L13="",CF$7=""),0,'kol-vo'!CF13*RRC!CF13) -> 0 | CG13: =IF(OR($L13="",CG$7=""),0,'kol-vo'!CG13*RRC!CG13) -> 0 | CH13: =IF(OR($L13="",CH$7=""),0,'kol-vo'!CH13*RRC!CH13) -> 0 | CI13: =IF(OR($L13="",CI$7=""),0,'kol-vo'!CI13*RRC!CI13) -> 0 | CJ13: =IF(OR($L13="",CJ$7=""),0,'kol-vo'!CJ13*RRC!CJ13) -> 0 | CK13: =IF(OR($L13="",CK$7=""),0,'kol-vo'!CK13*RRC!CK13) -> 0 | CL13: =IF(OR($L13="",CL$7=""),0,'kol-vo'!CL13*RRC!CL13) -> 0 | CM13: =IF(OR($L13="",CM$7=""),0,'kol-vo'!CM13*RRC!CM13) -> 0 | CN13: =IF(OR($L13="",CN$7=""),0,'kol-vo'!CN13*RRC!CN13) -> 0 | CO13: =IF(OR($L13="",CO$7=""),0,'kol-vo'!CO13*RRC!CO13) -> 0 | CP13: =IF(OR($L13="",CP$7=""),0,'kol-vo'!CP13*RRC!CP13) -> 0 | CQ13: =IF(OR($L13="",CQ$7=""),0,'kol-vo'!CQ13*RRC!CQ13) -> 0
K14: ='str-ra-prodaj'!K14 -> 4 | L14: ='str-ra-prodaj'!L14 -> 4 | M14: ='str-ra-prodaj'!M14 -> 1 | N14: ='str-ra-prodaj'!N14 -> 1 | O14: ='str-ra-prodaj'!O14 -> Продукт - 14 | P14: ='str-ra-prodaj'!P14 -> Товарная категория - 1 | Q14: ='str-ra-prodaj'!Q14 -> ЮФО+ПФО | R14: ='str-ra-prodaj'!R14 -> E-commerce | X14: =IF(OR($L14="",X$7=""),0,'kol-vo'!X14*RRC!X14) -> 0 | Y14: =IF(OR($L14="",Y$7=""),0,'kol-vo'!Y14*RRC!Y14) -> 0 | Z14: =IF(OR($L14="",Z$7=""),0,'kol-vo'!Z14*RRC!Z14) -> 0 | AA14: =IF(OR($L14="",AA$7=""),0,'kol-vo'!AA14*RRC!AA14) -> 0 | AB14: =IF(OR($L14="",AB$7=""),0,'kol-vo'!AB14*RRC!AB14) -> 0 | AC14: =IF(OR($L14="",AC$7=""),0,'kol-vo'!AC14*RRC!AC14) -> 0 | AD14: =IF(OR($L14="",AD$7=""),0,'kol-vo'!AD14*RRC!AD14) -> 0 | AE14: =IF(OR($L14="",AE$7=""),0,'kol-vo'!AE14*RRC!AE14) -> 0 | AF14: =IF(OR($L14="",AF$7=""),0,'kol-vo'!AF14*RRC!AF14) -> 0 | AG14: =IF(OR($L14="",AG$7=""),0,'kol-vo'!AG14*RRC!AG14) -> 0 | AH14: =IF(OR($L14="",AH$7=""),0,'kol-vo'!AH14*RRC!AH14) -> 0 | AI14: =IF(OR($L14="",AI$7=""),0,'kol-vo'!AI14*RRC!AI14) -> 0 | AJ14: =IF(OR($L14="",AJ$7=""),0,'kol-vo'!AJ14*RRC!AJ14) -> 0 | AK14: =IF(OR($L14="",AK$7=""),0,'kol-vo'!AK14*RRC!AK14) -> 0 | AL14: =IF(OR($L14="",AL$7=""),0,'kol-vo'!AL14*RRC!AL14) -> 0 | AM14: =IF(OR($L14="",AM$7=""),0,'kol-vo'!AM14*RRC!AM14) -> 0 | AN14: =IF(OR($L14="",AN$7=""),0,'kol-vo'!AN14*RRC!AN14) -> 0 | AO14: =IF(OR($L14="",AO$7=""),0,'kol-vo'!AO14*RRC!AO14) -> 0 | AP14: =IF(OR($L14="",AP$7=""),0,'kol-vo'!AP14*RRC!AP14) -> 0 | AQ14: =IF(OR($L14="",AQ$7=""),0,'kol-vo'!AQ14*RRC!AQ14) -> 0 | AR14: =IF(OR($L14="",AR$7=""),0,'kol-vo'!AR14*RRC!AR14) -> 0 | AS14: =IF(OR($L14="",AS$7=""),0,'kol-vo'!AS14*RRC!AS14) -> 0 | AT14: =IF(OR($L14="",AT$7=""),0,'kol-vo'!AT14*RRC!AT14) -> 0 | AU14: =IF(OR($L14="",AU$7=""),0,'kol-vo'!AU14*RRC!AU14) -> 0 | AV14: =IF(OR($L14="",AV$7=""),0,'kol-vo'!AV14*RRC!AV14) -> 0 | AW14: =IF(OR($L14="",AW$7=""),0,'kol-vo'!AW14*RRC!AW14) -> 0 | AX14: =IF(OR($L14="",AX$7=""),0,'kol-vo'!AX14*RRC!AX14) -> 0 | AY14: =IF(OR($L14="",AY$7=""),0,'kol-vo'!AY14*RRC!AY14) -> 0 | AZ14: =IF(OR($L14="",AZ$7=""),0,'kol-vo'!AZ14*RRC!AZ14) -> 0 | BA14: =IF(OR($L14="",BA$7=""),0,'kol-vo'!BA14*RRC!BA14) -> 0 | BB14: =IF(OR($L14="",BB$7=""),0,'kol-vo'!BB14*RRC!BB14) -> 0 | BC14: =IF(OR($L14="",BC$7=""),0,'kol-vo'!BC14*RRC!BC14) -> 0 | BD14: =IF(OR($L14="",BD$7=""),0,'kol-vo'!BD14*RRC!BD14) -> 0 | BE14: =IF(OR($L14="",BE$7=""),0,'kol-vo'!BE14*RRC!BE14) -> 0 | BF14: =IF(OR($L14="",BF$7=""),0,'kol-vo'!BF14*RRC!BF14) -> 0 | BG14: =IF(OR($L14="",BG$7=""),0,'kol-vo'!BG14*RRC!BG14) -> 0 | BH14: =IF(OR($L14="",BH$7=""),0,'kol-vo'!BH14*RRC!BH14) -> 0 | BI14: =IF(OR($L14="",BI$7=""),0,'kol-vo'!BI14*RRC!BI14) -> 0 | BJ14: =IF(OR($L14="",BJ$7=""),0,'kol-vo'!BJ14*RRC!BJ14) -> 0 | BK14: =IF(OR($L14="",BK$7=""),0,'kol-vo'!BK14*RRC!BK14) -> 0 | BL14: =IF(OR($L14="",BL$7=""),0,'kol-vo'!BL14*RRC!BL14) -> 0 | BM14: =IF(OR($L14="",BM$7=""),0,'kol-vo'!BM14*RRC!BM14) -> 0 | BN14: =IF(OR($L14="",BN$7=""),0,'kol-vo'!BN14*RRC!BN14) -> 0 | BO14: =IF(OR($L14="",BO$7=""),0,'kol-vo'!BO14*RRC!BO14) -> 0 | BP14: =IF(OR($L14="",BP$7=""),0,'kol-vo'!BP14*RRC!BP14) -> 0 | BQ14: =IF(OR($L14="",BQ$7=""),0,'kol-vo'!BQ14*RRC!BQ14) -> 0 | BR14: =IF(OR($L14="",BR$7=""),0,'kol-vo'!BR14*RRC!BR14) -> 0 | BS14: =IF(OR($L14="",BS$7=""),0,'kol-vo'!BS14*RRC!BS14) -> 0 | BT14: =IF(OR($L14="",BT$7=""),0,'kol-vo'!BT14*RRC!BT14) -> 0 | BU14: =IF(OR($L14="",BU$7=""),0,'kol-vo'!BU14*RRC!BU14) -> 0 | BV14: =IF(OR($L14="",BV$7=""),0,'kol-vo'!BV14*RRC!BV14) -> 0 | BW14: =IF(OR($L14="",BW$7=""),0,'kol-vo'!BW14*RRC!BW14) -> 0 | BX14: =IF(OR($L14="",BX$7=""),0,'kol-vo'!BX14*RRC!BX14) -> 0 | BY14: =IF(OR($L14="",BY$7=""),0,'kol-vo'!BY14*RRC!BY14) -> 0 | BZ14: =IF(OR($L14="",BZ$7=""),0,'kol-vo'!BZ14*RRC!BZ14) -> 0 | CA14: =IF(OR($L14="",CA$7=""),0,'kol-vo'!CA14*RRC!CA14) -> 0 | CB14: =IF(OR($L14="",CB$7=""),0,'kol-vo'!CB14*RRC!CB14) -> 0 | CC14: =IF(OR($L14="",CC$7=""),0,'kol-vo'!CC14*RRC!CC14) -> 0 | CD14: =IF(OR($L14="",CD$7=""),0,'kol-vo'!CD14*RRC!CD14) -> 0 | CE14: =IF(OR($L14="",CE$7=""),0,'kol-vo'!CE14*RRC!CE14) -> 0 | CF14: =IF(OR($L14="",CF$7=""),0,'kol-vo'!CF14*RRC!CF14) -> 0 | CG14: =IF(OR($L14="",CG$7=""),0,'kol-vo'!CG14*RRC!CG14) -> 0 | CH14: =IF(OR($L14="",CH$7=""),0,'kol-vo'!CH14*RRC!CH14) -> 0 | CI14: =IF(OR($L14="",CI$7=""),0,'kol-vo'!CI14*RRC!CI14) -> 0 | CJ14: =IF(OR($L14="",CJ$7=""),0,'kol-vo'!CJ14*RRC!CJ14) -> 0 | CK14: =IF(OR($L14="",CK$7=""),0,'kol-vo'!CK14*RRC!CK14) -> 0 | CL14: =IF(OR($L14="",CL$7=""),0,'kol-vo'!CL14*RRC!CL14) -> 0 | CM14: =IF(OR($L14="",CM$7=""),0,'kol-vo'!CM14*RRC!CM14) -> 0 | CN14: =IF(OR($L14="",CN$7=""),0,'kol-vo'!CN14*RRC!CN14) -> 0 | CO14: =IF(OR($L14="",CO$7=""),0,'kol-vo'!CO14*RRC!CO14) -> 0 | CP14: =IF(OR($L14="",CP$7=""),0,'kol-vo'!CP14*RRC!CP14) -> 0 | CQ14: =IF(OR($L14="",CQ$7=""),0,'kol-vo'!CQ14*RRC!CQ14) -> 0
K15: ='str-ra-prodaj'!K15 -> 5 | L15: ='str-ra-prodaj'!L15 -> 5 | M15: ='str-ra-prodaj'!M15 -> 1 | N15: ='str-ra-prodaj'!N15 -> 1 | O15: ='str-ra-prodaj'!O15 -> Продукт - 21 - 300ml. pet bottle 28/410 | P15: ='str-ra-prodaj'!P15 -> Товарная категория - 2 | Q15: ='str-ra-prodaj'!Q15 -> ЮФО+ПФО | R15: ='str-ra-prodaj'!R15 -> E-commerce | X15: =IF(OR($L15="",X$7=""),0,'kol-vo'!X15*RRC!X15) -> 36780.29861 | Y15: =IF(OR($L15="",Y$7=""),0,'kol-vo'!Y15*RRC!Y15) -> 45782.49343 | Z15: =IF(OR($L15="",Z$7=""),0,'kol-vo'!Z15*RRC!Z15) -> 47624.72622 | AA15: =IF(OR($L15="",AA$7=""),0,'kol-vo'!AA15*RRC!AA15) -> 54285.2322 | AB15: =IF(OR($L15="",AB$7=""),0,'kol-vo'!AB15*RRC!AB15) -> 50845.94937 | AC15: =IF(OR($L15="",AC$7=""),0,'kol-vo'!AC15*RRC!AC15) -> 44465.71893 | AD15: =IF(OR($L15="",AD$7=""),0,'kol-vo'!AD15*RRC!AD15) -> 41916.26884 | AE15: =IF(OR($L15="",AE$7=""),0,'kol-vo'!AE15*RRC!AE15) -> 44483.03621 | AF15: =IF(OR($L15="",AF$7=""),0,'kol-vo'!AF15*RRC!AF15) -> 39597.63267 | AG15: =IF(OR($L15="",AG$7=""),0,'kol-vo'!AG15*RRC!AG15) -> 39245.72383 | AH15: =IF(OR($L15="",AH$7=""),0,'kol-vo'!AH15*RRC!AH15) -> 50319.1019 | AI15: =IF(OR($L15="",AI$7=""),0,'kol-vo'!AI15*RRC!AI15) -> 58160.32983 | AJ15: =IF(OR($L15="",AJ$7=""),0,'kol-vo'!AJ15*RRC!AJ15) -> 41716.12064 | AK15: =IF(OR($L15="",AK$7=""),0,'kol-vo'!AK15*RRC!AK15) -> 51926.38699 | AL15: =IF(OR($L15="",AL$7=""),0,'kol-vo'!AL15*RRC!AL15) -> 54015.84271 | AM15: =IF(OR($L15="",AM$7=""),0,'kol-vo'!AM15*RRC!AM15) -> 61570.17157 | AN15: =IF(OR($L15="",AN$7=""),0,'kol-vo'!AN15*RRC!AN15) -> 57669.34577 | AO15: =IF(OR($L15="",AO$7=""),0,'kol-vo'!AO15*RRC!AO15) -> 50432.90472 | AP15: =IF(OR($L15="",AP$7=""),0,'kol-vo'!AP15*RRC!AP15) -> 47541.32494 | AQ15: =IF(OR($L15="",AQ$7=""),0,'kol-vo'!AQ15*RRC!AQ15) -> 50452.54594 | AR15: =IF(OR($L15="",AR$7=""),0,'kol-vo'!AR15*RRC!AR15) -> 44911.53373 | AS15: =IF(OR($L15="",AS$7=""),0,'kol-vo'!AS15*RRC!AS15) -> 44512.39962 | AT15: =IF(OR($L15="",AT$7=""),0,'kol-vo'!AT15*RRC!AT15) -> 57071.79671 | AU15: =IF(OR($L15="",AU$7=""),0,'kol-vo'!AU15*RRC!AU15) -> 65965.29738 | AV15: =IF(OR($L15="",AV$7=""),0,'kol-vo'!AV15*RRC!AV15) -> 46134.73605 | AW15: =IF(OR($L15="",AW$7=""),0,'kol-vo'!AW15*RRC!AW15) -> 57426.48456 | AX15: =IF(OR($L15="",AX$7=""),0,'kol-vo'!AX15*RRC!AX15) -> 59737.25763 | AY15: =IF(OR($L15="",AY$7=""),0,'kol-vo'!AY15*RRC!AY15) -> 68091.74895 | AZ15: =IF(OR($L15="",AZ$7=""),0,'kol-vo'!AZ15*RRC!AZ15) -> 63777.74358 | BA15: =IF(OR($L15="",BA$7=""),0,'kol-vo'!BA15*RRC!BA15) -> 55774.81107 | BB15: =IF(OR($L15="",BB$7=""),0,'kol-vo'!BB15*RRC!BB15) -> 52576.95212 | BC15: =IF(OR($L15="",BC$7=""),0,'kol-vo'!BC15*RRC!BC15) -> 55796.53271 | BD15: =IF(OR($L15="",BD$7=""),0,'kol-vo'!BD15*RRC!BD15) -> 49668.61066 | BE15: =IF(OR($L15="",BE$7=""),0,'kol-vo'!BE15*RRC!BE15) -> 49227.19985 | BF15: =IF(OR($L15="",BF$7=""),0,'kol-vo'!BF15*RRC!BF15) -> 63116.9015 | BG15: =IF(OR($L15="",BG$7=""),0,'kol-vo'!BG15*RRC!BG15) -> 72952.41112 | BH15: =IF(OR($L15="",BH$7=""),0,'kol-vo'!BH15*RRC!BH15) -> 48470.30706 | BI15: =IF(OR($L15="",BI$7=""),0,'kol-vo'!BI15*RRC!BI15) -> 60333.70034 | BJ15: =IF(OR($L15="",BJ$7=""),0,'kol-vo'!BJ15*RRC!BJ15) -> 62761.45629 | BK15: =IF(OR($L15="",BK$7=""),0,'kol-vo'!BK15*RRC!BK15) -> 71538.89374 | BL15: =IF(OR($L15="",BL$7=""),0,'kol-vo'!BL15*RRC!BL15) -> 67006.49185 | BM15: =IF(OR($L15="",BM$7=""),0,'kol-vo'!BM15*RRC!BM15) -> 58598.41088 | BN15: =IF(OR($L15="",BN$7=""),0,'kol-vo'!BN15*RRC!BN15) -> 55238.66032 | BO15: =IF(OR($L15="",BO$7=""),0,'kol-vo'!BO15*RRC!BO15) -> 58621.23218 | BP15: =IF(OR($L15="",BP$7=""),0,'kol-vo'!BP15*RRC!BP15) -> 52183.08408 | BQ15: =IF(OR($L15="",BQ$7=""),0,'kol-vo'!BQ15*RRC!BQ15) -> 51719.32684 | BR15: =IF(OR($L15="",BR$7=""),0,'kol-vo'!BR15*RRC!BR15) -> 66312.19463 | BS15: =IF(OR($L15="",BS$7=""),0,'kol-vo'!BS15*RRC!BS15) -> 76645.62693 | BT15: =IF(OR($L15="",BT$7=""),0,'kol-vo'!BT15*RRC!BT15) -> 50924.11635 | BU15: =IF(OR($L15="",BU$7=""),0,'kol-vo'!BU15*RRC!BU15) -> 63388.09392 | BV15: =IF(OR($L15="",BV$7=""),0,'kol-vo'!BV15*RRC!BV15) -> 65938.75502 | BW15: =IF(OR($L15="",BW$7=""),0,'kol-vo'!BW15*RRC!BW15) -> 75160.55024 | BX15: =IF(OR($L15="",BX$7=""),0,'kol-vo'!BX15*RRC!BX15) -> 70398.6955 | BY15: =IF(OR($L15="",BY$7=""),0,'kol-vo'!BY15*RRC!BY15) -> 61564.95543 | BZ15: =IF(OR($L15="",BZ$7=""),0,'kol-vo'!BZ15*RRC!BZ15) -> 58035.1175 | CA15: =IF(OR($L15="",CA$7=""),0,'kol-vo'!CA15*RRC!CA15) -> 61588.93206 | CB15: =IF(OR($L15="",CB$7=""),0,'kol-vo'!CB15*RRC!CB15) -> 54824.85271 | CC15: =IF(OR($L15="",CC$7=""),0,'kol-vo'!CC15*RRC!CC15) -> 54337.61776 | CD15: =IF(OR($L15="",CD$7=""),0,'kol-vo'!CD15*RRC!CD15) -> 69669.24949 | CE15: =IF(OR($L15="",CE$7=""),0,'kol-vo'!CE15*RRC!CE15) -> 80525.81179 | CF15: =IF(OR($L15="",CF$7=""),0,'kol-vo'!CF15*RRC!CF15) -> 53502.14975 | CG15: =IF(OR($L15="",CG$7=""),0,'kol-vo'!CG15*RRC!CG15) -> 66597.11618 | CH15: =IF(OR($L15="",CH$7=""),0,'kol-vo'!CH15*RRC!CH15) -> 69276.90449 | CI15: =IF(OR($L15="",CI$7=""),0,'kol-vo'!CI15*RRC!CI15) -> 78965.55309 | CJ15: =IF(OR($L15="",CJ$7=""),0,'kol-vo'!CJ15*RRC!CJ15) -> 73962.62946 | CK15: =IF(OR($L15="",CK$7=""),0,'kol-vo'!CK15*RRC!CK15) -> 64681.6813 | CL15: =IF(OR($L15="",CL$7=""),0,'kol-vo'!CL15*RRC!CL15) -> 60973.14533 | CM15: =IF(OR($L15="",CM$7=""),0,'kol-vo'!CM15*RRC!CM15) -> 64706.87174 | CN15: =IF(OR($L15="",CN$7=""),0,'kol-vo'!CN15*RRC!CN15) -> 57600.36088 | CO15: =IF(OR($L15="",CO$7=""),0,'kol-vo'!CO15*RRC!CO15) -> 57088.45966 | CP15: =IF(OR($L15="",CP$7=""),0,'kol-vo'!CP15*RRC!CP15) -> 73196.25524 | CQ15: =IF(OR($L15="",CQ$7=""),0,'kol-vo'!CQ15*RRC!CQ15) -> 84602.43102
K16: ='str-ra-prodaj'!K16 -> 6 | L16: ='str-ra-prodaj'!L16 -> 6 | M16: ='str-ra-prodaj'!M16 -> 1 | N16: ='str-ra-prodaj'!N16 -> 1 | O16: ='str-ra-prodaj'!O16 -> Продукт - 22 | P16: ='str-ra-prodaj'!P16 -> Товарная категория - 2 | Q16: ='str-ra-prodaj'!Q16 -> ЮФО+ПФО | R16: ='str-ra-prodaj'!R16 -> E-commerce | X16: =IF(OR($L16="",X$7=""),0,'kol-vo'!X16*RRC!X16) -> 0 | Y16: =IF(OR($L16="",Y$7=""),0,'kol-vo'!Y16*RRC!Y16) -> 0 | Z16: =IF(OR($L16="",Z$7=""),0,'kol-vo'!Z16*RRC!Z16) -> 0 | AA16: =IF(OR($L16="",AA$7=""),0,'kol-vo'!AA16*RRC!AA16) -> 0 | AB16: =IF(OR($L16="",AB$7=""),0,'kol-vo'!AB16*RRC!AB16) -> 0 | AC16: =IF(OR($L16="",AC$7=""),0,'kol-vo'!AC16*RRC!AC16) -> 0 | AD16: =IF(OR($L16="",AD$7=""),0,'kol-vo'!AD16*RRC!AD16) -> 0 | AE16: =IF(OR($L16="",AE$7=""),0,'kol-vo'!AE16*RRC!AE16) -> 0 | AF16: =IF(OR($L16="",AF$7=""),0,'kol-vo'!AF16*RRC!AF16) -> 0 | AG16: =IF(OR($L16="",AG$7=""),0,'kol-vo'!AG16*RRC!AG16) -> 0 | AH16: =IF(OR($L16="",AH$7=""),0,'kol-vo'!AH16*RRC!AH16) -> 0 | AI16: =IF(OR($L16="",AI$7=""),0,'kol-vo'!AI16*RRC!AI16) -> 0 | AJ16: =IF(OR($L16="",AJ$7=""),0,'kol-vo'!AJ16*RRC!AJ16) -> 0 | AK16: =IF(OR($L16="",AK$7=""),0,'kol-vo'!AK16*RRC!AK16) -> 0 | AL16: =IF(OR($L16="",AL$7=""),0,'kol-vo'!AL16*RRC!AL16) -> 0 | AM16: =IF(OR($L16="",AM$7=""),0,'kol-vo'!AM16*RRC!AM16) -> 0 | AN16: =IF(OR($L16="",AN$7=""),0,'kol-vo'!AN16*RRC!AN16) -> 0 | AO16: =IF(OR($L16="",AO$7=""),0,'kol-vo'!AO16*RRC!AO16) -> 0 | AP16: =IF(OR($L16="",AP$7=""),0,'kol-vo'!AP16*RRC!AP16) -> 0 | AQ16: =IF(OR($L16="",AQ$7=""),0,'kol-vo'!AQ16*RRC!AQ16) -> 0 | AR16: =IF(OR($L16="",AR$7=""),0,'kol-vo'!AR16*RRC!AR16) -> 0 | AS16: =IF(OR($L16="",AS$7=""),0,'kol-vo'!AS16*RRC!AS16) -> 0 | AT16: =IF(OR($L16="",AT$7=""),0,'kol-vo'!AT16*RRC!AT16) -> 0 | AU16: =IF(OR($L16="",AU$7=""),0,'kol-vo'!AU16*RRC!AU16) -> 0 | AV16: =IF(OR($L16="",AV$7=""),0,'kol-vo'!AV16*RRC!AV16) -> 0 | AW16: =IF(OR($L16="",AW$7=""),0,'kol-vo'!AW16*RRC!AW16) -> 0 | AX16: =IF(OR($L16="",AX$7=""),0,'kol-vo'!AX16*RRC!AX16) -> 0 | AY16: =IF(OR($L16="",AY$7=""),0,'kol-vo'!AY16*RRC!AY16) -> 0 | AZ16: =IF(OR($L16="",AZ$7=""),0,'kol-vo'!AZ16*RRC!AZ16) -> 0 | BA16: =IF(OR($L16="",BA$7=""),0,'kol-vo'!BA16*RRC!BA16) -> 0 | BB16: =IF(OR($L16="",BB$7=""),0,'kol-vo'!BB16*RRC!BB16) -> 0 | BC16: =IF(OR($L16="",BC$7=""),0,'kol-vo'!BC16*RRC!BC16) -> 0 | BD16: =IF(OR($L16="",BD$7=""),0,'kol-vo'!BD16*RRC!BD16) -> 0 | BE16: =IF(OR($L16="",BE$7=""),0,'kol-vo'!BE16*RRC!BE16) -> 0 | BF16: =IF(OR($L16="",BF$7=""),0,'kol-vo'!BF16*RRC!BF16) -> 0 | BG16: =IF(OR($L16="",BG$7=""),0,'kol-vo'!BG16*RRC!BG16) -> 0 | BH16: =IF(OR($L16="",BH$7=""),0,'kol-vo'!BH16*RRC!BH16) -> 0 | BI16: =IF(OR($L16="",BI$7=""),0,'kol-vo'!BI16*RRC!BI16) -> 0 | BJ16: =IF(OR($L16="",BJ$7=""),0,'kol-vo'!BJ16*RRC!BJ16) -> 0 | BK16: =IF(OR($L16="",BK$7=""),0,'kol-vo'!BK16*RRC!BK16) -> 0 | BL16: =IF(OR($L16="",BL$7=""),0,'kol-vo'!BL16*RRC!BL16) -> 0 | BM16: =IF(OR($L16="",BM$7=""),0,'kol-vo'!BM16*RRC!BM16) -> 0 | BN16: =IF(OR($L16="",BN$7=""),0,'kol-vo'!BN16*RRC!BN16) -> 0 | BO16: =IF(OR($L16="",BO$7=""),0,'kol-vo'!BO16*RRC!BO16) -> 0 | BP16: =IF(OR($L16="",BP$7=""),0,'kol-vo'!BP16*RRC!BP16) -> 0 | BQ16: =IF(OR($L16="",BQ$7=""),0,'kol-vo'!BQ16*RRC!BQ16) -> 0 | BR16: =IF(OR($L16="",BR$7=""),0,'kol-vo'!BR16*RRC!BR16) -> 0 | BS16: =IF(OR($L16="",BS$7=""),0,'kol-vo'!BS16*RRC!BS16) -> 0 | BT16: =IF(OR($L16="",BT$7=""),0,'kol-vo'!BT16*RRC!BT16) -> 0 | BU16: =IF(OR($L16="",BU$7=""),0,'kol-vo'!BU16*RRC!BU16) -> 0 | BV16: =IF(OR($L16="",BV$7=""),0,'kol-vo'!BV16*RRC!BV16) -> 0 | BW16: =IF(OR($L16="",BW$7=""),0,'kol-vo'!BW16*RRC!BW16) -> 0 | BX16: =IF(OR($L16="",BX$7=""),0,'kol-vo'!BX16*RRC!BX16) -> 0 | BY16: =IF(OR($L16="",BY$7=""),0,'kol-vo'!BY16*RRC!BY16) -> 0 | BZ16: =IF(OR($L16="",BZ$7=""),0,'kol-vo'!BZ16*RRC!BZ16) -> 0 | CA16: =IF(OR($L16="",CA$7=""),0,'kol-vo'!CA16*RRC!CA16) -> 0 | CB16: =IF(OR($L16="",CB$7=""),0,'kol-vo'!CB16*RRC!CB16) -> 0 | CC16: =IF(OR($L16="",CC$7=""),0,'kol-vo'!CC16*RRC!CC16) -> 0 | CD16: =IF(OR($L16="",CD$7=""),0,'kol-vo'!CD16*RRC!CD16) -> 0 | CE16: =IF(OR($L16="",CE$7=""),0,'kol-vo'!CE16*RRC!CE16) -> 0 | CF16: =IF(OR($L16="",CF$7=""),0,'kol-vo'!CF16*RRC!CF16) -> 0 | CG16: =IF(OR($L16="",CG$7=""),0,'kol-vo'!CG16*RRC!CG16) -> 0 | CH16: =IF(OR($L16="",CH$7=""),0,'kol-vo'!CH16*RRC!CH16) -> 0 | CI16: =IF(OR($L16="",CI$7=""),0,'kol-vo'!CI16*RRC!CI16) -> 0 | CJ16: =IF(OR($L16="",CJ$7=""),0,'kol-vo'!CJ16*RRC!CJ16) -> 0 | CK16: =IF(OR($L16="",CK$7=""),0,'kol-vo'!CK16*RRC!CK16) -> 0 | CL16: =IF(OR($L16="",CL$7=""),0,'kol-vo'!CL16*RRC!CL16) -> 0 | CM16: =IF(OR($L16="",CM$7=""),0,'kol-vo'!CM16*RRC!CM16) -> 0 | CN16: =IF(OR($L16="",CN$7=""),0,'kol-vo'!CN16*RRC!CN16) -> 0 | CO16: =IF(OR($L16="",CO$7=""),0,'kol-vo'!CO16*RRC!CO16) -> 0 | CP16: =IF(OR($L16="",CP$7=""),0,'kol-vo'!CP16*RRC!CP16) -> 0 | CQ16: =IF(OR($L16="",CQ$7=""),0,'kol-vo'!CQ16*RRC!CQ16) -> 0
K17: ='str-ra-prodaj'!K17 -> 7 | L17: ='str-ra-prodaj'!L17 -> 7 | M17: ='str-ra-prodaj'!M17 -> 1 | N17: ='str-ra-prodaj'!N17 -> 1 | O17: ='str-ra-prodaj'!O17 -> Продукт - 23 | P17: ='str-ra-prodaj'!P17 -> Товарная категория - 2 | Q17: ='str-ra-prodaj'!Q17 -> ЮФО+ПФО | R17: ='str-ra-prodaj'!R17 -> E-commerce | X17: =IF(OR($L17="",X$7=""),0,'kol-vo'!X17*RRC!X17) -> 0 | Y17: =IF(OR($L17="",Y$7=""),0,'kol-vo'!Y17*RRC!Y17) -> 0 | Z17: =IF(OR($L17="",Z$7=""),0,'kol-vo'!Z17*RRC!Z17) -> 0 | AA17: =IF(OR($L17="",AA$7=""),0,'kol-vo'!AA17*RRC!AA17) -> 0 | AB17: =IF(OR($L17="",AB$7=""),0,'kol-vo'!AB17*RRC!AB17) -> 0 | AC17: =IF(OR($L17="",AC$7=""),0,'kol-vo'!AC17*RRC!AC17) -> 0 | AD17: =IF(OR($L17="",AD$7=""),0,'kol-vo'!AD17*RRC!AD17) -> 0 | AE17: =IF(OR($L17="",AE$7=""),0,'kol-vo'!AE17*RRC!AE17) -> 0 | AF17: =IF(OR($L17="",AF$7=""),0,'kol-vo'!AF17*RRC!AF17) -> 0 | AG17: =IF(OR($L17="",AG$7=""),0,'kol-vo'!AG17*RRC!AG17) -> 0 | AH17: =IF(OR($L17="",AH$7=""),0,'kol-vo'!AH17*RRC!AH17) -> 0 | AI17: =IF(OR($L17="",AI$7=""),0,'kol-vo'!AI17*RRC!AI17) -> 0 | AJ17: =IF(OR($L17="",AJ$7=""),0,'kol-vo'!AJ17*RRC!AJ17) -> 0 | AK17: =IF(OR($L17="",AK$7=""),0,'kol-vo'!AK17*RRC!AK17) -> 0 | AL17: =IF(OR($L17="",AL$7=""),0,'kol-vo'!AL17*RRC!AL17) -> 0 | AM17: =IF(OR($L17="",AM$7=""),0,'kol-vo'!AM17*RRC!AM17) -> 0 | AN17: =IF(OR($L17="",AN$7=""),0,'kol-vo'!AN17*RRC!AN17) -> 0 | AO17: =IF(OR($L17="",AO$7=""),0,'kol-vo'!AO17*RRC!AO17) -> 0 | AP17: =IF(OR($L17="",AP$7=""),0,'kol-vo'!AP17*RRC!AP17) -> 0 | AQ17: =IF(OR($L17="",AQ$7=""),0,'kol-vo'!AQ17*RRC!AQ17) -> 0 | AR17: =IF(OR($L17="",AR$7=""),0,'kol-vo'!AR17*RRC!AR17) -> 0 | AS17: =IF(OR($L17="",AS$7=""),0,'kol-vo'!AS17*RRC!AS17) -> 0 | AT17: =IF(OR($L17="",AT$7=""),0,'kol-vo'!AT17*RRC!AT17) -> 0 | AU17: =IF(OR($L17="",AU$7=""),0,'kol-vo'!AU17*RRC!AU17) -> 0 | AV17: =IF(OR($L17="",AV$7=""),0,'kol-vo'!AV17*RRC!AV17) -> 0 | AW17: =IF(OR($L17="",AW$7=""),0,'kol-vo'!AW17*RRC!AW17) -> 0 | AX17: =IF(OR($L17="",AX$7=""),0,'kol-vo'!AX17*RRC!AX17) -> 0 | AY17: =IF(OR($L17="",AY$7=""),0,'kol-vo'!AY17*RRC!AY17) -> 0 | AZ17: =IF(OR($L17="",AZ$7=""),0,'kol-vo'!AZ17*RRC!AZ17) -> 0 | BA17: =IF(OR($L17="",BA$7=""),0,'kol-vo'!BA17*RRC!BA17) -> 0 | BB17: =IF(OR($L17="",BB$7=""),0,'kol-vo'!BB17*RRC!BB17) -> 0 | BC17: =IF(OR($L17="",BC$7=""),0,'kol-vo'!BC17*RRC!BC17) -> 0 | BD17: =IF(OR($L17="",BD$7=""),0,'kol-vo'!BD17*RRC!BD17) -> 0 | BE17: =IF(OR($L17="",BE$7=""),0,'kol-vo'!BE17*RRC!BE17) -> 0 | BF17: =IF(OR($L17="",BF$7=""),0,'kol-vo'!BF17*RRC!BF17) -> 0 | BG17: =IF(OR($L17="",BG$7=""),0,'kol-vo'!BG17*RRC!BG17) -> 0 | BH17: =IF(OR($L17="",BH$7=""),0,'kol-vo'!BH17*RRC!BH17) -> 0 | BI17: =IF(OR($L17="",BI$7=""),0,'kol-vo'!BI17*RRC!BI17) -> 0 | BJ17: =IF(OR($L17="",BJ$7=""),0,'kol-vo'!BJ17*RRC!BJ17) -> 0 | BK17: =IF(OR($L17="",BK$7=""),0,'kol-vo'!BK17*RRC!BK17) -> 0 | BL17: =IF(OR($L17="",BL$7=""),0,'kol-vo'!BL17*RRC!BL17) -> 0 | BM17: =IF(OR($L17="",BM$7=""),0,'kol-vo'!BM17*RRC!BM17) -> 0 | BN17: =IF(OR($L17="",BN$7=""),0,'kol-vo'!BN17*RRC!BN17) -> 0 | BO17: =IF(OR($L17="",BO$7=""),0,'kol-vo'!BO17*RRC!BO17) -> 0 | BP17: =IF(OR($L17="",BP$7=""),0,'kol-vo'!BP17*RRC!BP17) -> 0 | BQ17: =IF(OR($L17="",BQ$7=""),0,'kol-vo'!BQ17*RRC!BQ17) -> 0 | BR17: =IF(OR($L17="",BR$7=""),0,'kol-vo'!BR17*RRC!BR17) -> 0 | BS17: =IF(OR($L17="",BS$7=""),0,'kol-vo'!BS17*RRC!BS17) -> 0 | BT17: =IF(OR($L17="",BT$7=""),0,'kol-vo'!BT17*RRC!BT17) -> 0 | BU17: =IF(OR($L17="",BU$7=""),0,'kol-vo'!BU17*RRC!BU17) -> 0 | BV17: =IF(OR($L17="",BV$7=""),0,'kol-vo'!BV17*RRC!BV17) -> 0 | BW17: =IF(OR($L17="",BW$7=""),0,'kol-vo'!BW17*RRC!BW17) -> 0 | BX17: =IF(OR($L17="",BX$7=""),0,'kol-vo'!BX17*RRC!BX17) -> 0 | BY17: =IF(OR($L17="",BY$7=""),0,'kol-vo'!BY17*RRC!BY17) -> 0 | BZ17: =IF(OR($L17="",BZ$7=""),0,'kol-vo'!BZ17*RRC!BZ17) -> 0 | CA17: =IF(OR($L17="",CA$7=""),0,'kol-vo'!CA17*RRC!CA17) -> 0 | CB17: =IF(OR($L17="",CB$7=""),0,'kol-vo'!CB17*RRC!CB17) -> 0 | CC17: =IF(OR($L17="",CC$7=""),0,'kol-vo'!CC17*RRC!CC17) -> 0 | CD17: =IF(OR($L17="",CD$7=""),0,'kol-vo'!CD17*RRC!CD17) -> 0 | CE17: =IF(OR($L17="",CE$7=""),0,'kol-vo'!CE17*RRC!CE17) -> 0 | CF17: =IF(OR($L17="",CF$7=""),0,'kol-vo'!CF17*RRC!CF17) -> 0 | CG17: =IF(OR($L17="",CG$7=""),0,'kol-vo'!CG17*RRC!CG17) -> 0 | CH17: =IF(OR($L17="",CH$7=""),0,'kol-vo'!CH17*RRC!CH17) -> 0 | CI17: =IF(OR($L17="",CI$7=""),0,'kol-vo'!CI17*RRC!CI17) -> 0 | CJ17: =IF(OR($L17="",CJ$7=""),0,'kol-vo'!CJ17*RRC!CJ17) -> 0 | CK17: =IF(OR($L17="",CK$7=""),0,'kol-vo'!CK17*RRC!CK17) -> 0 | CL17: =IF(OR($L17="",CL$7=""),0,'kol-vo'!CL17*RRC!CL17) -> 0 | CM17: =IF(OR($L17="",CM$7=""),0,'kol-vo'!CM17*RRC!CM17) -> 0 | CN17: =IF(OR($L17="",CN$7=""),0,'kol-vo'!CN17*RRC!CN17) -> 0 | CO17: =IF(OR($L17="",CO$7=""),0,'kol-vo'!CO17*RRC!CO17) -> 0 | CP17: =IF(OR($L17="",CP$7=""),0,'kol-vo'!CP17*RRC!CP17) -> 0 | CQ17: =IF(OR($L17="",CQ$7=""),0,'kol-vo'!CQ17*RRC!CQ17) -> 0
K18: ='str-ra-prodaj'!K18 -> 8 | L18: ='str-ra-prodaj'!L18 -> 8 | M18: ='str-ra-prodaj'!M18 -> 1 | N18: ='str-ra-prodaj'!N18 -> 1 | O18: ='str-ra-prodaj'!O18 -> Продукт - 24 | P18: ='str-ra-prodaj'!P18 -> Товарная категория - 2 | Q18: ='str-ra-prodaj'!Q18 -> ЮФО+ПФО | R18: ='str-ra-prodaj'!R18 -> E-commerce | X18: =IF(OR($L18="",X$7=""),0,'kol-vo'!X18*RRC!X18) -> 0 | Y18: =IF(OR($L18="",Y$7=""),0,'kol-vo'!Y18*RRC!Y18) -> 0 | Z18: =IF(OR($L18="",Z$7=""),0,'kol-vo'!Z18*RRC!Z18) -> 0 | AA18: =IF(OR($L18="",AA$7=""),0,'kol-vo'!AA18*RRC!AA18) -> 0 | AB18: =IF(OR($L18="",AB$7=""),0,'kol-vo'!AB18*RRC!AB18) -> 0 | AC18: =IF(OR($L18="",AC$7=""),0,'kol-vo'!AC18*RRC!AC18) -> 0 | AD18: =IF(OR($L18="",AD$7=""),0,'kol-vo'!AD18*RRC!AD18) -> 0 | AE18: =IF(OR($L18="",AE$7=""),0,'kol-vo'!AE18*RRC!AE18) -> 0 | AF18: =IF(OR($L18="",AF$7=""),0,'kol-vo'!AF18*RRC!AF18) -> 0 | AG18: =IF(OR($L18="",AG$7=""),0,'kol-vo'!AG18*RRC!AG18) -> 0 | AH18: =IF(OR($L18="",AH$7=""),0,'kol-vo'!AH18*RRC!AH18) -> 0 | AI18: =IF(OR($L18="",AI$7=""),0,'kol-vo'!AI18*RRC!AI18) -> 0 | AJ18: =IF(OR($L18="",AJ$7=""),0,'kol-vo'!AJ18*RRC!AJ18) -> 0 | AK18: =IF(OR($L18="",AK$7=""),0,'kol-vo'!AK18*RRC!AK18) -> 0 | AL18: =IF(OR($L18="",AL$7=""),0,'kol-vo'!AL18*RRC!AL18) -> 0 | AM18: =IF(OR($L18="",AM$7=""),0,'kol-vo'!AM18*RRC!AM18) -> 0 | AN18: =IF(OR($L18="",AN$7=""),0,'kol-vo'!AN18*RRC!AN18) -> 0 | AO18: =IF(OR($L18="",AO$7=""),0,'kol-vo'!AO18*RRC!AO18) -> 0 | AP18: =IF(OR($L18="",AP$7=""),0,'kol-vo'!AP18*RRC!AP18) -> 0 | AQ18: =IF(OR($L18="",AQ$7=""),0,'kol-vo'!AQ18*RRC!AQ18) -> 0 | AR18: =IF(OR($L18="",AR$7=""),0,'kol-vo'!AR18*RRC!AR18) -> 0 | AS18: =IF(OR($L18="",AS$7=""),0,'kol-vo'!AS18*RRC!AS18) -> 0 | AT18: =IF(OR($L18="",AT$7=""),0,'kol-vo'!AT18*RRC!AT18) -> 0 | AU18: =IF(OR($L18="",AU$7=""),0,'kol-vo'!AU18*RRC!AU18) -> 0 | AV18: =IF(OR($L18="",AV$7=""),0,'kol-vo'!AV18*RRC!AV18) -> 0 | AW18: =IF(OR($L18="",AW$7=""),0,'kol-vo'!AW18*RRC!AW18) -> 0 | AX18: =IF(OR($L18="",AX$7=""),0,'kol-vo'!AX18*RRC!AX18) -> 0 | AY18: =IF(OR($L18="",AY$7=""),0,'kol-vo'!AY18*RRC!AY18) -> 0 | AZ18: =IF(OR($L18="",AZ$7=""),0,'kol-vo'!AZ18*RRC!AZ18) -> 0 | BA18: =IF(OR($L18="",BA$7=""),0,'kol-vo'!BA18*RRC!BA18) -> 0 | BB18: =IF(OR($L18="",BB$7=""),0,'kol-vo'!BB18*RRC!BB18) -> 0 | BC18: =IF(OR($L18="",BC$7=""),0,'kol-vo'!BC18*RRC!BC18) -> 0 | BD18: =IF(OR($L18="",BD$7=""),0,'kol-vo'!BD18*RRC!BD18) -> 0 | BE18: =IF(OR($L18="",BE$7=""),0,'kol-vo'!BE18*RRC!BE18) -> 0 | BF18: =IF(OR($L18="",BF$7=""),0,'kol-vo'!BF18*RRC!BF18) -> 0 | BG18: =IF(OR($L18="",BG$7=""),0,'kol-vo'!BG18*RRC!BG18) -> 0 | BH18: =IF(OR($L18="",BH$7=""),0,'kol-vo'!BH18*RRC!BH18) -> 0 | BI18: =IF(OR($L18="",BI$7=""),0,'kol-vo'!BI18*RRC!BI18) -> 0 | BJ18: =IF(OR($L18="",BJ$7=""),0,'kol-vo'!BJ18*RRC!BJ18) -> 0 | BK18: =IF(OR($L18="",BK$7=""),0,'kol-vo'!BK18*RRC!BK18) -> 0 | BL18: =IF(OR($L18="",BL$7=""),0,'kol-vo'!BL18*RRC!BL18) -> 0 | BM18: =IF(OR($L18="",BM$7=""),0,'kol-vo'!BM18*RRC!BM18) -> 0 | BN18: =IF(OR($L18="",BN$7=""),0,'kol-vo'!BN18*RRC!BN18) -> 0 | BO18: =IF(OR($L18="",BO$7=""),0,'kol-vo'!BO18*RRC!BO18) -> 0 | BP18: =IF(OR($L18="",BP$7=""),0,'kol-vo'!BP18*RRC!BP18) -> 0 | BQ18: =IF(OR($L18="",BQ$7=""),0,'kol-vo'!BQ18*RRC!BQ18) -> 0 | BR18: =IF(OR($L18="",BR$7=""),0,'kol-vo'!BR18*RRC!BR18) -> 0 | BS18: =IF(OR($L18="",BS$7=""),0,'kol-vo'!BS18*RRC!BS18) -> 0 | BT18: =IF(OR($L18="",BT$7=""),0,'kol-vo'!BT18*RRC!BT18) -> 0 | BU18: =IF(OR($L18="",BU$7=""),0,'kol-vo'!BU18*RRC!BU18) -> 0 | BV18: =IF(OR($L18="",BV$7=""),0,'kol-vo'!BV18*RRC!BV18) -> 0 | BW18: =IF(OR($L18="",BW$7=""),0,'kol-vo'!BW18*RRC!BW18) -> 0 | BX18: =IF(OR($L18="",BX$7=""),0,'kol-vo'!BX18*RRC!BX18) -> 0 | BY18: =IF(OR($L18="",BY$7=""),0,'kol-vo'!BY18*RRC!BY18) -> 0 | BZ18: =IF(OR($L18="",BZ$7=""),0,'kol-vo'!BZ18*RRC!BZ18) -> 0 | CA18: =IF(OR($L18="",CA$7=""),0,'kol-vo'!CA18*RRC!CA18) -> 0 | CB18: =IF(OR($L18="",CB$7=""),0,'kol-vo'!CB18*RRC!CB18) -> 0 | CC18: =IF(OR($L18="",CC$7=""),0,'kol-vo'!CC18*RRC!CC18) -> 0 | CD18: =IF(OR($L18="",CD$7=""),0,'kol-vo'!CD18*RRC!CD18) -> 0 | CE18: =IF(OR($L18="",CE$7=""),0,'kol-vo'!CE18*RRC!CE18) -> 0 | CF18: =IF(OR($L18="",CF$7=""),0,'kol-vo'!CF18*RRC!CF18) -> 0 | CG18: =IF(OR($L18="",CG$7=""),0,'kol-vo'!CG18*RRC!CG18) -> 0 | CH18: =IF(OR($L18="",CH$7=""),0,'kol-vo'!CH18*RRC!CH18) -> 0 | CI18: =IF(OR($L18="",CI$7=""),0,'kol-vo'!CI18*RRC!CI18) -> 0 | CJ18: =IF(OR($L18="",CJ$7=""),0,'kol-vo'!CJ18*RRC!CJ18) -> 0 | CK18: =IF(OR($L18="",CK$7=""),0,'kol-vo'!CK18*RRC!CK18) -> 0 | CL18: =IF(OR($L18="",CL$7=""),0,'kol-vo'!CL18*RRC!CL18) -> 0 | CM18: =IF(OR($L18="",CM$7=""),0,'kol-vo'!CM18*RRC!CM18) -> 0 | CN18: =IF(OR($L18="",CN$7=""),0,'kol-vo'!CN18*RRC!CN18) -> 0 | CO18: =IF(OR($L18="",CO$7=""),0,'kol-vo'!CO18*RRC!CO18) -> 0 | CP18: =IF(OR($L18="",CP$7=""),0,'kol-vo'!CP18*RRC!CP18) -> 0 | CQ18: =IF(OR($L18="",CQ$7=""),0,'kol-vo'!CQ18*RRC!CQ18) -> 0
K19: ='str-ra-prodaj'!K19 -> 9 | L19: ='str-ra-prodaj'!L19 -> 9 | M19: ='str-ra-prodaj'!M19 -> 1 | N19: ='str-ra-prodaj'!N19 -> 1 | O19: ='str-ra-prodaj'!O19 -> Продукт - 31 - 100ml. пакет фас.мал. | P19: ='str-ra-prodaj'!P19 -> Товарная категория - 3 | Q19: ='str-ra-prodaj'!Q19 -> ЮФО+ПФО | R19: ='str-ra-prodaj'!R19 -> E-commerce | X19: =IF(OR($L19="",X$7=""),0,'kol-vo'!X19*RRC!X19) -> 0 | Y19: =IF(OR($L19="",Y$7=""),0,'kol-vo'!Y19*RRC!Y19) -> 0 | Z19: =IF(OR($L19="",Z$7=""),0,'kol-vo'!Z19*RRC!Z19) -> 0 | AA19: =IF(OR($L19="",AA$7=""),0,'kol-vo'!AA19*RRC!AA19) -> 0 | AB19: =IF(OR($L19="",AB$7=""),0,'kol-vo'!AB19*RRC!AB19) -> 0 | AC19: =IF(OR($L19="",AC$7=""),0,'kol-vo'!AC19*RRC!AC19) -> 0 | AD19: =IF(OR($L19="",AD$7=""),0,'kol-vo'!AD19*RRC!AD19) -> 0 | AE19: =IF(OR($L19="",AE$7=""),0,'kol-vo'!AE19*RRC!AE19) -> 0 | AF19: =IF(OR($L19="",AF$7=""),0,'kol-vo'!AF19*RRC!AF19) -> 0 | AG19: =IF(OR($L19="",AG$7=""),0,'kol-vo'!AG19*RRC!AG19) -> 0 | AH19: =IF(OR($L19="",AH$7=""),0,'kol-vo'!AH19*RRC!AH19) -> 0 | AI19: =IF(OR($L19="",AI$7=""),0,'kol-vo'!AI19*RRC!AI19) -> 0 | AJ19: =IF(OR($L19="",AJ$7=""),0,'kol-vo'!AJ19*RRC!AJ19) -> 59280.80301 | AK19: =IF(OR($L19="",AK$7=""),0,'kol-vo'!AK19*RRC!AK19) -> 73790.12888 | AL19: =IF(OR($L19="",AL$7=""),0,'kol-vo'!AL19*RRC!AL19) -> 76759.35543 | AM19: =IF(OR($L19="",AM$7=""),0,'kol-vo'!AM19*RRC!AM19) -> 87494.45433 | AN19: =IF(OR($L19="",AN$7=""),0,'kol-vo'!AN19*RRC!AN19) -> 81951.17557 | AO19: =IF(OR($L19="",AO$7=""),0,'kol-vo'!AO19*RRC!AO19) -> 71667.81197 | AP19: =IF(OR($L19="",AP$7=""),0,'kol-vo'!AP19*RRC!AP19) -> 67558.72492 | AQ19: =IF(OR($L19="",AQ$7=""),0,'kol-vo'!AQ19*RRC!AQ19) -> 71695.72317 | AR19: =IF(OR($L19="",AR$7=""),0,'kol-vo'!AR19*RRC!AR19) -> 63821.6532 | AS19: =IF(OR($L19="",AS$7=""),0,'kol-vo'!AS19*RRC!AS19) -> 63254.46262 | AT19: =IF(OR($L19="",AT$7=""),0,'kol-vo'!AT19*RRC!AT19) -> 81102.02691 | AU19: =IF(OR($L19="",AU$7=""),0,'kol-vo'!AU19*RRC!AU19) -> 93740.15944 | AV19: =IF(OR($L19="",AV$7=""),0,'kol-vo'!AV19*RRC!AV19) -> 87194.65113 | AW19: =IF(OR($L19="",AW$7=""),0,'kol-vo'!AW19*RRC!AW19) -> 108536.0558 | AX19: =IF(OR($L19="",AX$7=""),0,'kol-vo'!AX19*RRC!AX19) -> 112903.4169 | AY19: =IF(OR($L19="",AY$7=""),0,'kol-vo'!AY19*RRC!AY19) -> 128693.4055 | AZ19: =IF(OR($L19="",AZ$7=""),0,'kol-vo'!AZ19*RRC!AZ19) -> 120539.9354 | BA19: =IF(OR($L19="",BA$7=""),0,'kol-vo'!BA19*RRC!BA19) -> 105414.3929 | BB19: =IF(OR($L19="",BB$7=""),0,'kol-vo'!BB19*RRC!BB19) -> 99370.43951 | BC19: =IF(OR($L19="",BC$7=""),0,'kol-vo'!BC19*RRC!BC19) -> 105455.4468 | BD19: =IF(OR($L19="",BD$7=""),0,'kol-vo'!BD19*RRC!BD19) -> 93873.67415 | BE19: =IF(OR($L19="",BE$7=""),0,'kol-vo'!BE19*RRC!BE19) -> 93039.40771 | BF19: =IF(OR($L19="",BF$7=""),0,'kol-vo'!BF19*RRC!BF19) -> 119290.9438 | BG19: =IF(OR($L19="",BG$7=""),0,'kol-vo'!BG19*RRC!BG19) -> 137880.057 | BH19: =IF(OR($L19="",BH$7=""),0,'kol-vo'!BH19*RRC!BH19) -> 103241.754 | BI19: =IF(OR($L19="",BI$7=""),0,'kol-vo'!BI19*RRC!BI19) -> 128510.7817 | BJ19: =IF(OR($L19="",BJ$7=""),0,'kol-vo'!BJ19*RRC!BJ19) -> 133681.9019 | BK19: =IF(OR($L19="",BK$7=""),0,'kol-vo'!BK19*RRC!BK19) -> 152377.8437 | BL19: =IF(OR($L19="",BL$7=""),0,'kol-vo'!BL19*RRC!BL19) -> 142723.8276 | BM19: =IF(OR($L19="",BM$7=""),0,'kol-vo'!BM19*RRC!BM19) -> 124814.6152 | BN19: =IF(OR($L19="",BN$7=""),0,'kol-vo'!BN19*RRC!BN19) -> 117658.3465 | BO19: =IF(OR($L19="",BO$7=""),0,'kol-vo'!BO19*RRC!BO19) -> 124863.2245 | BP19: =IF(OR($L19="",BP$7=""),0,'kol-vo'!BP19*RRC!BP19) -> 111149.9691 | BQ19: =IF(OR($L19="",BQ$7=""),0,'kol-vo'!BQ19*RRC!BQ19) -> 110162.1662 | BR19: =IF(OR($L19="",BR$7=""),0,'kol-vo'!BR19*RRC!BR19) -> 141244.9746 | BS19: =IF(OR($L19="",BS$7=""),0,'kol-vo'!BS19*RRC!BS19) -> 163255.1854 | BT19: =IF(OR($L19="",BT$7=""),0,'kol-vo'!BT19*RRC!BT19) -> 122217.8793 | BU19: =IF(OR($L19="",BU$7=""),0,'kol-vo'!BU19*RRC!BU19) -> 152131.4254 | BV19: =IF(OR($L19="",BV$7=""),0,'kol-vo'!BV19*RRC!BV19) -> 158253.012 | BW19: =IF(OR($L19="",BW$7=""),0,'kol-vo'!BW19*RRC!BW19) -> 180385.3206 | BX19: =IF(OR($L19="",BX$7=""),0,'kol-vo'!BX19*RRC!BX19) -> 168956.8692 | BY19: =IF(OR($L19="",BY$7=""),0,'kol-vo'!BY19*RRC!BY19) -> 147755.893 | BZ19: =IF(OR($L19="",BZ$7=""),0,'kol-vo'!BZ19*RRC!BZ19) -> 139284.282 | CA19: =IF(OR($L19="",CA$7=""),0,'kol-vo'!CA19*RRC!CA19) -> 147813.4369 | CB19: =IF(OR($L19="",CB$7=""),0,'kol-vo'!CB19*RRC!CB19) -> 131579.6465 | CC19: =IF(OR($L19="",CC$7=""),0,'kol-vo'!CC19*RRC!CC19) -> 130410.2826 | CD19: =IF(OR($L19="",CD$7=""),0,'kol-vo'!CD19*RRC!CD19) -> 167206.1988 | CE19: =IF(OR($L19="",CE$7=""),0,'kol-vo'!CE19*RRC!CE19) -> 193261.9483 | CF19: =IF(OR($L19="",CF$7=""),0,'kol-vo'!CF19*RRC!CF19) -> 144455.8043 | CG19: =IF(OR($L19="",CG$7=""),0,'kol-vo'!CG19*RRC!CG19) -> 179812.2137 | CH19: =IF(OR($L19="",CH$7=""),0,'kol-vo'!CH19*RRC!CH19) -> 187047.6421 | CI19: =IF(OR($L19="",CI$7=""),0,'kol-vo'!CI19*RRC!CI19) -> 213206.9933 | CJ19: =IF(OR($L19="",CJ$7=""),0,'kol-vo'!CJ19*RRC!CJ19) -> 199699.0995 | CK19: =IF(OR($L19="",CK$7=""),0,'kol-vo'!CK19*RRC!CK19) -> 174640.5395 | CL19: =IF(OR($L19="",CL$7=""),0,'kol-vo'!CL19*RRC!CL19) -> 164627.4924 | CM19: =IF(OR($L19="",CM$7=""),0,'kol-vo'!CM19*RRC!CM19) -> 174708.5537 | CN19: =IF(OR($L19="",CN$7=""),0,'kol-vo'!CN19*RRC!CN19) -> 155520.9744 | CO19: =IF(OR($L19="",CO$7=""),0,'kol-vo'!CO19*RRC!CO19) -> 154138.8411 | CP19: =IF(OR($L19="",CP$7=""),0,'kol-vo'!CP19*RRC!CP19) -> 197629.8892 | CQ19: =IF(OR($L19="",CQ$7=""),0,'kol-vo'!CQ19*RRC!CQ19) -> 228426.5637
K20: ='str-ra-prodaj'!K20 -> 10 | L20: ='str-ra-prodaj'!L20 -> 10 | M20: ='str-ra-prodaj'!M20 -> 1 | N20: ='str-ra-prodaj'!N20 -> 1 | O20: ='str-ra-prodaj'!O20 -> Продукт - 32 | P20: ='str-ra-prodaj'!P20 -> Товарная категория - 3 | Q20: ='str-ra-prodaj'!Q20 -> ЮФО+ПФО | R20: ='str-ra-prodaj'!R20 -> E-commerce | X20: =IF(OR($L20="",X$7=""),0,'kol-vo'!X20*RRC!X20) -> 0 | Y20: =IF(OR($L20="",Y$7=""),0,'kol-vo'!Y20*RRC!Y20) -> 0 | Z20: =IF(OR($L20="",Z$7=""),0,'kol-vo'!Z20*RRC!Z20) -> 0 | AA20: =IF(OR($L20="",AA$7=""),0,'kol-vo'!AA20*RRC!AA20) -> 0 | AB20: =IF(OR($L20="",AB$7=""),0,'kol-vo'!AB20*RRC!AB20) -> 0 | AC20: =IF(OR($L20="",AC$7=""),0,'kol-vo'!AC20*RRC!AC20) -> 0 | AD20: =IF(OR($L20="",AD$7=""),0,'kol-vo'!AD20*RRC!AD20) -> 0 | AE20: =IF(OR($L20="",AE$7=""),0,'kol-vo'!AE20*RRC!AE20) -> 0 | AF20: =IF(OR($L20="",AF$7=""),0,'kol-vo'!AF20*RRC!AF20) -> 0 | AG20: =IF(OR($L20="",AG$7=""),0,'kol-vo'!AG20*RRC!AG20) -> 0 | AH20: =IF(OR($L20="",AH$7=""),0,'kol-vo'!AH20*RRC!AH20) -> 0 | AI20: =IF(OR($L20="",AI$7=""),0,'kol-vo'!AI20*RRC!AI20) -> 0 | AJ20: =IF(OR($L20="",AJ$7=""),0,'kol-vo'!AJ20*RRC!AJ20) -> 0 | AK20: =IF(OR($L20="",AK$7=""),0,'kol-vo'!AK20*RRC!AK20) -> 0 | AL20: =IF(OR($L20="",AL$7=""),0,'kol-vo'!AL20*RRC!AL20) -> 0 | AM20: =IF(OR($L20="",AM$7=""),0,'kol-vo'!AM20*RRC!AM20) -> 0 | AN20: =IF(OR($L20="",AN$7=""),0,'kol-vo'!AN20*RRC!AN20) -> 0 | AO20: =IF(OR($L20="",AO$7=""),0,'kol-vo'!AO20*RRC!AO20) -> 0 | AP20: =IF(OR($L20="",AP$7=""),0,'kol-vo'!AP20*RRC!AP20) -> 0 | AQ20: =IF(OR($L20="",AQ$7=""),0,'kol-vo'!AQ20*RRC!AQ20) -> 0 | AR20: =IF(OR($L20="",AR$7=""),0,'kol-vo'!AR20*RRC!AR20) -> 0 | AS20: =IF(OR($L20="",AS$7=""),0,'kol-vo'!AS20*RRC!AS20) -> 0 | AT20: =IF(OR($L20="",AT$7=""),0,'kol-vo'!AT20*RRC!AT20) -> 0 | AU20: =IF(OR($L20="",AU$7=""),0,'kol-vo'!AU20*RRC!AU20) -> 0 | AV20: =IF(OR($L20="",AV$7=""),0,'kol-vo'!AV20*RRC!AV20) -> 0 | AW20: =IF(OR($L20="",AW$7=""),0,'kol-vo'!AW20*RRC!AW20) -> 0 | AX20: =IF(OR($L20="",AX$7=""),0,'kol-vo'!AX20*RRC!AX20) -> 0 | AY20: =IF(OR($L20="",AY$7=""),0,'kol-vo'!AY20*RRC!AY20) -> 0 | AZ20: =IF(OR($L20="",AZ$7=""),0,'kol-vo'!AZ20*RRC!AZ20) -> 0 | BA20: =IF(OR($L20="",BA$7=""),0,'kol-vo'!BA20*RRC!BA20) -> 0 | BB20: =IF(OR($L20="",BB$7=""),0,'kol-vo'!BB20*RRC!BB20) -> 0 | BC20: =IF(OR($L20="",BC$7=""),0,'kol-vo'!BC20*RRC!BC20) -> 0 | BD20: =IF(OR($L20="",BD$7=""),0,'kol-vo'!BD20*RRC!BD20) -> 0 | BE20: =IF(OR($L20="",BE$7=""),0,'kol-vo'!BE20*RRC!BE20) -> 0 | BF20: =IF(OR($L20="",BF$7=""),0,'kol-vo'!BF20*RRC!BF20) -> 0 | BG20: =IF(OR($L20="",BG$7=""),0,'kol-vo'!BG20*RRC!BG20) -> 0 | BH20: =IF(OR($L20="",BH$7=""),0,'kol-vo'!BH20*RRC!BH20) -> 0 | BI20: =IF(OR($L20="",BI$7=""),0,'kol-vo'!BI20*RRC!BI20) -> 0 | BJ20: =IF(OR($L20="",BJ$7=""),0,'kol-vo'!BJ20*RRC!BJ20) -> 0 | BK20: =IF(OR($L20="",BK$7=""),0,'kol-vo'!BK20*RRC!BK20) -> 0 | BL20: =IF(OR($L20="",BL$7=""),0,'kol-vo'!BL20*RRC!BL20) -> 0 | BM20: =IF(OR($L20="",BM$7=""),0,'kol-vo'!BM20*RRC!BM20) -> 0 | BN20: =IF(OR($L20="",BN$7=""),0,'kol-vo'!BN20*RRC!BN20) -> 0 | BO20: =IF(OR($L20="",BO$7=""),0,'kol-vo'!BO20*RRC!BO20) -> 0 | BP20: =IF(OR($L20="",BP$7=""),0,'kol-vo'!BP20*RRC!BP20) -> 0 | BQ20: =IF(OR($L20="",BQ$7=""),0,'kol-vo'!BQ20*RRC!BQ20) -> 0 | BR20: =IF(OR($L20="",BR$7=""),0,'kol-vo'!BR20*RRC!BR20) -> 0 | BS20: =IF(OR($L20="",BS$7=""),0,'kol-vo'!BS20*RRC!BS20) -> 0 | BT20: =IF(OR($L20="",BT$7=""),0,'kol-vo'!BT20*RRC!BT20) -> 0 | BU20: =IF(OR($L20="",BU$7=""),0,'kol-vo'!BU20*RRC!BU20) -> 0 | BV20: =IF(OR($L20="",BV$7=""),0,'kol-vo'!BV20*RRC!BV20) -> 0 | BW20: =IF(OR($L20="",BW$7=""),0,'kol-vo'!BW20*RRC!BW20) -> 0 | BX20: =IF(OR($L20="",BX$7=""),0,'kol-vo'!BX20*RRC!BX20) -> 0 | BY20: =IF(OR($L20="",BY$7=""),0,'kol-vo'!BY20*RRC!BY20) -> 0 | BZ20: =IF(OR($L20="",BZ$7=""),0,'kol-vo'!BZ20*RRC!BZ20) -> 0 | CA20: =IF(OR($L20="",CA$7=""),0,'kol-vo'!CA20*RRC!CA20) -> 0 | CB20: =IF(OR($L20="",CB$7=""),0,'kol-vo'!CB20*RRC!CB20) -> 0 | CC20: =IF(OR($L20="",CC$7=""),0,'kol-vo'!CC20*RRC!CC20) -> 0 | CD20: =IF(OR($L20="",CD$7=""),0,'kol-vo'!CD20*RRC!CD20) -> 0 | CE20: =IF(OR($L20="",CE$7=""),0,'kol-vo'!CE20*RRC!CE20) -> 0 | CF20: =IF(OR($L20="",CF$7=""),0,'kol-vo'!CF20*RRC!CF20) -> 0 | CG20: =IF(OR($L20="",CG$7=""),0,'kol-vo'!CG20*RRC!CG20) -> 0 | CH20: =IF(OR($L20="",CH$7=""),0,'kol-vo'!CH20*RRC!CH20) -> 0 | CI20: =IF(OR($L20="",CI$7=""),0,'kol-vo'!CI20*RRC!CI20) -> 0 | CJ20: =IF(OR($L20="",CJ$7=""),0,'kol-vo'!CJ20*RRC!CJ20) -> 0 | CK20: =IF(OR($L20="",CK$7=""),0,'kol-vo'!CK20*RRC!CK20) -> 0 | CL20: =IF(OR($L20="",CL$7=""),0,'kol-vo'!CL20*RRC!CL20) -> 0 | CM20: =IF(OR($L20="",CM$7=""),0,'kol-vo'!CM20*RRC!CM20) -> 0 | CN20: =IF(OR($L20="",CN$7=""),0,'kol-vo'!CN20*RRC!CN20) -> 0 | CO20: =IF(OR($L20="",CO$7=""),0,'kol-vo'!CO20*RRC!CO20) -> 0 | CP20: =IF(OR($L20="",CP$7=""),0,'kol-vo'!CP20*RRC!CP20) -> 0 | CQ20: =IF(OR($L20="",CQ$7=""),0,'kol-vo'!CQ20*RRC!CQ20) -> 0
K21: ='str-ra-prodaj'!K21 -> 11 | L21: ='str-ra-prodaj'!L21 -> 11 | M21: ='str-ra-prodaj'!M21 -> 1 | N21: ='str-ra-prodaj'!N21 -> 1 | O21: ='str-ra-prodaj'!O21 -> Продукт - 33 | P21: ='str-ra-prodaj'!P21 -> Товарная категория - 3 | Q21: ='str-ra-prodaj'!Q21 -> ЮФО+ПФО | R21: ='str-ra-prodaj'!R21 -> E-commerce | X21: =IF(OR($L21="",X$7=""),0,'kol-vo'!X21*RRC!X21) -> 0 | Y21: =IF(OR($L21="",Y$7=""),0,'kol-vo'!Y21*RRC!Y21) -> 0 | Z21: =IF(OR($L21="",Z$7=""),0,'kol-vo'!Z21*RRC!Z21) -> 0 | AA21: =IF(OR($L21="",AA$7=""),0,'kol-vo'!AA21*RRC!AA21) -> 0 | AB21: =IF(OR($L21="",AB$7=""),0,'kol-vo'!AB21*RRC!AB21) -> 0 | AC21: =IF(OR($L21="",AC$7=""),0,'kol-vo'!AC21*RRC!AC21) -> 0 | AD21: =IF(OR($L21="",AD$7=""),0,'kol-vo'!AD21*RRC!AD21) -> 0 | AE21: =IF(OR($L21="",AE$7=""),0,'kol-vo'!AE21*RRC!AE21) -> 0 | AF21: =IF(OR($L21="",AF$7=""),0,'kol-vo'!AF21*RRC!AF21) -> 0 | AG21: =IF(OR($L21="",AG$7=""),0,'kol-vo'!AG21*RRC!AG21) -> 0 | AH21: =IF(OR($L21="",AH$7=""),0,'kol-vo'!AH21*RRC!AH21) -> 0 | AI21: =IF(OR($L21="",AI$7=""),0,'kol-vo'!AI21*RRC!AI21) -> 0 | AJ21: =IF(OR($L21="",AJ$7=""),0,'kol-vo'!AJ21*RRC!AJ21) -> 0 | AK21: =IF(OR($L21="",AK$7=""),0,'kol-vo'!AK21*RRC!AK21) -> 0 | AL21: =IF(OR($L21="",AL$7=""),0,'kol-vo'!AL21*RRC!AL21) -> 0 | AM21: =IF(OR($L21="",AM$7=""),0,'kol-vo'!AM21*RRC!AM21) -> 0 | AN21: =IF(OR($L21="",AN$7=""),0,'kol-vo'!AN21*RRC!AN21) -> 0 | AO21: =IF(OR($L21="",AO$7=""),0,'kol-vo'!AO21*RRC!AO21) -> 0 | AP21: =IF(OR($L21="",AP$7=""),0,'kol-vo'!AP21*RRC!AP21) -> 0 | AQ21: =IF(OR($L21="",AQ$7=""),0,'kol-vo'!AQ21*RRC!AQ21) -> 0 | AR21: =IF(OR($L21="",AR$7=""),0,'kol-vo'!AR21*RRC!AR21) -> 0 | AS21: =IF(OR($L21="",AS$7=""),0,'kol-vo'!AS21*RRC!AS21) -> 0 | AT21: =IF(OR($L21="",AT$7=""),0,'kol-vo'!AT21*RRC!AT21) -> 0 | AU21: =IF(OR($L21="",AU$7=""),0,'kol-vo'!AU21*RRC!AU21) -> 0 | AV21: =IF(OR($L21="",AV$7=""),0,'kol-vo'!AV21*RRC!AV21) -> 0 | AW21: =IF(OR($L21="",AW$7=""),0,'kol-vo'!AW21*RRC!AW21) -> 0 | AX21: =IF(OR($L21="",AX$7=""),0,'kol-vo'!AX21*RRC!AX21) -> 0 | AY21: =IF(OR($L21="",AY$7=""),0,'kol-vo'!AY21*RRC!AY21) -> 0 | AZ21: =IF(OR($L21="",AZ$7=""),0,'kol-vo'!AZ21*RRC!AZ21) -> 0 | BA21: =IF(OR($L21="",BA$7=""),0,'kol-vo'!BA21*RRC!BA21) -> 0 | BB21: =IF(OR($L21="",BB$7=""),0,'kol-vo'!BB21*RRC!BB21) -> 0 | BC21: =IF(OR($L21="",BC$7=""),0,'kol-vo'!BC21*RRC!BC21) -> 0 | BD21: =IF(OR($L21="",BD$7=""),0,'kol-vo'!BD21*RRC!BD21) -> 0 | BE21: =IF(OR($L21="",BE$7=""),0,'kol-vo'!BE21*RRC!BE21) -> 0 | BF21: =IF(OR($L21="",BF$7=""),0,'kol-vo'!BF21*RRC!BF21) -> 0 | BG21: =IF(OR($L21="",BG$7=""),0,'kol-vo'!BG21*RRC!BG21) -> 0 | BH21: =IF(OR($L21="",BH$7=""),0,'kol-vo'!BH21*RRC!BH21) -> 0 | BI21: =IF(OR($L21="",BI$7=""),0,'kol-vo'!BI21*RRC!BI21) -> 0 | BJ21: =IF(OR($L21="",BJ$7=""),0,'kol-vo'!BJ21*RRC!BJ21) -> 0 | BK21: =IF(OR($L21="",BK$7=""),0,'kol-vo'!BK21*RRC!BK21) -> 0 | BL21: =IF(OR($L21="",BL$7=""),0,'kol-vo'!BL21*RRC!BL21) -> 0 | BM21: =IF(OR($L21="",BM$7=""),0,'kol-vo'!BM21*RRC!BM21) -> 0 | BN21: =IF(OR($L21="",BN$7=""),0,'kol-vo'!BN21*RRC!BN21) -> 0 | BO21: =IF(OR($L21="",BO$7=""),0,'kol-vo'!BO21*RRC!BO21) -> 0 | BP21: =IF(OR($L21="",BP$7=""),0,'kol-vo'!BP21*RRC!BP21) -> 0 | BQ21: =IF(OR($L21="",BQ$7=""),0,'kol-vo'!BQ21*RRC!BQ21) -> 0 | BR21: =IF(OR($L21="",BR$7=""),0,'kol-vo'!BR21*RRC!BR21) -> 0 | BS21: =IF(OR($L21="",BS$7=""),0,'kol-vo'!BS21*RRC!BS21) -> 0 | BT21: =IF(OR($L21="",BT$7=""),0,'kol-vo'!BT21*RRC!BT21) -> 0 | BU21: =IF(OR($L21="",BU$7=""),0,'kol-vo'!BU21*RRC!BU21) -> 0 | BV21: =IF(OR($L21="",BV$7=""),0,'kol-vo'!BV21*RRC!BV21) -> 0 | BW21: =IF(OR($L21="",BW$7=""),0,'kol-vo'!BW21*RRC!BW21) -> 0 | BX21: =IF(OR($L21="",BX$7=""),0,'kol-vo'!BX21*RRC!BX21) -> 0 | BY21: =IF(OR($L21="",BY$7=""),0,'kol-vo'!BY21*RRC!BY21) -> 0 | BZ21: =IF(OR($L21="",BZ$7=""),0,'kol-vo'!BZ21*RRC!BZ21) -> 0 | CA21: =IF(OR($L21="",CA$7=""),0,'kol-vo'!CA21*RRC!CA21) -> 0 | CB21: =IF(OR($L21="",CB$7=""),0,'kol-vo'!CB21*RRC!CB21) -> 0 | CC21: =IF(OR($L21="",CC$7=""),0,'kol-vo'!CC21*RRC!CC21) -> 0 | CD21: =IF(OR($L21="",CD$7=""),0,'kol-vo'!CD21*RRC!CD21) -> 0 | CE21: =IF(OR($L21="",CE$7=""),0,'kol-vo'!CE21*RRC!CE21) -> 0 | CF21: =IF(OR($L21="",CF$7=""),0,'kol-vo'!CF21*RRC!CF21) -> 0 | CG21: =IF(OR($L21="",CG$7=""),0,'kol-vo'!CG21*RRC!CG21) -> 0 | CH21: =IF(OR($L21="",CH$7=""),0,'kol-vo'!CH21*RRC!CH21) -> 0 | CI21: =IF(OR($L21="",CI$7=""),0,'kol-vo'!CI21*RRC!CI21) -> 0 | CJ21: =IF(OR($L21="",CJ$7=""),0,'kol-vo'!CJ21*RRC!CJ21) -> 0 | CK21: =IF(OR($L21="",CK$7=""),0,'kol-vo'!CK21*RRC!CK21) -> 0 | CL21: =IF(OR($L21="",CL$7=""),0,'kol-vo'!CL21*RRC!CL21) -> 0 | CM21: =IF(OR($L21="",CM$7=""),0,'kol-vo'!CM21*RRC!CM21) -> 0 | CN21: =IF(OR($L21="",CN$7=""),0,'kol-vo'!CN21*RRC!CN21) -> 0 | CO21: =IF(OR($L21="",CO$7=""),0,'kol-vo'!CO21*RRC!CO21) -> 0 | CP21: =IF(OR($L21="",CP$7=""),0,'kol-vo'!CP21*RRC!CP21) -> 0 | CQ21: =IF(OR($L21="",CQ$7=""),0,'kol-vo'!CQ21*RRC!CQ21) -> 0
K22: ='str-ra-prodaj'!K22 -> 12 | L22: ='str-ra-prodaj'!L22 -> 12 | M22: ='str-ra-prodaj'!M22 -> 1 | N22: ='str-ra-prodaj'!N22 -> 1 | O22: ='str-ra-prodaj'!O22 -> Продукт - 34 | P22: ='str-ra-prodaj'!P22 -> Товарная категория - 3 | Q22: ='str-ra-prodaj'!Q22 -> ЮФО+ПФО | R22: ='str-ra-prodaj'!R22 -> E-commerce | X22: =IF(OR($L22="",X$7=""),0,'kol-vo'!X22*RRC!X22) -> 0 | Y22: =IF(OR($L22="",Y$7=""),0,'kol-vo'!Y22*RRC!Y22) -> 0 | Z22: =IF(OR($L22="",Z$7=""),0,'kol-vo'!Z22*RRC!Z22) -> 0 | AA22: =IF(OR($L22="",AA$7=""),0,'kol-vo'!AA22*RRC!AA22) -> 0 | AB22: =IF(OR($L22="",AB$7=""),0,'kol-vo'!AB22*RRC!AB22) -> 0 | AC22: =IF(OR($L22="",AC$7=""),0,'kol-vo'!AC22*RRC!AC22) -> 0 | AD22: =IF(OR($L22="",AD$7=""),0,'kol-vo'!AD22*RRC!AD22) -> 0 | AE22: =IF(OR($L22="",AE$7=""),0,'kol-vo'!AE22*RRC!AE22) -> 0 | AF22: =IF(OR($L22="",AF$7=""),0,'kol-vo'!AF22*RRC!AF22) -> 0 | AG22: =IF(OR($L22="",AG$7=""),0,'kol-vo'!AG22*RRC!AG22) -> 0 | AH22: =IF(OR($L22="",AH$7=""),0,'kol-vo'!AH22*RRC!AH22) -> 0 | AI22: =IF(OR($L22="",AI$7=""),0,'kol-vo'!AI22*RRC!AI22) -> 0 | AJ22: =IF(OR($L22="",AJ$7=""),0,'kol-vo'!AJ22*RRC!AJ22) -> 0 | AK22: =IF(OR($L22="",AK$7=""),0,'kol-vo'!AK22*RRC!AK22) -> 0 | AL22: =IF(OR($L22="",AL$7=""),0,'kol-vo'!AL22*RRC!AL22) -> 0 | AM22: =IF(OR($L22="",AM$7=""),0,'kol-vo'!AM22*RRC!AM22) -> 0 | AN22: =IF(OR($L22="",AN$7=""),0,'kol-vo'!AN22*RRC!AN22) -> 0 | AO22: =IF(OR($L22="",AO$7=""),0,'kol-vo'!AO22*RRC!AO22) -> 0 | AP22: =IF(OR($L22="",AP$7=""),0,'kol-vo'!AP22*RRC!AP22) -> 0 | AQ22: =IF(OR($L22="",AQ$7=""),0,'kol-vo'!AQ22*RRC!AQ22) -> 0 | AR22: =IF(OR($L22="",AR$7=""),0,'kol-vo'!AR22*RRC!AR22) -> 0 | AS22: =IF(OR($L22="",AS$7=""),0,'kol-vo'!AS22*RRC!AS22) -> 0 | AT22: =IF(OR($L22="",AT$7=""),0,'kol-vo'!AT22*RRC!AT22) -> 0 | AU22: =IF(OR($L22="",AU$7=""),0,'kol-vo'!AU22*RRC!AU22) -> 0 | AV22: =IF(OR($L22="",AV$7=""),0,'kol-vo'!AV22*RRC!AV22) -> 0 | AW22: =IF(OR($L22="",AW$7=""),0,'kol-vo'!AW22*RRC!AW22) -> 0 | AX22: =IF(OR($L22="",AX$7=""),0,'kol-vo'!AX22*RRC!AX22) -> 0 | AY22: =IF(OR($L22="",AY$7=""),0,'kol-vo'!AY22*RRC!AY22) -> 0 | AZ22: =IF(OR($L22="",AZ$7=""),0,'kol-vo'!AZ22*RRC!AZ22) -> 0 | BA22: =IF(OR($L22="",BA$7=""),0,'kol-vo'!BA22*RRC!BA22) -> 0 | BB22: =IF(OR($L22="",BB$7=""),0,'kol-vo'!BB22*RRC!BB22) -> 0 | BC22: =IF(OR($L22="",BC$7=""),0,'kol-vo'!BC22*RRC!BC22) -> 0 | BD22: =IF(OR($L22="",BD$7=""),0,'kol-vo'!BD22*RRC!BD22) -> 0 | BE22: =IF(OR($L22="",BE$7=""),0,'kol-vo'!BE22*RRC!BE22) -> 0 | BF22: =IF(OR($L22="",BF$7=""),0,'kol-vo'!BF22*RRC!BF22) -> 0 | BG22: =IF(OR($L22="",BG$7=""),0,'kol-vo'!BG22*RRC!BG22) -> 0 | BH22: =IF(OR($L22="",BH$7=""),0,'kol-vo'!BH22*RRC!BH22) -> 0 | BI22: =IF(OR($L22="",BI$7=""),0,'kol-vo'!BI22*RRC!BI22) -> 0 | BJ22: =IF(OR($L22="",BJ$7=""),0,'kol-vo'!BJ22*RRC!BJ22) -> 0 | BK22: =IF(OR($L22="",BK$7=""),0,'kol-vo'!BK22*RRC!BK22) -> 0 | BL22: =IF(OR($L22="",BL$7=""),0,'kol-vo'!BL22*RRC!BL22) -> 0 | BM22: =IF(OR($L22="",BM$7=""),0,'kol-vo'!BM22*RRC!BM22) -> 0 | BN22: =IF(OR($L22="",BN$7=""),0,'kol-vo'!BN22*RRC!BN22) -> 0 | BO22: =IF(OR($L22="",BO$7=""),0,'kol-vo'!BO22*RRC!BO22) -> 0 | BP22: =IF(OR($L22="",BP$7=""),0,'kol-vo'!BP22*RRC!BP22) -> 0 | BQ22: =IF(OR($L22="",BQ$7=""),0,'kol-vo'!BQ22*RRC!BQ22) -> 0 | BR22: =IF(OR($L22="",BR$7=""),0,'kol-vo'!BR22*RRC!BR22) -> 0 | BS22: =IF(OR($L22="",BS$7=""),0,'kol-vo'!BS22*RRC!BS22) -> 0 | BT22: =IF(OR($L22="",BT$7=""),0,'kol-vo'!BT22*RRC!BT22) -> 0 | BU22: =IF(OR($L22="",BU$7=""),0,'kol-vo'!BU22*RRC!BU22) -> 0 | BV22: =IF(OR($L22="",BV$7=""),0,'kol-vo'!BV22*RRC!BV22) -> 0 | BW22: =IF(OR($L22="",BW$7=""),0,'kol-vo'!BW22*RRC!BW22) -> 0 | BX22: =IF(OR($L22="",BX$7=""),0,'kol-vo'!BX22*RRC!BX22) -> 0 | BY22: =IF(OR($L22="",BY$7=""),0,'kol-vo'!BY22*RRC!BY22) -> 0 | BZ22: =IF(OR($L22="",BZ$7=""),0,'kol-vo'!BZ22*RRC!BZ22) -> 0 | CA22: =IF(OR($L22="",CA$7=""),0,'kol-vo'!CA22*RRC!CA22) -> 0 | CB22: =IF(OR($L22="",CB$7=""),0,'kol-vo'!CB22*RRC!CB22) -> 0 | CC22: =IF(OR($L22="",CC$7=""),0,'kol-vo'!CC22*RRC!CC22) -> 0 | CD22: =IF(OR($L22="",CD$7=""),0,'kol-vo'!CD22*RRC!CD22) -> 0 | CE22: =IF(OR($L22="",CE$7=""),0,'kol-vo'!CE22*RRC!CE22) -> 0 | CF22: =IF(OR($L22="",CF$7=""),0,'kol-vo'!CF22*RRC!CF22) -> 0 | CG22: =IF(OR($L22="",CG$7=""),0,'kol-vo'!CG22*RRC!CG22) -> 0 | CH22: =IF(OR($L22="",CH$7=""),0,'kol-vo'!CH22*RRC!CH22) -> 0 | CI22: =IF(OR($L22="",CI$7=""),0,'kol-vo'!CI22*RRC!CI22) -> 0 | CJ22: =IF(OR($L22="",CJ$7=""),0,'kol-vo'!CJ22*RRC!CJ22) -> 0 | CK22: =IF(OR($L22="",CK$7=""),0,'kol-vo'!CK22*RRC!CK22) -> 0 | CL22: =IF(OR($L22="",CL$7=""),0,'kol-vo'!CL22*RRC!CL22) -> 0 | CM22: =IF(OR($L22="",CM$7=""),0,'kol-vo'!CM22*RRC!CM22) -> 0 | CN22: =IF(OR($L22="",CN$7=""),0,'kol-vo'!CN22*RRC!CN22) -> 0 | CO22: =IF(OR($L22="",CO$7=""),0,'kol-vo'!CO22*RRC!CO22) -> 0 | CP22: =IF(OR($L22="",CP$7=""),0,'kol-vo'!CP22*RRC!CP22) -> 0 | CQ22: =IF(OR($L22="",CQ$7=""),0,'kol-vo'!CQ22*RRC!CQ22) -> 0
K23: ='str-ra-prodaj'!K23 -> 13 | L23: ='str-ra-prodaj'!L23 -> 13 | M23: ='str-ra-prodaj'!M23 -> 1 | N23: ='str-ra-prodaj'!N23 -> 1 | O23: ='str-ra-prodaj'!O23 -> Продукт - 41 - 300ml. pet bottle 28/410 | P23: ='str-ra-prodaj'!P23 -> Товарная категория - 4 | Q23: ='str-ra-prodaj'!Q23 -> ЮФО+ПФО | R23: ='str-ra-prodaj'!R23 -> E-commerce | X23: =IF(OR($L23="",X$7=""),0,'kol-vo'!X23*RRC!X23) -> 1709.827931 | Y23: =IF(OR($L23="",Y$7=""),0,'kol-vo'!Y23*RRC!Y23) -> 2128.318393 | Z23: =IF(OR($L23="",Z$7=""),0,'kol-vo'!Z23*RRC!Z23) -> 2213.95938 | AA23: =IF(OR($L23="",AA$7=""),0,'kol-vo'!AA23*RRC!AA23) -> 2523.59034 | AB23: =IF(OR($L23="",AB$7=""),0,'kol-vo'!AB23*RRC!AB23) -> 2363.706324 | AC23: =IF(OR($L23="",AC$7=""),0,'kol-vo'!AC23*RRC!AC23) -> 2067.104702 | AD23: =IF(OR($L23="",AD$7=""),0,'kol-vo'!AD23*RRC!AD23) -> 1948.586878 | AE23: =IF(OR($L23="",AE$7=""),0,'kol-vo'!AE23*RRC!AE23) -> 2067.909741 | AF23: =IF(OR($L23="",AF$7=""),0,'kol-vo'!AF23*RRC!AF23) -> 1840.79904 | AG23: =IF(OR($L23="",AG$7=""),0,'kol-vo'!AG23*RRC!AG23) -> 1824.439641 | AH23: =IF(OR($L23="",AH$7=""),0,'kol-vo'!AH23*RRC!AH23) -> 2339.214448 | AI23: =IF(OR($L23="",AI$7=""),0,'kol-vo'!AI23*RRC!AI23) -> 2703.734341 | AJ23: =IF(OR($L23="",AJ$7=""),0,'kol-vo'!AJ23*RRC!AJ23) -> 2514.943158 | AK23: =IF(OR($L23="",AK$7=""),0,'kol-vo'!AK23*RRC!AK23) -> 3130.490316 | AL23: =IF(OR($L23="",AL$7=""),0,'kol-vo'!AL23*RRC!AL23) -> 3256.457503 | AM23: =IF(OR($L23="",AM$7=""),0,'kol-vo'!AM23*RRC!AM23) -> 3711.885941 | AN23: =IF(OR($L23="",AN$7=""),0,'kol-vo'!AN23*RRC!AN23) -> 3476.716539 | AO23: =IF(OR($L23="",AO$7=""),0,'kol-vo'!AO23*RRC!AO23) -> 3040.452629 | AP23: =IF(OR($L23="",AP$7=""),0,'kol-vo'!AP23*RRC!AP23) -> 2866.127724 | AQ23: =IF(OR($L23="",AQ$7=""),0,'kol-vo'!AQ23*RRC!AQ23) -> 3041.636741 | AR23: =IF(OR($L23="",AR$7=""),0,'kol-vo'!AR23*RRC!AR23) -> 2707.585287 | AS23: =IF(OR($L23="",AS$7=""),0,'kol-vo'!AS23*RRC!AS23) -> 2683.522657 | AT23: =IF(OR($L23="",AT$7=""),0,'kol-vo'!AT23*RRC!AT23) -> 3440.692051 | AU23: =IF(OR($L23="",AU$7=""),0,'kol-vo'!AU23*RRC!AU23) -> 3976.855249 | AV23: =IF(OR($L23="",AV$7=""),0,'kol-vo'!AV23*RRC!AV23) -> 3774.660222 | AW23: =IF(OR($L23="",AW$7=""),0,'kol-vo'!AW23*RRC!AW23) -> 4698.530555 | AX23: =IF(OR($L23="",AX$7=""),0,'kol-vo'!AX23*RRC!AX23) -> 4887.593806 | AY23: =IF(OR($L23="",AY$7=""),0,'kol-vo'!AY23*RRC!AY23) -> 5571.143096 | AZ23: =IF(OR($L23="",AZ$7=""),0,'kol-vo'!AZ23*RRC!AZ23) -> 5218.17902 | BA23: =IF(OR($L23="",BA$7=""),0,'kol-vo'!BA23*RRC!BA23) -> 4563.393633 | BB23: =IF(OR($L23="",BB$7=""),0,'kol-vo'!BB23*RRC!BB23) -> 4301.750628 | BC23: =IF(OR($L23="",BC$7=""),0,'kol-vo'!BC23*RRC!BC23) -> 4565.170858 | BD23: =IF(OR($L23="",BD$7=""),0,'kol-vo'!BD23*RRC!BD23) -> 4063.795418 | BE23: =IF(OR($L23="",BE$7=""),0,'kol-vo'!BE23*RRC!BE23) -> 4027.679987 | BF23: =IF(OR($L23="",BF$7=""),0,'kol-vo'!BF23*RRC!BF23) -> 5164.110122 | BG23: =IF(OR($L23="",BG$7=""),0,'kol-vo'!BG23*RRC!BG23) -> 5968.833637 | BH23: =IF(OR($L23="",BH$7=""),0,'kol-vo'!BH23*RRC!BH23) -> 5155.478115 | BI23: =IF(OR($L23="",BI$7=""),0,'kol-vo'!BI23*RRC!BI23) -> 6417.311764 | BJ23: =IF(OR($L23="",BJ$7=""),0,'kol-vo'!BJ23*RRC!BJ23) -> 6675.536715 | BK23: =IF(OR($L23="",BK$7=""),0,'kol-vo'!BK23*RRC!BK23) -> 7609.13688 | BL23: =IF(OR($L23="",BL$7=""),0,'kol-vo'!BL23*RRC!BL23) -> 7127.054133 | BM23: =IF(OR($L23="",BM$7=""),0,'kol-vo'!BM23*RRC!BM23) -> 6232.740067 | BN23: =IF(OR($L23="",BN$7=""),0,'kol-vo'!BN23*RRC!BN23) -> 5875.38478 | BO23: =IF(OR($L23="",BO$7=""),0,'kol-vo'!BO23*RRC!BO23) -> 6235.167423 | BP23: =IF(OR($L23="",BP$7=""),0,'kol-vo'!BP23*RRC!BP23) -> 5550.382579 | BQ23: =IF(OR($L23="",BQ$7=""),0,'kol-vo'!BQ23*RRC!BQ23) -> 5501.055673 | BR23: =IF(OR($L23="",BR$7=""),0,'kol-vo'!BR23*RRC!BR23) -> 7053.206157 | BS23: =IF(OR($L23="",BS$7=""),0,'kol-vo'!BS23*RRC!BS23) -> 8152.307592 | BT23: =IF(OR($L23="",BT$7=""),0,'kol-vo'!BT23*RRC!BT23) -> 7083.081638 | BU23: =IF(OR($L23="",BU$7=""),0,'kol-vo'!BU23*RRC!BU23) -> 8816.707609 | BV23: =IF(OR($L23="",BV$7=""),0,'kol-vo'!BV23*RRC!BV23) -> 9171.48138 | BW23: =IF(OR($L23="",BW$7=""),0,'kol-vo'!BW23*RRC!BW23) -> 10454.14926 | BX23: =IF(OR($L23="",BX$7=""),0,'kol-vo'!BX23*RRC!BX23) -> 9791.818556 | BY23: =IF(OR($L23="",BY$7=""),0,'kol-vo'!BY23*RRC!BY23) -> 8563.125619 | BZ23: =IF(OR($L23="",BZ$7=""),0,'kol-vo'!BZ23*RRC!BZ23) -> 8072.157253 | CA23: =IF(OR($L23="",CA$7=""),0,'kol-vo'!CA23*RRC!CA23) -> 8566.46055 | CB23: =IF(OR($L23="",CB$7=""),0,'kol-vo'!CB23*RRC!CB23) -> 7625.638604 | CC23: =IF(OR($L23="",CC$7=""),0,'kol-vo'!CC23*RRC!CC23) -> 7557.868652 | CD23: =IF(OR($L23="",CD$7=""),0,'kol-vo'!CD23*RRC!CD23) -> 9690.359247 | CE23: =IF(OR($L23="",CE$7=""),0,'kol-vo'!CE23*RRC!CE23) -> 11200.40837 | CF23: =IF(OR($L23="",CF$7=""),0,'kol-vo'!CF23*RRC!CF23) -> 8754.897231 | CG23: =IF(OR($L23="",CG$7=""),0,'kol-vo'!CG23*RRC!CG23) -> 10897.70992 | CH23: =IF(OR($L23="",CH$7=""),0,'kol-vo'!CH23*RRC!CH23) -> 11336.22073 | CI23: =IF(OR($L23="",CI$7=""),0,'kol-vo'!CI23*RRC!CI23) -> 12921.63596 | CJ23: =IF(OR($L23="",CJ$7=""),0,'kol-vo'!CJ23*RRC!CJ23) -> 12102.97573 | CK23: =IF(OR($L23="",CK$7=""),0,'kol-vo'!CK23*RRC!CK23) -> 10584.27512 | CL23: =IF(OR($L23="",CL$7=""),0,'kol-vo'!CL23*RRC!CL23) -> 9977.423781 | CM23: =IF(OR($L23="",CM$7=""),0,'kol-vo'!CM23*RRC!CM23) -> 10588.39719 | CN23: =IF(OR($L23="",CN$7=""),0,'kol-vo'!CN23*RRC!CN23) -> 9425.513598 | CO23: =IF(OR($L23="",CO$7=""),0,'kol-vo'!CO23*RRC!CO23) -> 9341.747944 | CP23: =IF(OR($L23="",CP$7=""),0,'kol-vo'!CP23*RRC!CP23) -> 11977.56904 | CQ23: =IF(OR($L23="",CQ$7=""),0,'kol-vo'!CQ23*RRC!CQ23) -> 13844.03417
K24: ='str-ra-prodaj'!K24 -> 14 | L24: ='str-ra-prodaj'!L24 -> 14 | M24: ='str-ra-prodaj'!M24 -> 1 | N24: ='str-ra-prodaj'!N24 -> 1 | O24: ='str-ra-prodaj'!O24 -> Продукт - 42 - 28/410 pump | P24: ='str-ra-prodaj'!P24 -> Товарная категория - 4 | Q24: ='str-ra-prodaj'!Q24 -> ЮФО+ПФО | R24: ='str-ra-prodaj'!R24 -> E-commerce | X24: =IF(OR($L24="",X$7=""),0,'kol-vo'!X24*RRC!X24) -> 2051.793517 | Y24: =IF(OR($L24="",Y$7=""),0,'kol-vo'!Y24*RRC!Y24) -> 2553.982072 | Z24: =IF(OR($L24="",Z$7=""),0,'kol-vo'!Z24*RRC!Z24) -> 2656.751256 | AA24: =IF(OR($L24="",AA$7=""),0,'kol-vo'!AA24*RRC!AA24) -> 3028.308408 | AB24: =IF(OR($L24="",AB$7=""),0,'kol-vo'!AB24*RRC!AB24) -> 2836.447589 | AC24: =IF(OR($L24="",AC$7=""),0,'kol-vo'!AC24*RRC!AC24) -> 2480.525643 | AD24: =IF(OR($L24="",AD$7=""),0,'kol-vo'!AD24*RRC!AD24) -> 2338.304253 | AE24: =IF(OR($L24="",AE$7=""),0,'kol-vo'!AE24*RRC!AE24) -> 2481.49169 | AF24: =IF(OR($L24="",AF$7=""),0,'kol-vo'!AF24*RRC!AF24) -> 2208.958847 | AG24: =IF(OR($L24="",AG$7=""),0,'kol-vo'!AG24*RRC!AG24) -> 2189.327569 | AH24: =IF(OR($L24="",AH$7=""),0,'kol-vo'!AH24*RRC!AH24) -> 2807.057337 | AI24: =IF(OR($L24="",AI$7=""),0,'kol-vo'!AI24*RRC!AI24) -> 3244.481209 | AJ24: =IF(OR($L24="",AJ$7=""),0,'kol-vo'!AJ24*RRC!AJ24) -> 3017.93179 | AK24: =IF(OR($L24="",AK$7=""),0,'kol-vo'!AK24*RRC!AK24) -> 3756.58838 | AL24: =IF(OR($L24="",AL$7=""),0,'kol-vo'!AL24*RRC!AL24) -> 3907.749004 | AM24: =IF(OR($L24="",AM$7=""),0,'kol-vo'!AM24*RRC!AM24) -> 4454.26313 | AN24: =IF(OR($L24="",AN$7=""),0,'kol-vo'!AN24*RRC!AN24) -> 4172.059847 | AO24: =IF(OR($L24="",AO$7=""),0,'kol-vo'!AO24*RRC!AO24) -> 3648.543155 | AP24: =IF(OR($L24="",AP$7=""),0,'kol-vo'!AP24*RRC!AP24) -> 3439.353269 | AQ24: =IF(OR($L24="",AQ$7=""),0,'kol-vo'!AQ24*RRC!AQ24) -> 3649.964089 | AR24: =IF(OR($L24="",AR$7=""),0,'kol-vo'!AR24*RRC!AR24) -> 3249.102345 | AS24: =IF(OR($L24="",AS$7=""),0,'kol-vo'!AS24*RRC!AS24) -> 3220.227188 | AT24: =IF(OR($L24="",AT$7=""),0,'kol-vo'!AT24*RRC!AT24) -> 4128.830461 | AU24: =IF(OR($L24="",AU$7=""),0,'kol-vo'!AU24*RRC!AU24) -> 4772.226299 | AV24: =IF(OR($L24="",AV$7=""),0,'kol-vo'!AV24*RRC!AV24) -> 0 | AW24: =IF(OR($L24="",AW$7=""),0,'kol-vo'!AW24*RRC!AW24) -> 0 | AX24: =IF(OR($L24="",AX$7=""),0,'kol-vo'!AX24*RRC!AX24) -> 0 | AY24: =IF(OR($L24="",AY$7=""),0,'kol-vo'!AY24*RRC!AY24) -> 0 | AZ24: =IF(OR($L24="",AZ$7=""),0,'kol-vo'!AZ24*RRC!AZ24) -> 0 | BA24: =IF(OR($L24="",BA$7=""),0,'kol-vo'!BA24*RRC!BA24) -> 0 | BB24: =IF(OR($L24="",BB$7=""),0,'kol-vo'!BB24*RRC!BB24) -> 0 | BC24: =IF(OR($L24="",BC$7=""),0,'kol-vo'!BC24*RRC!BC24) -> 0 | BD24: =IF(OR($L24="",BD$7=""),0,'kol-vo'!BD24*RRC!BD24) -> 0 | BE24: =IF(OR($L24="",BE$7=""),0,'kol-vo'!BE24*RRC!BE24) -> 0 | BF24: =IF(OR($L24="",BF$7=""),0,'kol-vo'!BF24*RRC!BF24) -> 0 | BG24: =IF(OR($L24="",BG$7=""),0,'kol-vo'!BG24*RRC!BG24) -> 0 | BH24: =IF(OR($L24="",BH$7=""),0,'kol-vo'!BH24*RRC!BH24) -> 0 | BI24: =IF(OR($L24="",BI$7=""),0,'kol-vo'!BI24*RRC!BI24) -> 0 | BJ24: =IF(OR($L24="",BJ$7=""),0,'kol-vo'!BJ24*RRC!BJ24) -> 0 | BK24: =IF(OR($L24="",BK$7=""),0,'kol-vo'!BK24*RRC!BK24) -> 0 | BL24: =IF(OR($L24="",BL$7=""),0,'kol-vo'!BL24*RRC!BL24) -> 0 | BM24: =IF(OR($L24="",BM$7=""),0,'kol-vo'!BM24*RRC!BM24) -> 0 | BN24: =IF(OR($L24="",BN$7=""),0,'kol-vo'!BN24*RRC!BN24) -> 0 | BO24: =IF(OR($L24="",BO$7=""),0,'kol-vo'!BO24*RRC!BO24) -> 0 | BP24: =IF(OR($L24="",BP$7=""),0,'kol-vo'!BP24*RRC!BP24) -> 0 | BQ24: =IF(OR($L24="",BQ$7=""),0,'kol-vo'!BQ24*RRC!BQ24) -> 0 | BR24: =IF(OR($L24="",BR$7=""),0,'kol-vo'!BR24*RRC!BR24) -> 0 | BS24: =IF(OR($L24="",BS$7=""),0,'kol-vo'!BS24*RRC!BS24) -> 0 | BT24: =IF(OR($L24="",BT$7=""),0,'kol-vo'!BT24*RRC!BT24) -> 0 | BU24: =IF(OR($L24="",BU$7=""),0,'kol-vo'!BU24*RRC!BU24) -> 0 | BV24: =IF(OR($L24="",BV$7=""),0,'kol-vo'!BV24*RRC!BV24) -> 0 | BW24: =IF(OR($L24="",BW$7=""),0,'kol-vo'!BW24*RRC!BW24) -> 0 | BX24: =IF(OR($L24="",BX$7=""),0,'kol-vo'!BX24*RRC!BX24) -> 0 | BY24: =IF(OR($L24="",BY$7=""),0,'kol-vo'!BY24*RRC!BY24) -> 0 | BZ24: =IF(OR($L24="",BZ$7=""),0,'kol-vo'!BZ24*RRC!BZ24) -> 0 | CA24: =IF(OR($L24="",CA$7=""),0,'kol-vo'!CA24*RRC!CA24) -> 0 | CB24: =IF(OR($L24="",CB$7=""),0,'kol-vo'!CB24*RRC!CB24) -> 0 | CC24: =IF(OR($L24="",CC$7=""),0,'kol-vo'!CC24*RRC!CC24) -> 0 | CD24: =IF(OR($L24="",CD$7=""),0,'kol-vo'!CD24*RRC!CD24) -> 0 | CE24: =IF(OR($L24="",CE$7=""),0,'kol-vo'!CE24*RRC!CE24) -> 0 | CF24: =IF(OR($L24="",CF$7=""),0,'kol-vo'!CF24*RRC!CF24) -> 0 | CG24: =IF(OR($L24="",CG$7=""),0,'kol-vo'!CG24*RRC!CG24) -> 0 | CH24: =IF(OR($L24="",CH$7=""),0,'kol-vo'!CH24*RRC!CH24) -> 0 | CI24: =IF(OR($L24="",CI$7=""),0,'kol-vo'!CI24*RRC!CI24) -> 0 | CJ24: =IF(OR($L24="",CJ$7=""),0,'kol-vo'!CJ24*RRC!CJ24) -> 0 | CK24: =IF(OR($L24="",CK$7=""),0,'kol-vo'!CK24*RRC!CK24) -> 0 | CL24: =IF(OR($L24="",CL$7=""),0,'kol-vo'!CL24*RRC!CL24) -> 0 | CM24: =IF(OR($L24="",CM$7=""),0,'kol-vo'!CM24*RRC!CM24) -> 0 | CN24: =IF(OR($L24="",CN$7=""),0,'kol-vo'!CN24*RRC!CN24) -> 0 | CO24: =IF(OR($L24="",CO$7=""),0,'kol-vo'!CO24*RRC!CO24) -> 0 | CP24: =IF(OR($L24="",CP$7=""),0,'kol-vo'!CP24*RRC!CP24) -> 0 | CQ24: =IF(OR($L24="",CQ$7=""),0,'kol-vo'!CQ24*RRC!CQ24) -> 0
K25: ='str-ra-prodaj'!K25 -> 15 | L25: ='str-ra-prodaj'!L25 -> 15 | M25: ='str-ra-prodaj'!M25 -> 1 | N25: ='str-ra-prodaj'!N25 -> 1 | O25: ='str-ra-prodaj'!O25 -> Продукт - 43 | P25: ='str-ra-prodaj'!P25 -> Товарная категория - 4 | Q25: ='str-ra-prodaj'!Q25 -> ЮФО+ПФО | R25: ='str-ra-prodaj'!R25 -> E-commerce | X25: =IF(OR($L25="",X$7=""),0,'kol-vo'!X25*RRC!X25) -> 0 | Y25: =IF(OR($L25="",Y$7=""),0,'kol-vo'!Y25*RRC!Y25) -> 0 | Z25: =IF(OR($L25="",Z$7=""),0,'kol-vo'!Z25*RRC!Z25) -> 0 | AA25: =IF(OR($L25="",AA$7=""),0,'kol-vo'!AA25*RRC!AA25) -> 0 | AB25: =IF(OR($L25="",AB$7=""),0,'kol-vo'!AB25*RRC!AB25) -> 0 | AC25: =IF(OR($L25="",AC$7=""),0,'kol-vo'!AC25*RRC!AC25) -> 0 | AD25: =IF(OR($L25="",AD$7=""),0,'kol-vo'!AD25*RRC!AD25) -> 0 | AE25: =IF(OR($L25="",AE$7=""),0,'kol-vo'!AE25*RRC!AE25) -> 0 | AF25: =IF(OR($L25="",AF$7=""),0,'kol-vo'!AF25*RRC!AF25) -> 0 | AG25: =IF(OR($L25="",AG$7=""),0,'kol-vo'!AG25*RRC!AG25) -> 0 | AH25: =IF(OR($L25="",AH$7=""),0,'kol-vo'!AH25*RRC!AH25) -> 0 | AI25: =IF(OR($L25="",AI$7=""),0,'kol-vo'!AI25*RRC!AI25) -> 0 | AJ25: =IF(OR($L25="",AJ$7=""),0,'kol-vo'!AJ25*RRC!AJ25) -> 0 | AK25: =IF(OR($L25="",AK$7=""),0,'kol-vo'!AK25*RRC!AK25) -> 0 | AL25: =IF(OR($L25="",AL$7=""),0,'kol-vo'!AL25*RRC!AL25) -> 0 | AM25: =IF(OR($L25="",AM$7=""),0,'kol-vo'!AM25*RRC!AM25) -> 0 | AN25: =IF(OR($L25="",AN$7=""),0,'kol-vo'!AN25*RRC!AN25) -> 0 | AO25: =IF(OR($L25="",AO$7=""),0,'kol-vo'!AO25*RRC!AO25) -> 0 | AP25: =IF(OR($L25="",AP$7=""),0,'kol-vo'!AP25*RRC!AP25) -> 0 | AQ25: =IF(OR($L25="",AQ$7=""),0,'kol-vo'!AQ25*RRC!AQ25) -> 0 | AR25: =IF(OR($L25="",AR$7=""),0,'kol-vo'!AR25*RRC!AR25) -> 0 | AS25: =IF(OR($L25="",AS$7=""),0,'kol-vo'!AS25*RRC!AS25) -> 0 | AT25: =IF(OR($L25="",AT$7=""),0,'kol-vo'!AT25*RRC!AT25) -> 0 | AU25: =IF(OR($L25="",AU$7=""),0,'kol-vo'!AU25*RRC!AU25) -> 0 | AV25: =IF(OR($L25="",AV$7=""),0,'kol-vo'!AV25*RRC!AV25) -> 0 | AW25: =IF(OR($L25="",AW$7=""),0,'kol-vo'!AW25*RRC!AW25) -> 0 | AX25: =IF(OR($L25="",AX$7=""),0,'kol-vo'!AX25*RRC!AX25) -> 0 | AY25: =IF(OR($L25="",AY$7=""),0,'kol-vo'!AY25*RRC!AY25) -> 0 | AZ25: =IF(OR($L25="",AZ$7=""),0,'kol-vo'!AZ25*RRC!AZ25) -> 0 | BA25: =IF(OR($L25="",BA$7=""),0,'kol-vo'!BA25*RRC!BA25) -> 0 | BB25: =IF(OR($L25="",BB$7=""),0,'kol-vo'!BB25*RRC!BB25) -> 0 | BC25: =IF(OR($L25="",BC$7=""),0,'kol-vo'!BC25*RRC!BC25) -> 0 | BD25: =IF(OR($L25="",BD$7=""),0,'kol-vo'!BD25*RRC!BD25) -> 0 | BE25: =IF(OR($L25="",BE$7=""),0,'kol-vo'!BE25*RRC!BE25) -> 0 | BF25: =IF(OR($L25="",BF$7=""),0,'kol-vo'!BF25*RRC!BF25) -> 0 | BG25: =IF(OR($L25="",BG$7=""),0,'kol-vo'!BG25*RRC!BG25) -> 0 | BH25: =IF(OR($L25="",BH$7=""),0,'kol-vo'!BH25*RRC!BH25) -> 0 | BI25: =IF(OR($L25="",BI$7=""),0,'kol-vo'!BI25*RRC!BI25) -> 0 | BJ25: =IF(OR($L25="",BJ$7=""),0,'kol-vo'!BJ25*RRC!BJ25) -> 0 | BK25: =IF(OR($L25="",BK$7=""),0,'kol-vo'!BK25*RRC!BK25) -> 0 | BL25: =IF(OR($L25="",BL$7=""),0,'kol-vo'!BL25*RRC!BL25) -> 0 | BM25: =IF(OR($L25="",BM$7=""),0,'kol-vo'!BM25*RRC!BM25) -> 0 | BN25: =IF(OR($L25="",BN$7=""),0,'kol-vo'!BN25*RRC!BN25) -> 0 | BO25: =IF(OR($L25="",BO$7=""),0,'kol-vo'!BO25*RRC!BO25) -> 0 | BP25: =IF(OR($L25="",BP$7=""),0,'kol-vo'!BP25*RRC!BP25) -> 0 | BQ25: =IF(OR($L25="",BQ$7=""),0,'kol-vo'!BQ25*RRC!BQ25) -> 0 | BR25: =IF(OR($L25="",BR$7=""),0,'kol-vo'!BR25*RRC!BR25) -> 0 | BS25: =IF(OR($L25="",BS$7=""),0,'kol-vo'!BS25*RRC!BS25) -> 0 | BT25: =IF(OR($L25="",BT$7=""),0,'kol-vo'!BT25*RRC!BT25) -> 0 | BU25: =IF(OR($L25="",BU$7=""),0,'kol-vo'!BU25*RRC!BU25) -> 0 | BV25: =IF(OR($L25="",BV$7=""),0,'kol-vo'!BV25*RRC!BV25) -> 0 | BW25: =IF(OR($L25="",BW$7=""),0,'kol-vo'!BW25*RRC!BW25) -> 0 | BX25: =IF(OR($L25="",BX$7=""),0,'kol-vo'!BX25*RRC!BX25) -> 0 | BY25: =IF(OR($L25="",BY$7=""),0,'kol-vo'!BY25*RRC!BY25) -> 0 | BZ25: =IF(OR($L25="",BZ$7=""),0,'kol-vo'!BZ25*RRC!BZ25) -> 0 | CA25: =IF(OR($L25="",CA$7=""),0,'kol-vo'!CA25*RRC!CA25) -> 0 | CB25: =IF(OR($L25="",CB$7=""),0,'kol-vo'!CB25*RRC!CB25) -> 0 | CC25: =IF(OR($L25="",CC$7=""),0,'kol-vo'!CC25*RRC!CC25) -> 0 | CD25: =IF(OR($L25="",CD$7=""),0,'kol-vo'!CD25*RRC!CD25) -> 0 | CE25: =IF(OR($L25="",CE$7=""),0,'kol-vo'!CE25*RRC!CE25) -> 0 | CF25: =IF(OR($L25="",CF$7=""),0,'kol-vo'!CF25*RRC!CF25) -> 0 | CG25: =IF(OR($L25="",CG$7=""),0,'kol-vo'!CG25*RRC!CG25) -> 0 | CH25: =IF(OR($L25="",CH$7=""),0,'kol-vo'!CH25*RRC!CH25) -> 0 | CI25: =IF(OR($L25="",CI$7=""),0,'kol-vo'!CI25*RRC!CI25) -> 0 | CJ25: =IF(OR($L25="",CJ$7=""),0,'kol-vo'!CJ25*RRC!CJ25) -> 0 | CK25: =IF(OR($L25="",CK$7=""),0,'kol-vo'!CK25*RRC!CK25) -> 0 | CL25: =IF(OR($L25="",CL$7=""),0,'kol-vo'!CL25*RRC!CL25) -> 0 | CM25: =IF(OR($L25="",CM$7=""),0,'kol-vo'!CM25*RRC!CM25) -> 0 | CN25: =IF(OR($L25="",CN$7=""),0,'kol-vo'!CN25*RRC!CN25) -> 0 | CO25: =IF(OR($L25="",CO$7=""),0,'kol-vo'!CO25*RRC!CO25) -> 0 | CP25: =IF(OR($L25="",CP$7=""),0,'kol-vo'!CP25*RRC!CP25) -> 0 | CQ25: =IF(OR($L25="",CQ$7=""),0,'kol-vo'!CQ25*RRC!CQ25) -> 0
K26: ='str-ra-prodaj'!K26 -> 16 | L26: ='str-ra-prodaj'!L26 -> 16 | M26: ='str-ra-prodaj'!M26 -> 1 | N26: ='str-ra-prodaj'!N26 -> 1 | O26: ='str-ra-prodaj'!O26 -> Продукт - 44 | P26: ='str-ra-prodaj'!P26 -> Товарная категория - 4 | Q26: ='str-ra-prodaj'!Q26 -> ЮФО+ПФО | R26: ='str-ra-prodaj'!R26 -> E-commerce | X26: =IF(OR($L26="",X$7=""),0,'kol-vo'!X26*RRC!X26) -> 0 | Y26: =IF(OR($L26="",Y$7=""),0,'kol-vo'!Y26*RRC!Y26) -> 0 | Z26: =IF(OR($L26="",Z$7=""),0,'kol-vo'!Z26*RRC!Z26) -> 0 | AA26: =IF(OR($L26="",AA$7=""),0,'kol-vo'!AA26*RRC!AA26) -> 0 | AB26: =IF(OR($L26="",AB$7=""),0,'kol-vo'!AB26*RRC!AB26) -> 0 | AC26: =IF(OR($L26="",AC$7=""),0,'kol-vo'!AC26*RRC!AC26) -> 0 | AD26: =IF(OR($L26="",AD$7=""),0,'kol-vo'!AD26*RRC!AD26) -> 0 | AE26: =IF(OR($L26="",AE$7=""),0,'kol-vo'!AE26*RRC!AE26) -> 0 | AF26: =IF(OR($L26="",AF$7=""),0,'kol-vo'!AF26*RRC!AF26) -> 0 | AG26: =IF(OR($L26="",AG$7=""),0,'kol-vo'!AG26*RRC!AG26) -> 0 | AH26: =IF(OR($L26="",AH$7=""),0,'kol-vo'!AH26*RRC!AH26) -> 0 | AI26: =IF(OR($L26="",AI$7=""),0,'kol-vo'!AI26*RRC!AI26) -> 0 | AJ26: =IF(OR($L26="",AJ$7=""),0,'kol-vo'!AJ26*RRC!AJ26) -> 0 | AK26: =IF(OR($L26="",AK$7=""),0,'kol-vo'!AK26*RRC!AK26) -> 0 | AL26: =IF(OR($L26="",AL$7=""),0,'kol-vo'!AL26*RRC!AL26) -> 0 | AM26: =IF(OR($L26="",AM$7=""),0,'kol-vo'!AM26*RRC!AM26) -> 0 | AN26: =IF(OR($L26="",AN$7=""),0,'kol-vo'!AN26*RRC!AN26) -> 0 | AO26: =IF(OR($L26="",AO$7=""),0,'kol-vo'!AO26*RRC!AO26) -> 0 | AP26: =IF(OR($L26="",AP$7=""),0,'kol-vo'!AP26*RRC!AP26) -> 0 | AQ26: =IF(OR($L26="",AQ$7=""),0,'kol-vo'!AQ26*RRC!AQ26) -> 0 | AR26: =IF(OR($L26="",AR$7=""),0,'kol-vo'!AR26*RRC!AR26) -> 0 | AS26: =IF(OR($L26="",AS$7=""),0,'kol-vo'!AS26*RRC!AS26) -> 0 | AT26: =IF(OR($L26="",AT$7=""),0,'kol-vo'!AT26*RRC!AT26) -> 0 | AU26: =IF(OR($L26="",AU$7=""),0,'kol-vo'!AU26*RRC!AU26) -> 0 | AV26: =IF(OR($L26="",AV$7=""),0,'kol-vo'!AV26*RRC!AV26) -> 0 | AW26: =IF(OR($L26="",AW$7=""),0,'kol-vo'!AW26*RRC!AW26) -> 0 | AX26: =IF(OR($L26="",AX$7=""),0,'kol-vo'!AX26*RRC!AX26) -> 0 | AY26: =IF(OR($L26="",AY$7=""),0,'kol-vo'!AY26*RRC!AY26) -> 0 | AZ26: =IF(OR($L26="",AZ$7=""),0,'kol-vo'!AZ26*RRC!AZ26) -> 0 | BA26: =IF(OR($L26="",BA$7=""),0,'kol-vo'!BA26*RRC!BA26) -> 0 | BB26: =IF(OR($L26="",BB$7=""),0,'kol-vo'!BB26*RRC!BB26) -> 0 | BC26: =IF(OR($L26="",BC$7=""),0,'kol-vo'!BC26*RRC!BC26) -> 0 | BD26: =IF(OR($L26="",BD$7=""),0,'kol-vo'!BD26*RRC!BD26) -> 0 | BE26: =IF(OR($L26="",BE$7=""),0,'kol-vo'!BE26*RRC!BE26) -> 0 | BF26: =IF(OR($L26="",BF$7=""),0,'kol-vo'!BF26*RRC!BF26) -> 0 | BG26: =IF(OR($L26="",BG$7=""),0,'kol-vo'!BG26*RRC!BG26) -> 0 | BH26: =IF(OR($L26="",BH$7=""),0,'kol-vo'!BH26*RRC!BH26) -> 0 | BI26: =IF(OR($L26="",BI$7=""),0,'kol-vo'!BI26*RRC!BI26) -> 0 | BJ26: =IF(OR($L26="",BJ$7=""),0,'kol-vo'!BJ26*RRC!BJ26) -> 0 | BK26: =IF(OR($L26="",BK$7=""),0,'kol-vo'!BK26*RRC!BK26) -> 0 | BL26: =IF(OR($L26="",BL$7=""),0,'kol-vo'!BL26*RRC!BL26) -> 0 | BM26: =IF(OR($L26="",BM$7=""),0,'kol-vo'!BM26*RRC!BM26) -> 0 | BN26: =IF(OR($L26="",BN$7=""),0,'kol-vo'!BN26*RRC!BN26) -> 0 | BO26: =IF(OR($L26="",BO$7=""),0,'kol-vo'!BO26*RRC!BO26) -> 0 | BP26: =IF(OR($L26="",BP$7=""),0,'kol-vo'!BP26*RRC!BP26) -> 0 | BQ26: =IF(OR($L26="",BQ$7=""),0,'kol-vo'!BQ26*RRC!BQ26) -> 0 | BR26: =IF(OR($L26="",BR$7=""),0,'kol-vo'!BR26*RRC!BR26) -> 0 | BS26: =IF(OR($L26="",BS$7=""),0,'kol-vo'!BS26*RRC!BS26) -> 0 | BT26: =IF(OR($L26="",BT$7=""),0,'kol-vo'!BT26*RRC!BT26) -> 0 | BU26: =IF(OR($L26="",BU$7=""),0,'kol-vo'!BU26*RRC!BU26) -> 0 | BV26: =IF(OR($L26="",BV$7=""),0,'kol-vo'!BV26*RRC!BV26) -> 0 | BW26: =IF(OR($L26="",BW$7=""),0,'kol-vo'!BW26*RRC!BW26) -> 0 | BX26: =IF(OR($L26="",BX$7=""),0,'kol-vo'!BX26*RRC!BX26) -> 0 | BY26: =IF(OR($L26="",BY$7=""),0,'kol-vo'!BY26*RRC!BY26) -> 0 | BZ26: =IF(OR($L26="",BZ$7=""),0,'kol-vo'!BZ26*RRC!BZ26) -> 0 | CA26: =IF(OR($L26="",CA$7=""),0,'kol-vo'!CA26*RRC!CA26) -> 0 | CB26: =IF(OR($L26="",CB$7=""),0,'kol-vo'!CB26*RRC!CB26) -> 0 | CC26: =IF(OR($L26="",CC$7=""),0,'kol-vo'!CC26*RRC!CC26) -> 0 | CD26: =IF(OR($L26="",CD$7=""),0,'kol-vo'!CD26*RRC!CD26) -> 0 | CE26: =IF(OR($L26="",CE$7=""),0,'kol-vo'!CE26*RRC!CE26) -> 0 | CF26: =IF(OR($L26="",CF$7=""),0,'kol-vo'!CF26*RRC!CF26) -> 0 | CG26: =IF(OR($L26="",CG$7=""),0,'kol-vo'!CG26*RRC!CG26) -> 0 | CH26: =IF(OR($L26="",CH$7=""),0,'kol-vo'!CH26*RRC!CH26) -> 0 | CI26: =IF(OR($L26="",CI$7=""),0,'kol-vo'!CI26*RRC!CI26) -> 0 | CJ26: =IF(OR($L26="",CJ$7=""),0,'kol-vo'!CJ26*RRC!CJ26) -> 0 | CK26: =IF(OR($L26="",CK$7=""),0,'kol-vo'!CK26*RRC!CK26) -> 0 | CL26: =IF(OR($L26="",CL$7=""),0,'kol-vo'!CL26*RRC!CL26) -> 0 | CM26: =IF(OR($L26="",CM$7=""),0,'kol-vo'!CM26*RRC!CM26) -> 0 | CN26: =IF(OR($L26="",CN$7=""),0,'kol-vo'!CN26*RRC!CN26) -> 0 | CO26: =IF(OR($L26="",CO$7=""),0,'kol-vo'!CO26*RRC!CO26) -> 0 | CP26: =IF(OR($L26="",CP$7=""),0,'kol-vo'!CP26*RRC!CP26) -> 0 | CQ26: =IF(OR($L26="",CQ$7=""),0,'kol-vo'!CQ26*RRC!CQ26) -> 0
K27: ='str-ra-prodaj'!K27 -> 17 | L27: ='str-ra-prodaj'!L27 -> 17 | M27: ='str-ra-prodaj'!M27 -> 1 | N27: ='str-ra-prodaj'!N27 -> 1 | O27: ='str-ra-prodaj'!O27 -> Продукт - 51 - 250ml. тубус | P27: ='str-ra-prodaj'!P27 -> Товарная категория - 5 | Q27: ='str-ra-prodaj'!Q27 -> ЮФО+ПФО | R27: ='str-ra-prodaj'!R27 -> E-commerce | X27: =IF(OR($L27="",X$7=""),0,'kol-vo'!X27*RRC!X27) -> 0 | Y27: =IF(OR($L27="",Y$7=""),0,'kol-vo'!Y27*RRC!Y27) -> 0 | Z27: =IF(OR($L27="",Z$7=""),0,'kol-vo'!Z27*RRC!Z27) -> 0 | AA27: =IF(OR($L27="",AA$7=""),0,'kol-vo'!AA27*RRC!AA27) -> 0 | AB27: =IF(OR($L27="",AB$7=""),0,'kol-vo'!AB27*RRC!AB27) -> 0 | AC27: =IF(OR($L27="",AC$7=""),0,'kol-vo'!AC27*RRC!AC27) -> 0 | AD27: =IF(OR($L27="",AD$7=""),0,'kol-vo'!AD27*RRC!AD27) -> 0 | AE27: =IF(OR($L27="",AE$7=""),0,'kol-vo'!AE27*RRC!AE27) -> 0 | AF27: =IF(OR($L27="",AF$7=""),0,'kol-vo'!AF27*RRC!AF27) -> 0 | AG27: =IF(OR($L27="",AG$7=""),0,'kol-vo'!AG27*RRC!AG27) -> 0 | AH27: =IF(OR($L27="",AH$7=""),0,'kol-vo'!AH27*RRC!AH27) -> 0 | AI27: =IF(OR($L27="",AI$7=""),0,'kol-vo'!AI27*RRC!AI27) -> 0 | AJ27: =IF(OR($L27="",AJ$7=""),0,'kol-vo'!AJ27*RRC!AJ27) -> 6175.20393 | AK27: =IF(OR($L27="",AK$7=""),0,'kol-vo'!AK27*RRC!AK27) -> 5293.03194 | AL27: =IF(OR($L27="",AL$7=""),0,'kol-vo'!AL27*RRC!AL27) -> 6329.584028 | AM27: =IF(OR($L27="",AM$7=""),0,'kol-vo'!AM27*RRC!AM27) -> 7233.810318 | AN27: =IF(OR($L27="",AN$7=""),0,'kol-vo'!AN27*RRC!AN27) -> 8138.036608 | AO27: =IF(OR($L27="",AO$7=""),0,'kol-vo'!AO27*RRC!AO27) -> 8138.036608 | AP27: =IF(OR($L27="",AP$7=""),0,'kol-vo'!AP27*RRC!AP27) -> 9946.489187 | AQ27: =IF(OR($L27="",AQ$7=""),0,'kol-vo'!AQ27*RRC!AQ27) -> 9946.489187 | AR27: =IF(OR($L27="",AR$7=""),0,'kol-vo'!AR27*RRC!AR27) -> 8341.487523 | AS27: =IF(OR($L27="",AS$7=""),0,'kol-vo'!AS27*RRC!AS27) -> 7414.655576 | AT27: =IF(OR($L27="",AT$7=""),0,'kol-vo'!AT27*RRC!AT27) -> 6487.823629 | AU27: =IF(OR($L27="",AU$7=""),0,'kol-vo'!AU27*RRC!AU27) -> 7414.655576 | AV27: =IF(OR($L27="",AV$7=""),0,'kol-vo'!AV27*RRC!AV27) -> 9268.31947 | AW27: =IF(OR($L27="",AW$7=""),0,'kol-vo'!AW27*RRC!AW27) -> 7944.273831 | AX27: =IF(OR($L27="",AX$7=""),0,'kol-vo'!AX27*RRC!AX27) -> 9500.027457 | AY27: =IF(OR($L27="",AY$7=""),0,'kol-vo'!AY27*RRC!AY27) -> 10857.17424 | AZ27: =IF(OR($L27="",AZ$7=""),0,'kol-vo'!AZ27*RRC!AZ27) -> 12214.32102 | BA27: =IF(OR($L27="",BA$7=""),0,'kol-vo'!BA27*RRC!BA27) -> 12214.32102 | BB27: =IF(OR($L27="",BB$7=""),0,'kol-vo'!BB27*RRC!BB27) -> 14928.61457 | BC27: =IF(OR($L27="",BC$7=""),0,'kol-vo'!BC27*RRC!BC27) -> 14928.61457 | BD27: =IF(OR($L27="",BD$7=""),0,'kol-vo'!BD27*RRC!BD27) -> 12519.67904 | BE27: =IF(OR($L27="",BE$7=""),0,'kol-vo'!BE27*RRC!BE27) -> 11128.60359 | BF27: =IF(OR($L27="",BF$7=""),0,'kol-vo'!BF27*RRC!BF27) -> 9737.528143 | BG27: =IF(OR($L27="",BG$7=""),0,'kol-vo'!BG27*RRC!BG27) -> 11128.60359 | BH27: =IF(OR($L27="",BH$7=""),0,'kol-vo'!BH27*RRC!BH27) -> 12658.78659 | BI27: =IF(OR($L27="",BI$7=""),0,'kol-vo'!BI27*RRC!BI27) -> 10850.3885 | BJ27: =IF(OR($L27="",BJ$7=""),0,'kol-vo'!BJ27*RRC!BJ27) -> 12975.25625 | BK27: =IF(OR($L27="",BK$7=""),0,'kol-vo'!BK27*RRC!BK27) -> 14828.86429 | BL27: =IF(OR($L27="",BL$7=""),0,'kol-vo'!BL27*RRC!BL27) -> 16682.47232 | BM27: =IF(OR($L27="",BM$7=""),0,'kol-vo'!BM27*RRC!BM27) -> 16682.47232 | BN27: =IF(OR($L27="",BN$7=""),0,'kol-vo'!BN27*RRC!BN27) -> 20389.68839 | BO27: =IF(OR($L27="",BO$7=""),0,'kol-vo'!BO27*RRC!BO27) -> 20389.68839 | BP27: =IF(OR($L27="",BP$7=""),0,'kol-vo'!BP27*RRC!BP27) -> 17099.53413 | BQ27: =IF(OR($L27="",BQ$7=""),0,'kol-vo'!BQ27*RRC!BQ27) -> 15199.58589 | BR27: =IF(OR($L27="",BR$7=""),0,'kol-vo'!BR27*RRC!BR27) -> 13299.63766 | BS27: =IF(OR($L27="",BS$7=""),0,'kol-vo'!BS27*RRC!BS27) -> 15199.58589 | BT27: =IF(OR($L27="",BT$7=""),0,'kol-vo'!BT27*RRC!BT27) -> 17391.83386 | BU27: =IF(OR($L27="",BU$7=""),0,'kol-vo'!BU27*RRC!BU27) -> 14907.28616 | BV27: =IF(OR($L27="",BV$7=""),0,'kol-vo'!BV27*RRC!BV27) -> 17826.62971 | BW27: =IF(OR($L27="",BW$7=""),0,'kol-vo'!BW27*RRC!BW27) -> 20373.29109 | BX27: =IF(OR($L27="",BX$7=""),0,'kol-vo'!BX27*RRC!BX27) -> 22919.95248 | BY27: =IF(OR($L27="",BY$7=""),0,'kol-vo'!BY27*RRC!BY27) -> 22919.95248 | BZ27: =IF(OR($L27="",BZ$7=""),0,'kol-vo'!BZ27*RRC!BZ27) -> 28013.27525 | CA27: =IF(OR($L27="",CA$7=""),0,'kol-vo'!CA27*RRC!CA27) -> 28013.27525 | CB27: =IF(OR($L27="",CB$7=""),0,'kol-vo'!CB27*RRC!CB27) -> 23492.95129 | CC27: =IF(OR($L27="",CC$7=""),0,'kol-vo'!CC27*RRC!CC27) -> 20882.62337 | CD27: =IF(OR($L27="",CD$7=""),0,'kol-vo'!CD27*RRC!CD27) -> 18272.29545 | CE27: =IF(OR($L27="",CE$7=""),0,'kol-vo'!CE27*RRC!CE27) -> 20882.62337 | CF27: =IF(OR($L27="",CF$7=""),0,'kol-vo'!CF27*RRC!CF27) -> 21496.81817 | CG27: =IF(OR($L27="",CG$7=""),0,'kol-vo'!CG27*RRC!CG27) -> 18425.84415 | CH27: =IF(OR($L27="",CH$7=""),0,'kol-vo'!CH27*RRC!CH27) -> 22034.23863 | CI27: =IF(OR($L27="",CI$7=""),0,'kol-vo'!CI27*RRC!CI27) -> 25181.987 | CJ27: =IF(OR($L27="",CJ$7=""),0,'kol-vo'!CJ27*RRC!CJ27) -> 28329.73538 | CK27: =IF(OR($L27="",CK$7=""),0,'kol-vo'!CK27*RRC!CK27) -> 28329.73538 | CL27: =IF(OR($L27="",CL$7=""),0,'kol-vo'!CL27*RRC!CL27) -> 34625.23213 | CM27: =IF(OR($L27="",CM$7=""),0,'kol-vo'!CM27*RRC!CM27) -> 34625.23213 | CN27: =IF(OR($L27="",CN$7=""),0,'kol-vo'!CN27*RRC!CN27) -> 29037.97876 | CO27: =IF(OR($L27="",CO$7=""),0,'kol-vo'!CO27*RRC!CO27) -> 25811.53668 | CP27: =IF(OR($L27="",CP$7=""),0,'kol-vo'!CP27*RRC!CP27) -> 22585.09459 | CQ27: =IF(OR($L27="",CQ$7=""),0,'kol-vo'!CQ27*RRC!CQ27) -> 25811.53668
K28: ='str-ra-prodaj'!K28 -> 18 | L28: ='str-ra-prodaj'!L28 -> 18 | M28: ='str-ra-prodaj'!M28 -> 1 | N28: ='str-ra-prodaj'!N28 -> 1 | O28: ='str-ra-prodaj'!O28 -> Продукт - 52 | P28: ='str-ra-prodaj'!P28 -> Товарная категория - 5 | Q28: ='str-ra-prodaj'!Q28 -> ЮФО+ПФО | R28: ='str-ra-prodaj'!R28 -> E-commerce | X28: =IF(OR($L28="",X$7=""),0,'kol-vo'!X28*RRC!X28) -> 0 | Y28: =IF(OR($L28="",Y$7=""),0,'kol-vo'!Y28*RRC!Y28) -> 0 | Z28: =IF(OR($L28="",Z$7=""),0,'kol-vo'!Z28*RRC!Z28) -> 0 | AA28: =IF(OR($L28="",AA$7=""),0,'kol-vo'!AA28*RRC!AA28) -> 0 | AB28: =IF(OR($L28="",AB$7=""),0,'kol-vo'!AB28*RRC!AB28) -> 0 | AC28: =IF(OR($L28="",AC$7=""),0,'kol-vo'!AC28*RRC!AC28) -> 0 | AD28: =IF(OR($L28="",AD$7=""),0,'kol-vo'!AD28*RRC!AD28) -> 0 | AE28: =IF(OR($L28="",AE$7=""),0,'kol-vo'!AE28*RRC!AE28) -> 0 | AF28: =IF(OR($L28="",AF$7=""),0,'kol-vo'!AF28*RRC!AF28) -> 0 | AG28: =IF(OR($L28="",AG$7=""),0,'kol-vo'!AG28*RRC!AG28) -> 0 | AH28: =IF(OR($L28="",AH$7=""),0,'kol-vo'!AH28*RRC!AH28) -> 0 | AI28: =IF(OR($L28="",AI$7=""),0,'kol-vo'!AI28*RRC!AI28) -> 0 | AJ28: =IF(OR($L28="",AJ$7=""),0,'kol-vo'!AJ28*RRC!AJ28) -> 0 | AK28: =IF(OR($L28="",AK$7=""),0,'kol-vo'!AK28*RRC!AK28) -> 0 | AL28: =IF(OR($L28="",AL$7=""),0,'kol-vo'!AL28*RRC!AL28) -> 0 | AM28: =IF(OR($L28="",AM$7=""),0,'kol-vo'!AM28*RRC!AM28) -> 0 | AN28: =IF(OR($L28="",AN$7=""),0,'kol-vo'!AN28*RRC!AN28) -> 0 | AO28: =IF(OR($L28="",AO$7=""),0,'kol-vo'!AO28*RRC!AO28) -> 0 | AP28: =IF(OR($L28="",AP$7=""),0,'kol-vo'!AP28*RRC!AP28) -> 0 | AQ28: =IF(OR($L28="",AQ$7=""),0,'kol-vo'!AQ28*RRC!AQ28) -> 0 | AR28: =IF(OR($L28="",AR$7=""),0,'kol-vo'!AR28*RRC!AR28) -> 0 | AS28: =IF(OR($L28="",AS$7=""),0,'kol-vo'!AS28*RRC!AS28) -> 0 | AT28: =IF(OR($L28="",AT$7=""),0,'kol-vo'!AT28*RRC!AT28) -> 0 | AU28: =IF(OR($L28="",AU$7=""),0,'kol-vo'!AU28*RRC!AU28) -> 0 | AV28: =IF(OR($L28="",AV$7=""),0,'kol-vo'!AV28*RRC!AV28) -> 0 | AW28: =IF(OR($L28="",AW$7=""),0,'kol-vo'!AW28*RRC!AW28) -> 0 | AX28: =IF(OR($L28="",AX$7=""),0,'kol-vo'!AX28*RRC!AX28) -> 0 | AY28: =IF(OR($L28="",AY$7=""),0,'kol-vo'!AY28*RRC!AY28) -> 0 | AZ28: =IF(OR($L28="",AZ$7=""),0,'kol-vo'!AZ28*RRC!AZ28) -> 0 | BA28: =IF(OR($L28="",BA$7=""),0,'kol-vo'!BA28*RRC!BA28) -> 0 | BB28: =IF(OR($L28="",BB$7=""),0,'kol-vo'!BB28*RRC!BB28) -> 0 | BC28: =IF(OR($L28="",BC$7=""),0,'kol-vo'!BC28*RRC!BC28) -> 0 | BD28: =IF(OR($L28="",BD$7=""),0,'kol-vo'!BD28*RRC!BD28) -> 0 | BE28: =IF(OR($L28="",BE$7=""),0,'kol-vo'!BE28*RRC!BE28) -> 0 | BF28: =IF(OR($L28="",BF$7=""),0,'kol-vo'!BF28*RRC!BF28) -> 0 | BG28: =IF(OR($L28="",BG$7=""),0,'kol-vo'!BG28*RRC!BG28) -> 0 | BH28: =IF(OR($L28="",BH$7=""),0,'kol-vo'!BH28*RRC!BH28) -> 0 | BI28: =IF(OR($L28="",BI$7=""),0,'kol-vo'!BI28*RRC!BI28) -> 0 | BJ28: =IF(OR($L28="",BJ$7=""),0,'kol-vo'!BJ28*RRC!BJ28) -> 0 | BK28: =IF(OR($L28="",BK$7=""),0,'kol-vo'!BK28*RRC!BK28) -> 0 | BL28: =IF(OR($L28="",BL$7=""),0,'kol-vo'!BL28*RRC!BL28) -> 0 | BM28: =IF(OR($L28="",BM$7=""),0,'kol-vo'!BM28*RRC!BM28) -> 0 | BN28: =IF(OR($L28="",BN$7=""),0,'kol-vo'!BN28*RRC!BN28) -> 0 | BO28: =IF(OR($L28="",BO$7=""),0,'kol-vo'!BO28*RRC!BO28) -> 0 | BP28: =IF(OR($L28="",BP$7=""),0,'kol-vo'!BP28*RRC!BP28) -> 0 | BQ28: =IF(OR($L28="",BQ$7=""),0,'kol-vo'!BQ28*RRC!BQ28) -> 0 | BR28: =IF(OR($L28="",BR$7=""),0,'kol-vo'!BR28*RRC!BR28) -> 0 | BS28: =IF(OR($L28="",BS$7=""),0,'kol-vo'!BS28*RRC!BS28) -> 0 | BT28: =IF(OR($L28="",BT$7=""),0,'kol-vo'!BT28*RRC!BT28) -> 0 | BU28: =IF(OR($L28="",BU$7=""),0,'kol-vo'!BU28*RRC!BU28) -> 0 | BV28: =IF(OR($L28="",BV$7=""),0,'kol-vo'!BV28*RRC!BV28) -> 0 | BW28: =IF(OR($L28="",BW$7=""),0,'kol-vo'!BW28*RRC!BW28) -> 0 | BX28: =IF(OR($L28="",BX$7=""),0,'kol-vo'!BX28*RRC!BX28) -> 0 | BY28: =IF(OR($L28="",BY$7=""),0,'kol-vo'!BY28*RRC!BY28) -> 0 | BZ28: =IF(OR($L28="",BZ$7=""),0,'kol-vo'!BZ28*RRC!BZ28) -> 0 | CA28: =IF(OR($L28="",CA$7=""),0,'kol-vo'!CA28*RRC!CA28) -> 0 | CB28: =IF(OR($L28="",CB$7=""),0,'kol-vo'!CB28*RRC!CB28) -> 0 | CC28: =IF(OR($L28="",CC$7=""),0,'kol-vo'!CC28*RRC!CC28) -> 0 | CD28: =IF(OR($L28="",CD$7=""),0,'kol-vo'!CD28*RRC!CD28) -> 0 | CE28: =IF(OR($L28="",CE$7=""),0,'kol-vo'!CE28*RRC!CE28) -> 0 | CF28: =IF(OR($L28="",CF$7=""),0,'kol-vo'!CF28*RRC!CF28) -> 0 | CG28: =IF(OR($L28="",CG$7=""),0,'kol-vo'!CG28*RRC!CG28) -> 0 | CH28: =IF(OR($L28="",CH$7=""),0,'kol-vo'!CH28*RRC!CH28) -> 0 | CI28: =IF(OR($L28="",CI$7=""),0,'kol-vo'!CI28*RRC!CI28) -> 0 | CJ28: =IF(OR($L28="",CJ$7=""),0,'kol-vo'!CJ28*RRC!CJ28) -> 0 | CK28: =IF(OR($L28="",CK$7=""),0,'kol-vo'!CK28*RRC!CK28) -> 0 | CL28: =IF(OR($L28="",CL$7=""),0,'kol-vo'!CL28*RRC!CL28) -> 0 | CM28: =IF(OR($L28="",CM$7=""),0,'kol-vo'!CM28*RRC!CM28) -> 0 | CN28: =IF(OR($L28="",CN$7=""),0,'kol-vo'!CN28*RRC!CN28) -> 0 | CO28: =IF(OR($L28="",CO$7=""),0,'kol-vo'!CO28*RRC!CO28) -> 0 | CP28: =IF(OR($L28="",CP$7=""),0,'kol-vo'!CP28*RRC!CP28) -> 0 | CQ28: =IF(OR($L28="",CQ$7=""),0,'kol-vo'!CQ28*RRC!CQ28) -> 0
K29: ='str-ra-prodaj'!K29 -> 19 | L29: ='str-ra-prodaj'!L29 -> 19 | M29: ='str-ra-prodaj'!M29 -> 1 | N29: ='str-ra-prodaj'!N29 -> 1 | O29: ='str-ra-prodaj'!O29 -> Продукт - 53 | P29: ='str-ra-prodaj'!P29 -> Товарная категория - 5 | Q29: ='str-ra-prodaj'!Q29 -> ЮФО+ПФО | R29: ='str-ra-prodaj'!R29 -> E-commerce | X29: =IF(OR($L29="",X$7=""),0,'kol-vo'!X29*RRC!X29) -> 0 | Y29: =IF(OR($L29="",Y$7=""),0,'kol-vo'!Y29*RRC!Y29) -> 0 | Z29: =IF(OR($L29="",Z$7=""),0,'kol-vo'!Z29*RRC!Z29) -> 0 | AA29: =IF(OR($L29="",AA$7=""),0,'kol-vo'!AA29*RRC!AA29) -> 0 | AB29: =IF(OR($L29="",AB$7=""),0,'kol-vo'!AB29*RRC!AB29) -> 0 | AC29: =IF(OR($L29="",AC$7=""),0,'kol-vo'!AC29*RRC!AC29) -> 0 | AD29: =IF(OR($L29="",AD$7=""),0,'kol-vo'!AD29*RRC!AD29) -> 0 | AE29: =IF(OR($L29="",AE$7=""),0,'kol-vo'!AE29*RRC!AE29) -> 0 | AF29: =IF(OR($L29="",AF$7=""),0,'kol-vo'!AF29*RRC!AF29) -> 0 | AG29: =IF(OR($L29="",AG$7=""),0,'kol-vo'!AG29*RRC!AG29) -> 0 | AH29: =IF(OR($L29="",AH$7=""),0,'kol-vo'!AH29*RRC!AH29) -> 0 | AI29: =IF(OR($L29="",AI$7=""),0,'kol-vo'!AI29*RRC!AI29) -> 0 | AJ29: =IF(OR($L29="",AJ$7=""),0,'kol-vo'!AJ29*RRC!AJ29) -> 0 | AK29: =IF(OR($L29="",AK$7=""),0,'kol-vo'!AK29*RRC!AK29) -> 0 | AL29: =IF(OR($L29="",AL$7=""),0,'kol-vo'!AL29*RRC!AL29) -> 0 | AM29: =IF(OR($L29="",AM$7=""),0,'kol-vo'!AM29*RRC!AM29) -> 0 | AN29: =IF(OR($L29="",AN$7=""),0,'kol-vo'!AN29*RRC!AN29) -> 0 | AO29: =IF(OR($L29="",AO$7=""),0,'kol-vo'!AO29*RRC!AO29) -> 0 | AP29: =IF(OR($L29="",AP$7=""),0,'kol-vo'!AP29*RRC!AP29) -> 0 | AQ29: =IF(OR($L29="",AQ$7=""),0,'kol-vo'!AQ29*RRC!AQ29) -> 0 | AR29: =IF(OR($L29="",AR$7=""),0,'kol-vo'!AR29*RRC!AR29) -> 0 | AS29: =IF(OR($L29="",AS$7=""),0,'kol-vo'!AS29*RRC!AS29) -> 0 | AT29: =IF(OR($L29="",AT$7=""),0,'kol-vo'!AT29*RRC!AT29) -> 0 | AU29: =IF(OR($L29="",AU$7=""),0,'kol-vo'!AU29*RRC!AU29) -> 0 | AV29: =IF(OR($L29="",AV$7=""),0,'kol-vo'!AV29*RRC!AV29) -> 0 | AW29: =IF(OR($L29="",AW$7=""),0,'kol-vo'!AW29*RRC!AW29) -> 0 | AX29: =IF(OR($L29="",AX$7=""),0,'kol-vo'!AX29*RRC!AX29) -> 0 | AY29: =IF(OR($L29="",AY$7=""),0,'kol-vo'!AY29*RRC!AY29) -> 0 | AZ29: =IF(OR($L29="",AZ$7=""),0,'kol-vo'!AZ29*RRC!AZ29) -> 0 | BA29: =IF(OR($L29="",BA$7=""),0,'kol-vo'!BA29*RRC!BA29) -> 0 | BB29: =IF(OR($L29="",BB$7=""),0,'kol-vo'!BB29*RRC!BB29) -> 0 | BC29: =IF(OR($L29="",BC$7=""),0,'kol-vo'!BC29*RRC!BC29) -> 0 | BD29: =IF(OR($L29="",BD$7=""),0,'kol-vo'!BD29*RRC!BD29) -> 0 | BE29: =IF(OR($L29="",BE$7=""),0,'kol-vo'!BE29*RRC!BE29) -> 0 | BF29: =IF(OR($L29="",BF$7=""),0,'kol-vo'!BF29*RRC!BF29) -> 0 | BG29: =IF(OR($L29="",BG$7=""),0,'kol-vo'!BG29*RRC!BG29) -> 0 | BH29: =IF(OR($L29="",BH$7=""),0,'kol-vo'!BH29*RRC!BH29) -> 0 | BI29: =IF(OR($L29="",BI$7=""),0,'kol-vo'!BI29*RRC!BI29) -> 0 | BJ29: =IF(OR($L29="",BJ$7=""),0,'kol-vo'!BJ29*RRC!BJ29) -> 0 | BK29: =IF(OR($L29="",BK$7=""),0,'kol-vo'!BK29*RRC!BK29) -> 0 | BL29: =IF(OR($L29="",BL$7=""),0,'kol-vo'!BL29*RRC!BL29) -> 0 | BM29: =IF(OR($L29="",BM$7=""),0,'kol-vo'!BM29*RRC!BM29) -> 0 | BN29: =IF(OR($L29="",BN$7=""),0,'kol-vo'!BN29*RRC!BN29) -> 0 | BO29: =IF(OR($L29="",BO$7=""),0,'kol-vo'!BO29*RRC!BO29) -> 0 | BP29: =IF(OR($L29="",BP$7=""),0,'kol-vo'!BP29*RRC!BP29) -> 0 | BQ29: =IF(OR($L29="",BQ$7=""),0,'kol-vo'!BQ29*RRC!BQ29) -> 0 | BR29: =IF(OR($L29="",BR$7=""),0,'kol-vo'!BR29*RRC!BR29) -> 0 | BS29: =IF(OR($L29="",BS$7=""),0,'kol-vo'!BS29*RRC!BS29) -> 0 | BT29: =IF(OR($L29="",BT$7=""),0,'kol-vo'!BT29*RRC!BT29) -> 0 | BU29: =IF(OR($L29="",BU$7=""),0,'kol-vo'!BU29*RRC!BU29) -> 0 | BV29: =IF(OR($L29="",BV$7=""),0,'kol-vo'!BV29*RRC!BV29) -> 0 | BW29: =IF(OR($L29="",BW$7=""),0,'kol-vo'!BW29*RRC!BW29) -> 0 | BX29: =IF(OR($L29="",BX$7=""),0,'kol-vo'!BX29*RRC!BX29) -> 0 | BY29: =IF(OR($L29="",BY$7=""),0,'kol-vo'!BY29*RRC!BY29) -> 0 | BZ29: =IF(OR($L29="",BZ$7=""),0,'kol-vo'!BZ29*RRC!BZ29) -> 0 | CA29: =IF(OR($L29="",CA$7=""),0,'kol-vo'!CA29*RRC!CA29) -> 0 | CB29: =IF(OR($L29="",CB$7=""),0,'kol-vo'!CB29*RRC!CB29) -> 0 | CC29: =IF(OR($L29="",CC$7=""),0,'kol-vo'!CC29*RRC!CC29) -> 0 | CD29: =IF(OR($L29="",CD$7=""),0,'kol-vo'!CD29*RRC!CD29) -> 0 | CE29: =IF(OR($L29="",CE$7=""),0,'kol-vo'!CE29*RRC!CE29) -> 0 | CF29: =IF(OR($L29="",CF$7=""),0,'kol-vo'!CF29*RRC!CF29) -> 0 | CG29: =IF(OR($L29="",CG$7=""),0,'kol-vo'!CG29*RRC!CG29) -> 0 | CH29: =IF(OR($L29="",CH$7=""),0,'kol-vo'!CH29*RRC!CH29) -> 0 | CI29: =IF(OR($L29="",CI$7=""),0,'kol-vo'!CI29*RRC!CI29) -> 0 | CJ29: =IF(OR($L29="",CJ$7=""),0,'kol-vo'!CJ29*RRC!CJ29) -> 0 | CK29: =IF(OR($L29="",CK$7=""),0,'kol-vo'!CK29*RRC!CK29) -> 0 | CL29: =IF(OR($L29="",CL$7=""),0,'kol-vo'!CL29*RRC!CL29) -> 0 | CM29: =IF(OR($L29="",CM$7=""),0,'kol-vo'!CM29*RRC!CM29) -> 0 | CN29: =IF(OR($L29="",CN$7=""),0,'kol-vo'!CN29*RRC!CN29) -> 0 | CO29: =IF(OR($L29="",CO$7=""),0,'kol-vo'!CO29*RRC!CO29) -> 0 | CP29: =IF(OR($L29="",CP$7=""),0,'kol-vo'!CP29*RRC!CP29) -> 0 | CQ29: =IF(OR($L29="",CQ$7=""),0,'kol-vo'!CQ29*RRC!CQ29) -> 0
K30: ='str-ra-prodaj'!K30 -> 20 | L30: ='str-ra-prodaj'!L30 -> 20 | M30: ='str-ra-prodaj'!M30 -> 1 | N30: ='str-ra-prodaj'!N30 -> 1 | O30: ='str-ra-prodaj'!O30 -> Продукт - 54 | P30: ='str-ra-prodaj'!P30 -> Товарная категория - 5 | Q30: ='str-ra-prodaj'!Q30 -> ЮФО+ПФО | R30: ='str-ra-prodaj'!R30 -> E-commerce | X30: =IF(OR($L30="",X$7=""),0,'kol-vo'!X30*RRC!X30) -> 0 | Y30: =IF(OR($L30="",Y$7=""),0,'kol-vo'!Y30*RRC!Y30) -> 0 | Z30: =IF(OR($L30="",Z$7=""),0,'kol-vo'!Z30*RRC!Z30) -> 0 | AA30: =IF(OR($L30="",AA$7=""),0,'kol-vo'!AA30*RRC!AA30) -> 0 | AB30: =IF(OR($L30="",AB$7=""),0,'kol-vo'!AB30*RRC!AB30) -> 0 | AC30: =IF(OR($L30="",AC$7=""),0,'kol-vo'!AC30*RRC!AC30) -> 0 | AD30: =IF(OR($L30="",AD$7=""),0,'kol-vo'!AD30*RRC!AD30) -> 0 | AE30: =IF(OR($L30="",AE$7=""),0,'kol-vo'!AE30*RRC!AE30) -> 0 | AF30: =IF(OR($L30="",AF$7=""),0,'kol-vo'!AF30*RRC!AF30) -> 0 | AG30: =IF(OR($L30="",AG$7=""),0,'kol-vo'!AG30*RRC!AG30) -> 0 | AH30: =IF(OR($L30="",AH$7=""),0,'kol-vo'!AH30*RRC!AH30) -> 0 | AI30: =IF(OR($L30="",AI$7=""),0,'kol-vo'!AI30*RRC!AI30) -> 0 | AJ30: =IF(OR($L30="",AJ$7=""),0,'kol-vo'!AJ30*RRC!AJ30) -> 0 | AK30: =IF(OR($L30="",AK$7=""),0,'kol-vo'!AK30*RRC!AK30) -> 0 | AL30: =IF(OR($L30="",AL$7=""),0,'kol-vo'!AL30*RRC!AL30) -> 0 | AM30: =IF(OR($L30="",AM$7=""),0,'kol-vo'!AM30*RRC!AM30) -> 0 | AN30: =IF(OR($L30="",AN$7=""),0,'kol-vo'!AN30*RRC!AN30) -> 0 | AO30: =IF(OR($L30="",AO$7=""),0,'kol-vo'!AO30*RRC!AO30) -> 0 | AP30: =IF(OR($L30="",AP$7=""),0,'kol-vo'!AP30*RRC!AP30) -> 0 | AQ30: =IF(OR($L30="",AQ$7=""),0,'kol-vo'!AQ30*RRC!AQ30) -> 0 | AR30: =IF(OR($L30="",AR$7=""),0,'kol-vo'!AR30*RRC!AR30) -> 0 | AS30: =IF(OR($L30="",AS$7=""),0,'kol-vo'!AS30*RRC!AS30) -> 0 | AT30: =IF(OR($L30="",AT$7=""),0,'kol-vo'!AT30*RRC!AT30) -> 0 | AU30: =IF(OR($L30="",AU$7=""),0,'kol-vo'!AU30*RRC!AU30) -> 0 | AV30: =IF(OR($L30="",AV$7=""),0,'kol-vo'!AV30*RRC!AV30) -> 0 | AW30: =IF(OR($L30="",AW$7=""),0,'kol-vo'!AW30*RRC!AW30) -> 0 | AX30: =IF(OR($L30="",AX$7=""),0,'kol-vo'!AX30*RRC!AX30) -> 0 | AY30: =IF(OR($L30="",AY$7=""),0,'kol-vo'!AY30*RRC!AY30) -> 0 | AZ30: =IF(OR($L30="",AZ$7=""),0,'kol-vo'!AZ30*RRC!AZ30) -> 0 | BA30: =IF(OR($L30="",BA$7=""),0,'kol-vo'!BA30*RRC!BA30) -> 0 | BB30: =IF(OR($L30="",BB$7=""),0,'kol-vo'!BB30*RRC!BB30) -> 0 | BC30: =IF(OR($L30="",BC$7=""),0,'kol-vo'!BC30*RRC!BC30) -> 0 | BD30: =IF(OR($L30="",BD$7=""),0,'kol-vo'!BD30*RRC!BD30) -> 0 | BE30: =IF(OR($L30="",BE$7=""),0,'kol-vo'!BE30*RRC!BE30) -> 0 | BF30: =IF(OR($L30="",BF$7=""),0,'kol-vo'!BF30*RRC!BF30) -> 0 | BG30: =IF(OR($L30="",BG$7=""),0,'kol-vo'!BG30*RRC!BG30) -> 0 | BH30: =IF(OR($L30="",BH$7=""),0,'kol-vo'!BH30*RRC!BH30) -> 0 | BI30: =IF(OR($L30="",BI$7=""),0,'kol-vo'!BI30*RRC!BI30) -> 0 | BJ30: =IF(OR($L30="",BJ$7=""),0,'kol-vo'!BJ30*RRC!BJ30) -> 0 | BK30: =IF(OR($L30="",BK$7=""),0,'kol-vo'!BK30*RRC!BK30) -> 0 | BL30: =IF(OR($L30="",BL$7=""),0,'kol-vo'!BL30*RRC!BL30) -> 0 | BM30: =IF(OR($L30="",BM$7=""),0,'kol-vo'!BM30*RRC!BM30) -> 0 | BN30: =IF(OR($L30="",BN$7=""),0,'kol-vo'!BN30*RRC!BN30) -> 0 | BO30: =IF(OR($L30="",BO$7=""),0,'kol-vo'!BO30*RRC!BO30) -> 0 | BP30: =IF(OR($L30="",BP$7=""),0,'kol-vo'!BP30*RRC!BP30) -> 0 | BQ30: =IF(OR($L30="",BQ$7=""),0,'kol-vo'!BQ30*RRC!BQ30) -> 0 | BR30: =IF(OR($L30="",BR$7=""),0,'kol-vo'!BR30*RRC!BR30) -> 0 | BS30: =IF(OR($L30="",BS$7=""),0,'kol-vo'!BS30*RRC!BS30) -> 0 | BT30: =IF(OR($L30="",BT$7=""),0,'kol-vo'!BT30*RRC!BT30) -> 0 | BU30: =IF(OR($L30="",BU$7=""),0,'kol-vo'!BU30*RRC!BU30) -> 0 | BV30: =IF(OR($L30="",BV$7=""),0,'kol-vo'!BV30*RRC!BV30) -> 0 | BW30: =IF(OR($L30="",BW$7=""),0,'kol-vo'!BW30*RRC!BW30) -> 0 | BX30: =IF(OR($L30="",BX$7=""),0,'kol-vo'!BX30*RRC!BX30) -> 0 | BY30: =IF(OR($L30="",BY$7=""),0,'kol-vo'!BY30*RRC!BY30) -> 0 | BZ30: =IF(OR($L30="",BZ$7=""),0,'kol-vo'!BZ30*RRC!BZ30) -> 0 | CA30: =IF(OR($L30="",CA$7=""),0,'kol-vo'!CA30*RRC!CA30) -> 0 | CB30: =IF(OR($L30="",CB$7=""),0,'kol-vo'!CB30*RRC!CB30) -> 0 | CC30: =IF(OR($L30="",CC$7=""),0,'kol-vo'!CC30*RRC!CC30) -> 0 | CD30: =IF(OR($L30="",CD$7=""),0,'kol-vo'!CD30*RRC!CD30) -> 0 | CE30: =IF(OR($L30="",CE$7=""),0,'kol-vo'!CE30*RRC!CE30) -> 0 | CF30: =IF(OR($L30="",CF$7=""),0,'kol-vo'!CF30*RRC!CF30) -> 0 | CG30: =IF(OR($L30="",CG$7=""),0,'kol-vo'!CG30*RRC!CG30) -> 0 | CH30: =IF(OR($L30="",CH$7=""),0,'kol-vo'!CH30*RRC!CH30) -> 0 | CI30: =IF(OR($L30="",CI$7=""),0,'kol-vo'!CI30*RRC!CI30) -> 0 | CJ30: =IF(OR($L30="",CJ$7=""),0,'kol-vo'!CJ30*RRC!CJ30) -> 0 | CK30: =IF(OR($L30="",CK$7=""),0,'kol-vo'!CK30*RRC!CK30) -> 0 | CL30: =IF(OR($L30="",CL$7=""),0,'kol-vo'!CL30*RRC!CL30) -> 0 | CM30: =IF(OR($L30="",CM$7=""),0,'kol-vo'!CM30*RRC!CM30) -> 0 | CN30: =IF(OR($L30="",CN$7=""),0,'kol-vo'!CN30*RRC!CN30) -> 0 | CO30: =IF(OR($L30="",CO$7=""),0,'kol-vo'!CO30*RRC!CO30) -> 0 | CP30: =IF(OR($L30="",CP$7=""),0,'kol-vo'!CP30*RRC!CP30) -> 0 | CQ30: =IF(OR($L30="",CQ$7=""),0,'kol-vo'!CQ30*RRC!CQ30) -> 0
K31: ='str-ra-prodaj'!K31 -> 21 | L31: ='str-ra-prodaj'!L31 -> 21 | M31: ='str-ra-prodaj'!M31 -> 1 | N31: ='str-ra-prodaj'!N31 -> 1 | O31: ='str-ra-prodaj'!O31 -> Продукт - 61 - 200ml. тубус | P31: ='str-ra-prodaj'!P31 -> Товарная категория - 6 | Q31: ='str-ra-prodaj'!Q31 -> ЮФО+ПФО | R31: ='str-ra-prodaj'!R31 -> E-commerce | X31: =IF(OR($L31="",X$7=""),0,'kol-vo'!X31*RRC!X31) -> 4548.18 | Y31: =IF(OR($L31="",Y$7=""),0,'kol-vo'!Y31*RRC!Y31) -> 3898.44 | Z31: =IF(OR($L31="",Z$7=""),0,'kol-vo'!Z31*RRC!Z31) -> 4661.8845 | AA31: =IF(OR($L31="",AA$7=""),0,'kol-vo'!AA31*RRC!AA31) -> 5327.868 | AB31: =IF(OR($L31="",AB$7=""),0,'kol-vo'!AB31*RRC!AB31) -> 5993.8515 | AC31: =IF(OR($L31="",AC$7=""),0,'kol-vo'!AC31*RRC!AC31) -> 5993.8515 | AD31: =IF(OR($L31="",AD$7=""),0,'kol-vo'!AD31*RRC!AD31) -> 7325.8185 | AE31: =IF(OR($L31="",AE$7=""),0,'kol-vo'!AE31*RRC!AE31) -> 7325.8185 | AF31: =IF(OR($L31="",AF$7=""),0,'kol-vo'!AF31*RRC!AF31) -> 6143.697787 | AG31: =IF(OR($L31="",AG$7=""),0,'kol-vo'!AG31*RRC!AG31) -> 5461.0647 | AH31: =IF(OR($L31="",AH$7=""),0,'kol-vo'!AH31*RRC!AH31) -> 4778.431612 | AI31: =IF(OR($L31="",AI$7=""),0,'kol-vo'!AI31*RRC!AI31) -> 5461.0647 | AJ31: =IF(OR($L31="",AJ$7=""),0,'kol-vo'!AJ31*RRC!AJ31) -> 11149.67376 | AK31: =IF(OR($L31="",AK$7=""),0,'kol-vo'!AK31*RRC!AK31) -> 9556.863225 | AL31: =IF(OR($L31="",AL$7=""),0,'kol-vo'!AL31*RRC!AL31) -> 11428.41561 | AM31: =IF(OR($L31="",AM$7=""),0,'kol-vo'!AM31*RRC!AM31) -> 13061.04641 | AN31: =IF(OR($L31="",AN$7=""),0,'kol-vo'!AN31*RRC!AN31) -> 14693.67721 | AO31: =IF(OR($L31="",AO$7=""),0,'kol-vo'!AO31*RRC!AO31) -> 14693.67721 | AP31: =IF(OR($L31="",AP$7=""),0,'kol-vo'!AP31*RRC!AP31) -> 17958.93881 | AQ31: =IF(OR($L31="",AQ$7=""),0,'kol-vo'!AQ31*RRC!AQ31) -> 17958.93881 | AR31: =IF(OR($L31="",AR$7=""),0,'kol-vo'!AR31*RRC!AR31) -> 15061.01914 | AS31: =IF(OR($L31="",AS$7=""),0,'kol-vo'!AS31*RRC!AS31) -> 13387.57257 | AT31: =IF(OR($L31="",AT$7=""),0,'kol-vo'!AT31*RRC!AT31) -> 11714.126 | AU31: =IF(OR($L31="",AU$7=""),0,'kol-vo'!AU31*RRC!AU31) -> 13387.57257 | AV31: =IF(OR($L31="",AV$7=""),0,'kol-vo'!AV31*RRC!AV31) -> 21754.80542 | AW31: =IF(OR($L31="",AW$7=""),0,'kol-vo'!AW31*RRC!AW31) -> 18646.97608 | AX31: =IF(OR($L31="",AX$7=""),0,'kol-vo'!AX31*RRC!AX31) -> 22298.67556 | AY31: =IF(OR($L31="",AY$7=""),0,'kol-vo'!AY31*RRC!AY31) -> 25484.20064 | AZ31: =IF(OR($L31="",AZ$7=""),0,'kol-vo'!AZ31*RRC!AZ31) -> 28669.72572 | BA31: =IF(OR($L31="",BA$7=""),0,'kol-vo'!BA31*RRC!BA31) -> 28669.72572 | BB31: =IF(OR($L31="",BB$7=""),0,'kol-vo'!BB31*RRC!BB31) -> 35040.77588 | BC31: =IF(OR($L31="",BC$7=""),0,'kol-vo'!BC31*RRC!BC31) -> 35040.77588 | BD31: =IF(OR($L31="",BD$7=""),0,'kol-vo'!BD31*RRC!BD31) -> 29386.46886 | BE31: =IF(OR($L31="",BE$7=""),0,'kol-vo'!BE31*RRC!BE31) -> 26121.30565 | BF31: =IF(OR($L31="",BF$7=""),0,'kol-vo'!BF31*RRC!BF31) -> 22856.14245 | BG31: =IF(OR($L31="",BG$7=""),0,'kol-vo'!BG31*RRC!BG31) -> 26121.30565 | BH31: =IF(OR($L31="",BH$7=""),0,'kol-vo'!BH31*RRC!BH31) -> 52744.94411 | BI31: =IF(OR($L31="",BI$7=""),0,'kol-vo'!BI31*RRC!BI31) -> 45209.95209 | BJ31: =IF(OR($L31="",BJ$7=""),0,'kol-vo'!BJ31*RRC!BJ31) -> 54063.56771 | BK31: =IF(OR($L31="",BK$7=""),0,'kol-vo'!BK31*RRC!BK31) -> 61786.93453 | BL31: =IF(OR($L31="",BL$7=""),0,'kol-vo'!BL31*RRC!BL31) -> 69510.30134 | BM31: =IF(OR($L31="",BM$7=""),0,'kol-vo'!BM31*RRC!BM31) -> 69510.30134 | BN31: =IF(OR($L31="",BN$7=""),0,'kol-vo'!BN31*RRC!BN31) -> 84957.03497 | BO31: =IF(OR($L31="",BO$7=""),0,'kol-vo'!BO31*RRC!BO31) -> 84957.03497 | BP31: =IF(OR($L31="",BP$7=""),0,'kol-vo'!BP31*RRC!BP31) -> 71248.05888 | BQ31: =IF(OR($L31="",BQ$7=""),0,'kol-vo'!BQ31*RRC!BQ31) -> 63331.60789 | BR31: =IF(OR($L31="",BR$7=""),0,'kol-vo'!BR31*RRC!BR31) -> 55415.1569 | BS31: =IF(OR($L31="",BS$7=""),0,'kol-vo'!BS31*RRC!BS31) -> 63331.60789 | BT31: =IF(OR($L31="",BT$7=""),0,'kol-vo'!BT31*RRC!BT31) -> 92358.59484 | BU31: =IF(OR($L31="",BU$7=""),0,'kol-vo'!BU31*RRC!BU31) -> 79164.50986 | BV31: =IF(OR($L31="",BV$7=""),0,'kol-vo'!BV31*RRC!BV31) -> 94667.55971 | BW31: =IF(OR($L31="",BW$7=""),0,'kol-vo'!BW31*RRC!BW31) -> 108191.4968 | BX31: =IF(OR($L31="",BX$7=""),0,'kol-vo'!BX31*RRC!BX31) -> 121715.4339 | BY31: =IF(OR($L31="",BY$7=""),0,'kol-vo'!BY31*RRC!BY31) -> 121715.4339 | BZ31: =IF(OR($L31="",BZ$7=""),0,'kol-vo'!BZ31*RRC!BZ31) -> 148763.3081 | CA31: =IF(OR($L31="",CA$7=""),0,'kol-vo'!CA31*RRC!CA31) -> 148763.3081 | CB31: =IF(OR($L31="",CB$7=""),0,'kol-vo'!CB31*RRC!CB31) -> 124758.3198 | CC31: =IF(OR($L31="",CC$7=""),0,'kol-vo'!CC31*RRC!CC31) -> 110896.2842 | CD31: =IF(OR($L31="",CD$7=""),0,'kol-vo'!CD31*RRC!CD31) -> 97034.2487 | CE31: =IF(OR($L31="",CE$7=""),0,'kol-vo'!CE31*RRC!CE31) -> 110896.2842 | CF31: =IF(OR($L31="",CF$7=""),0,'kol-vo'!CF31*RRC!CF31) -> 170780.2777 | CG31: =IF(OR($L31="",CG$7=""),0,'kol-vo'!CG31*RRC!CG31) -> 146383.0952 | CH31: =IF(OR($L31="",CH$7=""),0,'kol-vo'!CH31*RRC!CH31) -> 175049.7847 | CI31: =IF(OR($L31="",CI$7=""),0,'kol-vo'!CI31*RRC!CI31) -> 200056.8968 | CJ31: =IF(OR($L31="",CJ$7=""),0,'kol-vo'!CJ31*RRC!CJ31) -> 225064.0089 | CK31: =IF(OR($L31="",CK$7=""),0,'kol-vo'!CK31*RRC!CK31) -> 225064.0089 | CL31: =IF(OR($L31="",CL$7=""),0,'kol-vo'!CL31*RRC!CL31) -> 275078.233 | CM31: =IF(OR($L31="",CM$7=""),0,'kol-vo'!CM31*RRC!CM31) -> 275078.233 | CN31: =IF(OR($L31="",CN$7=""),0,'kol-vo'!CN31*RRC!CN31) -> 230690.6091 | CO31: =IF(OR($L31="",CO$7=""),0,'kol-vo'!CO31*RRC!CO31) -> 205058.3192 | CP31: =IF(OR($L31="",CP$7=""),0,'kol-vo'!CP31*RRC!CP31) -> 179426.0293 | CQ31: =IF(OR($L31="",CQ$7=""),0,'kol-vo'!CQ31*RRC!CQ31) -> 205058.3192
... 38 more rows

Sheet PTT
B3: * | C3: Продажи в ТТ с НДС
